Workbook

Sheet Cover

Sheet Guide & drivers
A1: Guide and Drivers
A2: This workbook provides data that is reported in the Annual Report and more detailed data for those who want to undertake further analysis.
A4: Key
B5: Future year input (graphs will be manually pointed to the relevant years' data)
B6: Actual expenditure or performance
B7: Forecast / target expenditure or performance
B8: Baseline allowances
B9: Forecast/Adjusted allowances
B10: Adjustment factor / Difference
B11: Ranking
A13: Price base: | B13: 2022/23
A15: Input Terms
B17: RPI Index
C18: Financial Year Average RPI | D18: Conversion from 12/13 to nominal prices | E18: Conversion from 15/16 to nominal prices | I18: Index adjustment 2022/23 base year
B19: 2009/10 | C19: 215.767 | D19: =C19/$C$22 -> 0.8818514356 | E19: =C19/$C$25 -> 0.8316867939 | I19: 2009/10 | J19: =$C$32/C19 -> 1.627760501
B20: 2010/11 | C20: 226.475 | D20: 0.9256156125 | E20: 0.8729614197 | I20: 2010/11 | J20: =$C$32/C20 -> 1.550798101
B21: 2011/12 | C21: 237.342 | D21: 0.9700296311 | E21: 0.9148489205 | I21: 2011/12 | J21: 1.479792873
B22: 2012/13 | C22: 244.675 | D22: 1 | E22: 0.9431144072 | I22: 2012/13 | J22: 1.435442935
B23: 2013/14 | C23: 251.733 | D23: 1.028846429 | E23: 0.9703198899 | I23: 2013/14 | J23: 1.395196498
B24: 2014/15 | C24: 256.667 | D24: 1.049011955 | E24: 0.9893382877 | I24: 2014/15 | J24: 1.368376145
B25: 2015/16 | C25: 259.433 | D25: =C25/$C$22 -> 1.060316747 | E25: 1 | I25: 2015/16 | J25: 1.353786912
B26: 2016/17 | C26: 264.992 | D26: 1.083036681 | E26: =C26/$C$25 -> 1.021427498 | I26: 2016/17 | J26: 1.325387181
B27: 2017/18 | C27: 274.908 | D27: 1.123563911 | E27: =C27/$C$25 -> 1.059649312 | I27: 2017/18 | J27: 1.277580136
B28: 2018/19 | C28: 283.308 | D28: 1.157895167 | E28: =C28/$C$25 -> 1.092027614 | I28: 2018/19 | J28: 1.239700256
B29: 2019/20 | C29: 290.642 | D29: 1.187869623 | E29: =C29/$C$25 -> 1.120296955 | I29: 2019/20 | J29: 1.208417916
B30: 2020/21 | C30: 294.167 | D30: 1.202276489 | E30: =C30/$C$25 -> 1.133884278 | I30: 2020/21 | J30: 1.193937457
B31: 2021/22 | C31: 311.158 | D31: 1.271719628 | E31: =C31/$C$25 -> 1.199377103 | I31: 2021/22 | J31: 1.128741668
B32: 2022/23 | C32: 351.217 | D32: 1.435442935 | E32: 1.353786912 | I32: 2022/23 | J32: 1
A35: Drivers
B36: Customer numbers
C37: DPCR5 | H37: RIIO ED1
B38: Column1 | C38: 2011 | D38: 2012 | E38: 2013 | F38: 2014 | G38: 2015 | H38: 2016 | I38: 2017 | J38: 2018 | K38: 2019 | L38: 2020 | M38: 2021 | N38: 2022 | O38: 2023
B39: ENWL | C39: 2359391 | D39: 2364446 | E39: 2368572 | F39: 2371790 | G39: 2375305 | H39: 2381080 | I39: 2383214 | J39: 2383887 | K39: 2393226 | L39: 2399715 | M39: 2405770 | N39: 2412196 | O39: 2424364
B40: NPgN | C40: 1575686 | D40: 1581420 | E40: 1583627 | F40: 1586437 | G40: 1590615 | H40: 1596374 | I40: 1600885 | J40: 1602128 | K40: 1606300 | L40: 1610820 | M40: 1614053 | N40: 1616140 | O40: 1616824
B41: NPgY | C41: 2258404 | D41: 2266464 | E41: 2272386 | F41: 2277373 | G41: 2284044 | H41: 2291522 | I41: 2298672 | J41: 2298786 | K41: 2306293 | L41: 2312147 | M41: 2318718 | N41: 2322737 | O41: 2326611
B42: WMID | C42: 2446951 | D42: 2462123 | E42: 2469953 | F42: 2448930 | G42: 2455914 | H42: 2463217 | I42: 2470151 | J42: 2481944 | K42: 2491212 | L42: 2498337 | M42: 2505140 | N42: 2515482 | O42: 2522965
B43: EMID | C43: 2614165 | D43: 2623103 | E43: 2619183 | F43: 2604846 | G43: 2613507 | H43: 2622449 | I43: 2631017 | J43: 2647059 | K43: 2658397 | L43: 2665558 | M43: 2674911 | N43: 2686722 | O43: 2696717
B44: SWALES | C44: 1099333 | D44: 1103465 | E44: 1108168 | F44: 1113015 | G44: 1117685 | H44: 1122920 | I44: 1128284 | J44: 1133101 | K44: 1137812 | L44: 1142731 | M44: 1147345 | N44: 1151120 | O44: 1155365
B45: SWEST | C45: 1541188 | D45: 1551046 | E45: 1561137 | F45: 1570645 | G45: 1579687 | H45: 1590050 | I45: 1600520 | J45: 1613218 | K45: 1624131 | L45: 1628987 | M45: 1636981 | N45: 1646359 | O45: 1653816
B46: LPN | C46: 2251892 | D46: 2267440 | E46: 2279053 | F46: 2286322 | G46: 2298560 | H46: 2311906 | I46: 2330356 | J46: 2345807 | K46: 2357951 | L46: 2369157 | M46: 2375701 | N46: 2384532 | O46: 2409279
B47: SPN | C47: 2233288 | D47: 2247823 | E47: 2257968 | F47: 2262882 | G47: 2271189 | H47: 2281009 | I47: 2288599 | J47: 2296864 | K47: 2304887 | L47: 2311511 | M47: 2319494 | N47: 2327062 | O47: 2343845
B48: EPN | C48: 3516859 | D48: 3537357 | E48: 3556281 | F48: 3565115 | G48: 3581606 | H48: 3599594 | I48: 3614431 | J48: 3627858 | K48: 3638189 | L48: 3653242 | M48: 3664189 | N48: 3678637 | O48: 3698654
B49: SPD | C49: 1992998 | D49: 1994241 | E49: 1996169 | F49: 1996758 | G49: 1998881 | H49: 2002257 | I49: 2004462 | J49: 2007341 | K49: 2002889 | L49: 2008433 | M49: 2010896 | N49: 2016358 | O49: 2018597
B50: SPMW | C50: 1485153 | D50: 1487412 | E50: 1490883 | F50: 1494271 | G50: 1499500 | H50: 1503914 | I50: 1508672 | J50: 1512961 | K50: 1512275 | L50: 1519557 | M50: 1523255 | N50: 1527950 | O50: 1531042
B51: SSEH | C51: 740768 | D51: 745907 | E51: 750446 | F51: 754258 | G51: 757906 | H51: 758000 | I51: 767082 | J51: 772984 | K51: 778304 | L51: 782536 | M51: 785183 | N51: 788261 | O51: 792497
B52: SSES | C52: 3026488 | D52: 3040102 | E52: 3054120 | F52: 3067274 | G52: 3082913 | H52: 3098577 | I52: 3032766 | J52: 3049924 | K52: 3067988 | L52: 3092275 | M52: 3110203 | N52: 3127424 | O52: 3138114
B53: Total | C53: =SUM(C39:C52) -> 29142564 | D53: =SUM(D39:D52) -> 29272349 | E53: 29367946 | F53: 29399916 | G53: 29507312 | H53: 29622869 | I53: 29659111 | J53: 29773862 | K53: 29879854 | L53: 29995006 | M53: 30091839 | N53: =SUM(N39:N52) -> 30200980 | O53: 30328690
B55: Network length (km)
C56: DPCR5 | H56: RIIO ED1
C57: 2011 | D57: 2012 | E57: 2013 | F57: 2014 | G57: 2015 | H57: 2016 | I57: 2017 | J57: 2018 | K57: 2019 | L57: 2020 | M57: 2021 | N57: 2022 | O57: 2023
B58: ENWL | C58: 56952.2565 | D58: 57115.77162 | E58: 57296.44743 | F58: 57547.74498 | G58: 57722.14882 | H58: 57946.36778 | I58: 57090.45584 | J58: 57324.15031 | K58: 57348.87727 | L58: 57432.08682 | M58: 57415.29303 | N58: 57694.51428 | O58: 60022.72532
B59: NPgN | C59: 40159.667 | D59: 40351.759 | E59: 40668.071 | F59: 40787.16 | G59: 41012.91718 | H59: 41243.50856 | I59: 41503.33523 | J59: 41704.94 | K59: 41839.146 | L59: 41922.93155 | M59: 42001.7035 | N59: 42100.80948 | O59: 42435.88776
B60: NPgY | C60: 52782.96193 | D60: 52946.18823 | E60: 53163.7354 | F60: 53299.51433 | G60: 53567.08269 | H60: 53873.2104 | I60: 54094.26509 | J60: 54318.59584 | K60: 54653.81543 | L60: 54890.93543 | M60: 55119.95643 | N60: 55092.42136 | O60: 55262.51996
B61: WMID | C61: 63459.14075 | D61: 64111.49205 | E61: 64147.94048 | F61: 64280.34378 | G61: 64590.58991 | H61: 64268.96386 | I61: 64575.20252 | J61: 64878.78841 | K61: 65153.4721 | L61: 65363.5972 | M61: 65570.05074 | N61: 65765.19243 | O61: 66058.60854
B62: EMID | C62: 71700.13186 | D62: 71919.77166 | E62: 72058.56258 | F62: 72381.28258 | G62: 72761.45973 | H62: 72976.36896 | I62: 73379.48656 | J62: 73745.45616 | K62: 74111.28595 | L62: 74399.80883 | M62: 74750.61973 | N62: 75070.71224 | O62: 75454.66648
B63: SWALES | C63: 35162.26779 | D63: 35298.91907 | E63: 35362.00842 | F63: 35458.70053 | G63: 35632.41961 | H63: 35612.30017 | I63: 35789.68791 | J63: 35678.69651 | K63: 35758.72217 | L63: 35832.16687 | M63: 35927.35557 | N63: 36052.24805 | O63: 36193.12924
B64: SWEST | C64: 50183.20611 | D64: 50440.85766 | E64: 50584.05782 | F64: 50761.22369 | G64: 51050.23471 | H64: 50247.79193 | I64: 50450.12055 | J64: 50609.99914 | K64: 50798.96036 | L64: 50935.80437 | M64: 51090.62407 | N64: 51234.26161 | O64: 51443.5388
B65: LPN | C65: 36627.93 | D65: 36703.93 | E65: 36732.21 | F65: 36822.66089 | G65: 36845.69054 | H65: 36932.86279 | I65: 37041.84541 | J65: 37159.64167 | K65: 37270.9533 | L65: 37456.53582 | M65: 37511.14746 | N65: 37580.33428 | O65: 37685.25862
B66: SPN | C66: 52200 | D66: 52315.75334 | E66: 52449.36234 | F66: 52686.69774 | G66: 52805.84673 | H66: 52841.05469 | I66: 52924.03279 | J66: 53014.55406 | K66: 53134.23316 | L66: 53252.59718 | M66: 53396.96876 | N66: 53449.03517 | O66: 53573.06378
B67: EPN | C67: 96266 | D67: 96408.8 | E67: 96541.527 | F67: 96767.73147 | G67: 96913.08314 | H67: 97261.38548 | I67: 97631.96554 | J67: 97817.45905 | K67: 98070.96429 | L67: 98393.93852 | M67: 98594.66181 | N67: 98792.58876 | O67: 99079.71756
B68: SPD | C68: 63848.4556 | D68: 63943.0006 | E68: 57811.99774 | F68: 57324 | G68: 57628.9 | H68: 57984.4 | I68: 58303.9 | J68: 58515.3 | K68: 58578.6 | L68: 58696.8 | M68: 58816.8 | N68: 58997.3 | O68: 59166.13553
B69: SPMW | C69: 49669.0976 | D69: 49619.0976 | E69: 48454.39517 | F69: 46437.905 | G69: 46589.90371 | H69: 46844.00973 | I69: 46947 | J69: 47051.39112 | K69: 47151 | L69: 47253.2 | M69: 47374.3 | N69: 47500.9 | O69: 47687.3
B70: SSEH | C70: 47024.21947 | D70: 47477.55799 | E70: 47676.3229 | F70: 48053.1727 | G70: 48407.80773 | H70: 48346.868 | I70: 49026.46946 | J70: 49153.93914 | K70: 49356.67714 | L70: 49390.11014 | M70: 49348.79714 | N70: 49471.43214 | O70: 49762.72314
B71: SSES | C71: 76219.64 | D71: 76727.2343 | E71: 76965.98655 | F71: 76667.08495 | G71: 77077.0711 | H71: 77958.94515 | I71: 77378.55482 | J71: 77486.95767 | K71: 77710.03567 | L71: 77998.04867 | M71: 78149.13667 | N71: 78702.57567 | O71: 79063.70667
B72: Total | C72: =SUM(C58:C71) -> 792254.9746 | D72: 795380.1331 | E72: 789912.6248 | F72: 789275.2226 | G72: 792605.1556 | H72: 794338.0375 | I72: 796136.3217 | J72: 798459.8691 | K72: 800936.7428 | L72: =SUM(L58:L71) -> 803218.5614 | M72: =SUM(M58:M71) -> 805067.4149 | N72: =SUM(N58:N71) -> 807504.3255 | O72: 812888.9814
B74: Total units distributed (GWh)
C75: DPCR5 | H75: RIIO ED1
C76: 2011 | D76: 2012 | E76: 2013 | F76: 2014 | G76: 2015 | H76: 2016 | I76: 2017 | J76: 2018 | K76: 2019 | L76: 2020 | M76: 2021 | N76: 2022 | O76: 2023
B77: ENWL | C77: 23835.24 | D77: 23367.42 | E77: 23484.00688 | F77: 22820 | G77: 22393 | H77: 22223.98232 | I77: 22059.6 | J77: 21855.5 | K77: 21712.4 | L77: 21372.05355 | M77: 20115 | N77: 20962.45289 | O77: 19661.1
B78: NPgN | C78: 15795.56804 | D78: 15271.77665 | E78: 15489.97147 | F78: 15131.45655 | G78: 14984.01833 | H78: 14861.88999 | I78: 14494.54801 | J78: 14414.14121 | K78: 14092.21149 | L78: 13849.77093 | M78: 13156.82279 | N78: 13524.24992 | O78: 12809.47536
B79: NPgY | C79: 23063.32753 | D79: 22570.84487 | E79: 22692.94041 | F79: 22438.35129 | G79: 22263.32887 | H79: 22012.43424 | I79: 21674.854 | J79: 21614.84335 | K79: 21387.84575 | L79: 21059.51281 | M79: 19987.06933 | N79: 20458.41375 | O79: 19450.49236
B80: WMID | C80: 24932.16037 | D80: 24247.72246 | E80: 24682.02266 | F80: 24427.3279 | G80: 24212.9227 | H80: 23941.29486 | I80: 23896.44009 | J80: 23772.67064 | K80: 23198.03282 | L80: 22877.70669 | M80: 21450.19423 | N80: 21917.10496 | O80: 20939.64132
B81: EMID | C81: 27882.57017 | D81: 27073.07901 | E81: 27597.26551 | F81: 26794.97371 | G81: 26626.62398 | H81: 26424.30814 | I81: 26354.81065 | J81: 26187.57704 | K81: 25592.13264 | L81: 25292.06315 | M81: 24075.08199 | N81: 24799.75236 | O81: 23696.85613
B82: SWALES | C82: 12110.70383 | D82: 11776.00643 | E82: 11769.62784 | F82: 11640.55919 | G82: 11490.95206 | H82: 11333.0048 | I82: 11177.17131 | J82: 11072.4823 | K82: 10939.20238 | L82: 10740.96141 | M82: 9986.208259 | N82: 10378.19782 | O82: 9766.405836
B83: SWEST | C83: 14625.00699 | D83: 14078.27414 | E83: 14412.45131 | F83: 13932.80799 | G83: 13767.54807 | H83: 13561.17809 | I83: 13531.17623 | J83: 13505.56227 | K83: 13189.6522 | L83: 13023.91699 | M83: 12409.7708 | N83: 12709.75515 | O83: 12090.73571
B84: LPN | C84: 29355 | D84: 28492.36302 | E84: 28722.3 | F84: 28006 | G84: 27632 | H84: 27442.4 | I84: 27266 | J84: 27012 | K84: 26864 | L84: 25779 | M84: 22309.19072 | N84: 23801.83947 | O84: 23828.43024
B85: SPN | C85: 21694 | D85: 20813 | E85: 20994 | F85: 20508.408 | G85: 19713 | H85: 19413.4 | I85: 19468 | J85: 19373 | K85: 19379 | L85: 18763 | M85: 17921.516 | N85: 18377.68234 | O85: 17499.96501
B86: EPN | C86: 34525 | D86: 34093 | E86: 35108 | F86: 33794 | G86: 32882 | H86: 32721 | I86: 33295 | J86: 33106 | K86: 32994 | L86: 31973 | M86: 30657.3915 | N86: 31566.64774 | O86: 30130.35201
B87: SPD | C87: 20023 | D87: 19341 | E87: 19537 | F87: 18943 | G87: 18589 | H87: 18348 | I87: 17961 | J87: 17833 | K87: 17266 | L87: 16920.72771 | M87: 15782.06644 | N87: 16169.72888 | O87: 15470.16933
B88: SPMW | C88: 16195 | D88: 15787 | E88: 16065 | F88: 15997 | G88: 15742 | H88: 15449 | I88: 15211 | J88: 15118 | K88: 14655 | L88: 14377.93888 | M88: 13476.78862 | N88: 13607.93521 | O88: 13020.98836
B89: SSEH | C89: 8521 | D89: 8117.4 | E89: 8333.8 | F89: 8075.6 | G89: 7818.5 | H89: 7859.7 | I89: 7427.8 | J89: 7662.7 | K89: 7461.9 | L89: 6996.683915 | M89: 6868.6 | N89: 7178.2 | O89: 6747.2
B90: SSES | C90: 33646.1 | D90: 32536.8 | E90: 33207.3 | F90: 32359.1 | G90: 31840.1 | H90: 31425.5 | I90: 30984.1 | J90: 31527.7 | K90: 30870.8 | L90: 30641.73411 | M90: 29279.9 | N90: 30452.3 | O90: 29341.2
B91: Total | C91: =SUM(C77:C90) -> 306203.6769 | D91: =SUM(D77:D90) -> 297565.6866 | E91: 302095.6861 | F91: 294868.5846 | G91: 289954.994 | H91: 287017.0924 | I91: 284801.5003 | J91: 284055.1768 | K91: 279602.1773 | L91: 273668.0701 | M91: 257475.6007 | N91: =SUM(N77:N90) -> 265904.2605 | O91: 254453.0117
B93: Network-wide Peak load (MVA)
C94: DPCR5 | H94: RIIO ED1
C95: 2011 | D95: 2012 | E95: 2013 | F95: 2014 | G95: 2015 | H95: 2016 | I95: 2017 | J95: 2018 | K95: 2019 | L95: 2020 | M95: 2021 | N95: 2022 | O95: 2023
B96: ENWL | C96: 4388.66 | D96: 4280.41 | E96: 4250.4 | F96: 4062.350515 | G96: 4267 | H96: 4233 | I96: 4262 | J96: 4305 | K96: 4160 | L96: 4140 | M96: 4049 | N96: 4223 | O96: 4107
B97: NPgN | C97: 2997 | D97: 2852 | E97: 2777 | F97: 2604 | G97: 2593 | H97: 2775 | I97: 2781.3392 | J97: 2723.672 | K97: 2459.074 | L97: 2410.7036 | M97: 2531.7 | N97: 2305.6896 | O97: 2421.243
B98: NPgY | C98: 4285 | D98: 4195 | E98: 4041 | F98: 4086 | G98: 3763 | H98: 4059.803 | I98: 3961.26 | J98: 3786.452 | K98: 3994.02 | L98: 3696.7076 | M98: 3474.7 | N98: 3704.448 | O98: 3708.0456
B99: WMID | C99: 4662.231544 | D99: 4792.138457 | E99: 4782.4592 | F99: 4492 | G99: 4597.6 | H99: 4487.2 | I99: 4469.6 | J99: 4440 | K99: 4323.8 | L99: 4251 | M99: 4162 | N99: 4220.2 | O99: 3934.2
B100: EMID | C100: 5042.450848 | D100: 5292.3975 | E100: 5293.0718 | F100: 5056 | G100: 5012.2 | H100: 4968.4 | I100: 4961.6 | J100: 4801.8 | K100: 4769 | L100: 4699 | M100: 4692.4 | N100: 4769.2 | O100: 4481.8
B101: SWALES | C101: 2152.652603 | D101: 2117.6 | E101: 1999.5122 | F101: 1992 | G101: 2012 | H101: 1970.4 | I101: 1946.4 | J101: 1914 | K101: 1897.6 | L101: 1824.2 | M101: 1761.4 | N101: 1801.4 | O101: 1747.2
B102: SWEST | C102: 2903.634729 | D102: 2854.9 | E102: 2754.5462 | F102: 2594 | G102: 2583.8 | H102: 2536.8 | I102: 2590.8 | J102: 2565.8 | K102: 2486.8 | L102: 2462.6 | M102: 2446.4 | N102: 2459.8 | O102: 2374.8
B103: LPN | C103: 5203 | D103: 5125 | E103: 5167 | F103: 4820 | G103: 4952 | H103: 4833 | I103: 4915 | J103: 5189 | K103: 4780 | L103: 4389 | M103: 4448 | N103: 4313 | O103: 4455.6
B104: SPN | C104: 3976 | D104: 4108 | E104: 4107 | F104: 3672 | G104: 3795 | H104: 3809 | I104: 3923 | J104: 4022 | K104: 3672 | L104: 3526 | M104: 3592 | N104: 3567 | O104: 3371.9
B105: EPN | C105: 6966 | D105: 6407 | E105: 6408 | F105: 6096 | G105: 6267 | H105: 6236 | I105: 6441 | J105: 6573 | K105: 5926 | L105: 5401 | M105: 6129 | N105: 5270 | O105: 5638.2
B106: SPD | C106: 4024 | D106: 3611 | E106: 3673 | F106: 3426 | G106: 3414 | H106: 3626 | I106: 3563 | J106: 3575 | K106: 3437 | L106: 3384 | M106: 3132 | N106: 3203 | O106: 3250
B107: SPMW | C107: 3320 | D107: 3197 | E107: 3245 | F107: 3023 | G107: 3127 | H107: 3014 | I107: 3022 | J107: 3039 | K107: 2967 | L107: 2929 | M107: 2674 | N107: 2690 | O107: 2739
B108: SSEH | C108: 1633 | D108: 1559 | E108: 1518 | F108: 1518 | G108: 1514 | H108: 1417 | I108: 1497.2 | J108: 1564.5 | K108: 1429.5 | L108: 1416.0002 | M108: 1400 | N108: 1377.1 | O108: 1346.6
B109: SSES | C109: 6692.8 | D109: 6395.7 | E109: 6387.1 | F109: 5916.3 | G109: 6005.4 | H109: 5971.2 | I109: 6079.3 | J109: 6293 | K109: 5883.7 | L109: 5584.9832 | M109: 5699 | N109: 5709.5 | O109: 5624
B110: Total | C110: =SUM(C96:C109) -> 58246.42972 | D110: =SUM(D96:D109) -> 56787.14596 | E110: 56403.0894 | F110: 53357.65052 | G110: 53903 | H110: 53936.803 | I110: 54413.4992 | J110: 54792.224 | K110: 52185.494 | L110: 50114.1946 | M110: 50191.6 | N110: =SUM(N96:N109) -> 49613.3376 | O110: 49199.5886

Sheet Contents
A8: Contents
A11: Tab | B11: Description
A12: One-pager
A14: Cover, Guide & Drivers
A16: RAG and Ranking
A18: Chapter 2 - Incentive Payments
A19: Incentive Payments | B19: Summary table of 2022-23 incentive payments including: BMCS, IIS, ICE, TTC, LDR and total incentive payments
A21: Connections | B21: Connection incentives including: Time to Connect Incentive, Incentive on Connections Engagement (ICE), Connections on Guaranteed Standards of Performance and Customer Satisfaction Survey
A23: Customer Satisfaction | B23: Customer Satisfaction incentives including: Customer Satisfaction Survey, Complaints Metric and Stakeholder Engagement and Consumer Vulnerability
A25: Reliability | B25: Reliability and Availability incentive measures including: IIS, GSoP, WSC and Network resilience
A27: Network Asset Secondary Deliverables | B27: Health, critically and monetised risk
A29: Environment | B29: Environment incentives including: Obligation to manage losses, Business Carbon Footprint, limiting emissions of Sulphur Hexafluoride (SF6), Fluid filled cable leakage, Noise pollution, Visual impact allowance for undergrounding overhead lines in Areas of Outstanding Natural Beauty (AONB) & National Parks and Environmental report
A31: Chapter 3 - Innovation
A32: Innovation | B32: Innovation data including: Network Innovation Allowance, Network Innovation Competition and Innovation projects
A34: Chapter 4 - Financial Performance and Expenditure Drivers
A35: Financial Performance | B35: Review of the expenditure and financial performance of DNOs in 2022-23
A37: Expenditure Drivers | B37: Expenditure driver's data including: Expenditure drivers of allowances and expenditures of each cost category, distribution of overall allowances and expenditures and Baselines allowances & actual expenditure by cost category
A39: Expenditure Drivers 2 | B39: Overall outline of baseline allowances of each cost category, areas of underspend and areas of overspend

Sheet RAG and Ranking
A1: Outputs overview
C3: Reliability & Availability | F3: Environment | J3: Connections | O3: Customer satisfaction | T3: Social obligations
C4: Number of interruption (CIs) RAG | D4: Number of minutes lost (CMLs) RAG | F4: BCF (excl. losses) ranking | G4: SF6 ranking | H4: Fluid filled cable leakage ranking | J4: Time to Quote and Time to Connect RAG | K4: Time to Quote and Time to Connect ranking | L4: Connection GSoPs RAG | M4: Connection GSoPs ranking | O4: Complaints RAG | P4: Complaints ranking | Q4: Customer Satisfaction RAG | R4: BMCS ranking | T4: SECV RAG | U4: SECV ranking
A5: ENWL | C5: 1 | D5: 1 | F5: ='Ch2 outputs - environment'!X76 -> 2 | G5: ='Ch2 outputs - environment'!X116 -> 6 | H5: ='Ch2 outputs - environment'!X155 -> 6 | J5: 1 | K5: ='Ch2 outputs - connections'!DS42 -> 3 | L5: 1 | M5: ='Ch2 outputs - connections'!BG85 -> 8 | O5: 1 | P5: ='Ch2 outputs - cust sat'!BH43 -> 11 | Q5: 1 | R5: ='Ch2 outputs - cust sat'!AZ23 -> 9 | T5: 1 | U5: ='Ch2 outputs - cust sat'!L89 -> 2
A6: NPgN | C6: 1 | D6: 1 | F6: ='Ch2 outputs - environment'!X77 -> 1 | G6: ='Ch2 outputs - environment'!X117 -> 5 | H6: ='Ch2 outputs - environment'!X156 -> 4 | J6: 0 | K6: ='Ch2 outputs - connections'!DS43 -> 14 | L6: 0.5 | M6: ='Ch2 outputs - connections'!BG86 -> 14 | O6: 1 | P6: ='Ch2 outputs - cust sat'!BH44 -> 13 | Q6: 1 | R6: ='Ch2 outputs - cust sat'!AZ24 -> 12 | T6: 0 | U6: ='Ch2 outputs - cust sat'!L90 -> 6
A7: NPgY | C7: 1 | D7: 0.5 | F7: ='Ch2 outputs - environment'!X78 -> 3 | G7: ='Ch2 outputs - environment'!X118 -> 10 | H7: ='Ch2 outputs - environment'!X157 -> 7 | J7: 0.5 | K7: ='Ch2 outputs - connections'!DS44 -> 12 | L7: 0.5 | M7: ='Ch2 outputs - connections'!BG87 -> 11 | O7: 1 | P7: ='Ch2 outputs - cust sat'!BH45 -> 14 | Q7: 1 | R7: ='Ch2 outputs - cust sat'!AZ25 -> 13
A8: WMID | C8: 1 | D8: 1 | F8: ='Ch2 outputs - environment'!X79 -> 6 | G8: ='Ch2 outputs - environment'!X119 -> 8 | H8: ='Ch2 outputs - environment'!X158 -> 8 | J8: 1 | K8: ='Ch2 outputs - connections'!DS45 -> 1 | L8: 1 | M8: ='Ch2 outputs - connections'!BG88 -> 3 | O8: 1 | P8: ='Ch2 outputs - cust sat'!BH46 -> 2 | Q8: 1 | R8: ='Ch2 outputs - cust sat'!AZ26 -> 11 | T8: 1 | U8: ='Ch2 outputs - cust sat'!L91 -> 3
A9: EMID | C9: 1 | D9: 1 | F9: ='Ch2 outputs - environment'!X80 -> 4 | G9: ='Ch2 outputs - environment'!X120 -> 7 | H9: ='Ch2 outputs - environment'!X159 -> 5 | J9: 1 | K9: ='Ch2 outputs - connections'!DS46 -> 2 | L9: 1 | M9: ='Ch2 outputs - connections'!BG89 -> 6 | O9: 1 | P9: ='Ch2 outputs - cust sat'!BH47 -> 3 | Q9: 1 | R9: ='Ch2 outputs - cust sat'!AZ27 -> 8
A10: SWALES | C10: 1 | D10: 1 | F10: ='Ch2 outputs - environment'!X81 -> 12 | G10: ='Ch2 outputs - environment'!X121 -> 11 | H10: ='Ch2 outputs - environment'!X160 -> 12 | J10: 0.5 | K10: ='Ch2 outputs - connections'!DS47 -> 6 | L10: 1 | M10: ='Ch2 outputs - connections'!BG90 -> 1 | O10: 1 | P10: ='Ch2 outputs - cust sat'!BH48 -> 10 | Q10: 1 | R10: ='Ch2 outputs - cust sat'!AZ28 -> 4
A11: SWEST | C11: 1 | D11: 1 | F11: ='Ch2 outputs - environment'!X82 -> 8 | G11: ='Ch2 outputs - environment'!X122 -> 9 | H11: ='Ch2 outputs - environment'!X161 -> 1 | J11: 0.5 | K11: ='Ch2 outputs - connections'!DS48 -> 11 | L11: 1 | M11: ='Ch2 outputs - connections'!BG91 -> 2 | O11: 1 | P11: ='Ch2 outputs - cust sat'!BH49 -> 12 | Q11: 1 | R11: ='Ch2 outputs - cust sat'!AZ29 -> 10
A12: LPN | C12: 1 | D12: 1 | F12: ='Ch2 outputs - environment'!X83 -> 9 | G12: ='Ch2 outputs - environment'!X123 -> 1 | H12: ='Ch2 outputs - environment'!X162 -> 14 | J12: 1 | K12: ='Ch2 outputs - connections'!DS49 -> 4 | L12: 1 | M12: ='Ch2 outputs - connections'!BG92 -> 4 | O12: 1 | P12: ='Ch2 outputs - cust sat'!BH50 -> 6 | Q12: 1 | R12: ='Ch2 outputs - cust sat'!AZ30 -> 3 | T12: 1 | U12: ='Ch2 outputs - cust sat'!L92 -> 1
A13: SPN | C13: 1 | D13: 1 | F13: ='Ch2 outputs - environment'!X84 -> 11 | G13: ='Ch2 outputs - environment'!X124 -> 2 | H13: ='Ch2 outputs - environment'!X163 -> 11 | J13: 0.5 | K13: ='Ch2 outputs - connections'!DS50 -> 9 | L13: 1 | M13: ='Ch2 outputs - connections'!BG93 -> 5 | O13: 1 | P13: ='Ch2 outputs - cust sat'!BH51 -> 7 | Q13: 1 | R13: ='Ch2 outputs - cust sat'!AZ31 -> 2
A14: EPN | C14: 1 | D14: 1 | F14: ='Ch2 outputs - environment'!X85 -> 5 | G14: ='Ch2 outputs - environment'!X125 -> 4 | H14: ='Ch2 outputs - environment'!X164 -> 13 | J14: 1 | K14: ='Ch2 outputs - connections'!DS51 -> 7 | L14: 1 | M14: ='Ch2 outputs - connections'!BG94 -> 7 | O14: 1 | P14: ='Ch2 outputs - cust sat'!BH52 -> 9 | Q14: 1 | R14: ='Ch2 outputs - cust sat'!AZ32 -> 1
A15: SPD | C15: 1 | D15: 1 | F15: ='Ch2 outputs - environment'!X86 -> 7 | G15: ='Ch2 outputs - environment'!X126 -> 13 | H15: ='Ch2 outputs - environment'!X165 -> 2 | J15: 0.5 | K15: ='Ch2 outputs - connections'!DS52 -> 8 | L15: 0.5 | M15: ='Ch2 outputs - connections'!BG95 -> 13 | O15: 1 | P15: ='Ch2 outputs - cust sat'!BH53 -> 8 | Q15: 1 | R15: ='Ch2 outputs - cust sat'!AZ33 -> 7 | T15: 1 | U15: ='Ch2 outputs - cust sat'!L93 -> 5
A16: SPMW | C16: 1 | D16: 1 | F16: ='Ch2 outputs - environment'!X87 -> 10 | G16: ='Ch2 outputs - environment'!X127 -> 12 | H16: ='Ch2 outputs - environment'!X166 -> 10 | J16: 0.5 | K16: ='Ch2 outputs - connections'!DS53 -> 10 | L16: 1 | M16: ='Ch2 outputs - connections'!BG96 -> 10 | O16: 1 | P16: ='Ch2 outputs - cust sat'!BH54 -> 1 | Q16: 1 | R16: ='Ch2 outputs - cust sat'!AZ34 -> 5
A17: SSEH | C17: 1 | D17: 0 | F17: ='Ch2 outputs - environment'!X88 -> 13 | G17: ='Ch2 outputs - environment'!X128 -> 3 | H17: ='Ch2 outputs - environment'!X167 -> 3 | J17: 1 | K17: ='Ch2 outputs - connections'!DS54 -> 5 | L17: 1 | M17: ='Ch2 outputs - connections'!BG97 -> 9 | O17: 1 | P17: ='Ch2 outputs - cust sat'!BH55 -> 4 | Q17: 1 | R17: ='Ch2 outputs - cust sat'!AZ35 -> 6 | T17: 1 | U17: ='Ch2 outputs - cust sat'!L94 -> 4
A18: SSES | C18: 1 | D18: 0 | F18: ='Ch2 outputs - environment'!X89 -> 14 | G18: ='Ch2 outputs - environment'!X129 -> 14 | H18: ='Ch2 outputs - environment'!X168 -> 9 | J18: 0 | K18: ='Ch2 outputs - connections'!DS55 -> 13 | L18: 0.5 | M18: ='Ch2 outputs - connections'!BG98 -> 12 | O18: 1 | P18: ='Ch2 outputs - cust sat'!BH56 -> 5 | Q18: 1 | R18: ='Ch2 outputs - cust sat'!AZ36 -> 14
A20: Industry | C20: 1 | D20: 1 | J20: 0.5 | L20: 1 | O20: 1 | Q20: 1 | T20: 1

Sheet Ch2 - Incentive payments
A1: Chapter 2 - Reliability and Availability
B3: Incentive payments
C5: 2022/23 prices
D6: Interruptions Incentive Scheme (IIS) | E6: Incentive on connections engagement (ICE) | F6: Time to Connect Incentive (TTC) | G6: Broad measure of customer service (BMCS) | H6: Losses discretionary reward scheme (LDR) | I6: Total incentive payments | J6: don’t erase it
C7: ENWL | D7: ='Ch2 outputs - reliability'!E188 -> 18.96891144 | E7: 0 | F7: ='Ch2 outputs - connections'!DP42 -> 1.722531521 | G7: ='Ch2 outputs - cust sat'!AQ99 -> 5.363069255 | H7: 0 | I7: =SUM(D7:H7) -> 26.05451222 | J7: ENWL
C8: NPgN | D8: ='Ch2 outputs - reliability'!E189 -> 7.370170223 | E8: 0 | F8: ='Ch2 outputs - connections'!DP43 -> 0 | G8: ='Ch2 outputs - cust sat'!AQ100 -> 2.121334092 | H8: 0 | I8: 9.491504315 | J8: NPg
C9: NPgY | D9: ='Ch2 outputs - reliability'!E190 -> 0.2028140975 | E9: 0 | F9: ='Ch2 outputs - connections'!DP44 -> 0.129790597 | G9: ='Ch2 outputs - cust sat'!AQ101 -> 2.796191521 | H9: 0 | I9: 3.128796216 | J9: NPg
C10: WMID | D10: ='Ch2 outputs - reliability'!E191 -> 25.40733994 | E10: 0 | F10: ='Ch2 outputs - connections'!DP45 -> 2.296708695 | G10: ='Ch2 outputs - cust sat'!AQ102 -> 6.350155517 | H10: 0 | I10: 34.05420415 | J10: WPD
C11: EMID | D11: ='Ch2 outputs - reliability'!E192 -> 24.54607418 | E11: 0 | F11: ='Ch2 outputs - connections'!DP46 -> 2.296708695 | G11: ='Ch2 outputs - cust sat'!AQ103 -> 7.170037458 | H11: 0 | I11: 34.01282033 | J11: WPD
C12: SWALES | D12: ='Ch2 outputs - reliability'!E193 -> 5.249239932 | E12: 0 | F12: ='Ch2 outputs - connections'!DP47 -> 1.148354348 | G12: ='Ch2 outputs - cust sat'!AQ104 -> 3.370061149 | H12: 0 | I12: 9.767655429 | J12: WPD
C13: SWEST | D13: ='Ch2 outputs - reliability'!E194 -> 4.607249424 | E13: 0 | F13: ='Ch2 outputs - connections'!DP48 -> 1.722531521 | G13: ='Ch2 outputs - cust sat'!AQ105 -> 4.840744208 | H13: 0 | I13: 11.17052515 | J13: WPD
C14: LPN | D14: ='Ch2 outputs - reliability'!E195 -> 18.876668 | E14: 0 | F14: ='Ch2 outputs - connections'!DP49 -> 1.073201865 | G14: ='Ch2 outputs - cust sat'!AQ106 -> 5.905053372 | H14: 0 | I14: 25.85492324 | J14: UKPN
C15: SPN | D15: ='Ch2 outputs - reliability'!E196 -> 4.237863299 | E15: 0 | F15: ='Ch2 outputs - connections'!DP50 -> 0.8753765595 | G15: ='Ch2 outputs - cust sat'!AQ107 -> 6.155179303 | H15: 0 | I15: 11.26841916 | J15: UKPN
C16: EPN | D16: ='Ch2 outputs - reliability'!E197 -> 28.89662557 | E16: 0 | F16: ='Ch2 outputs - connections'!DP51 -> 1.984403358 | G16: ='Ch2 outputs - cust sat'!AQ108 -> 9.05441517 | H16: 0 | I16: 39.93544409 | J16: UKPN
C17: SPD | D17: ='Ch2 outputs - reliability'!E198 -> 14.22 | E17: 0 | F17: ='Ch2 outputs - connections'!DP52 -> 0.6787284794 | G17: ='Ch2 outputs - cust sat'!AQ109 -> 4.679543966 | H17: 0 | I17: 19.57827245 | J17: SPEN
C18: SPMW | D18: ='Ch2 outputs - reliability'!E199 -> 2.83 | E18: 0 | F18: ='Ch2 outputs - connections'!DP53 -> 0.517014042 | G18: ='Ch2 outputs - cust sat'!AQ110 -> 5.124531276 | H18: 0 | I18: 8.471545318 | J18: SPEN
C19: SSEH | D19: ='Ch2 outputs - reliability'!E200 -> -0.7050677317 | E19: 0 | F19: ='Ch2 outputs - connections'!DP54 -> 0.8526338954 | G19: ='Ch2 outputs - cust sat'!AQ111 -> 3.477360509 | H19: 0 | I19: 3.624926673 | J19: SSEN
C20: SSES | D20: ='Ch2 outputs - reliability'!E201 -> 0.9761292199 | E20: 0 | F20: ='Ch2 outputs - connections'!DP55 -> 0.1544253173 | G20: ='Ch2 outputs - cust sat'!AQ112 -> 3.104568476 | H20: 0 | I20: 4.235123013 | J20: SSEN
C21: Total | D21: =SUM(D7:D20) -> 155.6840176 | E21: =SUM(E7:E20) -> 0 | F21: =SUM(F7:F20) -> 15.45240889 | G21: =SUM(G7:G20) -> 69.51224527 | H21: =SUM(H7:H20) -> 0 | I21: 240.6486718

Sheet Ch2 outputs - connections
A1: Chapter 2 - Connections
B2: Performance against the outputs that DNOs are incentivised to deliver under RIIO-ED1.
B4: Connections: connecting customers in a timely and efficient way, including responding to different customers' specific needs, while enabling competition.
B5: Incentive measure | F5: Incentive type
B6: Time to Connect Incentive: reward for reducing average time taken to connect smaller and less complex customer connections. | F6: Financial: reward only of up to 0.4% base revenue.
B7: Incentive on Connections Engagement (ICE): penalty where DNOs fail to engage effectively with, and understand requirements of, customers seeking larger and more complex connections. | F7: Financial: penalty only of up to 0.9% of base revenue.
B8: Connections Guaranteed Standards of Performance (GSOP): direct payment to customers of fixed amounts if DNO fails to deliver specified minimum levels of performance regarding connections. | F8: Financial: payment to customers for failure to meet standards. Reputational.
B9: Customer satisfaction survey: connection customers are one of three customer types in the Broad Measure of Customer Satisfaction survey. | F9: Financial: reward or penalty of 0.5% of base revenue which feeds into the overall reward or penalty under BMCS of +/- 1.5% of base revenue.
B12: Distributed Generation (DG) | D12: Capacity of generation connected to the distribution network by type (MW)
E13: 2016 | F13: 2017 | G13: 2018 | H13: 2019 | I13: 2020 | J13: 2021 | K13: 2022 | L13: 2023
D14: Photovoltaic (G83) | E14: 365.9510778 | F14: 60.38518237 | G14: 41.752305 | H14: 64.306345 | I14: 27.86872945 | J14: 45.6092643 | K14: 84.0215195 | L14: 389.0483529
D15: Other DG (G83) | E15: 0.63915 | F15: 0.190423 | G15: 0.3235 | H15: 0.511 | I15: 1.423341 | J15: 1.762098 | K15: 3.87771 | L15: 8.99531
D16: DG (non G83) | E16: 3404.36418 | F16: 3394.38509 | G16: 1783.6006 | H16: 941.92234 | I16: 1186.599356 | J16: 957.97218 | K16: 1043.375479 | L16: 1670.798515
B21: Time to connect incentive
D22: Industry average Time to Connect improvements from targets (working days) comparing 2013 and 2022-23 performance
F23: LVSSA | I23: LVSSB
F24: Average Time to Quote | G24: Time to Connect | H24: Overall | I24: Average Time to Quote | J24: Time to Connect | K24: Overall
E25: Previous industry average (2013 performance) | F25: 9.140409588 | G25: 46.3821136 | H25: =SUM(F25:G25) -> 55.52252319 | I25: 14.45688562 | J25: 57.00932472 | K25: =SUM(I25:J25) -> 71.46621034
D26: New industry average | E26: 2016 | F26: =E56 -> 4.913018774 | G26: =G56 -> 35.71963442 | H26: 40.63265319 | I26: =I56 -> 7.438419017 | J26: =K56 -> 43.1603969 | K26: 50.59881592
E27: 2017 | F27: =U56 -> 4.641116624 | G27: =W56 -> 43.50555453 | H27: 48.14667115 | I27: =Y56 -> 7.178433711 | J27: =AA56 -> 53.13871612 | K27: 60.31714983
E28: 2018 | F28: =AJ56 -> 4.979260877 | G28: =AL56 -> 38.62718439 | H28: 43.60644526 | I28: =AN56 -> 8.906817939 | J28: =AP56 -> 47.51635595 | K28: 56.42317389
E29: 2019 | F29: =AY56 -> 4.829855035 | G29: =BA56 -> 36.17609876 | H29: 41.0059538 | I29: =BC56 -> 8.001225029 | J29: =BE56 -> 44.71706555 | K29: 52.71829058
E30: 2020 | F30: =BN56 -> 4.10658022 | G30: =BP56 -> 33.9884512 | H30: 38.09503142 | I30: =BR56 -> 6.260514907 | J30: =BT56 -> 41.34040034 | K30: 47.60091524
E31: 2021 | F31: =CC56 -> 3.602155036 | G31: =CE56 -> 36.74688332 | H31: 40.34903835 | I31: =CG56 -> 6.118423642 | J31: =CI56 -> 49.02607919 | K31: 55.14450283
E32: 2022 | F32: =CR56 -> 3.727440985 | G32: =CT56 -> 35.75833654 | H32: 39.48577752 | I32: =CV56 -> 6.965104805 | J32: =CX56 -> 42.1274202 | K32: 49.092525
E33: 2023 | F33: =DG56 -> 3.925197539 | G33: =DI56 -> 35.31906437 | H33: 39.24426191 | I33: =DK56 -> 7.442341478 | J33: =DM56 -> 42.58805076 | K33: 50.03039224
E34: Improvement | F34: =F25-F33 -> 5.215212049 | G34: 11.06304924 | H34: 16.27826128 | I34: 7.014544142 | J34: =J25-J33 -> 14.42127396 | K34: 21.4358181
E35: Improvement - % | F35: =F34/F25 -> 0.5705665593 | G35: 0.2385197305 | H35: 0.2931830246 | I35: 0.4852043743 | J35: 0.2529634236 | K35: 0.2999433998
E38: 2015/16 | U38: 2016/17 | AJ38: 2017/18 | AY38: 2018/19 | BN38: 2019/20 | CC38: 2020/21 | CR38: 2021-22 | DG38: 2022-23
E39: LVSSA | I39: LVSSB | M39: Reward | O39: RAG and ranking | U39: LVSSA | Y39: LVSSB | AC39: Reward | AE39: RAG and ranking | AJ39: LVSSA | AN39: LVSSB | AR39: Reward | AT39: RAG and ranking | AY39: LVSSA | BC39: LVSSB | BG39: Reward | BI39: RAG and ranking | BN39: LVSSA | BR39: LVSSB | BV39: Reward | BX39: RAG and ranking | CC39: LVSSA | CG39: LVSSB | CK39: Reward | CM39: RAG and ranking | CR39: LVSSA | CV39: LVSSB | CZ39: Reward | DB39: RAG and ranking | DG39: LVSSA | DK39: LVSSB | DO39: Reward | DQ39: RAG and ranking
E40: Average Time to Quote | F40: Ranking | G40: Time to Connect | H40: Ranking | I40: Time to Quote | J40: Ranking | K40: Time to Connect | L40: Ranking | M40: (£m 2012/13 Prices) | N40: (£m 2020/21 Prices) | O40: RAG | P40: Average ranking | Q40: Overall ranking | R40: Overall (LVSSA + LVSSB) | U40: Average Time to Quote | V40: Ranking | W40: Time to Connect | X40: Ranking | Y40: Time to Quote | Z40: Ranking | AA40: Time to Connect | AB40: Ranking | AC40: (£m 2012/13 Prices) | AD40: (£m 2022/23 Prices) | AE40: RAG | AF40: Average ranking | AG40: Overall ranking | AH40: Overall (LVSSA + LVSSB) | AJ40: Average Time to Quote | AK40: Ranking | AL40: Time to Connect | AM40: Ranking | AN40: Time to Quote | AO40: Ranking | AP40: Time to Connect | AQ40: Ranking | AR40: (£m 2012/13 Prices) | AS40: (£m 2022/23 Prices) | AT40: RAG | AU40: Average ranking | AV40: Overall ranking | AW40: Overall (LVSSA + LVSSB) | AY40: Average Time to Quote | AZ40: Ranking | BA40: Time to Connect | BB40: Ranking | BC40: Time to Quote | BD40: Ranking | BE40: Time to Connect | BF40: Ranking | BG40: (£m 2012/13 Prices) | BH40: (£m 2022/23 Prices) | BI40: RAG | BJ40: Average ranking | BK40: Overall ranking | BL40: Overall (LVSSA + LVSSB) | BN40: Average Time to Quote | BO40: Ranking | BP40: Time to Connect | BQ40: Ranking | BR40: Time to Quote | BS40: Ranking | BT40: Time to Connect | BU40: Ranking | BV40: (£m 2012/13 Prices) | BW40: (£m 2022/23 Prices) | BX40: RAG | BY40: Average ranking | BZ40: Overall ranking | CA40: Overall (LVSSA + LVSSB) | CC40: Average Time to Quote | CD40: Ranking | CE40: Time to Connect | CF40: Ranking | CG40: Time to Quote | CH40: Ranking | CI40: Time to Connect | CJ40: Ranking | CK40: (£m 2012/13 Prices) | CL40: (£m 2022/23 Prices) | CM40: RAG | CN40: Average ranking | CO40: Overall ranking | CP40: Overall (LVSSA + LVSSB) | CR40: Average Time to Quote | CS40: Ranking | CT40: Time to Connect | CU40: Ranking | CV40: Time to Quote | CW40: Ranking | CX40: Time to Connect | CY40: Ranking | CZ40: (£m 2012/13 Prices) | DA40: (£m 2022/23 Prices) | DB40: RAG | DC40: Average ranking | DD40: Overall ranking | DE40: Overall (LVSSA + LVSSB) | DG40: Average Time to Quote | DH40: Ranking | DI40: Time to Connect | DJ40: Ranking | DK40: Time to Quote | DL40: Ranking | DM40: Time to Connect | DN40: Ranking | DO40: (£m 2012/13 Prices) | DP40: (£m 2022/23 Prices) | DQ40: RAG | DR40: Average ranking | DS40: Overall ranking | DT40: Overall (LVSSA + LVSSB)
E41: Working days | U41: Working days | AJ41: Working days | AY41: Working days | BN41: Working days | CC41: Working days | CR41: Working days | DG41: Working days
D42: ENWL | E42: 4.002441406 | F42: =RANK(E42,$E$42:$E$55,1) -> 5 | G42: 30.36199095 | H42: =RANK(G42,$G$42:$G$55,1) -> 2 | I42: 7.434077079 | J42: =RANK(I42,$I$42:$I$55,1) -> 9 | K42: 36.88172043 | L42: =RANK(K42,$K$42:$K$55,1) -> 2 | M42: 1.2 | N42: =M42*'Guide & drivers'!$D$32 -> 1.722531521 | O42: =IF(SUM(IF(E42<=$E$57,1,0),IF(G42<=$G$57,1,0),IF(I42<=$I$57,1,0),IF(K42<=$K$57,1,0))=4,"Green",IF(SUM(IF(E42>$E$59,1,0),IF(G42>$G$59,1,0),IF(I42>$I$59,1,0),IF(K42>$K$59,1,0))>=3,"Red","Amber")) -> Green | P42: =AVERAGE(F42,H42,J42,L42) -> 4.5 | Q42: =RANK(P42,$P$42:$P$55,1) -> 3 | R42: =SUM(E42,G42,I42,K42) -> 78.68022987 | T42: ENWL | U42: 2.96 | V42: =RANK(U42,$U$42:$U$55,1) -> 2 | W42: 31.91009464 | X42: =RANK(W42,$W$42:$W$55,1) -> 2 | Y42: 7.91556367 | Z42: =RANK(Y42,$Y$42:$Y$55,1) -> 10 | AA42: 31.672 | AB42: =RANK(AA42,$AA$42:$AA$55,1) -> 1 | AC42: 1.2 | AD42: =AC42*'Guide & drivers'!$D$32 -> 1.722531521 | AE42: =IF(SUM(IF(U42<=$U$57,1,0),IF(W42<=$W$57,1,0),IF(Y42<=$Y$57,1,0),IF(AA42<=$AA$57,1,0))=4,"Green",IF(SUM(IF(U42>$U$59,1,0),IF(W42>$W$59,1,0),IF(Y42>$Y$59,1,0),IF(AA42>$AA$59,1,0))>=3,"Red","Amber")) -> Green | AF42: =AVERAGE(V42,X42,Z42,AB42) -> 3.75 | AG42: =RANK(AF42,$AF$42:$AF$55,1) -> 3 | AH42: =SUM(U42,W42,Y42,AA42) -> 74.45765831 | AI42: ENWL | AJ42: 3.7 | AK42: =RANK(AJ42,$AJ$42:$AJ$55,1) -> 5 | AL42: 31.72 | AM42: =RANK(AL42,$AL$42:$AL$55,1) -> 6 | AN42: 8.25 | AO42: =RANK(AN42,$AN$42:$AN$55,1) -> 7 | AP42: 34.28 | AQ42: =RANK(AP42,$AP$42:$AP$55,1) -> 3 | AR42: 1.2 | AS42: =AR42*'Guide & drivers'!$D$32 -> 1.722531521 | AT42: =IF(SUM(IF(AJ42<=$AJ$57,1,0),IF(AL42<=$AL$57,1,0),IF(AN42<=$AN$57,1,0),IF(AP42<=$AP$57,1,0))=4,"Green",IF(SUM(IF(AJ42>$AJ$59,1,0),IF(AL42>$AL$59,1,0),IF(AN42>$AN$59,1,0),IF(AP42>$AP$59,1,0))>=3,"Red","Amber")) -> Green | AU42: =AVERAGE(AK42,AM42,AO42,AQ42) -> 5.25 | AV42: =RANK(AU42,$AU$42:$AU$55,1) -> 6 | AW42: =SUM(AJ42,AL42,AN42,AP42) -> 77.95 | AX42: ENWL | AY42: 3.72 | AZ42: =RANK(AY42,$AY$42:$AY$55,1) -> 6 | BA42: 32.87 | BB42: =RANK(BA42,$BA$42:$BA$55,1) -> 7 | BC42: 6.79 | BD42: =RANK(BC42,$BC$42:$BC$55,1) -> 7 | BE42: 35.67 | BF42: =RANK(BE42,$BE$42:$BE$55,1) -> 5 | BG42: =BH42/'Guide & drivers'!$J$22 -> 1.1763 | BH42: 1.688511524 | BI42: =IF(SUM(IF(AY42<=$AY$57,1,0),IF(BA42<=$BA$57,1,0),IF(BC42<=$BC$57,1,0),IF(BE42<=$BE$57,1,0))=4,"Green",IF(SUM(IF(AY42>$AY$59,1,0),IF(BA42>$BA$59,1,0),IF(BC42>$BC$59,1,0),IF(BE42>$BE$59,1,0))>=3,"Red","Amber")) -> Green | BJ42: =AVERAGE(AZ42,BB42,BD42,BF42) -> 6.25 | BK42: =RANK(BJ42,$BJ$42:$BJ$55,1) -> 6 | BL42: =SUM(AY42,BA42,BC42,BE42) -> 79.05 | BM42: ENWL | BN42: 2.460748048 | BO42: =RANK(BN42,$BN$42:$BN$55,1) -> 4 | BP42: 27.765625 | BQ42: =RANK(BP42,$BP$42:$BP$55,1) -> 5 | BR42: 4.900815801 | BS42: =RANK(BR42,$BR$42:$BR$55,1) -> 7 | BT42: 27.61734694 | BU42: =RANK(BT42,$BT$42:$BT$55,1) -> 2 | BV42: =BW42/'Guide & drivers'!$J$22 -> 1.193271131 | BW42: 1.712872614 | BX42: =IF(SUM(IF(BN42<=$BN$57,1,0),IF(BP42<=$BP$57,1,0),IF(BR42<=$BR$57,1,0),IF(BT42<=$BT$57,1,0))=4,"Green",IF(SUM(IF(BN42>$BN$59,1,0),IF(BP42>$BP$59,1,0),IF(BR42>$BR$59,1,0),IF(BT42>$BT$59,1,0))>=3,"Red","Amber")) -> Green | BY42: =AVERAGE(BO42,BQ42,BS42,BU42) -> 4.5 | BZ42: =RANK(BY42,$BY$42:$BY$55,1) -> 6 | CA42: =SUM(BN42,BP42,BR42,BT42) -> 62.74453579 | CB42: ENWL | CC42: 2.64 | CD42: =RANK(CC42,$CC$42:$CC$55,1) -> 4 | CE42: 27.83 | CF42: =RANK(CE42,$CE$42:$CE$55,1) -> 2 | CG42: 5.01 | CH42: =RANK(CG42,$CG$42:$CG$55,1) -> 7 | CI42: 28.78 | CJ42: =RANK(CI42,$CI$42:$CI$55,1) -> 2 | CK42: =CL42/'Guide & drivers'!$J$22 -> 1.1916315 | CL42: 1.710519017 | CM42: =IF(SUM(IF(CC42<=$BN$57,1,0),IF(CE42<=$BP$57,1,0),IF(CG42<=$BR$57,1,0),IF(CI42<=$BT$57,1,0))=4,"Green",IF(SUM(IF(CC42>$BN$59,1,0),IF(CE42>$BP$59,1,0),IF(CG42>$BR$59,1,0),IF(CI42>$BT$59,1,0))>=3,"Red","Amber")) -> Green | CN42: =AVERAGE(CD42,CF42,CH42,CJ42) -> 3.75 | CO42: =RANK(CN42,$CN$42:$CN$55,1) -> 4 | CP42: =SUM(CC42,CE42,CG42,CI42) -> 64.26 | CQ42: ENWL | CR42: 2.75307174 | CS42: =RANK($CR42,$CR$42:$CR$55,1) -> 6 | CT42: 27.80889788 | CU42: =RANK(CT42,$CT$42:$CT$55,1) -> 2 | CV42: 5.436305732 | CW42: =RANK(CV42,$CV$42:$CV$55,1) -> 8 | CX42: 32.44503311 | CY42: =RANK(CX42,$CX$42:$CX$55,1) -> 2 | CZ42: =DA42/'Guide & drivers'!$J$22 -> 1.192161308 | DA42: 1.711279527 | DB42: =IF(SUM(IF(CR42<=$CR$57,1,0),IF(CT42<=$CT$57,1,0),IF(CV42<=$CV$57,1,0),IF(CX42<=$CX$57,1,0))=4,"Green",IF(SUM(IF(CR42>$CR$59,1,0),IF(CT42>$CT$59,1,0),IF(CV42>$CV$59,1,0),IF(CX42>$CX$59,1,0))>=3,"Red","Amber")) -> Green | DC42: =AVERAGE(CS42,CU42,CW42,CY42) -> 4.5 | DD42: =RANK(DC42,$DC$42:$DC$55,1) -> 4 | DE42: =SUM(CR42,CT42,CV42,CX42) -> 68.44330846 | DF42: ENWL | DG42: 2.53 | DH42: =RANK($DG42,$DG$42:$DG$55,1) -> 5 | DI42: 23.67 | DJ42: =RANK(DI42,$DI$42:$DI$55,1) -> 2 | DK42: 5.49 | DL42: =RANK(DK42,$DK$42:$DK$55,1) -> 8 | DM42: 21.93 | DN42: =RANK(DM42,$DM$42:$DM$55,1) -> 1 | DO42: =DP42/'Guide & drivers'!$J$22 -> 1.2 | DP42: 1.722531521 | DQ42: =IF(SUM(IF(DG42<=$DG$57,1,0),IF(DI42<=$DI$57,1,0),IF(DK42<=$DK$57,1,0),IF(DM42<=$DM$57,1,0))=4,"Green",IF(SUM(IF(DG42>$DG$59,1,0),IF(DI42>$DI$59,1,0),IF(DK42>$DK$59,1,0),IF(DM42>$DM$59,1,0))>=3,"Red","Amber")) -> Green | DR42: =AVERAGE(DH42,DJ42,DL42,DN42) -> 4 | DS42: =RANK(DR42,$DR$42:$DR$55,1) -> 3 | DT42: =SUM(DG42,DI42,DK42,DM42) -> 53.62
D43: NPgN | E43: 5.715898401 | F43: =RANK(E43,$E$42:$E$55,1) -> 11 | G43: 40.14694656 | H43: =RANK(G43,$G$42:$G$55,1) -> 11 | I43: 9.584170854 | J43: =RANK(I43,$I$42:$I$55,1) -> 12 | K43: 47.12105263 | L43: =RANK(K43,$K$42:$K$55,1) -> 12 | M43: 0.5502400161 | N43: =M43*'Guide & drivers'!$D$32 -> 0.7898381434 | O43: Green | P43: =AVERAGE(F43,H43,J43,L43) -> 11.5 | Q43: =RANK(P43,$P$42:$P$55,1) -> 12 | R43: =SUM(E43,G43,I43,K43) -> 102.5680685 | T43: NPgN | U43: 5.581349206 | V43: =RANK(U43,$U$42:$U$55,1) -> 13 | W43: 50.62416107 | X43: =RANK(W43,$W$42:$W$55,1) -> 10 | Y43: 9.408921933 | Z43: =RANK(Y43,$Y$42:$Y$55,1) -> 13 | AA43: 57.69114471 | AB43: =RANK(AA43,$AA$42:$AA$55,1) -> 8 | AC43: 0.4 | AD43: =AC43*'Guide & drivers'!$D$32 -> 0.5741771738 | AE43: Amber | AF43: =AVERAGE(V43,X43,Z43,AB43) -> 11 | AG43: 12 | AH43: =SUM(U43,W43,Y43,AA43) -> 123.3055769 | AI43: NPgN | AJ43: 7.99 | AK43: =RANK(AJ43,$AJ$42:$AJ$55,1) -> 14 | AL43: 53.75 | AM43: =RANK(AL43,$AL$42:$AL$55,1) -> 13 | AN43: 15.9 | AO43: =RANK(AN43,$AN$42:$AN$55,1) -> 13 | AP43: 63.01 | AQ43: =RANK(AP43,$AP$42:$AP$55,1) -> 11 | AR43: 0.03 | AS43: =AR43*'Guide & drivers'!$D$32 -> 0.04306328804 | AT43: =IF(SUM(IF(AJ43<=$AJ$57,1,0),IF(AL43<=$AL$57,1,0),IF(AN43<=$AN$57,1,0),IF(AP43<=$AP$57,1,0))=4,"Green",IF(SUM(IF(AJ43>$AJ$59,1,0),IF(AL43>$AL$59,1,0),IF(AN43>$AN$59,1,0),IF(AP43>$AP$59,1,0))>=3,"Red","Amber")) -> Red | AU43: =AVERAGE(AK43,AM43,AO43,AQ43) -> 12.75 | AV43: 14 | AW43: =SUM(AJ43,AL43,AN43,AP43) -> 140.65 | AX43: NPgN | AY43: 6.3 | AZ43: =RANK(AY43,$AY$42:$AY$55,1) -> 11 | BA43: 41.15 | BB43: =RANK(BA43,$BA$42:$BA$55,1) -> 10 | BC43: 11.39 | BD43: =RANK(BC43,$BC$42:$BC$55,1) -> 13 | BE43: 50.75 | BF43: =RANK(BE43,$BE$42:$BE$55,1) -> 10 | BG43: =BH43/'Guide & drivers'!$J$22 -> 0.3052 | BH43: 0.4380971836 | BI43: =IF(SUM(IF(AY43<=$AY$57,1,0),IF(BA43<=$BA$57,1,0),IF(BC43<=$BC$57,1,0),IF(BE43<=$BE$57,1,0))=4,"Green",IF(SUM(IF(AY43>$AY$59,1,0),IF(BA43>$BA$59,1,0),IF(BC43>$BC$59,1,0),IF(BE43>$BE$59,1,0))>=3,"Red","Amber")) -> Green | BJ43: =AVERAGE(AZ43,BB43,BD43,BF43) -> 11 | BK43: =RANK(BJ43,$BJ$42:$BJ$55,1) -> 11 | BL43: =SUM(AY43,BA43,BC43,BE43) -> 109.59 | BM43: NPgN | BN43: 7.572450805 | BO43: 14 | BP43: 40.45202952 | BQ43: 12 | BR43: 14.29889299 | BS43: 14 | BT43: 50.73857868 | BU43: 12 | BV43: =BW43/'Guide & drivers'!$J$22 -> 0 | BW43: 0 | BX43: =IF(SUM(IF(BN43<=$BN$57,1,0),IF(BP43<=$BP$57,1,0),IF(BR43<=$BR$57,1,0),IF(BT43<=$BT$57,1,0))=4,"Green",IF(SUM(IF(BN43>$BN$59,1,0),IF(BP43>$BP$59,1,0),IF(BR43>$BR$59,1,0),IF(BT43>$BT$59,1,0))>=3,"Red","Amber")) -> Red | BY43: =AVERAGE(BO43,BQ43,BS43,BU43) -> 13 | BZ43: 14 | CA43: =SUM(BN43,BP43,BR43,BT43) -> 113.061952 | CB43: NPgN | CC43: 7.049747049 | CD43: =RANK(CC43,$CC$42:$CC$55,1) -> 14 | CE43: 51.86242775 | CF43: =RANK(CE43,$CE$42:$CE$55,1) -> 14 | CG43: 14.87057387 | CH43: =RANK(CG43,$CG$42:$CG$55,1) -> 14 | CI43: 91.13372093 | CJ43: =RANK(CI43,$CI$42:$CI$55,1) -> 14 | CK43: =CL43/'Guide & drivers'!$J$22 -> 0 | CL43: 0 | CM43: =IF(SUM(IF(CC43<=$BN$57,1,0),IF(CE43<=$BP$57,1,0),IF(CG43<=$BR$57,1,0),IF(CI43<=$BT$57,1,0))=4,"Green",IF(SUM(IF(CC43>$BN$59,1,0),IF(CE43>$BP$59,1,0),IF(CG43>$BR$59,1,0),IF(CI43>$BT$59,1,0))>=3,"Red","Amber")) -> Red | CN43: =AVERAGE(CD43,CF43,CH43,CJ43) -> 14 | CO43: =RANK(CN43,$CN$42:$CN$55,1) -> 14 | CP43: =SUM(CC43,CE43,CG43,CI43) -> 164.9164696 | CQ43: NPgN | CR43: 9.28 | CS43: =RANK($CR43,$CR$42:$CR$55,1) -> 14 | CT43: 50.07 | CU43: =RANK(CT43,$CT$42:$CT$55,1) -> 14 | CV43: 16.12 | CW43: =RANK(CV43,$CV$42:$CV$55,1) -> 14 | CX43: 61.63 | CY43: =RANK(CX43,$CX$42:$CX$55,1) -> 14 | CZ43: =DA43/'Guide & drivers'!$J$22 -> 0 | DA43: 0 | DB43: =IF(SUM(IF(CR43<=$CR$57,1,0),IF(CT43<=$CT$57,1,0),IF(CV43<=$CV$57,1,0),IF(CX43<=$CX$57,1,0))=4,"Green",IF(SUM(IF(CR43>$CR$59,1,0),IF(CT43>$CT$59,1,0),IF(CV43>$CV$59,1,0),IF(CX43>$CX$59,1,0))>=3,"Red","Amber")) -> Red | DC43: =AVERAGE(CS43,CU43,CW43,CY43) -> 14 | DD43: =RANK(DC43,$DC$42:$DC$55,1) -> 14 | DE43: =SUM(CR43,CT43,CV43,CX43) -> 137.1 | DF43: NPgN | DG43: 8.36 | DH43: =RANK($DG43,$DG$42:$DG$55,1) -> 14 | DI43: 44.92 | DJ43: =RANK(DI43,$DI$42:$DI$55,1) -> 12 | DK43: 13.07 | DL43: =RANK(DK43,$DK$42:$DK$55,1) -> 12 | DM43: 71.06 | DN43: =RANK(DM43,$DM$42:$DM$55,1) -> 14 | DO43: =DP43/'Guide & drivers'!$J$22 -> 0 | DP43: 0 | DQ43: =IF(SUM(IF(DG43<=$DG$57,1,0),IF(DI43<=$DI$57,1,0),IF(DK43<=$DK$57,1,0),IF(DM43<=$DM$57,1,0))=4,"Green",IF(SUM(IF(DG43>$DG$59,1,0),IF(DI43>$DI$59,1,0),IF(DK43>$DK$59,1,0),IF(DM43>$DM$59,1,0))>=3,"Red","Amber")) -> Red | DR43: =AVERAGE(DH43,DJ43,DL43,DN43) -> 13 | DS43: =RANK(DR43,$DR$42:$DR$55,1) -> 14 | DT43: =SUM(DG43,DI43,DK43,DM43) -> 137.41
D44: NPgY | E44: 5.929051988 | F44: 12 | G44: 43.39694656 | H44: 14 | I44: 8.811673152 | J44: 11 | K44: 47.90960452 | L44: 13 | M44: 0.6958079096 | N44: =M44*'Guide & drivers'!$D$32 -> 0.9987925476 | O44: Amber | P44: 12.5 | Q44: 14 | R44: 106.0472762 | T44: NPgY | U44: 5.449211356 | V44: 11 | W44: 47.31283906 | X44: 9 | Y44: 8.455755677 | Z44: 12 | AA44: 55.8582996 | AB44: 7 | AC44: 0.6 | AD44: =AC44*'Guide & drivers'!$D$32 -> 0.8612657607 | AE44: Amber | AF44: 9.75 | AG44: 10 | AH44: 117.0761057 | AI44: NPgY | AJ44: 7.84 | AK44: 13 | AL44: 47.07 | AM44: 12 | AN44: 16.81 | AO44: 14 | AP44: 55.51 | AQ44: 10 | AR44: 0.06 | AS44: =AR44*'Guide & drivers'!$D$32 -> 0.08612657607 | AT44: =IF(SUM(IF(AJ44<=$AJ$57,1,0),IF(AL44<=$AL$57,1,0),IF(AN44<=$AN$57,1,0),IF(AP44<=$AP$57,1,0))=4,"Green",IF(SUM(IF(AJ44>$AJ$59,1,0),IF(AL44>$AL$59,1,0),IF(AN44>$AN$59,1,0),IF(AP44>$AP$59,1,0))>=3,"Red","Amber")) -> Red | AU44: 12.25 | AV44: 13 | AW44: 127.23 | AX44: NPgY | AY44: 6.81 | AZ44: 12 | BA44: 41.36 | BB44: 11 | BC44: 15.14 | BD44: 14 | BE44: 48.04 | BF44: 9 | BG44: =BH44/'Guide & drivers'!$J$22 -> 0.3528 | BH44: 0.5064242673 | BI44: Amber | BJ44: 11.5 | BK44: 13 | BL44: 111.35 | BM44: NPgY | BN44: 7.112997347 | BO44: 13 | BP44: 37.80387931 | BQ44: 11 | BR44: 13.94715447 | BS44: 13 | BT44: 44.90777339 | BU44: 11 | BV44: =BW44/'Guide & drivers'!$J$22 -> 0.1008490411 | BW44: 0.1447630435 | BX44: Amber | BY44: 12 | BZ44: 12 | CA44: 103.7718045 | CB44: NPgY | CC44: 6.399919452 | CD44: 13 | CE44: 46.83605442 | CF44: 12 | CG44: 13.99553571 | CH44: 13 | CI44: 71.03412969 | CJ44: 13 | CK44: =CL44/'Guide & drivers'!$J$22 -> 0 | CL44: 0 | CM44: Red | CN44: 12.75 | CO44: 13 | CP44: 138.2656393 | CQ44: NPgY | CR44: 7.23 | CS44: 13 | CT44: 43.68 | CU44: 13 | CV44: 15.65 | CW44: 13 | CX44: 50.47 | CY44: 12 | CZ44: =DA44/'Guide & drivers'!$J$22 -> 0 | DA44: 0 | DB44: Red | DC44: 12.75 | DD44: 13 | DE44: 117.03 | DF44: NPgY | DG44: 6.88 | DH44: 13 | DI44: 35.73 | DJ44: 9 | DK44: 12.63 | DL44: 11 | DM44: 49.15 | DN44: 11 | DO44: =DP44/'Guide & drivers'!$J$22 -> 0.0904185 | DP44: 0.129790597 | DQ44: Amber | DR44: 11 | DS44: 12 | DT44: 104.39
D45: WMID | E45: 4.8 | F45: 7 | G45: 34.32 | H45: 7 | I45: 6.11 | J45: 4 | K45: 44.8 | L45: 8 | M45: 1.3474 | N45: =M45*'Guide & drivers'!$D$32 -> 1.93411581 | O45: Green | P45: 6.5 | Q45: 5 | R45: 90.03 | T45: WMID | U45: 4.516757011 | V45: 6 | W45: 37.18447876 | X45: 6 | Y45: 6.083300114 | Z45: 4 | AA45: 47.50359726 | AB45: 6 | AC45: 1.15 | AD45: =AC45*'Guide & drivers'!$D$32 -> 1.650759375 | AE45: Green | AF45: 5.5 | AG45: 6 | AH45: 95.28813314 | AI45: WMID | AJ45: 4.14 | AK45: 6 | AL45: 28.08 | AM45: 3 | AN45: 4.47 | AO45: 1 | AP45: 40.28 | AQ45: 6 | AR45: 1.57 | AS45: =AR45*'Guide & drivers'!$D$32 -> 2.253645407 | AT45: Green | AU45: 4 | AV45: 3 | AW45: 76.97 | AX45: WMID | AY45: 4.867473602 | AZ45: 8 | BA45: 29.94631958 | BB45: 4 | BC45: 5.705698967 | BD45: 4 | BE45: 37.60849762 | BF45: 6 | BG45: =BH45/'Guide & drivers'!$J$22 -> 1.6 | BH45: 2.296708695 | BI45: Green | BJ45: 5.5 | BK45: 5 | BL45: 78.12798977 | BM45: WMID | BN45: 2.274220467 | BO45: 3 | BP45: 28.67314529 | BQ45: 6 | BR45: 2.812472343 | BS45: 1 | BT45: 34.81228256 | BU45: 6 | BV45: =BW45/'Guide & drivers'!$J$22 -> 1.525421885 | BW45: 2.189656067 | BX45: Green | BY45: 4 | BZ45: 4 | CA45: 68.57212067 | CB45: WMID | CC45: 1.102459073 | CD45: 2 | CE45: 31.98079872 | CF45: 5 | CG45: 2.131160498 | CH45: 1 | CI45: 37.99566269 | CJ45: 4 | CK45: =CL45/'Guide & drivers'!$J$22 -> 1.6 | CL45: 2.296708695 | CM45: Green | CN45: 3 | CO45: 2 | CP45: 73.21008098 | CQ45: WMID | CR45: 1.558057904 | CS45: 2 | CT45: 33.60726929 | CU45: 6 | CV45: 2.887956381 | CW45: 2 | CX45: 38.57844162 | CY45: 3 | CZ45: =DA45/'Guide & drivers'!$J$22 -> 1.59999143 | DA45: 2.296696393 | DB45: Green | DC45: 3.25 | DD45: 1 | DE45: 76.63172519 | DF45: WMID | DG45: 1.81 | DH45: 1 | DI45: 30.34 | DJ45: 4 | DK45: 3.55 | DL45: 2 | DM45: 35.95 | DN45: 4 | DO45: =DP45/'Guide & drivers'!$J$22 -> 1.6 | DP45: 2.296708695 | DQ45: Green | DR45: 2.75 | DS45: 1 | DT45: 71.65
D46: EMID | E46: 3.48 | F46: 3 | G46: 31.89 | H46: 4 | I46: 5.2 | J46: 3 | K46: 41.25 | L46: 5 | M46: 1.5435 | N46: =M46*'Guide & drivers'!$D$32 -> 2.215606169 | O46: Green | P46: 3.75 | Q46: 2 | R46: 81.82 | T46: EMID | U46: 3.475764751 | V46: 3 | W46: 34.40456009 | X46: 4 | Y46: 4.734363079 | Z46: 1 | AA46: 45.77630234 | AB46: 5 | AC46: 1.31 | AD46: =AC46*'Guide & drivers'!$D$32 -> 1.880430244 | AE46: Green | AF46: 3.25 | AG46: 1 | AH46: 88.39099026 | AI46: EMID | AJ46: 3.51 | AK46: 4 | AL46: 28.16 | AM46: 4 | AN46: 4.91 | AO46: 2 | AP46: 35.42 | AQ46: 4 | AR46: 1.6 | AS46: =AR46*'Guide & drivers'!$D$32 -> 2.296708695 | AT46: Green | AU46: 3.5 | AV46: 1 | AW46: 72 | AX46: EMID | AY46: 3.63255024 | AZ46: 5 | BA46: 30.38181877 | BB46: 5 | BC46: 5.293838978 | BD46: 1 | BE46: 35.40050507 | BF46: 4 | BG46: =BH46/'Guide & drivers'!$J$22 -> 1.6 | BH46: 2.296708695 | BI46: Green | BJ46: 3.75 | BK46: 2 | BL46: 74.70871305 | BM46: EMID | BN46: 2.202741623 | BO46: 2 | BP46: 27.54807663 | BQ46: 4 | BR46: 3.45736146 | BS46: 2 | BT46: 33.98343658 | BU46: 5 | BV46: =BW46/'Guide & drivers'!$J$22 -> 1.586687712 | BW46: 2.277599665 | BX46: Green | BY46: 3.25 | BZ46: 2 | CA46: 67.1916163 | CB46: EMID | CC46: 1.562347889 | CD46: 3 | CE46: 31.68559265 | CF46: 4 | CG46: 2.910779476 | CH46: 3 | CI46: 37.58990097 | CJ46: 3 | CK46: =CL46/'Guide & drivers'!$J$22 -> 1.6 | CL46: 2.296708695 | CM46: Green | CN46: 3.25 | CO46: 3 | CP46: 73.74862099 | CQ46: EMID | CR46: 1.772651792 | CS46: 3 | CT46: 31.27728653 | CU46: 3 | CV46: 3.462254763 | CW46: 3 | CX46: 39.01797867 | CY46: 5 | CZ46: =DA46/'Guide & drivers'!$J$22 -> 1.59999143 | DA46: 2.296696393 | DB46: Green | DC46: 3.5 | DD46: 2 | DE46: 75.53017175 | DF46: EMID | DG46: 1.82 | DH46: 2 | DI46: 30.15 | DJ46: 3 | DK46: 4.21 | DL46: 3 | DM46: 36.41 | DN46: 5 | DO46: =DP46/'Guide & drivers'!$J$22 -> 1.6 | DP46: 2.296708695 | DQ46: Green | DR46: 3.25 | DS46: 2 | DT46: 72.59
D47: SWALES | E47: 8.37 | F47: 14 | G47: 30.26 | H47: 1 | I47: 11.1 | J47: 14 | K47: 34.55 | L47: 1 | M47: 0.4571 | N47: =M47*'Guide & drivers'!$D$32 -> 0.6561409654 | O47: Amber | P47: 7.5 | Q47: 7 | R47: 84.28 | T47: SWALES | U47: 4.298858166 | V47: 5 | W47: 33.75547409 | X47: 3 | Y47: 5.778291225 | Z47: 2 | AA47: 42.5506897 | AB47: 3 | AC47: 0.67 | AD47: =AC47*'Guide & drivers'!$D$32 -> 0.9617467661 | AE47: Green | AF47: 3.25 | AG47: 1 | AH47: 86.38331318 | AI47: SWALES | AJ47: 3.3 | AK47: 2 | AL47: 28.35 | AM47: 5 | AN47: 4.93 | AO47: 3 | AP47: 38.51 | AQ47: 5 | AR47: 0.74 | AS47: =AR47*'Guide & drivers'!$D$32 -> 1.062227772 | AT47: Green | AU47: 3.75 | AV47: 2 | AW47: 75.09 | AX47: SWALES | AY47: 3.612288237 | AZ47: 4 | BA47: 27.12729645 | BB47: 2 | BC47: 6.367875576 | BD47: 6 | BE47: 34.06459427 | BF47: 3 | BG47: =BH47/'Guide & drivers'!$J$22 -> 0.7863540573 | BH47: 1.128766376 | BI47: Green | BJ47: 3.75 | BK47: 2 | BL47: 71.17205453 | BM47: SWALES | BN47: 1.983154655 | BO47: 1 | BP47: 24.60497284 | BQ47: 2 | BR47: 3.663430452 | BS47: 4 | BT47: 30.31649017 | BU47: 3 | BV47: =BW47/'Guide & drivers'!$J$22 -> 0.8 | BW47: 1.148354348 | BX47: Green | BY47: 2.5 | BZ47: 1 | CA47: 60.56804812 | CB47: SWALES | CC47: 1.059119463 | CD47: 1 | CE47: 29.80789566 | CF47: 3 | CG47: 2.386528492 | CH47: 2 | CI47: 39.3103447 | CJ47: 5 | CK47: =CL47/'Guide & drivers'!$J$22 -> 0.8 | CL47: 1.148354348 | CM47: Green | CN47: 2.75 | CO47: 1 | CP47: 72.56388831 | CQ47: SWALES | CR47: 1.132260323 | CS47: 1 | CT47: 32.67464828 | CU47: 5 | CV47: 2.693625212 | CW47: 1 | CX47: 40.07326889 | CY47: 9 | CZ47: =DA47/'Guide & drivers'!$J$22 -> 0.799995715 | DA47: 1.148348197 | DB47: Green | DC47: 4 | DD47: 3 | DE47: 76.57380271 | DF47: SWALES | DG47: 2.03 | DH47: 3 | DI47: 33.88 | DJ47: 7 | DK47: 4.48 | DL47: 4 | DM47: 48.24 | DN47: 10 | DO47: =DP47/'Guide & drivers'!$J$22 -> 0.8 | DP47: 1.148354348 | DQ47: Amber | DR47: 6 | DS47: 6 | DT47: 88.63
D48: SWEST | E48: 6.64 | F48: 13 | G48: 32.01 | H48: 5 | I48: 7.87 | J48: 10 | K48: 37.68 | L48: 3 | M48: 1.1355 | N48: =M48*'Guide & drivers'!$D$32 -> 1.629945452 | O48: Green | P48: 7.75 | Q48: 10 | R48: 84.2 | T48: SWEST | U48: 5.15520525 | V48: 8 | W48: 36.52682114 | X48: 5 | Y48: 5.863285065 | Z48: 3 | AA48: 43.38860703 | AB48: 4 | AC48: 0.95 | AD48: =AC48*'Guide & drivers'!$D$32 -> 1.363670788 | AE48: Green | AF48: 5 | AG48: 5 | AH48: 90.93391848 | AI48: SWEST | AJ48: 4.87 | AK48: 9 | AL48: 25.73 | AM48: 1 | AN48: 5.4 | AO48: 4 | AP48: 29.92 | AQ48: 2 | AR48: 1.2 | AS48: =AR48*'Guide & drivers'!$D$32 -> 1.722531521 | AT48: Green | AU48: 4 | AV48: 3 | AW48: 65.92 | AX48: SWEST | AY48: 5.370464325 | AZ48: 9 | BA48: 27.41638947 | BB48: 3 | BC48: 5.609411716 | BD48: 3 | BE48: 33.39303589 | BF48: 2 | BG48: =BH48/'Guide & drivers'!$J$22 -> 1.2 | BH48: 1.722531521 | BI48: Green | BJ48: 4.25 | BK48: 4 | BL48: 71.7893014 | BM48: SWEST | BN48: 3.116337299 | BO48: 6 | BP48: 26.90512276 | BQ48: 3 | BR48: 3.656934261 | BS48: 3 | BT48: 32.45755386 | BU48: 4 | BV48: =BW48/'Guide & drivers'!$J$22 -> 1.2 | BW48: 1.722531521 | BX48: Green | BY48: 4 | BZ48: 4 | CA48: 66.13594818 | CB48: SWEST | CC48: 2.78635931 | CD48: 5 | CE48: 36.8049202 | CF48: 9 | CG48: 3.630394936 | CH48: 4 | CI48: 45.59744263 | CJ48: 8 | CK48: =CL48/'Guide & drivers'!$J$22 -> 1.2 | CL48: 1.722531521 | CM48: Green | CN48: 6.5 | CO48: 6 | CP48: 88.81911707 | CQ48: SWEST | CR48: 3.007233858 | CS48: 7 | CT48: 40.9149437 | CU48: 11 | CV48: 4.345718861 | CW48: 6 | CX48: 46.18046188 | CY48: 11 | CZ48: =DA48/'Guide & drivers'!$J$22 -> 1.199993572 | DA48: 1.722522295 | DB48: Amber | DC48: 8.75 | DD48: 9 | DE48: 94.4483583 | DF48: SWEST | DG48: 3.42 | DH48: 8 | DI48: 45.69 | DJ48: 13 | DK48: 4.64 | DL48: 5 | DM48: 53.05 | DN48: 13 | DO48: =DP48/'Guide & drivers'!$J$22 -> 1.2 | DP48: 1.722531521 | DQ48: Amber | DR48: 9.75 | DS48: 11 | DT48: 106.8
D49: LPN | E49: 3.64244898 | F49: 4 | G49: 41.29574468 | H49: 12 | I49: 4.729618768 | J49: 1 | K49: 46.79542396 | L49: 11 | M49: 0.7416191804 | N49: =M49*'Guide & drivers'!$D$32 -> 1.064552013 | O49: Green | P49: 7 | Q49: 6 | R49: 96.46323639 | T49: LPN | U49: 5.37 | V49: 10 | W49: 59.64 | X49: 14 | Y49: 8.38 | Z49: 11 | AA49: 57.85 | AB49: 9 | AC49: 0.6 | AD49: =AC49*'Guide & drivers'!$D$32 -> 0.8612657607 | AE49: Amber | AF49: 11 | AG49: 12 | AH49: 131.24 | AI49: LPN | AJ49: 5.734031414 | AK49: 10 | AL49: 40.97727273 | AM49: 8 | AN49: 7.368633791 | AO49: 6 | AP49: 45.04388298 | AQ49: 7 | AR49: 0.79 | AS49: =AR49*'Guide & drivers'!$D$32 -> 1.133999918 | AT49: Green | AU49: 7.75 | AV49: 7 | AW49: 99.12382091 | AX49: LPN | AY49: 5.391160221 | AZ49: 10 | BA49: 34.06010929 | BB49: 8 | BC49: 6.973474801 | BD49: 8 | BE49: 43.08343711 | BF49: 8 | BG49: =BH49/'Guide & drivers'!$J$22 -> 1.032927979 | BH49: 1.482709169 | BI49: Green | BJ49: 8.5 | BK49: 8 | BL49: 89.50818142 | BM49: LPN | BN49: 5.287654321 | BO49: 11 | BP49: 35.41071429 | BQ49: 8 | BR49: 6.513590034 | BS49: 10 | BT49: 44.00504414 | BU49: 10 | BV49: =BW49/'Guide & drivers'!$J$22 -> 0.3499633827 | BW49: 0.5023524651 | BX49: Amber | BY49: 9.75 | BZ49: 9 | CA49: 91.21700278 | CB49: LPN | CC49: 3.411089866 | CD49: 7 | CE49: 34.78395062 | CF49: 7 | CG49: 4.910039113 | CH49: 6 | CI49: 44.51980983 | CJ49: 7 | CK49: =CL49/'Guide & drivers'!$J$22 -> 0.781500166 | CL49: 1.121798892 | CM49: Green | CN49: 6.75 | CO49: 7 | CP49: 87.62488942 | CQ49: LPN | CR49: 2.609899329 | CS49: 4 | CT49: 36.89675516 | CU49: 9 | CV49: 4.242873432 | CW49: 5 | CX49: 39.4529703 | CY49: 7 | CZ49: =DA49/'Guide & drivers'!$J$22 -> 0.837735301 | DA49: 1.202521219 | DB49: Green | DC49: 6.25 | DD49: 7 | DE49: 83.20249822 | DF49: LPN | DG49: 2.074410163 | DH49: 4 | DI49: 35.66956522 | DJ49: 8 | DK49: 2.414574403 | DL49: 1 | DM49: 45.27042578 | DN49: 8 | DO49: =DP49/'Guide & drivers'!$J$22 -> 0.7476450922 | DP49: 1.073201865 | DQ49: Green | DR49: 5.25 | DS49: 4 | DT49: 85.42897556
D50: SPN | E50: 4.624687239 | F50: 6 | G50: 37.6561939 | H50: 10 | I50: 7.345218801 | J50: 8 | K50: 45.30828025 | L50: 10 | M50: 0.880548578 | N50: =M50*'Guide & drivers'!$D$32 -> 1.263977235 | O50: Green | P50: 8.5 | Q50: 11 | R50: 94.93438019 | T50: SPN | U50: 5.57 | V50: 12 | W50: 52.91 | X50: 12 | Y50: 6.52 | Z50: 6 | AA50: 66.43 | AB50: 13 | AC50: 0.6 | AD50: =AC50*'Guide & drivers'!$D$32 -> 0.8612657607 | AE50: Amber | AF50: 10.75 | AG50: 11 | AH50: 131.43 | AI50: SPN | AJ50: 5.748065015 | AK50: 11 | AL50: 36.50903832 | AM50: 7 | AN50: 9.797826087 | AO50: 10 | AP50: 46.02680653 | AQ50: 8 | AR50: 0.9 | AS50: =AR50*'Guide & drivers'!$D$32 -> 1.291898641 | AT50: Green | AU50: 9 | AV50: 10 | AW50: 98.08173595 | AX50: SPN | AY50: 7.122287968 | AZ50: 13 | BA50: 39.25501433 | BB50: 9 | BC50: 9.400570885 | BD50: 10 | BE50: 51.56063618 | BF50: 11 | BG50: =BH50/'Guide & drivers'!$J$22 -> 0.5924478919 | BH50: 0.8504251405 | BI50: Green | BJ50: 10.75 | BK50: 10 | BL50: 107.3385094 | BM50: SPN | BN50: 6.442512619 | BO50: 12 | BP50: 36.44101633 | BQ50: 9 | BR50: 7.193635383 | BS50: 11 | BT50: 43.56531049 | BU50: 9 | BV50: =BW50/'Guide & drivers'!$J$22 -> 0.2460798441 | BW50: 0.3532335736 | BX50: Amber | BY50: 10.25 | BZ50: 10 | CA50: 93.64247483 | CB50: SPN | CC50: 5.44608076 | CD50: 12 | CE50: 35.72465315 | CF50: 8 | CG50: 6.707150965 | CH50: 11 | CI50: 46.76162791 | CJ50: 9 | CK50: =CL50/'Guide & drivers'!$J$22 -> 0.2597547397 | CL50: 0.3728631058 | CM50: Amber | CN50: 10 | CO50: 10 | CP50: 94.63951278 | CQ50: SPN | CR50: 3.34811438 | CS50: 8 | CT50: 37.9002991 | CU50: 10 | CV50: 6.120454545 | CW50: 9 | CX50: 42.02623295 | CY50: 10 | CZ50: =DA50/'Guide & drivers'!$J$22 -> 0.6780149773 | DA50: 0.9732518086 | DB50: Green | DC50: 9.25 | DD50: 11 | DE50: 89.39510098 | DF50: SPN | DG50: 2.599507389 | DH50: 6 | DI50: 44.41233766 | DJ50: 11 | DK50: 5.005303477 | DL50: 7 | DM50: 47.46875 | DN50: 9 | DO50: =DP50/'Guide & drivers'!$J$22 -> 0.609830275 | DP50: 0.8753765595 | DQ50: Amber | DR50: 8.25 | DS50: 9 | DT50: 99.48589853
D51: EPN | E51: 5.560302162 | F51: 9 | G51: 42.76034483 | H51: 13 | I51: 9.705137751 | J51: 13 | K51: 51.00676329 | L51: 14 | M51: 1.067729469 | N51: =M51*'Guide & drivers'!$D$32 -> 1.532664722 | O51: Amber | P51: 12.25 | Q51: 13 | R51: 109.032548 | T51: EPN | U51: 6.12 | V51: 14 | W51: 54.17 | X51: 13 | Y51: 9.76 | Z51: 14 | AA51: 67.37 | AB51: 14 | AC51: 1 | AD51: =AC51*'Guide & drivers'!$D$32 -> 1.435442935 | AE51: Amber | AF51: 13.75 | AG51: 14 | AH51: 137.42 | AI51: EPN | AJ51: 7.240318302 | AK51: 12 | AL51: 43.22931985 | AM51: 9 | AN51: 11.46362253 | AO51: 12 | AP51: 49.01349693 | AQ51: 9 | AR51: 0.48 | AS51: =AR51*'Guide & drivers'!$D$32 -> 0.6890126086 | AT51: Amber | AU51: 10.5 | AV51: 11 | AW51: 110.9467576 | AX51: EPN | AY51: 7.144962406 | AZ51: 14 | BA51: 41.90106802 | BB51: =RANK(BA51,$BA$42:$BA$55,1) -> 12 | BC51: 9.982537517 | BD51: 12 | BE51: 52.47799386 | BF51: 12 | BG51: =BH51/'Guide & drivers'!$J$22 -> 0.7947366193 | BH51: 1.140799065 | BI51: Green | BJ51: 12.5 | BK51: 14 | BL51: 111.5065618 | BM51: EPN | BN51: 4.798682043 | BO51: 10 | BP51: 36.59057203 | BQ51: 10 | BR51: 5.685373134 | BS51: 9 | BT51: 42.70946353 | BU51: 8 | BV51: =BW51/'Guide & drivers'!$J$22 -> 0.7686927052 | BW51: 1.103414513 | BX51: Green | BY51: 9.25 | BZ51: 8 | CA51: 89.78409074 | CB51: EPN | CC51: 4.161743619 | CD51: 10 | CE51: 34.24296206 | CF51: 6 | CG51: 5.03654583 | CH51: 8 | CI51: 41.10496894 | CJ51: 6 | CK51: =CL51/'Guide & drivers'!$J$22 -> 1.185307725 | CL51: 1.701441599 | CM51: Green | CN51: 7.5 | CO51: 8 | CP51: 84.54622045 | CQ51: EPN | CR51: 2.653526415 | CS51: 5 | CT51: 31.72619048 | CU51: 4 | CV51: 4.238340486 | CW51: 4 | CX51: 39.73249551 | CY51: 8 | CZ51: =DA51/'Guide & drivers'!$J$22 -> 1.605948285 | DA51: 2.305247119 | DB51: Green | DC51: 5.25 | DD51: 6 | DE51: 78.35055289 | DF51: EPN | DG51: 3.079440559 | DH51: 7 | DI51: 36.13493976 | DJ51: 10 | DK51: 4.686889114 | DL51: 6 | DM51: 40.77990747 | DN51: 7 | DO51: =DP51/'Guide & drivers'!$J$22 -> 1.382432774 | DP51: 1.984403358 | DQ51: Green | DR51: 7.5 | DS51: 7 | DT51: 84.6811769
D52: SPD | E52: 5.24955595 | F52: 8 | G52: 35.73757455 | H52: 9 | I52: 7.325987144 | J52: 7 | K52: 42.42203742 | L52: 6 | M52: 0.962 | N52: =M52*'Guide & drivers'!$D$32 -> 1.380896103 | O52: Green | P52: 7.5 | Q52: 7 | R52: 90.73515507 | T52: SPD | U52: 4.92173189 | V52: 7 | W52: 51.10739191 | X52: 11 | Y52: 6.309927361 | Z52: 5 | AA52: 63.96688742 | AB52: 12 | AC52: 0.6 | AD52: =AC52*'Guide & drivers'!$D$32 -> 0.8612657607 | AE52: Amber | AF52: 8.75 | AG52: 9 | AH52: 126.3059386 | AI52: SPD | AJ52: 3.208126858 | AK52: 1 | AL52: 58.93573668 | AM52: 14 | AN52: 7.006410256 | AO52: 5 | AP52: 69.57369255 | AQ52: 14 | AR52: 0.6 | AS52: =AR52*'Guide & drivers'!$D$32 -> 0.8612657607 | AT52: Amber | AU52: 8.5 | AV52: 8 | AW52: 138.7239663 | AX52: SPD | AY52: 2.850731707 | AZ52: 1 | BA52: 54.30344828 | BB52: 14 | BC52: 5.744360902 | BD52: 5 | BE52: 69.34831461 | BF52: 14 | BG52: =BH52/'Guide & drivers'!$J$22 -> 0.6 | BH52: 0.8612657607 | BI52: Amber | BJ52: 8.5 | BK52: =RANK(BJ52,$BJ$42:$BJ$55,1) -> 8 | BL52: 132.2468555 | BM52: SPD | BN52: 3.325231481 | BO52: 8 | BP52: 51.41762452 | BQ52: 13 | BR52: 5.506613757 | BS52: 8 | BT52: 64.44222539 | BU52: 13 | BV52: =BW52/'Guide & drivers'!$J$22 -> 0.5978800878 | BW52: 0.8582227478 | BX52: Amber | BY52: 10.5 | BZ52: 11 | CA52: 124.6916952 | CB52: SPD | CC52: 3.063176895 | CD52: 6 | CE52: 48.23736264 | CF52: 13 | CG52: 5.860662048 | CH52: 10 | CI52: 62.93430657 | CJ52: 12 | CK52: =CL52/'Guide & drivers'!$J$22 -> 0.552682283 | CL52: 0.7933438781 | CM52: Amber | CN52: 10.25 | CO52: 11 | CP52: 120.0955081 | CQ52: SPD | CR52: 3.973662551 | CS52: 10 | CT52: 34.24050633 | CU52: 7 | CV52: 7.347142857 | CW52: 10 | CX52: 39.34197731 | CY52: 6 | CZ52: =DA52/'Guide & drivers'!$J$22 -> 0.5584556642 | DA52: 0.8016312375 | DB52: Green | DC52: 8.25 | DD52: 8 | DE52: 84.90328905 | DF52: SPD | DG52: 5.325788197 | DH52: 11 | DI52: 32.07283465 | DJ52: 5 | DK52: 14.4956245 | DL52: 13 | DM52: 34.07283465 | DN52: 3 | DO52: =DP52/'Guide & drivers'!$J$22 -> 0.4728355709 | DP52: 0.6787284794 | DQ52: Amber | DR52: 8 | DS52: 8 | DT52: 85.96708199
D53: SPMW | E53: 5.607876712 | F53: 10 | G53: 35.55913978 | H53: 8 | I53: 6.881982691 | J53: 5 | K53: 43.46067416 | L53: 7 | M53: 1.008 | N53: =M53*'Guide & drivers'!$D$32 -> 1.446926478 | O53: Green | P53: 7.5 | Q53: 7 | R53: 91.50967335 | T53: SPMW | U53: 5.315705128 | V53: 9 | W53: 45.25950413 | X53: 8 | Y53: 6.839459865 | Z53: 7 | AA53: 59.76293823 | AB53: 10 | AC53: 0.6 | AD53: =AC53*'Guide & drivers'!$D$32 -> 0.8612657607 | AE53: Amber | AF53: 8.5 | AG53: 8 | AH53: 117.1776074 | AI53: SPMW | AJ53: 4.792436975 | AK53: 8 | AL53: 44.72089314 | AM53: 10 | AN53: 10.09006211 | AO53: 11 | AP53: 65.87636364 | AQ53: 13 | AR53: 0.6 | AS53: =AR53*'Guide & drivers'!$D$32 -> 0.8612657607 | AT53: Amber | AU53: 10.5 | AV53: 11 | AW53: 125.4797559 | AX53: SPMW | AY53: 4.82605178 | AZ53: 7 | BA53: 52.7539185 | BB53: 13 | BC53: 9.629381059 | BD53: 11 | BE53: 66.55190311 | BF53: 13 | BG53: =BH53/'Guide & drivers'!$J$22 -> 0.6 | BH53: 0.8612657607 | BI53: Amber | BJ53: 11 | BK53: 11 | BL53: 133.7612544 | BM53: SPMW | BN53: 4.641932701 | BO53: 9 | BP53: 55.8022508 | BQ53: 14 | BR53: 7.350769231 | BS53: 12 | BT53: 73.23462783 | BU53: 14 | BV53: =BW53/'Guide & drivers'!$J$22 -> 0.1034353242 | BW53: 0.1484755054 | BX53: Amber | BY53: 12.25 | BZ53: 13 | CA53: 141.0295806 | CB53: SPMW | CC53: 4.397103659 | CD53: 11 | CE53: 43.15421304 | CF53: 11 | CG53: 8.285404624 | CH53: 12 | CI53: 60.57617188 | CJ53: 11 | CK53: =CL53/'Guide & drivers'!$J$22 -> 0.091036 | CL53: 0.130676983 | CM53: Red | CN53: 11.25 | CO53: 12 | CP53: 116.4128932 | CQ53: SPMW | CR53: 4.931475904 | CS53: 12 | CT53: 35.68300153 | CU53: 8 | CV53: 10.08948087 | CW53: 12 | CX53: 38.98013245 | CY53: 4 | CZ53: =DA53/'Guide & drivers'!$J$22 -> 0.09661476253 | DA53: 0.1386849782 | DB53: Amber | DC53: 9 | DD53: 10 | DE53: 89.68409076 | DF53: SPMW | DG53: 5.814615385 | DH53: 12 | DI53: 33.27304348 | DJ53: 6 | DK53: 14.80390492 | DL53: 14 | DM53: 38.00806452 | DN53: 6 | DO53: =DP53/'Guide & drivers'!$J$22 -> 0.3601773568 | DP53: 0.517014042 | DQ53: Amber | DR53: 9.5 | DS53: 10 | DT53: 91.8996283
D54: SSEH | E54: 2.5 | F54: 1 | G54: 31.5 | H54: 3 | I54: 5.1 | J54: 2 | K54: 40.02 | L54: 4 | M54: 0.8 | N54: =M54*'Guide & drivers'!$D$32 -> 1.148354348 | O54: Green | P54: 2.5 | Q54: 1 | R54: 79.12 | T54: SSEH | U54: 3.552147239 | V54: 4 | W54: 29.97927461 | X54: 1 | Y54: 7.220560748 | Z54: 8 | AA54: 40.43773585 | AB54: 2 | AC54: 0.8 | AD54: =AC54*'Guide & drivers'!$D$32 -> 1.148354348 | AE54: Green | AF54: 3.75 | AG54: 3 | AH54: 81.18971845 | AI54: SSEH | AJ54: 4.22214941 | AK54: 7 | AL54: 27.83704735 | AM54: 2 | AN54: 9.015625 | AO54: 8 | AP54: 28.75909091 | AQ54: 1 | AR54: 0.8 | AS54: =AR54*'Guide & drivers'!$D$32 -> 1.148354348 | AT54: Green | AU54: 4.5 | AV54: 5 | AW54: 69.83391267 | AX54: SSEH | AY54: 2.86 | AZ54: 2 | BA54: 22.1 | BB54: 1 | BC54: 5.34 | BD54: 2 | BE54: 27.8 | BF54: 1 | BG54: =BH54/'Guide & drivers'!$J$22 -> 0.8 | BH54: 1.148354348 | BI54: Green | BJ54: 1.5 | BK54: 1 | BL54: 58.1 | BM54: SSEH | BN54: 3.261591299 | BO54: 7 | BP54: 17.13384813 | BQ54: 1 | BR54: 4.131868132 | BS54: 5 | BT54: 21.10970464 | BU54: 1 | BV54: =BW54/'Guide & drivers'!$J$22 -> 0.8 | BW54: 1.148354348 | BX54: Green | BY54: 3.5 | BZ54: 3 | CA54: 45.63701221 | CB54: SSEH | CC54: 3.789473684 | CD54: 9 | CE54: 19.51216389 | CF54: 1 | CG54: 4.455835962 | CH54: 5 | CI54: 24.67857143 | CJ54: 1 | CK54: =CL54/'Guide & drivers'!$J$22 -> 0.7448990947 | CL54: 1.069260142 | CM54: Green | CN54: 4 | CO54: 5 | CP54: 52.43604497 | CQ54: SSEH | CR54: 3.942655492 | CS54: 9 | CT54: 22.71817193 | CU54: 1 | CV54: 5.41130092 | CW54: 7 | CX54: 26.64855072 | CY54: 1 | CZ54: =DA54/'Guide & drivers'!$J$22 -> 0.7237660759 | DA54: 1.0389249 | DB54: Green | DC54: 4.5 | DD54: 4 | DE54: 58.72067906 | DF54: SSEH | DG54: 4.758985201 | DH54: 10 | DI54: 21.18383518 | DJ54: 1 | DK54: 5.692047377 | DL54: 9 | DM54: 22.38723404 | DN54: 2 | DO54: =DP54/'Guide & drivers'!$J$22 -> 0.593986619 | DP54: 0.8526338954 | DQ54: Green | DR54: 5.5 | DS54: 5 | DT54: 54.0221018
D55: SSES | E55: 2.66 | F55: 2 | G55: 33.18 | H55: 6 | I55: 6.94 | J55: 6 | K55: 45.04 | L55: 9 | M55: 1.3858 | N55: =M55*'Guide & drivers'!$D$32 -> 1.989236819 | O55: Green | P55: 5.75 | Q55: 4 | R55: 87.82 | T55: SSES | U55: 2.688902743 | V55: 1 | W55: 44.29316389 | X55: 7 | Y55: 7.228643216 | Z55: 9 | AA55: 63.68382353 | AB55: 11 | AC55: 0.8 | AD55: =AC55*'Guide & drivers'!$D$32 -> 1.148354348 | AE55: Amber | AF55: 7 | AG55: 7 | AH55: 117.8945334 | AI55: SSES | AJ55: 3.414524301 | AK55: 3 | AL55: 45.71127332 | AM55: 11 | AN55: 9.283271375 | AO55: 9 | AP55: 64.00564972 | AQ55: 12 | AR55: 0.8 | AS55: =AR55*'Guide & drivers'!$D$32 -> 1.148354348 | AT55: Amber | AU55: 8.75 | AV55: 9 | AW55: 122.4147187 | AX55: SSES | AY55: 3.11 | AZ55: 3 | BA55: 31.84 | BB55: 6 | BC55: 8.65 | BD55: 9 | BE55: 40.29 | BF55: 7 | BG55: =BH55/'Guide & drivers'!$J$22 -> 1.5723 | BH55: 2.256946926 | BI55: Green | BJ55: 6.25 | BK55: 6 | BL55: 83.89 | BM55: SSES | BN55: 3.011868369 | BO55: 5 | BP55: 29.28943937 | BQ55: 7 | BR55: 4.528297244 | BS55: 6 | BT55: 34.86576648 | BU55: 7 | BV55: =BW55/'Guide & drivers'!$J$22 -> 1.503004615 | BW55: 2.157477356 | BX55: Green | BY55: 6.25 | BZ55: 7 | CA55: 71.69537147 | CB55: SSES | CC55: 3.561549779 | CD55: 8 | CE55: 41.99337163 | CF55: 10 | CG55: 5.467319461 | CH55: 9 | CI55: 54.34845049 | CJ55: 10 | CK55: =CL55/'Guide & drivers'!$J$22 -> 0.7526732779 | CL55: 1.080419539 | CM55: Amber | CN55: 9.25 | CO55: 9 | CP55: 105.3706914 | CQ55: SSES | CR55: 3.991564099 | CS55: 11 | CT55: 41.41874136 | CU55: 12 | CV55: 9.466013211 | CW55: 11 | CX55: 55.20633934 | CY55: 13 | CZ55: =DA55/'Guide & drivers'!$J$22 -> 0.2340480233 | DA55: 0.3359625813 | DB55: Red | DC55: 11.75 | DD55: 12 | DE55: 110.082658 | DF55: SSES | DG55: 4.45001865 | DH55: 9 | DI55: 47.3403452 | DJ55: 14 | DK55: 9.024436889 | DL55: 10 | DM55: 52.45549417 | DN55: 12 | DO55: =DP55/'Guide & drivers'!$J$22 -> 0.1075802553 | DP55: 0.1544253173 | DQ55: Red | DR55: 11.25 | DS55: 13 | DT55: 113.2702949
D56: Industry Average Score/Total Reward | E56: =AVERAGE(E42:E55) -> 4.913018774 | G56: 35.71963442 | I56: 7.438419017 | K56: 43.1603969 | M56: =SUM(M42:M55) -> 13.77524515 | N56: =SUM(N42:N55) -> 19.77357833 | T56: Industry Average Score/Total Reward | U56: =AVERAGE(U42:U55) -> 4.641116624 | W56: =AVERAGE(W42:W55) -> 43.50555453 | Y56: =AVERAGE(Y42:Y55) -> 7.178433711 | AA56: =AVERAGE(AA42:AA55) -> 53.13871612 | AC56: =SUM(AC42:AC55) -> 11.28 | AD56: =SUM(AD42:AD55) -> 16.1917963 | AI56: Industry Average Score/Total Reward | AJ56: =AVERAGE(AJ42:AJ55) -> 4.979260877 | AL56: =AVERAGE(AL42:AL55) -> 38.62718439 | AN56: =AVERAGE(AN42:AN55) -> 8.906817939 | AP56: =AVERAGE(AP42:AP55) -> 47.51635595 | AR56: =SUM(AR42:AR55) -> 11.37 | AS56: =SUM(AS42:AS55) -> 16.32098617 | AX56: Industry Average Score/Total Reward | AY56: =AVERAGE(AY42:AY55) -> 4.829855035 | BA56: =AVERAGE(BA42:BA55) -> 36.17609876 | BC56: =AVERAGE(BC42:BC55) -> 8.001225029 | BE56: =AVERAGE(BE42:BE55) -> 44.71706555 | BG56: =SUM(BG42:BG55) -> 13.01306655 | BH56: =SUM(BH42:BH55) -> 18.67951443 | BM56: Industry Average Score/Total Reward | BN56: =AVERAGE(BN42:BN55) -> 4.10658022 | BP56: =AVERAGE(BP42:BP55) -> 33.9884512 | BR56: =AVERAGE(BR42:BR55) -> 6.260514907 | BT56: =AVERAGE(BT42:BT55) -> 41.34040034 | BV56: =SUM(BV42:BV55) -> 10.77528573 | BW56: =SUM(BW42:BW55) -> 15.46730777 | CB56: Industry Average Score/Total Reward | CC56: =AVERAGE(CC42:CC55) -> 3.602155036 | CE56: =AVERAGE(CE42:CE55) -> 36.74688332 | CG56: =AVERAGE(CG42:CG55) -> 6.118423642 | CI56: =AVERAGE(CI42:CI55) -> 49.02607919 | CK56: =SUM(CK42:CK55) -> 10.75948479 | CL56: =SUM(CL42:CL55) -> 15.44462642 | CQ56: Industry Average Score/Total Reward | CR56: =AVERAGE(CR42:CR55) -> 3.727440985 | CT56: =AVERAGE(CT42:CT55) -> 35.75833654 | CV56: =AVERAGE(CV42:CV55) -> 6.965104805 | CX56: =AVERAGE(CX42:CX55) -> 42.1274202 | CZ56: =SUM(CZ42:CZ55) -> 11.12671654 | DA56: =SUM(DA42:DA55) -> 15.97176665 | DF56: Industry Average Score/Total Reward | DG56: =AVERAGE(DG42:DG55) -> 3.925197539 | DI56: =AVERAGE(DI42:DI55) -> 35.31906437 | DK56: =AVERAGE(DK42:DK55) -> 7.442341478 | DM56: =AVERAGE(DM42:DM55) -> 42.58805076 | DO56: =SUM(DO42:DO55) -> 10.76490644 | DP56: =SUM(DP42:DP55) -> 15.45240889
D57: Target | E57: 8.21 | G57: 42.08 | I57: 11.73 | K57: 52.7 | T57: Target | U57: 8.21 | W57: 42.08 | Y57: 11.73 | AA57: 52.7 | AI57: Target | AJ57: 8.21 | AL57: 42.08 | AN57: 11.73 | AP57: 52.7 | AX57: Target | AY57: 8.21 | BA57: 42.08 | BC57: 11.73 | BE57: 52.7 | BM57: Target | BN57: 4.84 | BP57: 39.28 | BR57: 7.84 | BT57: 47.94 | CB57: Target | CC57: 4.84 | CE57: 39.28 | CG57: 7.84 | CI57: 47.94 | CQ57: Target | CR57: 4.84 | CT57: 39.28 | CV57: 7.84 | CX57: 47.94 | DF57: Target | DG57: =CR57 -> 4.84 | DI57: =CT57 -> 39.28 | DK57: =CV57 -> 7.84 | DM57: =CX57 -> 47.94
D58: Maximum Reward score | E58: 6.4 | G58: 32.47 | I58: 10.12 | K58: 39.91 | T58: Maximum Reward score | U58: 6.4 | W58: 32.47 | Y58: 10.12 | AA58: 39.91 | AI58: Maximum Reward score | AJ58: =E58 -> 6.4 | AK58: =G58 -> 32.47 | AL58: =I58 -> 10.12 | AM58: =K58 -> 39.91 | AT58: =U58 -> 6.4 | AX58: Maximum Reward score | BD58: =AJ58 -> 6.4 | BE58: =AK58 -> 32.47 | BF58: =AL58 -> 10.12 | BG58: =AM58 -> 39.91 | BM58: Maximum Reward score | BS58: =AY58 -> 0 | BT58: =AZ58 -> 0 | BU58: =BA58 -> 0 | BV58: =BB58 -> 0 | CB58: Maximum Reward score | CH58: =BN58 -> 0 | CI58: =BO58 -> 0 | CJ58: =BP58 -> 0 | CK58: =BQ58 -> 0 | CQ58: Maximum Reward score | DF58: Maximum Reward score
D59: 105% of target | E59: =E57*1.05 -> 8.6205 | G59: =G57*1.05 -> 44.184 | I59: =I57*1.05 -> 12.3165 | K59: =K57*1.05 -> 55.335 | T59: 105% of target | U59: =U57*1.05 -> 8.6205 | W59: =W57*1.05 -> 44.184 | Y59: =Y57*1.05 -> 12.3165 | AA59: =AA57*1.05 -> 55.335 | AI59: 105% of target | AJ59: =AJ57*1.05 -> 8.6205 | AL59: =AL57*1.05 -> 44.184 | AN59: =AN57*1.05 -> 12.3165 | AP59: =AP57*1.05 -> 55.335 | AX59: 105% of target | AY59: =AY57*1.05 -> 8.6205 | BA59: =BA57*1.05 -> 44.184 | BC59: =BC57*1.05 -> 12.3165 | BE59: =BE57*1.05 -> 55.335 | BM59: 105% of target | BN59: =BN57*1.05 -> 5.082 | BP59: =BP57*1.05 -> 41.244 | BR59: =BR57*1.05 -> 8.232 | BT59: =BT57*1.05 -> 50.337 | CB59: 105% of target | CC59: =CC57*1.05 -> 5.082 | CE59: =CE57*1.05 -> 41.244 | CG59: =CG57*1.05 -> 8.232 | CI59: =CI57*1.05 -> 50.337 | CQ59: 105% of target | CR59: =CR57*1.05 -> 5.082 | CT59: =CT57*1.05 -> 41.244 | CV59: 8.232 | CX59: 50.337 | DF59: 105% of target | DG59: =DG57*1.05 -> 5.082 | DI59: =DI57*1.05 -> 41.244 | DK59: =DK57*1.05 -> 8.232 | DM59: =DM57*1.05 -> 50.337
D61: Time to Connect improvements from 2013
E62: 2015/16 | L62: 2016/17 | S62: 2017/18 | Z62: 2018/19 | AG62: 2019/20 | AN62: 2020/21 | AU62: 2021/22 | BB62: 2022/23
E63: LVSSA | H63: LVSSB | L63: LVSSA | O63: LVSSB | S63: LVSSA | V63: LVSSB | Z63: LVSSA | AC63: LVSSB | AG63: LVSSA | AJ63: LVSSB | AN63: LVSSA | AQ63: LVSSB | AU63: LVSSA | AX63: LVSSB | BB63: LVSSA | BE63: LVSSB
E64: Average Time to Quote | F64: Time to Connect | G64: Overall | H64: Average Time to Quote | I64: Time to Connect | J64: Overall | L64: Average Time to Quote | M64: Time to Connect | N64: Overall | O64: Average Time to Quote | P64: Time to Connect | Q64: Overall | S64: Average Time to Quote | T64: Time to Connect | U64: Overall | V64: Average Time to Quote | W64: Time to Connect | X64: Overall | Z64: Average Time to Quote | AA64: Time to Connect | AB64: Overall | AC64: Average Time to Quote | AD64: Time to Connect | AE64: Overall | AG64: Average Time to Quote | AH64: Time to Connect | AI64: Overall | AJ64: Average Time to Quote | AK64: Time to Connect | AL64: Overall | AN64: Average Time to Quote | AO64: Time to Connect | AP64: Overall | AQ64: Average Time to Quote | AR64: Time to Connect | AS64: Overall | AU64: Average Time to Quote | AV64: Time to Connect | AW64: Overall | AX64: Average Time to Quote | AY64: Time to Connect | AZ64: Overall | BB64: Average Time to Quote | BC64: Time to Connect | BD64: Overall | BE64: Average Time to Quote | BF64: Time to Connect | BG64: Overall
D65: ENWL | E65: 3.523335197 | F65: 43.79341055 | G65: 47.31674575 | H65: 4.083818411 | I65: 45.79215901 | J65: 49.87597742 | L65: 4.565776603 | M65: 42.24530686 | N65: 46.81108347 | O65: 3.602331821 | P65: 51.00187944 | Q65: 54.60421126 | S65: 3.825776603 | T65: 42.4354015 | U65: 46.2611781 | V65: 3.26789549 | W65: 48.39387944 | X65: 51.66177493 | Z65: 3.805776603 | AA65: 41.2854015 | AB65: 45.0911781 | AC65: 4.72789549 | AD65: 47.00387944 | AE65: 51.73177493 | AG65: 5.065028555 | AH65: 46.3897765 | AI65: 51.45480506 | AJ65: 6.61707969 | AK65: 55.0565325 | AL65: 61.67361219 | AN65: 4.885776603 | AO65: 46.3254015 | AP65: 51.2111781 | AQ65: 6.50789549 | AR65: 53.89387944 | AS65: 60.40177493 | AU65: 4.772704863 | AV65: 46.34650363 | AW65: 51.11920849 | AX65: 6.081589758 | AY65: 50.22884633 | AZ65: 56.31043609 | BB65: 4.995776603 | BC65: 50.4854015 | BD65: 55.4811781 | BE65: 6.02789549 | BF65: 60.74387944 | BG65: 66.77177493
D66: NPgN | E66: 5.407092376 | F66: 11.4797201 | G66: 16.88681248 | H66: 10.23449286 | I66: 5.570614035 | J66: 15.8051069 | L66: 5.541641571 | M66: 1.002505593 | N66: 6.544147164 | O66: 10.40974178 | P66: -4.999478042 | Q66: 5.410263742 | S66: 3.132990777 | T66: -2.123333333 | U66: 1.009657444 | V66: 3.918663717 | W66: -10.31833333 | X66: -6.399669617 | Z66: 4.822990777 | AA66: 10.47666667 | AB66: 15.29965744 | AC66: 8.428663717 | AD66: 1.941666667 | AE66: 10.37033038 | AG66: 3.550539972 | AH66: 11.17463715 | AI66: 14.72517712 | AJ66: 5.519770728 | AK66: 1.953087986 | AL66: 7.472858714 | AN66: 4.073243728 | AO66: -0.235761079 | AP66: 3.837482649 | AQ66: 4.948089846 | AR66: -38.44205426 | AS66: -33.49396442 | AU66: 1.842990777 | AV66: 1.556666667 | AW66: 3.399657444 | AX66: 3.698663717 | AY66: -8.938333333 | AZ66: -5.239669617 | BB66: 2.762990777 | BC66: 6.706666667 | BD66: 9.469657444 | BE66: 6.748663717 | BF66: -18.36833333 | BG66: -11.61966962
D67: NPgY | E67: 5.193938789 | F67: 4.234720102 | G67: 9.428658891 | H67: 10.50699056 | I67: 11.71872881 | J67: 22.22571938 | L67: 5.673779421 | M67: 0.318827607 | N67: 5.992607028 | O67: 10.86290804 | P67: 3.770033738 | Q67: 14.63294178 | S67: 3.282990777 | T67: 0.5616666667 | U67: 3.844657444 | V67: 2.508663717 | W67: 4.118333333 | X67: 6.62699705 | Z67: 4.312990777 | AA67: 6.271666667 | AB67: 10.58465744 | AC67: 4.178663717 | AD67: 11.58833333 | AE67: 15.76699705 | AG67: 4.00999343 | AH67: 9.827787356 | AI67: 13.83778079 | AJ67: 5.371509245 | AK67: 14.72055995 | AL67: 20.09206919 | AN67: 4.723071325 | AO67: 0.7956122449 | AP67: 5.51868357 | AQ67: 5.323128002 | AR67: -11.40579636 | AS67: -6.082668357 | AU67: 3.892990777 | AV67: 3.951666667 | AW67: 7.844657444 | AX67: 3.668663717 | AY67: 9.158333333 | AZ67: 12.82699705 | BB67: 4.242990777 | BC67: 11.90166667 | BD67: 16.14465744 | BE67: 6.688663717 | BF67: 10.47833333 | BG67: 17.16699705
D68: WMID | E68: 4.272990777 | F68: 17.82 | G68: 22.09299078 | H68: 11.04199705 | I68: 11.72 | J68: 22.76199705 | L68: 4.556233766 | M68: 14.95552124 | N68: 19.51175501 | O68: 11.06869694 | P68: 9.01640274 | Q68: 20.08509968 | S68: 4.932990777 | T68: 24.06 | U68: 28.99299078 | V68: 12.68199705 | W68: 16.24 | X68: 28.92199705 | Z68: 4.205517175 | AA68: 22.19368042 | AB68: 26.39919759 | AC68: 11.44629808 | AD68: 18.91150238 | AE68: 30.35780046 | AG68: 6.798770311 | AH68: 23.46685471 | AI68: 30.26562502 | AJ68: 14.33952471 | AK68: 21.70771744 | AL68: 36.04724214 | AN68: 7.970531704 | AO68: 20.15920128 | AP68: 28.12973298 | AQ68: 15.02083655 | AR68: 18.52433731 | AS68: 33.54517386 | AU68: 7.514932873 | AV68: 18.53273071 | AW68: 26.04766359 | AX68: 14.26404067 | AY68: 17.94155838 | AZ68: 32.20559905 | BB68: 7.262990777 | BC68: 21.8 | BD68: 29.06299078 | BE68: 13.60199705 | BF68: 20.57 | BG68: 34.17199705
D69: EMID | E69: 4.762990777 | F69: 12.33 | G69: 17.09299078 | H69: 9.19199705 | I69: 13.85 | J69: 23.04199705 | L69: 4.767226026 | M69: 9.815439911 | N69: 14.58266594 | O69: 9.657633971 | P69: 9.323697662 | Q69: 18.98133163 | S69: 4.732990777 | T69: 16.06 | U69: 20.79299078 | V69: 9.48199705 | W69: 19.68 | X69: 29.16199705 | Z69: 4.610440538 | AA69: 13.83818123 | AB69: 18.44862177 | AC69: 9.098158072 | AD69: 19.69949493 | AE69: 28.79765301 | AG69: 6.040249154 | AH69: 16.67192337 | AI69: 22.71217252 | AJ69: 10.93463559 | AK69: 21.11656342 | AL69: 32.05119901 | AN69: 6.680642888 | AO69: 12.53440735 | AP69: 19.21505024 | AQ69: 11.48121757 | AR69: 17.51009903 | AS69: 28.9913166 | AU69: 6.470338986 | AV69: 12.94271347 | AW69: 19.41305246 | AX69: 10.92974229 | AY69: 16.08202133 | AZ69: 27.01176362 | BB69: 6.422990777 | BC69: 14.07 | BD69: 20.49299078 | BE69: 10.18199705 | BF69: 18.69 | BG69: 28.87199705
D70: SWALES | E70: -1.257009223 | F70: 11.81 | G70: 10.55299078 | H70: -1.24800295 | I70: 21.55 | J70: 20.30199705 | L70: 2.814132611 | M70: 8.314525909 | N70: 11.12865852 | O70: 4.073705825 | P70: 13.5493103 | Q70: 17.62301613 | S70: 3.812990777 | T70: 13.72 | U70: 17.53299078 | V70: 4.92199705 | W70: 17.59 | X70: 22.51199705 | Z70: 3.500702541 | AA70: 14.94270355 | AB70: 18.44340609 | AC70: 3.484121474 | AD70: 22.03540573 | AE70: 25.51952721 | AG70: 5.129836123 | AH70: 17.46502716 | AI70: 22.59486328 | AJ70: 6.188566598 | AK70: 25.78350983 | AL70: 31.97207642 | AN70: 6.053871314 | AO70: 12.26210434 | AP70: 18.31597565 | AQ70: 7.465468558 | AR70: 16.7896553 | AS70: 24.25512386 | AU70: 5.980730455 | AV70: 9.395351715 | AW70: 15.37608217 | AX70: 7.158371838 | AY70: 16.02673111 | AZ70: 23.18510295 | BB70: 5.082990777 | BC70: 8.19 | BD70: 13.27299078 | BE70: 5.37199705 | BF70: 7.86 | BG70: 13.23199705
D71: SWEST | E71: 0.8729907772 | F71: 11.59 | G71: 12.46299078 | H71: 2.25199705 | I71: 19.79 | J71: 22.04199705 | L71: 2.357785527 | M71: 7.073178864 | N71: 9.430964391 | O71: 4.258711985 | P71: 14.08139297 | Q71: 18.34010496 | S71: 2.642990777 | T71: 17.87 | U71: 20.51299078 | V71: 4.72199705 | W71: 27.55 | X71: 32.27199705 | Z71: 2.142526452 | AA71: 16.18361053 | AB71: 18.32613699 | AC71: 4.512585334 | AD71: 24.07696411 | AE71: 28.58954944 | AG71: 4.396653478 | AH71: 16.69487724 | AI71: 21.09153072 | AJ71: 6.465062789 | AK71: 25.01244614 | AL71: 31.47750893 | AN71: 4.726631467 | AO71: 6.795079803 | AP71: 11.52171127 | AQ71: 6.491602114 | AR71: 11.87255737 | AS71: 18.36415949 | AU71: 4.505756919 | AV71: 2.685056305 | AW71: 7.190813224 | AX71: 5.776278189 | AY71: 11.28953812 | AZ71: 17.06581631 | BB71: 4.092990777 | BC71: -2.09 | BD71: 2.002990777 | BE71: 5.48199705 | BF71: 4.42 | BG71: 9.90199705
D72: LPN | E72: 6.07755102 | F72: 7.734255319 | G72: 13.81180634 | H72: 11.37038123 | I72: 23.02457604 | J72: 34.39495727 | L72: 4.35 | M72: -10.61 | N72: -6.26 | O72: 7.72 | P72: 11.97 | Q72: 19.69 | S72: 3.985968586 | T72: 8.052727273 | U72: 12.03869586 | V72: 8.731366209 | W72: 24.77611702 | X72: 33.50748323 | Z72: 4.328839779 | AA72: 14.96989071 | AB72: 19.29873049 | AC72: 9.126525199 | AD72: 26.73656289 | AE72: 35.86308809 | AG72: 4.432345679 | AH72: 13.61928571 | AI72: 18.05163139 | AJ72: 9.586409966 | AK72: 25.81495586 | AL72: 35.40136583 | AN72: 6.308910134 | AO72: 14.24604938 | AP72: 20.55495952 | AQ72: 11.18996089 | AR72: 25.30019017 | AS72: 36.49015106 | AU72: 7.110100671 | AV72: 12.13324484 | AW72: 19.24334551 | AX72: 11.85712657 | AY72: 30.3670297 | AZ72: 42.22415627 | BB72: 7.645589837 | BC72: 13.36043478 | BD72: 21.00602462 | BE72: 13.6854256 | BF72: 24.54957422 | BG72: 38.23499982
D73: SPN | E73: 5.775312761 | F73: 11.4338061 | G73: 17.20911886 | H73: 10.5447812 | I73: 18.23171975 | J73: 28.77650094 | L73: 4.83 | M73: -3.82 | N73: 1.01 | O73: 11.37 | P73: -2.89 | Q73: 8.48 | S73: 4.651934985 | T73: 12.58096168 | U73: 17.23289666 | V73: 8.092173913 | W73: 17.51319347 | X73: 25.60536739 | Z73: 3.277712032 | AA73: 9.834985673 | AB73: 13.1126977 | AC73: 8.489429115 | AD73: 11.97936382 | AE73: 20.46879293 | AG73: 3.957487381 | AH73: 12.64898367 | AI73: 16.60647105 | AJ73: 10.69636462 | AK73: 19.97468951 | AL73: 30.67105412 | AN73: 4.95391924 | AO73: 13.36534685 | AP73: 18.31926609 | AQ73: 11.18284904 | AR73: 16.77837209 | AS73: 27.96122113 | AU73: 7.05188562 | AV73: 11.1897009 | AW73: 18.24158652 | AX73: 11.76954545 | AY73: 21.51376705 | AZ73: 33.28331251 | BB73: 7.800492611 | BC73: 4.677662338 | BD73: 12.47815495 | BE73: 12.88469652 | BF73: 16.07125 | BG73: 28.95594652
D74: EPN | E74: 4.499697838 | F74: -0.5103448276 | G74: 3.98935301 | H74: 5.914862249 | I74: 2.693236715 | J74: 8.608098964 | L74: 3.94 | M74: -11.92 | N74: -7.98 | O74: 5.86 | P74: -13.67 | Q74: -7.81 | S74: 2.819681698 | T74: -0.9793198529 | U74: 1.840361845 | V74: 4.156377473 | W74: 4.686503067 | X74: 8.842880541 | Z74: 2.915037594 | AA74: 0.3489319843 | AB74: 3.263969578 | AC74: 5.637462483 | AD74: 1.222006141 | AE74: 6.859468624 | AG74: 5.261317957 | AH74: 5.659427966 | AI74: 10.92074592 | AJ74: 9.934626866 | AK74: 10.99053647 | AL74: 20.92516333 | AN74: 5.898256381 | AO74: 8.007037944 | AP74: 13.90529432 | AQ74: 10.58345417 | AR74: 12.59503106 | AS74: 23.17848523 | AU74: 7.406473585 | AV74: 10.52380952 | AW74: 17.93028311 | AX74: 11.38165951 | AY74: 13.96750449 | AZ74: 25.349164 | BB74: 6.980559441 | BC74: 6.115060241 | BD74: 13.09561968 | BE74: 10.93311089 | BF74: 12.92009253 | BG74: 23.85320342
D75: SPD | E75: 4.574434157 | F75: 6.391408755 | G75: 10.96584291 | H75: 6.171719278 | I75: 2.598634413 | J75: 8.77035369 | L75: 4.902258217 | M75: -8.978408603 | N75: -4.076150386 | O75: 7.187779061 | P75: -18.94621558 | Q75: -11.75843652 | S75: 6.615863249 | T75: -16.80675337 | U75: -10.19089012 | V75: 6.491296166 | W75: -24.55302072 | X75: -18.06172455 | Z75: 6.9732584 | AA75: -12.17446497 | AB75: -5.201206568 | AC75: 7.75334552 | AD75: -24.32764277 | AE75: -16.57429725 | AG75: 6.498758626 | AH75: -9.288641213 | AI75: -2.789882587 | AJ75: 7.991092665 | AK75: -19.42155356 | AL75: -11.43046089 | AN75: 6.760813212 | AO75: -6.108379329 | AP75: 0.6524338825 | AQ75: 7.637044374 | AR75: -17.91363473 | AS75: -10.27659036 | AU75: 5.850327556 | AV75: 7.888476979 | AW75: 13.73880453 | AX75: 6.150563565 | AY75: 5.678694525 | AZ75: 11.82925809 | BB75: 4.49820191 | BC75: 10.05614866 | BD75: 14.55435057 | BE75: -0.9979180808 | BF75: 10.94783719 | BG75: 9.949919108
D76: SPMW | E76: 3.668890964 | F76: 1.269745615 | G76: 4.93863658 | H76: 4.161614039 | I76: 2.508318091 | J76: 6.66993213 | L76: 3.961062549 | M76: -8.430618732 | N76: -4.469556183 | O76: 4.204136865 | P76: -13.79394598 | Q76: -9.589809117 | S76: 4.484330702 | T76: -7.892007742 | U76: -3.40767704 | V76: 0.9535346184 | W76: -19.90737139 | X76: -18.95383677 | Z76: 4.450715897 | AA76: -15.92503309 | AB76: -11.4743172 | AC76: 1.414215671 | AD76: -20.58291087 | AE76: -19.16869519 | AG76: 4.634834976 | AH76: -18.9733654 | AI76: -14.33853043 | AJ76: 3.692827499 | AK76: -27.26563558 | AL76: -23.57280808 | AN76: 4.879664018 | AO76: -6.325327636 | AP76: -1.445663618 | AQ76: 2.758192106 | AR76: -14.60717963 | AS76: -11.84898752 | AU76: 4.345291773 | AV76: 1.145883869 | AW76: 5.491175642 | AX76: 0.9541158559 | AY76: 6.988859798 | AZ76: 7.942975654 | BB76: 3.462152292 | BC76: 3.555841922 | BD76: 7.017994214 | BE76: -3.760308193 | BF76: 7.960927732 | BG76: 4.200619539
D77: SSEH | E77: 6.278027356 | F77: 3.581850534 | G77: 9.859877889 | H77: 8.599600464 | I77: 12.68906631 | J77: 21.28866677 | L77: 5.225880116 | M77: 5.102575922 | N77: 10.32845604 | O77: 6.479039717 | P77: 12.27133046 | Q77: 18.75037017 | S77: 4.555877945 | T77: 7.24480318 | U77: 11.80068113 | V77: 4.683975464 | W77: 23.9499754 | X77: 28.63395086 | Z77: 5.918027356 | AA77: 12.98185053 | AB77: 18.89987789 | AC77: 8.359600464 | AD77: 24.90906631 | AE77: 33.26866677 | AG77: 5.516436056 | AH77: 17.9480024 | AI77: 23.46443846 | AJ77: 9.567732332 | AK77: 31.59936166 | AL77: 41.167094 | AN77: 4.988553671 | AO77: 15.56968664 | AP77: 20.55824031 | AQ77: 9.243764502 | AR77: 28.03049488 | AS77: 37.27425938 | AU77: 4.835371864 | AV77: 12.36367861 | AW77: 17.19905047 | AX77: 8.288299544 | AY77: 26.06051558 | AZ77: 34.34881513 | BB77: 4.019042155 | BC77: 13.89801535 | BD77: 17.91705751 | BE77: 8.007553087 | BF77: 30.32183226 | BG77: 38.32938535
D78: SSES | E78: 5.533227827 | F78: 6.316136364 | G78: 11.84936419 | H78: 5.432283935 | I78: 2.147936191 | J78: 7.580220127 | L78: 5.504325084 | M78: -4.797027528 | N78: 0.7072975564 | O78: 5.143640719 | P78: -16.49588734 | Q78: -11.35224662 | S78: 4.778703526 | T78: -6.215136953 | U78: -1.436433427 | V78: 3.08901256 | W78: -16.81771353 | X78: -13.72870097 | Z78: 5.083227827 | AA78: 7.656136364 | AB78: 12.73936419 | AC78: 3.722283935 | AD78: 6.897936191 | AE78: 10.62022013 | AG78: 5.181359458 | AH78: 10.20669699 | AI78: 15.38805645 | AJ78: 7.843986691 | AK78: 12.32216971 | AL78: 20.1661564 | AN78: 4.631678048 | AO78: -2.497235267 | AP78: 2.134442781 | AQ78: 6.904964474 | AR78: -7.1605143 | AS78: -0.2555498261 | AU78: 4.201663728 | AV78: -1.922604992 | AW78: 2.279058736 | AX78: 2.906270724 | AY78: -8.01840315 | AZ78: -5.112132426 | BB78: 3.743209177 | BC78: -7.844208836 | BD78: -4.100999658 | BE78: 3.347847046 | BF78: -5.267557977 | BG78: -1.919710931
D79: Industry Average | E79: =AVERAGE(E65:E78) -> 4.227390814 | F79: 10.66247919 | G79: 14.88987 | H79: 7.018466603 | I79: 13.84892781 | J79: 20.86739441 | L79: =AVERAGE(L65:L78) -> 4.499292964 | M79: 2.876559075 | N79: 7.375852039 | O79: 7.278451909 | P79: 3.870608598 | Q79: 11.14906051 | S79: 4.161148711 | T79: 7.754929218 | U79: 11.91607793 | V79: 5.55006768 | W79: 9.492968769 | X79: 15.04303645 | Z79: 4.310554553 | AA79: 10.20601484 | AB79: 14.51656939 | AC79: 6.455660591 | AD79: 12.29225916 | AE79: 18.74791976 | AG79: 5.033829368 | AH79: 12.3936624 | AI79: 17.42749177 | AJ79: 8.196370713 | AK79: 15.66892438 | AL79: 23.86529509 | AN79: 5.538254552 | AO79: 9.635230288 | AP79: 15.17348484 | AQ79: 8.338461978 | AR79: 7.983245527 | AS79: 16.3217075 | AU79: 5.412968603 | AV79: 10.62377706 | AW79: 16.03674567 | AX79: 7.491780814 | AY79: 14.88190452 | AZ79: 22.37368533 | BB79: 5.215212049 | BC79: 11.06304924 | BD79: 16.27826128 | BE79: 7.014544142 | BF79: 14.42127396 | BG79: 21.4358181
D80: *2015/16 targets in cells E57:K57 | L80: *2016/17 targets in cells U57:AA57 | S80: *2017/18 targets in cells AJ57:AP57 | Z80: *2018/19 targets in cells AY57:BE57 | AG80: *2019/20 targets in cells BN57:BT57 | AN80: *2020/21 targets in cells CC57:CI57 | AU80: *2021/22 targets in cells CR57:CX57 | BB80: *2022/23 targets in cells CR57:CX57
B82: Connections Guaranteed Standards of Performance (GSOPs) | D82: Connections Guaranteed Standard of Performance
E83: 2015/16 | L83: 2016/17 | S83: 2017/18 | Z83: 2018/19 | AG83: 2019/20 | AN83: 2020/21 | AU83: 2021/22 | BB83: 2022/23
E84: Total number of cases where the Connection GSOPs apply | F84: Total number of cases where the Connection GSOPs apply and the standard was not met | G84: Total penalties paid against the Connection GSOPs (£) (2020/21 prices) | H84: % of total cases when standard not met | I84: RAG | J84: Ranking | L84: Total number of cases where the Connection GSOPs apply | M84: Total number of cases where the Connection GSOPs apply and the standard was not met | N84: Total penalties paid against the Connection GSOPs (£) (2020/21 prices) | O84: % of total cases when standard not met | P84: RAG | Q84: Ranking | S84: Total number of cases where the Connection GSOPs apply | T84: Total number of cases where the Connection GSOPs apply and the standard was not met | U84: Total penalties paid against the Connection GSOPs (£) (2020/21 prices) | V84: % of total cases when standard not met | W84: RAG | X84: Ranking | Z84: Total number of cases where the Connection GSOPs apply | AA84: Total number of cases where the Connection GSOPs apply and the standard was not met | AB84: Total penalties paid against the Connection GSOPs (£) (2020/21 prices) | AC84: % of total cases when standard not met | AD84: RAG | AE84: Ranking | AG84: Total number of cases where the Connection GSOPs apply | AH84: Total number of cases where the Connection GSOPs apply and the standard was not met | AI84: Total penalties paid against the Connection GSOPs (£) (2020/21 prices) | AJ84: % of total cases when standard not met | AK84: RAG | AL84: Ranking | AN84: Total number of cases where the Connection GSOPs apply | AO84: Total number of cases where the Connection GSOPs apply and the standard was not met | AP84: Total penalties paid against the Connection GSOPs (£) (2020/21 prices) | AQ84: % of total cases when standard not met | AR84: RAG | AS84: Ranking | AU84: Total number of cases where the Connection GSOPs apply | AV84: Total number of cases where the Connection GSOPs apply and the standard was not met | AW84: Total penalties paid against the Connection GSOPs (£) | AX84: % of total cases when standard not met | AY84: RAG | AZ84: Ranking | BB84: Total number of cases where the Connection GSOPs apply | BC84: Total number of cases where the Connection GSOPs apply and the standard was not met | BD84: Total penalties paid against the Connection GSOPs (£) | BE84: % of total cases when standard not met | BF84: RAG | BG84: Ranking
D85: ENWL | E85: 21541 | F85: 338 | G85: 108291.618 | H85: =F85/E85 -> 0.01569100785 | I85: =IF(H85<=2%,"Green",IF(H85:H85>5%,"Red","Amber")) -> Green | J85: =RANK(H85,$H$85:$H$98,1) -> 14 | L85: 19435 | M85: 179 | N85: 56362.08989 | O85: =M85/L85 -> 0.009210187806 | P85: =IF(O85<=2%,"Green",IF(O85:O85>5%,"Red","Amber")) -> Green | Q85: =RANK(O85,O$85:O$98,1) -> 14 | S85: 19960 | T85: 59 | U85: 13254.89391 | V85: =T85/S85 -> 0.002955911824 | W85: =IF(V85<=2%,"Green",IF(V85:V85>5%,"Red","Amber")) -> Green | X85: =RANK(V85,V$85:V$98,1) -> 9 | Z85: 20857 | AA85: 22 | AB85: 7996.066648 | AC85: =AA85/Z85 -> 0.001054801745 | AD85: =IF(AC85<=2%,"Green",IF(AC85:AC85>5%,"Red","Amber")) -> Green | AE85: =RANK(AC85,AC$85:AC$98,1) -> 7 | AG85: 19630 | AH85: 23 | AI85: 8144.736755 | AJ85: =AH85/AG85 -> 0.001171676006 | AK85: =IF(AJ85<=2%,"Green",IF(AJ85:AJ85>5%,"Red","Amber")) -> Green | AL85: =RANK(AJ85,AJ$85:AJ$98,1) -> 8 | AN85: 19633 | AO85: 39 | AP85: 16575 | AQ85: =AO85/AN85 -> 0.001986451383 | AR85: =IF(AQ85<=2%,"Green",IF(AQ85:AQ85>5%,"Red","Amber")) -> Green | AS85: =RANK(AQ85,AQ$85:AQ$98,1) -> 9 | AU85: 23267 | AV85: 110 | AW85: 19450 | AX85: =AV85/AU85 -> 0.004727725964 | AY85: =IF(AX85<=2%,"Green",IF(AX85:AX85>5%,"Red","Amber")) -> Green | AZ85: =RANK(AX85,AX$85:AX$98,1) -> 9 | BB85: 24845 | BC85: 113 | BD85: 29535 | BE85: =BC85/BB85 -> 0.004548198833 | BF85: =IF(BE85<=2%,"Green",IF(BE85:BE85>5%,"Red","Amber")) -> Green | BG85: =RANK(BE85,BE$85:BE$98,1) -> 8
D86: NPgN | E86: 25025 | F86: 32 | G86: 4614.909013 | H86: =F86/E86 -> 0.001278721279 | I86: =IF(H86<=2%,"Green",IF(H86:H86>5%,"Red","Amber")) -> Green | J86: =RANK(H86,$H$85:$H$98,1) -> 9 | L86: 21151 | M86: 66 | N86: 12511.65499 | O86: =M86/L86 -> 0.003120419838 | P86: =IF(O86<=2%,"Green",IF(O86:O86>5%,"Red","Amber")) -> Green | Q86: =RANK(O86,O$85:O$98,1) -> 10 | S86: 22582 | T86: 110 | U86: 33453.43586 | V86: =T86/S86 -> 0.004871136303 | W86: =IF(V86<=2%,"Green",IF(V86:V86>5%,"Red","Amber")) -> Green | X86: =RANK(V86,V$85:V$98,1) -> 11 | Z86: 18686 | AA86: 84 | AB86: 27267.20712 | AC86: =AA86/Z86 -> 0.004495344108 | AD86: =IF(AC86<=2%,"Green",IF(AC86:AC86>5%,"Red","Amber")) -> Green | AE86: =RANK(AC86,AC$85:AC$98,1) -> 10 | AG86: 16874 | AH86: 222 | AI86: 34131.76404 | AJ86: =AH86/AG86 -> 0.01315633519 | AK86: =IF(AJ86<=2%,"Green",IF(AJ86:AJ86>5%,"Red","Amber")) -> Green | AL86: =RANK(AJ86,AJ$85:AJ$98,1) -> 14 | AN86: 15559 | AO86: 137 | AP86: 29700 | AQ86: =AO86/AN86 -> 0.008805193136 | AR86: =IF(AQ86<=2%,"Green",IF(AQ86:AQ86>5%,"Red","Amber")) -> Green | AS86: =RANK(AQ86,AQ$85:AQ$98,1) -> 13 | AU86: 13831 | AV86: 613 | AW86: 145025 | AX86: 0.0443207288 | AY86: =IF(AX86<=2%,"Green",IF(AX86:AX86>5%,"Red","Amber")) -> Amber | AZ86: 14 | BB86: 17444 | BC86: 799 | BD86: 210105 | BE86: 0.04580371474 | BF86: =IF(BE86<=2%,"Green",IF(BE86:BE86>5%,"Red","Amber")) -> Amber | BG86: 14
D87: NPgY | E87: 35257 | F87: 29 | G87: 10159.60313 | H87: 0.0008225316958 | I87: =IF(H87<=2%,"Green",IF(H87:H87>5%,"Red","Amber")) -> Green | J87: 7 | L87: 30076 | M87: 50 | N87: 18257.20843 | O87: 0.001662455114 | P87: Green | Q87: =RANK(O87,O$85:O$98,1) -> 8 | S87: 29262 | T87: 176 | U87: 44881.39017 | V87: 0.006014626478 | W87: Green | X87: =RANK(V87,V$85:V$98,1) -> 12 | Z87: 27120 | AA87: 173 | AB87: 46786.28764 | AC87: 0.006379056047 | AD87: Green | AE87: =RANK(AC87,AC$85:AC$98,1) -> 12 | AG87: 25661 | AH87: 189 | AI87: 51968.01249 | AJ87: 0.007365262461 | AK87: Green | AL87: 13 | AN87: 24923 | AO87: 186 | AP87: 47595 | AQ87: 0.007462985997 | AR87: Green | AS87: 11 | AU87: 22883 | AV87: 767 | AW87: 133345 | AX87: 0.03351833239 | AY87: =IF(AX87<=2%,"Green",IF(AX87:AX87>5%,"Red","Amber")) -> Amber | AZ87: 13 | BB87: 24785 | BC87: 597 | BD87: 181660 | BE87: 0.02408714949 | BF87: =IF(BE87<=2%,"Green",IF(BE87:BE87>5%,"Red","Amber")) -> Amber | BG87: 11
D88: WMID | E88: 36475 | F88: 0 | G88: 0 | H88: 0 | I88: Green | J88: 1 | L88: 33786 | M88: 0 | N88: 0 | O88: 0 | P88: Green | Q88: 1 | S88: 37789 | T88: 0 | U88: 0 | V88: 0 | W88: Green | X88: 1 | Z88: 36158 | AA88: 1 | AB88: 161.1610332 | AC88: 2.765639692e-05 | AD88: Green | AE88: 3 | AG88: 35222 | AH88: 0 | AI88: 0 | AJ88: 0 | AK88: Green | AL88: 1 | AN88: 36632 | AO88: 1 | AP88: 240 | AQ88: 2.72985368e-05 | AR88: Green | AS88: 2 | AU88: 39994 | AV88: 6 | AW88: 1040 | AX88: 0.0001500225034 | AY88: Green | AZ88: 3 | BB88: 36803 | BC88: 7 | BD88: 585 | BE88: 0.0001902018857 | BF88: =IF(BE88<=2%,"Green",IF(BE88:BE88>5%,"Red","Amber")) -> Green | BG88: 3
D89: EMID | E89: 36477 | F89: 3 | G89: 294.8099124 | H89: 8.224360556e-05 | I89: Green | J89: 4 | L89: 35861 | M89: 0 | N89: 0 | O89: 0 | P89: Green | Q89: 1 | S89: 37198 | T89: 0 | U89: 0 | V89: 0 | W89: Green | X89: 1 | Z89: 38018 | AA89: 0 | AB89: 0 | AC89: 0 | AD89: Green | AE89: 1 | AG89: 37309 | AH89: 1 | AI89: 241.6835832 | AJ89: 2.680318422e-05 | AK89: Green | AL89: 3 | AN89: 37222 | AO89: 1 | AP89: 0 | AQ89: 2.686583203e-05 | AR89: Green | AS89: 1 | AU89: 41395 | AV89: 1 | AW89: 120 | AX89: 2.415750695e-05 | AY89: Green | AZ89: 2 | BB89: 35261 | BC89: 15 | BD89: 1935 | BE89: 0.0004253991662 | BF89: Green | BG89: 6
D90: SWALES | E90: 17189 | F90: 0 | G90: 0 | H90: 0 | I90: Green | J90: 1 | L90: 17373 | M90: 0 | N90: 0 | O90: 0 | P90: Green | Q90: 1 | S90: 16412 | T90: 0 | U90: 0 | V90: 0 | W90: Green | X90: 1 | Z90: 15416 | AA90: 0 | AB90: 0 | AC90: 0 | AD90: Green | AE90: 1 | AG90: 15766 | AH90: 0 | AI90: 0 | AJ90: 0 | AK90: Green | AL90: 1 | AN90: 16693 | AO90: 1 | AP90: 15 | AQ90: 5.990534955e-05 | AR90: Green | AS90: 3 | AU90: 17926 | AV90: 0 | AW90: 0 | AX90: 0 | AY90: Green | AZ90: 1 | BB90: 16981 | BC90: 1 | BD90: 65 | BE90: 5.888934692e-05 | BF90: Green | BG90: 1
D91: SWEST | E91: 34727 | F91: 1 | G91: 73.7024781 | H91: 2.879603767e-05 | I91: Green | J91: 3 | L91: 35009 | M91: 0 | N91: 0 | O91: 0 | P91: Green | Q91: 1 | S91: 36429 | T91: 0 | U91: 0 | V91: 0 | W91: Green | X91: 1 | Z91: 35922 | AA91: 1 | AB91: 37.19100767 | AC91: 2.783809365e-05 | AD91: Green | AE91: 4 | AG91: 35406 | AH91: 7 | AI91: 4114.663005 | AJ91: 0.0001977066034 | AK91: Green | AL91: 4 | AN91: 36469 | AO91: 5 | AP91: 280 | AQ91: 0.0001371027448 | AR91: Green | AS91: 4 | AU91: 41978 | AV91: 10 | AW91: 7015 | AX91: 0.00023822002 | AY91: Green | AZ91: 4 | BB91: 38340 | BC91: 7 | BD91: 2150 | BE91: 0.0001825769431 | BF91: Green | BG91: 2
D92: LPN | E92: 23103 | F92: 59 | G92: 22620.99135 | H92: 0.002553780894 | I92: Green | J92: 11 | L92: 24042 | M92: 33 | N92: 3850.249762 | O92: 0.001372597954 | P92: Green | Q92: 7 | S92: 22392 | T92: 20 | U92: 7499.395398 | V92: 0.0008931761343 | W92: Green | X92: 6 | Z92: 21455 | AA92: 4 | AB92: 508.2771048 | AC92: 0.000186436728 | AD92: Green | AE92: 5 | AG92: 20903 | AH92: 19 | AI92: 10102.37378 | AJ92: 0.0009089604363 | AK92: Green | AL92: 6 | AN92: 19344 | AO92: 11 | AP92: 2820 | AQ92: 0.0005686517783 | AR92: Green | AS92: 6 | AU92: 21287 | AV92: 6 | AW92: 3050 | AX92: 0.0002818621694 | AY92: Green | AZ92: 5 | BB92: 17690 | BC92: 4 | BD92: 330 | BE92: 0.00022611645 | BF92: Green | BG92: 4
D93: SPN | E93: 28093 | F93: 106 | G93: 50009.9661 | H93: 0.003773181931 | I93: Green | J93: 12 | L93: 28894 | M93: 148 | N93: 42803.37903 | O93: 0.005122170693 | P93: Green | Q93: 13 | S93: 29614 | T93: 65 | U93: 23386.10439 | V93: 0.002194907814 | W93: Green | X93: 7 | Z93: 28627 | AA93: 42 | AB93: 17027.28301 | AC93: 0.0014671464 | AD93: Green | AE93: 9 | AG93: 27565 | AH93: 45 | AI93: 8048.063322 | AJ93: 0.001632504988 | AK93: Green | AL93: 9 | AN93: 26971 | AO93: 18 | AP93: 3095 | AQ93: 0.000667383486 | AR93: Green | AS93: 7 | AU93: 28487 | AV93: 25 | AW93: 3650 | AX93: 0.0008775932882 | AY93: Green | AZ93: 7 | BB93: 24019 | BC93: 10 | BD93: 1835 | BE93: 0.0004163370665 | BF93: Green | BG93: 5
D94: EPN | E94: 48149 | F94: 183 | G94: 53031.7677 | H94: 0.003800701988 | I94: Green | J94: 13 | L94: 51074 | M94: 241 | N94: 64029.45474 | O94: 0.004718643537 | P94: Green | Q94: 12 | S94: 51254 | T94: 113 | U94: 21195.05445 | V94: 0.002204705974 | W94: Green | X94: 8 | Z94: 52745 | AA94: 70 | AB94: 10884.56824 | AC94: 0.001327140013 | AD94: Green | AE94: 8 | AG94: 48337 | AH94: 55 | AI94: 15473.79142 | AJ94: 0.001137844715 | AK94: Green | AL94: 7 | AN94: 47039 | AO94: 19 | AP94: 2595 | AQ94: 0.0004039201514 | AR94: Green | AS94: 5 | AU94: 49445 | AV94: 15 | AW94: 1705 | AX94: 0.0003033673779 | AY94: Green | AZ94: 6 | BB94: 42789 | BC94: 20 | BD94: 3295 | BE94: 0.0004674098483 | BF94: Green | BG94: 7
D95: SPD | E95: 14518 | F95: 23 | G95: 2868.727224 | H95: 0.001584240253 | I95: Green | J95: 10 | L95: 14270 | M95: 54 | N95: 10497.06648 | O95: 0.003784162579 | P95: Green | Q95: 11 | S95: 13973 | T95: 55 | U95: 13957.56298 | V95: 0.003936162599 | W95: Green | X95: 10 | Z95: 12718 | AA95: 133 | AB95: 63082.1475 | AC95: 0.01045761912 | AD95: Green | AE95: 13 | AG95: 12813 | AH95: 70 | AI95: 27044.39296 | AJ95: =AH95/AG95 -> 0.005463201436 | AK95: Green | AL95: =RANK(AJ95,AJ$85:AJ$98,1) -> 12 | AN95: 11603 | AO95: 101 | AP95: 21470 | AQ95: 0.00870464535 | AR95: Green | AS95: 12 | AU95: 14103 | AV95: 166 | AW95: 39480 | AX95: 0.01177054527 | AY95: Green | AZ95: 11 | BB95: 13396 | BC95: 484 | BD95: 215545 | BE95: 0.03613018812 | BF95: Amber | BG95: 13
D96: SPMW | E96: 17438 | F96: 12 | G96: 10913.63618 | H96: 0.000688152311 | I96: Green | J96: 5 | L96: 16411 | M96: 18 | N96: 4121.954134 | O96: 0.0010968253 | P96: Green | Q96: 6 | S96: 15272 | T96: 96 | U96: 32591.06927 | V96: 0.00628601362 | W96: Green | X96: 13 | Z96: 13664 | AA96: 64 | AB96: 51627.31714 | AC96: 0.004683840749 | AD96: Green | AE96: 11 | AG96: 12464 | AH96: 35 | AI96: 8712.693176 | AJ96: =AH96/AG96 -> 0.002808087291 | AK96: Green | AL96: =RANK(AJ96,AJ$85:AJ$98,1) -> 10 | AN96: 12471 | AO96: 37 | AP96: 15730 | AQ96: 0.002966883169 | AR96: Green | AS96: 10 | AU96: 13964 | AV96: 81 | AW96: 16150 | AX96: 0.005800630192 | AY96: Green | AZ96: 10 | BB96: 12617 | BC96: 215 | BD96: 72795 | BE96: 0.01704050091 | BF96: Green | BG96: 10
D97: SSEH | E97: 17111 | F97: 16 | G97: 9603.999838 | H97: 0.000935071007 | I97: Green | J97: 8 | L97: 16147 | M97: 10 | N97: 7541.453063 | O97: 0.0006193100886 | P97: Green | Q97: 5 | S97: 15972 | T97: 14 | U97: 53460.34079 | V97: 0.0008765339344 | W97: Green | X97: 5 | Z97: 16295 | AA97: 17 | AB97: 18415.7473 | AC97: 0.001043264805 | AD97: Green | AE97: 6 | AG97: 14958 | AH97: 12 | AI97: 5897.079431 | AJ97: =AH97/AG97 -> 0.0008022462896 | AK97: Green | AL97: =RANK(AJ97,AJ$85:AJ$98,1) -> 5 | AN97: 13546 | AO97: 15 | AP97: 16425 | AQ97: 0.00110733796 | AR97: Green | AS97: 8 | AU97: 16036 | AV97: 48 | AW97: 6695 | AX97: 0.002993265153 | AY97: Green | AZ97: 8 | BB97: 14855 | BC97: 199 | BD97: 59145 | BE97: 0.01339616291 | BF97: Green | BG97: 9
D98: SSES | E98: 50730 | F98: 38 | G98: 13527.23944 | H98: 0.0007490636704 | I98: Green | J98: 6 | L98: 46064 | M98: 121 | N98: 43711.26925 | O98: 0.002626780132 | P98: Green | Q98: 9 | S98: 48229 | T98: 307 | U98: 83042.70883 | V98: 0.006365464762 | W98: Green | X98: 14 | Z98: 49956 | AA98: 869 | AB98: 741954.4044 | AC98: 0.01739530787 | AD98: Green | AE98: 14 | AG98: 46817 | AH98: 229 | AI98: 81840.10337 | AJ98: =AH98/AG98 -> 0.004891385608 | AK98: Green | AL98: =RANK(AJ98,AJ$85:AJ$98,1) -> 11 | AN98: 46137 | AO98: 416 | AP98: 85770 | AQ98: 0.009016624401 | AR98: Green | AS98: 14 | AU98: 52630 | AV98: 862 | AW98: 252015 | AX98: 0.01637849135 | AY98: Green | AZ98: 12 | BB98: 48763 | BC98: 1626 | BD98: 590390 | BE98: 0.03334495417 | BF98: Amber | BG98: 12
D99: Total | E99: =SUM(E85:E98) -> 405833 | F99: =SUM(F85:F98) -> 840 | G99: =SUM(G85:G98) -> 286010.9704 | L99: =SUM(L85:L98) -> 389593 | M99: =SUM(M85:M98) -> 920 | N99: =SUM(N85:N98) -> 263685.7798 | S99: =SUM(S85:S98) -> 396338 | T99: =SUM(T85:T98) -> 1015 | U99: =SUM(U85:U98) -> 326721.9561 | Z99: =SUM(Z85:Z98) -> 387637 | AA99: =SUM(AA85:AA98) -> 1480 | AB99: =SUM(AB85:AB98) -> 985747.6582 | AG99: =SUM(AG85:AG98) -> 369725 | AH99: =SUM(AH85:AH98) -> 907 | AI99: =SUM(AI85:AI98) -> 255719.3573 | AN99: =SUM(AN85:AN98) -> 364242 | AO99: =SUM(AO85:AO98) -> 987 | AP99: =SUM(AP85:AP98) -> 242310 | AU99: =SUM(AU85:AU98) -> 397226 | AV99: =SUM(AV85:AV98) -> 2710 | AW99: =SUM(AW85:AW98) -> 628740 | BB99: =SUM(BB85:BB98) -> 368588 | BC99: =SUM(BC85:BC98) -> 4097 | BD99: =SUM(BD85:BD98) -> 1369370

Sheet Ch2 outputs - cust sat
A1: Chapter 2 - Customer Satisfaction
C2: Performance against the outputs that DNOs are incentivised to deliver under RIIO-ED1.
B4: Customer Service: maintaining high levels of customer satisfaction and improving service where required. Undertaking effective stakeholder engagement and reflecting stakeholders' views in the day-to-day operation of their business.
B5: Incentive measure | F5: Incentive type
B6: Customer satisfaction survey: a survey under the Broad Measure of Customer Satisfaction (BMCS) of three customer types (connections, interruptions, general enquiries) to drive DNOs to deliver good customer service. | F6: Financial: reward or penalty of +/- 1% of base revenue which feeds into the overall reward or penalty under BMCS of +/- 1.5% of base revenues.
B7: Complaints metric: part of the Broad Measure of Customer Satisfaction measuring DNOs' complaint handling procedures to drive DNOs to deliver good customer service. | F7: Financial: penalty only of 0.5% of base revenue which feeds into the overall reward or penalty under BMCS of +/- 1.5% of base revenues.
B8: Stakeholder engagement and customer vulnerability: annual panel assessment with reward for DNOs who demonstrate strong engagement with all stakeholders and address customer vulnerability issues. | F8: Financial: reward only of 0.5% of base revenue which feeds into the reward or penalty under BMCS of +/- 1.5% of base revenues.
B11: Customer satisfaction survey
D12: Customer satisfaction scores (out of 10)
E13: 2014/15 | F13: 2015/16 | G13: 2016/17 | H13: 2017/18 | I13: 2018/19 | J13: 2019/20 | K13: 2020/21 | L13: 2021/22 | M13: 2022/23 | O13: 2012/13 - baseline
D14: Interruptions | E14: 8.624285714 | F14: =AVERAGE(E23:E36) -> 8.745 | G14: =AVERAGE(K23:K36) -> 8.798335714 | H14: =AVERAGE(Q23:Q36) -> 8.839011901 | I14: =AVERAGE(W23:W36) -> 8.950271429 | J14: =AVERAGE(AC23:AC36) -> 9.015122347 | K14: =AVERAGE(AI23:AI36) -> 9.100814286 | L14: =AVERAGE(AO23:AO36) -> 8.927121429 | M14: =AVERAGE(AU23:AU36) -> 9.0212 | O14: 8.2
D15: Connections | E15: 8.16 | F15: =AVERAGE(F23:F36) -> 8.320714286 | G15: =AVERAGE(L23:L36) -> 8.485342857 | H15: =AVERAGE(R23:R36) -> 8.55074279 | I15: =AVERAGE(X23:X36) -> 8.6924 | J15: =AVERAGE(AD23:AD36) -> 8.952098052 | K15: =AVERAGE(AJ23:AJ36) -> 9.065214286 | L15: =AVERAGE(AP23:AP36) -> 8.94835 | M15: =AVERAGE(AV23:AV36) -> 8.95795 | O15: 7.76
D16: General Enquiries | E16: 8.725714286 | F16: =AVERAGE(G23:G36) -> 8.974285714 | G16: =AVERAGE(M23:M36) -> 9.09265 | H16: =AVERAGE(S23:S36) -> 9.054650962 | I16: =AVERAGE(Y23:Y36) -> 9.1381 | J16: =AVERAGE(AE23:AE36) -> 9.27475345 | K16: =AVERAGE(AK23:AK36) -> 9.390821429 | L16: =AVERAGE(AQ23:AQ36) -> 9.300321429 | M16: =AVERAGE(AW23:AW36) -> 9.314121429 | O16: 8.05
D19: Annual customer satisfaction score by DNO per category (out of 10)
E20: 2015/16 | K20: 2016/17 | Q20: 2017/18 | W20: 2018/19 | AC20: 2019/20 | AI20: 2020/21 | AO20: 2021/22 | AU20: 2022/23
E21: Interruptions | F21: Connections | G21: General Enquiries | H21: Overall | I21: RAG | J21: Ranking | K21: Interruptions | L21: Connections | M21: General Enquiries | N21: Overall | O21: RAG | P21: Ranking | Q21: Interruptions | R21: Connections | S21: General Enquiries | T21: Overall | U21: RAG | V21: Ranking | W21: Interruptions | X21: Connections | Y21: General Enquiries | Z21: Overall | AA21: RAG | AB21: Ranking | AC21: Interruptions | AD21: Connections | AE21: General Enquiries | AF21: Overall | AG21: RAG | AH21: Ranking | AI21: Interruptions | AJ21: Connections | AK21: General Enquiries | AL21: Overall | AM21: RAG | AN21: Ranking | AO21: Interruptions | AP21: Connections | AQ21: General Enquiries | AR21: Overall | AS21: RAG | AT21: Ranking | AU21: Interruptions | AV21: Connections | AW21: General Enquiries | AX21: Overall | AY21: RAG | AZ21: Ranking
E22: 0.3 | F22: 0.5 | G22: 0.2 | K22: 0.3 | L22: 0.5 | M22: 0.2 | Q22: 0.3 | R22: 0.5 | S22: 0.2 | W22: 0.3 | X22: 0.5 | Y22: 0.2 | AC22: 0.3 | AD22: 0.5 | AE22: 0.2 | AI22: 0.3 | AJ22: 0.5 | AK22: 0.2 | AO22: 0.3 | AP22: 0.5 | AQ22: 0.2 | AU22: 0.3 | AV22: 0.5 | AW22: 0.2
D23: ENWL | E23: 8.08 | F23: 7.75 | G23: 8.52 | H23: =(E23*E$22)+(F23*F$22)+(G23*G$22) -> 8.003 | I23: =IF(H23<7.79,"Red",IF(H23>=8.2,"Green","Amber")) -> Amber | J23: =RANK(H23,H$23:H$36,0) -> 14 | K23: 8.1788 | L23: 8.2403 | M23: 8.7478 | N23: =(K23*K$22)+(L23*L$22)+(M23*M$22) -> 8.32335 | O23: =IF(N23<7.79,"Red",IF(N23>=8.2,"Green","Amber")) -> Green | P23: =RANK(N23,N$23:N$36,0) -> 14 | Q23: 8.3228 | R23: 8.3476 | S23: 8.9806 | T23: =(Q23*Q$22)+(R23*R$22)+(S23*S$22) -> 8.46676 | U23: =IF(T23<7.79,"Red",IF(T23>=8.2,"Green","Amber")) -> Green | V23: =RANK(T23,T$23:T$36,0) -> 13 | W23: 8.6774 | X23: 8.4408 | Y23: 9.1174 | Z23: =(W23*W$22)+(X23*X$22)+(Y23*Y$22) -> 8.6471 | AA23: =IF(Z23<7.79,"Red",IF(Z23>=8.2,"Green","Amber")) -> Green | AB23: =RANK(Z23,Z$23:Z$36,0) -> 12 | AC23: 8.7385 | AD23: 8.764 | AE23: 9.2297 | AF23: =(AC23*AC$22)+(AD23*AD$22)+(AE23*AE$22) -> 8.84949 | AG23: =IF(AF23<7.79,"Red",IF(AF23>=8.2,"Green","Amber")) -> Green | AH23: =RANK(AF23,AF$23:AF$36,0) -> 12 | AI23: 8.9091 | AJ23: 9.0947 | AK23: 9.3011 | AL23: =(AI23*AI$22)+(AJ23*AJ$22)+(AK23*AK$22) -> 9.0803 | AM23: =IF(AL23<7.79,"Red",IF(AL23>=8.2,"Green","Amber")) -> Green | AN23: =RANK(AL23,AL$23:AL$36,0) -> 12 | AO23: 8.7112 | AP23: 8.8314 | AQ23: 9.2164 | AR23: =(AO23*AO$22)+(AP23*AP$22)+(AQ23*AQ$22) -> 8.87234 | AS23: =IF(AR23<7.79,"Red",IF(AR23>=8.2,"Green","Amber")) -> Green | AT23: =RANK(AR23,AR$23:AR$36,0) -> 12 | AU23: 8.9441 | AV23: 8.7815 | AW23: 9.3104 | AX23: =(AU23*AU$22)+(AV23*AV$22)+(AW23*AW$22) -> 8.93606 | AY23: =IF(AX23<7.79,"Red",IF(AX23>=8.2,"Green","Amber")) -> Green | AZ23: =RANK(AX23,AX$23:AX$36,0) -> 9
D24: NPgN | E24: 8.68 | F24: 8.03 | G24: 8.93 | H24: =(E24*E$22)+(F24*F$22)+(G24*G$22) -> 8.405 | I24: =IF(H24<7.79,"Red",IF(H24>=8.2,"Green","Amber")) -> Green | J24: =RANK(H24,H$23:H$36,0) -> 10 | K24: 8.8098 | L24: 8.4809 | M24: 9.0074 | N24: =(K24*K$22)+(L24*L$22)+(M24*M$22) -> 8.68487 | O24: =IF(N24<7.79,"Red",IF(N24>=8.2,"Green","Amber")) -> Green | P24: =RANK(N24,N$23:N$36,0) -> 8 | Q24: 8.77 | R24: 8.55 | S24: 9.05 | T24: =(Q24*Q$22)+(R24*R$22)+(S24*S$22) -> 8.716 | U24: =IF(T24<7.79,"Red",IF(T24>=8.2,"Green","Amber")) -> Green | V24: =RANK(T24,T$23:T$36,0) -> 10 | W24: 8.84 | X24: 8.55 | Y24: 9.07 | Z24: =(W24*W$22)+(X24*X$22)+(Y24*Y$22) -> 8.741 | AA24: =IF(Z24<7.79,"Red",IF(Z24>=8.2,"Green","Amber")) -> Green | AB24: =RANK(Z24,Z$23:Z$36,0) -> 10 | AC24: 8.9274 | AD24: 8.9743 | AE24: 9.2922 | AF24: =(AC24*AC$22)+(AD24*AD$22)+(AE24*AE$22) -> 9.02381 | AG24: =IF(AF24<7.79,"Red",IF(AF24>=8.2,"Green","Amber")) -> Green | AH24: =RANK(AF24,AF$23:AF$36,0) -> 10 | AI24: 9.13 | AJ24: 8.99 | AK24: 9.52 | AL24: =(AI24*AI$22)+(AJ24*AJ$22)+(AK24*AK$22) -> 9.138 | AM24: =IF(AL24<7.79,"Red",IF(AL24>=8.2,"Green","Amber")) -> Green | AN24: =RANK(AL24,AL$23:AL$36,0) -> 9 | AO24: 8.7839 | AP24: 8.7411 | AQ24: 9.352 | AR24: =(AO24*AO$22)+(AP24*AP$22)+(AQ24*AQ$22) -> 8.87612 | AS24: =IF(AR24<7.79,"Red",IF(AR24>=8.2,"Green","Amber")) -> Green | AT24: =RANK(AR24,AR$23:AR$36,0) -> 11 | AU24: 8.8494 | AV24: 8.601 | AW24: 9.4621 | AX24: =(AU24*AU$22)+(AV24*AV$22)+(AW24*AW$22) -> 8.84774 | AY24: =IF(AX24<7.79,"Red",IF(AX24>=8.2,"Green","Amber")) -> Green | AZ24: =RANK(AX24,AX$23:AX$36,0) -> 12
D25: NPgY | E25: 8.69 | F25: 7.95 | G25: 8.76 | H25: 8.334 | I25: =IF(H25<7.79,"Red",IF(H25>=8.2,"Green","Amber")) -> Green | J25: =RANK(H25,H$23:H$36,0) -> 12 | K25: 8.7253 | L25: 8.4332 | M25: 8.7674 | N25: 8.58767 | O25: Green | P25: 12 | Q25: 8.73 | R25: 8.34 | S25: 8.84 | T25: =(Q25*Q$22)+(R25*R$22)+(S25*S$22) -> 8.557 | U25: =IF(T25<7.79,"Red",IF(T25>=8.2,"Green","Amber")) -> Green | V25: =RANK(T25,T$23:T$36,0) -> 12 | W25: 8.79 | X25: 8.44 | Y25: 8.8 | Z25: =(W25*W$22)+(X25*X$22)+(Y25*Y$22) -> 8.617 | AA25: =IF(Z25<7.79,"Red",IF(Z25>=8.2,"Green","Amber")) -> Green | AB25: =RANK(Z25,Z$23:Z$36,0) -> 13 | AC25: 8.8714 | AD25: 8.7422 | AE25: 8.8167 | AF25: =(AC25*AC$22)+(AD25*AD$22)+(AE25*AE$22) -> 8.79586 | AG25: =IF(AF25<7.79,"Red",IF(AF25>=8.2,"Green","Amber")) -> Green | AH25: =RANK(AF25,AF$23:AF$36,0) -> 13 | AI25: 9.01 | AJ25: 8.82 | AK25: 9.28 | AL25: =(AI25*AI$22)+(AJ25*AJ$22)+(AK25*AK$22) -> 8.969 | AM25: =IF(AL25<7.79,"Red",IF(AL25>=8.2,"Green","Amber")) -> Green | AN25: 13 | AO25: 8.7929 | AP25: 8.5398 | AQ25: 9.3308 | AR25: 8.77393 | AS25: =IF(AR25<7.79,"Red",IF(AR25>=8.2,"Green","Amber")) -> Green | AT25: 13 | AU25: 8.7759 | AV25: 8.618 | AW25: 9.3388 | AX25: 8.80953 | AY25: =IF(AX25<7.79,"Red",IF(AX25>=8.2,"Green","Amber")) -> Green | AZ25: 13
D26: WMID | E26: 8.88 | F26: 8.7 | G26: 9.14 | H26: 8.842 | I26: Green | J26: 4 | K26: 8.98 | L26: 8.66 | M26: 9.2 | N26: 8.864 | O26: Green | P26: 4 | Q26: 8.9862 | R26: 8.7127 | S26: 9.2665 | T26: 8.90551 | U26: Green | V26: 2 | W26: 9.0773 | X26: 8.8675 | Y26: 9.3786 | Z26: 9.03266 | AA26: Green | AB26: 3 | AC26: 9.0828 | AD26: 8.9723 | AE26: 9.4834 | AF26: 9.10767 | AG26: Green | AH26: 7 | AI26: 9.126 | AJ26: 9.0375 | AK26: 9.3295 | AL26: 9.12245 | AM26: Green | AN26: 11 | AO26: 8.9254 | AP26: 8.8797 | AQ26: 9.1878 | AR26: 8.95503 | AS26: Green | AT26: 9 | AU26: 8.9782 | AV26: 8.6927 | AW26: 9.1139 | AX26: 8.86259 | AY26: Green | AZ26: 11
D27: EMID | E27: 8.97 | F27: 8.79 | G27: 9.35 | H27: 8.956 | I27: Green | J27: 2 | K27: 9.02 | L27: 8.78 | M27: 9.32 | N27: 8.96 | O27: =IF(N27<7.79,"Red",IF(N27>=8.2,"Green","Amber")) -> Green | P27: 1 | Q27: 8.8675 | R27: 8.8073 | S27: 9.1944 | T27: 8.90278 | U27: Green | V27: 3 | W27: 9.031 | X27: 8.872 | Y27: 9.2093 | Z27: 8.98716 | AA27: Green | AB27: 5 | AC27: 9.0698 | AD27: 9.0133 | AE27: 9.492 | AF27: 9.12599 | AG27: Green | AH27: 6 | AI27: 9.0932 | AJ27: 9.1307 | AK27: 9.5006 | AL27: 9.19343 | AM27: Green | AN27: 8 | AO27: 9.0075 | AP27: 9.0996 | AQ27: 9.3442 | AR27: 9.12089 | AS27: Green | AT27: 6 | AU27: 8.975 | AV27: 8.9461 | AW27: 9.3829 | AX27: 9.04213 | AY27: Green | AZ27: 8
D28: SWALES | E28: 9.14 | F28: 8.75 | G28: 9.29 | H28: 8.975 | I28: Green | J28: 1 | K28: 9.07 | L28: 8.68 | M28: 9.15 | N28: 8.891 | O28: Green | P28: 3 | Q28: 9.1037 | R28: 8.9076 | S28: 9.2067 | T28: 9.02625 | U28: Green | V28: 1 | W28: 9.234 | X28: 8.9812 | Y28: 9.3519 | Z28: 9.13118 | AA28: Green | AB28: 1 | AC28: 9.1762 | AD28: 9.0532 | AE28: 9.4124 | AF28: 9.16194 | AG28: Green | AH28: 3 | AI28: 9.2447 | AJ28: 9.1721 | AK28: 9.5983 | AL28: 9.27912 | AM28: Green | AN28: 2 | AO28: 9.1873 | AP28: 9.0447 | AQ28: 9.4076 | AR28: 9.16006 | AS28: Green | AT28: 4 | AU28: 9.2009 | AV28: 9.1336 | AW28: 9.3898 | AX28: 9.20503 | AY28: Green | AZ28: 4
D29: SWEST | E29: 8.86 | F29: 8.73 | G29: 9.18 | H29: 8.859 | I29: Green | J29: 3 | K29: 8.92 | L29: 8.77 | M29: 9.24 | N29: 8.909 | O29: Green | P29: 2 | Q29: 8.8683 | R29: 8.7658 | S29: 9.2888 | T29: 8.90115 | U29: Green | V29: 4 | W29: 9.0012 | X29: 8.8419 | Y29: 9.2781 | Z29: 8.97693 | AA29: Green | AB29: 6 | AC29: 9.1017 | AD29: 8.9498 | AE29: 9.3491 | AF29: 9.07523 | AG29: Green | AH29: 8 | AI29: 9.1473 | AJ29: 9.0115 | AK29: 9.4372 | AL29: 9.13738 | AM29: Green | AN29: 10 | AO29: 8.9425 | AP29: 8.8229 | AQ29: 9.0924 | AR29: 8.91268 | AS29: Green | AT29: 10 | AU29: 8.981 | AV29: 8.8379 | AW29: 9.0064 | AX29: 8.91453 | AY29: Green | AZ29: 10
D30: LPN | E30: 8.52 | F30: 8.13 | G30: 8.86 | H30: 8.393 | I30: Green | J30: 11 | K30: 8.5501 | L30: 8.4166 | M30: 9.3043 | N30: 8.63419 | O30: Green | P30: 10 | Q30: 8.77 | R30: 8.7 | S30: 8.84 | T30: 8.749 | U30: Green | V30: 6 | W30: 8.7892 | X30: 8.6432 | Y30: 9.1181 | Z30: 8.78198 | AA30: Green | AB30: 9 | AC30: 9.034246575 | AD30: 8.948672566 | AE30: 9.333333333 | AF30: 9.051276922 | AG30: Green | AH30: 9 | AI30: 9.2424 | AJ30: 9.066 | AK30: 9.5727 | AL30: 9.22026 | AM30: Green | AN30: 6 | AO30: 9.165 | AP30: 9.2821 | AQ30: 9.7232 | AR30: 9.33519 | AS30: Green | AT30: 1 | AU30: 9.1886 | AV30: 9.3116 | AW30: 9.7368 | AX30: 9.35974 | AY30: Green | AZ30: 3
D31: SPN | E31: 8.63 | F31: 8.34 | G31: 9.12 | H31: 8.583 | I31: Green | J31: 8 | K31: 8.7693 | L31: 8.4119 | M31: 9.2622 | N31: 8.68918 | O31: Green | P31: 7 | Q31: 8.793373494 | R31: 8.503448276 | S31: 9.254901961 | T31: 8.740716578 | U31: Green | V31: 8 | W31: 8.951 | X31: 8.4701 | Y31: 9.0971 | Z31: 8.73977 | AA31: Green | AB31: 11 | AC31: 8.989037759 | AD31: 8.847392638 | AE31: 9.28407225 | AF31: 8.977222097 | AG31: Green | AH31: 11 | AI31: 9.1478 | AJ31: 9.1246 | AK31: 9.4942 | AL31: 9.20548 | AM31: Green | AN31: 7 | AO31: 9.0452 | AP31: 9.1265 | AQ31: 9.6233 | AR31: 9.20147 | AS31: Green | AT31: 3 | AU31: 9.1763 | AV31: 9.3975 | AW31: 9.6395 | AX31: 9.37954 | AY31: Green | AZ31: 2
D32: EPN | E32: 8.88 | F32: 8.1 | G32: 9.16 | H32: 8.546 | I32: Green | J32: 9 | K32: 8.8178 | L32: 8.18 | M32: 9.3541 | N32: 8.60616 | O32: Green | P32: 11 | Q32: 8.883293124 | R32: 8.429350791 | S32: 9.228611501 | T32: 8.725385633 | U32: Green | V32: 9 | W32: 9.0434 | X32: 8.5071 | Y32: 9.2266 | Z32: 8.81189 | AA32: Green | AB32: 8 | AC32: 9.125228519 | AD32: 9.035307517 | AE32: 9.450242718 | AF32: 9.145270858 | AG32: Green | AH32: 5 | AI32: 9.1745 | AJ32: 9.3531 | AK32: 9.5418 | AL32: 9.33726 | AM32: Green | AN32: =RANK(AL32,AL$23:AL$36,0) -> 1 | AO32: 9.1693 | AP32: 9.3071 | AQ32: 9.634 | AR32: 9.33114 | AS32: Green | AT32: =RANK(AR32,AR$23:AR$36,0) -> 2 | AU32: 9.2691 | AV32: 9.3896 | AW32: 9.6663 | AX32: 9.40879 | AY32: Green | AZ32: =RANK(AX32,AX$23:AX$36,0) -> 1
D33: SPD | E33: 8.79 | F33: 8.36 | G33: 8.84 | H33: 8.585 | I33: Green | J33: 7 | K33: 8.7406 | L33: 8.4311 | M33: 9.045 | N33: 8.64673 | O33: Green | P33: 9 | Q33: 8.822 | R33: 8.5213 | S33: 8.9478 | T33: 8.69681 | U33: Green | V33: 11 | W33: 8.8902 | X33: 8.8173 | Y33: 9.2968 | Z33: 8.93507 | AA33: Green | AB33: 7 | AC33: 9.1328 | AD33: 9.1242 | AE33: 9.3218 | AF33: 9.1663 | AG33: Green | AH33: 2 | AI33: 9.1794 | AJ33: 9.1582 | AK33: 9.4667 | AL33: 9.22626 | AM33: Green | AN33: 5 | AO33: 9.031 | AP33: 9.1226 | AQ33: 9.3794 | AR33: 9.14648 | AS33: Green | AT33: =RANK(AR33,AR$23:AR$36,0) -> 5 | AU33: 9.1016 | AV33: 9.1042 | AW33: 9.0978 | AX33: 9.10214 | AY33: Green | AZ33: =RANK(AX33,AX$23:AX$36,0) -> 7
D34: SPMW | E34: 8.86 | F34: 8.43 | G34: 9.24 | H34: 8.721 | I34: Green | J34: 6 | K34: 8.735 | L34: 8.6808 | M34: 9.2989 | N34: 8.82068 | O34: =IF(N34<7.79,"Red",IF(N34>=8.2,"Green","Amber")) -> Green | P34: 6 | Q34: 8.859 | R34: 8.4253 | S34: 9.3868 | T34: 8.74771 | U34: Green | V34: 7 | W34: 8.9991 | X34: 8.8825 | Y34: 9.3295 | Z34: 9.00688 | AA34: Green | AB34: 4 | AC34: 9.0626 | AD34: 9.1047 | AE34: 9.4416 | AF34: 9.15945 | AG34: Green | AH34: 4 | AI34: 9.197 | AJ34: 9.1046 | AK34: 9.6294 | AL34: 9.23728 | AM34: Green | AN34: 4 | AO34: 8.9585 | AP34: 9.0094 | AQ34: 9.4834 | AR34: 9.08893 | AS34: Green | AT34: 8 | AU34: 9.1567 | AV34: 9.1476 | AW34: 9.403 | AX34: 9.20141 | AY34: Green | AZ34: 5
D35: SSEH | E35: 9.06 | F35: 8.55 | G35: 8.72 | H35: 8.737 | I35: Green | J35: 5 | K35: 9.15 | L35: 8.53 | M35: 9.06 | N35: 8.822 | O35: Green | P35: 5 | Q35: 9.22 | R35: 8.59 | S35: 8.96 | T35: 8.853 | U35: Green | V35: 5 | W35: 9.19 | X35: 8.96 | Y35: 9.16 | Z35: 9.069 | AA35: Green | AB35: 2 | AC35: 9.23 | AD35: 9.16 | AE35: 9.21 | AF35: 9.191 | AG35: Green | AH35: 1 | AI35: 9.25 | AJ35: 9.31 | AK35: 9.13 | AL35: 9.256 | AM35: Green | AN35: 3 | AO35: 8.91 | AP35: 9.14 | AQ35: 9.23 | AR35: 9.089 | AS35: Green | AT35: 7 | AU35: 9.08 | AV35: 9.16 | AW35: 9.39 | AX35: 9.182 | AY35: Green | AZ35: 6
D36: SSES | E36: 8.39 | F36: 7.88 | G36: 8.53 | H36: 8.163 | I36: =IF(H36<7.79,"Red",IF(H36>=8.2,"Green","Amber")) -> Amber | J36: 13 | K36: 8.71 | L36: 8.1 | M36: 8.54 | N36: 8.371 | O36: =IF(N36<7.79,"Red",IF(N36>=8.2,"Green","Amber")) -> Green | P36: 13 | Q36: 8.75 | R36: 8.11 | S36: 8.32 | T36: 8.344 | U36: Green | V36: 14 | W36: 8.79 | X36: 8.42 | Y36: 8.5 | Z36: 8.547 | AA36: Green | AB36: 14 | AC36: 8.67 | AD36: 8.64 | AE36: 8.73 | AF36: 8.667 | AG36: Green | AH36: 14 | AI36: 8.56 | AJ36: 8.54 | AK36: 8.67 | AL36: 8.572 | AM36: Green | AN36: 14 | AO36: 8.35 | AP36: 8.33 | AQ36: 8.2 | AR36: 8.31 | AS36: Green | AT36: 14 | AU36: 8.62 | AV36: 8.29 | AW36: 8.46 | AX36: 8.423 | AY36: Green | AZ36: 14
D37: Target | E37: 8.2 | F37: 8.2 | G37: 8.2 | H37: 8.2 | K37: 8.2 | L37: 8.2 | M37: 8.2 | N37: 8.2 | Q37: 8.2 | R37: 8.2 | S37: 8.2 | T37: 8.2 | W37: 8.2 | X37: 8.2 | Y37: 8.2 | Z37: 8.2 | AC37: 8.2 | AD37: 8.2 | AE37: 8.2 | AF37: 8.2 | AI37: 8.2 | AJ37: 8.2 | AK37: 8.2 | AL37: 8.2 | AO37: 8.2 | AP37: 8.2 | AQ37: 8.2 | AU37: 8.2 | AV37: 8.2 | AW37: 8.2
B40: Complaints metric | D40: DNO complaint metric scores
E41: 2015/16 | L41: 2016/17 | S41: 2017/18 | Z41: 2018/19 | AG41: 2019/20 | AN41: 2020/21 | AU41: 2021/22 | BB41: 2022/23
E42: The percentage of total complaints outstanding after one day | F42: The percentage of total complaints outstanding after 31 days | G42: The percentage of total complaints that are repeat complaints | H42: The number of Energy Ombudsman (EO) Findings Against the Licensee | I42: Complaints Metric Score | J42: RAG | K42: Ranking | L42: The percentage of total complaints outstanding after one day | M42: The percentage of total complaints outstanding after 31 days | N42: The percentage of total complaints that are repeat complaints | O42: The number of Energy Ombudsman (EO) Findings Against the Licensee | P42: Complaints Metric Score | Q42: RAG | R42: Ranking | S42: The percentage of total complaints outstanding after one day | T42: The percentage of total complaints outstanding after 31 days | U42: The percentage of total complaints that are repeat complaints | V42: The number of Energy Ombudsman (EO) Findings Against the Licensee | W42: Complaints Metric Score | X42: RAG | Y42: Ranking | Z42: The percentage of total complaints outstanding after one day | AA42: The percentage of total complaints outstanding after 31 days | AB42: The percentage of total complaints that are repeat complaints | AC42: The number of Energy Ombudsman (EO) Findings Against the Licensee | AD42: Complaints Metric Score | AE42: RAG | AF42: Ranking | AG42: The percentage of total complaints outstanding after one day | AH42: The percentage of total complaints outstanding after 31 days | AI42: The percentage of total complaints that are repeat complaints | AJ42: The number of Energy Ombudsman (EO) Findings Against the Licensee | AK42: Complaints Metric Score | AL42: RAG | AM42: Ranking | AN42: The percentage of total complaints outstanding after one day | AO42: The percentage of total complaints outstanding after 31 days | AP42: The percentage of total complaints that are repeat complaints | AQ42: The number of Energy Ombudsman (EO) Findings Against the Licensee | AR42: Complaints Metric Score | AS42: RAG | AT42: Ranking | AU42: The percentage of total complaints outstanding after one day | AV42: The percentage of total complaints outstanding after 31 days | AW42: The percentage of total complaints that are repeat complaints | AX42: The number of Energy Ombudsman (EO) Findings Against the Licensee | AY42: Complaints Metric Score | AZ42: RAG | BA42: Ranking | BB42: The percentage of total complaints outstanding after one day | BC42: The percentage of total complaints outstanding after 31 days | BD42: The percentage of total complaints that are repeat complaints | BE42: The number of Energy Ombudsman (EO) Findings Against the Licensee | BF42: Complaints Metric Score | BG42: RAG | BH42: Ranking
D43: ENWL | E43: 0.4879626684 | F43: 0.09248064482 | G43: 0 | H43: 0 | I43: 7.654046028 | J43: =IF(I43<=$I$57,"Green",IF(I43<=$I$57*1.05,"Amber","Red")) -> Green | K43: =RANK(I43,I$43:I$56,1) -> 13 | L43: 0.2330568481 | M43: 0.03722435768 | N43: 0 | O43: 0 | P43: 3.447299211 | Q43: =IF(P43<=$P$57,"Green",IF(P43<=$P$57*1.05,"Amber","Red")) -> Green | R43: =RANK(P43,P$43:P$56,1) -> 9 | S43: 0.1792799412 | T43: 0.01653196179 | U43: 0 | V43: 0 | W43: 2.288758266 | X43: =IF(W43<=$W$57,"Green",IF(W43<=$W$57*1.05,"Amber","Red")) -> Green | Y43: =RANK(W43,W$43:W$56,1) -> 6 | Z43: 0.1790081522 | AA43: 0.008831521739 | AB43: 0 | AC43: 0 | AD43: 2.055027174 | AE43: =IF(AD43<=$W$57,"Green",IF(AD43<=$W$57*1.05,"Amber","Red")) -> Green | AF43: =RANK(AD43,AD$43:AD$56,1) -> 8 | AG43: 0.1558419819 | AH43: 0.01104787412 | AI43: 0 | AJ43: 0 | AK43: 1.889856043 | AL43: =IF(AK43<=$AK$57,"Green",IF(AK43<=$AK$57*1.05,"Amber","Red")) -> Green | AM43: =RANK(AK43,AK$43:AK$56,1) -> 6 | AN43: 0.1424388564 | AO43: 0.01085084395 | AP43: 0 | AQ43: 0 | AR43: 1.749913882 | AS43: =IF(AR43<=$AR$57,"Green",IF(AR43<=$AK$57*1.05,"Amber","Red")) -> Green | AT43: =RANK(AR43,AR$43:AR$56,1) -> 7 | AU43: 0.1911636045 | AV43: 0.03543307087 | AW43: 0 | AX43: 0 | AY43: 2.974628171 | AZ43: =IF(AY43<=$AR$57,"Green",IF(AY43<=$AK$57*1.05,"Amber","Red")) -> Green | BA43: =RANK(AY43,AY$43:AY$56,1) -> 11 | BB43: 0.1650546022 | BC43: 0.02797711908 | BD43: 0 | BE43: 1 | BF43: 2.490899636 | BG43: =IF(BF43<=$AR$57,"Green",IF(BF43<=$AK$57*1.05,"Amber","Red")) -> Green | BH43: =RANK(BF43,BF$43:BF$56,1) -> 11
D44: NPgN | E44: 0.4985549133 | F44: 0.09971098266 | G44: 0.0004816955684 | H44: 0 | I44: 8.000963391 | J44: Green | K44: 14 | L44: 0.3858093126 | M44: 0.1075388027 | N44: 0 | O44: 0 | P44: 7.084257206 | Q44: =IF(P44<=$P$57,"Green",IF(P44<=$P$57*1.05,"Amber","Red")) -> Green | R44: 14 | S44: 0.2820343461 | T44: 0.07529722589 | U44: 0 | V44: 0 | W44: 5.079260238 | X44: =IF(W44<=$W$57,"Green",IF(W44<=$W$57*1.05,"Amber","Red")) -> Green | Y44: =RANK(W44,W$43:W$56,1) -> 14 | Z44: 0.2171945701 | AA44: 0.04524886878 | AB44: 0 | AC44: 0 | AD44: 3.529411765 | AE44: =IF(AD44<=$W$57,"Green",IF(AD44<=$W$57*1.05,"Amber","Red")) -> Green | AF44: =RANK(AD44,AD$43:AD$56,1) -> 14 | AG44: 0.1643454039 | AH44: 0.03621169916 | AI44: 0 | AJ44: 0 | AK44: 2.729805014 | AL44: Green | AM44: =RANK(AK44,AK$43:AK$56,1) -> 14 | AN44: 0.1750805585 | AO44: 0.03222341568 | AP44: 0 | AQ44: 0 | AR44: 2.717508056 | AS44: =IF(AR44<=$AR$57,"Green",IF(AR44<=$AK$57*1.05,"Amber","Red")) -> Green | AT44: =RANK(AR44,AR$43:AR$56,1) -> 12 | AU44: 0.3959804454 | AV44: 0.06735469853 | AW44: 0 | AX44: 0 | AY44: 5.98044541 | AZ44: =IF(AY44<=$AR$57,"Green",IF(AY44<=$AK$57*1.05,"Amber","Red")) -> Green | BA44: =RANK(AY44,AY$43:AY$56,1) -> 14 | BB44: 0.239546421 | BC44: 0.09284195606 | BD44: 0 | BE44: 0 | BF44: 5.180722892 | BG44: =IF(BF44<=$AR$57,"Green",IF(BF44<=$AK$57*1.05,"Amber","Red")) -> Green | BH44: =RANK(BF44,BF$43:BF$56,1) -> 13
D45: NPgY | E45: 0.473316913 | F45: 0.08128078818 | G45: 0.0004105090312 | H45: 0 | I45: 7.192118227 | J45: Green | K45: 12 | L45: 0.3170620438 | M45: 0.07436131387 | N45: 0 | O45: 0 | P45: 5.401459854 | Q45: Green | R45: 12 | S45: 0.2820242488 | T45: 0.06062203479 | U45: 0 | V45: 0 | W45: 4.638903532 | X45: Green | Y45: 13 | Z45: 0.1811158798 | AA45: 0.02832618026 | AB45: 0 | AC45: 0 | AD45: 2.660944206 | AE45: Green | AF45: 11 | AG45: 0.1451612903 | AH45: 0.02284946237 | AI45: 0 | AJ45: 0 | AK45: 2.137096774 | AL45: Green | AM45: 11 | AN45: 0.162109375 | AO45: 0.0390625 | AP45: 0 | AQ45: 0 | AR45: 2.79296875 | AS45: Green | AT45: 13 | AU45: 0.2697747512 | AV45: 0.06233630173 | AW45: 0 | AX45: 0 | AY45: 4.567836564 | AZ45: Green | BA45: 13 | BB45: 0.235042735 | BC45: 0.09591642925 | BD45: 0 | BE45: 0 | BF45: 5.227920228 | BG45: Green | BH45: 14
D46: WMID | E46: 0.1480505796 | F46: 0.007376185458 | G46: 0 | H46: 0 | I46: 1.701791359 | J46: Green | K46: 1 | L46: 0.1252399232 | M46: 0.00575815739 | N46: 0 | O46: 0 | P46: 1.425143954 | Q46: Green | R46: 1 | S46: 0.1162909836 | T46: 0.006147540984 | U46: 0 | V46: 0 | W46: 1.347336066 | X46: Green | Y46: 1 | Z46: 0.1160924965 | AA46: 0.003775365739 | AB46: 0 | AC46: 0 | AD46: 1.274185937 | AE46: Green | AF46: 3 | AG46: 0.08507462687 | AH46: 0.008457711443 | AI46: 0 | AJ46: 0 | AK46: 1.104477612 | AL46: Green | AM46: 2 | AN46: 0.09108910891 | AO46: 0.007920792079 | AP46: 0 | AQ46: 0 | AR46: 1.148514851 | AS46: Green | AT46: 2 | AU46: 0.1196231053 | AV46: 0.007783695207 | AW46: 0 | AX46: 0 | AY46: 1.429741909 | AZ46: Green | BA46: 2 | BB46: 0.1039445629 | BC46: 0.009061833689 | BD46: 0 | BE46: 0 | BF46: 1.31130064 | BG46: Green | BH46: 2
D47: EMID | E47: 0.1588669951 | F47: 0.01108374384 | G47: 0 | H47: 0 | I47: 1.921182266 | J47: Green | K47: 2 | L47: 0.1431034483 | M47: 0.01034482759 | N47: 0 | O47: 0 | P47: 1.74137931 | Q47: Green | R47: 2 | S47: 0.1253644315 | T47: 0.008163265306 | U47: 0 | V47: 0 | W47: 1.498542274 | X47: Green | Y47: 2 | Z47: 0.1061766207 | AA47: 0.00561510975 | AB47: 0 | AC47: 0 | AD47: 1.2302195 | AE47: Green | AF47: 2 | AG47: 0.08024691358 | AH47: 0.007122507123 | AI47: 0 | AJ47: 0 | AK47: 1.016144349 | AL47: Green | AM47: 1 | AN47: 0.08246887967 | AO47: 0.008817427386 | AP47: 0 | AQ47: 0 | AR47: 1.089211618 | AS47: Green | AT47: 1 | AU47: 0.1204453441 | AV47: 0.006072874494 | AW47: 0 | AX47: 0 | AY47: 1.386639676 | AZ47: Green | BA47: 1 | BB47: 0.1084959816 | BC47: 0.009758897819 | BD47: 0 | BE47: 0 | BF47: 1.377726751 | BG47: Green | BH47: 3
D48: SWALES | E48: 0.2439281943 | F48: 0.02006335797 | G48: 0 | H48: 0 | I48: 3.041182682 | J48: Green | K48: 4 | L48: 0.1983663944 | M48: 0.02100350058 | N48: 0 | O48: 0 | P48: 2.613768961 | Q48: Green | R48: 5 | S48: 0.2054794521 | T48: 0.01598173516 | U48: 0 | V48: 0 | W48: 2.534246575 | X48: Green | Y48: 7 | Z48: 0.1582417582 | AA48: 0.008791208791 | AB48: 0 | AC48: 0 | AD48: 1.846153846 | AE48: Green | AF48: 6 | AG48: 0.1698754247 | AH48: 0.01698754247 | AI48: 0 | AJ48: 0 | AK48: 2.208380521 | AL48: Green | AM48: 13 | AN48: 0.1898864809 | AO48: 0.02270381837 | AP48: 0 | AQ48: 0 | AR48: 2.57997936 | AS48: Green | AT48: 11 | AU48: 0.227173913 | AV48: 0.02717391304 | AW48: 0 | AX48: 0 | AY48: 3.086956522 | AZ48: Green | BA48: 12 | BB48: 0.1312849162 | BC48: 0.02234636872 | BD48: 0 | BE48: 0 | BF48: 1.983240223 | BG48: Green | BH48: 10
D49: SWEST | E49: 0.1954066265 | F49: 0.01468373494 | G49: 0.0003765060241 | H49: 0 | I49: 2.413403614 | J49: Green | K49: 3 | L49: 0.1814569536 | M49: 0.01589403974 | N49: 0 | O49: 0 | P49: 2.291390728 | Q49: Green | R49: 4 | S49: 0.1635420822 | T49: 0.009972078181 | U49: 0 | V49: 0 | W49: 1.934583167 | X49: Green | Y49: 4 | Z49: 0.1673553719 | AA49: 0.01239669421 | AB49: 0.0004132231405 | AC49: 0 | AD49: 2.066115702 | AE49: Green | AF49: 9 | AG49: 0.1454856654 | AH49: 0.02225074882 | AI49: 0 | AJ49: 0 | AK49: 2.122379119 | AL49: Green | AM49: 10 | AN49: 0.1424541608 | AO49: 0.01833568406 | AP49: 0 | AQ49: 0 | AR49: 1.97461213 | AS49: Green | AT49: 9 | AU49: 0.1627697842 | AV49: 0.02113309353 | AW49: 0 | AX49: 0 | AY49: 2.261690647 | AZ49: Green | BA49: 9 | BB49: 0.1680635201 | BC49: 0.03352448169 | BD49: 0 | BE49: 0 | BF49: 2.686369652 | BG49: Green | BH49: 12
D50: LPN | E50: 0.3590096286 | F50: 0.05295735901 | G50: 0 | H50: 0 | I50: 5.178817056 | J50: Green | K50: 9 | L50: 0.3456090652 | M50: 0.07507082153 | N50: 0 | O50: 0 | P50: 5.708215297 | Q50: Green | R50: 13 | S50: 0.2565130261 | T50: 0.05911823647 | U50: 0 | V50: 0 | W50: 4.338677355 | X50: Green | Y50: 12 | Z50: 0.1931567329 | AA50: 0.02869757174 | AB50: 0 | AC50: 0 | AD50: 2.792494481 | AE50: Green | AF50: 12 | AG50: 0.170153417 | AH50: 0.01534170153 | AI50: 0 | AJ50: 0 | AK50: 2.161785216 | AL50: Green | AM50: 12 | AN50: 0.1338709677 | AO50: 0.006451612903 | AP50: 0 | AQ50: 0 | AR50: 1.532258065 | AS50: Green | AT50: 6 | AU50: 0.1297836938 | AV50: 0.01331114809 | AW50: 0 | AX50: 0 | AY50: 1.697171381 | AZ50: Green | BA50: 4 | BB50: 0.1408199643 | BC50: 0.003565062389 | BD50: 0 | BE50: 0 | BF50: 1.515151515 | BG50: Green | BH50: 6
D51: SPN | E51: 0.4019534185 | F51: 0.06949661908 | G51: 0 | H51: 0 | I51: 6.104432757 | J51: Green | K51: 11 | L51: 0.3390461997 | M51: 0.06333830104 | N51: 0 | O51: 0 | P51: 5.290611028 | Q51: Green | R51: 11 | S51: 0.2431451613 | T51: 0.05725806452 | U51: 0 | V51: 0 | W51: 4.149193548 | X51: Green | Y51: 11 | Z51: 0.1576413959 | AA51: 0.03048535901 | AB51: 0 | AC51: 0 | AD51: 2.490974729 | AE51: Green | AF51: 10 | AG51: 0.1501642421 | AH51: 0.01642421398 | AI51: 0 | AJ51: 0 | AK51: 1.994368841 | AL51: Green | AM51: 8 | AN51: 0.1467473525 | AO51: 0.01563287948 | AP51: 0 | AQ51: 0 | AR51: 1.936459909 | AS51: Green | AT51: 8 | AU51: 0.1689246401 | AV51: 0.01481795089 | AW51: 0 | AX51: 0 | AY51: 2.133784928 | AZ51: Green | BA51: 7 | BB51: 0.1371718882 | BC51: 0.01058425064 | BD51: 0 | BE51: 0 | BF51: 1.689246401 | BG51: Green | BH51: 7
D52: EPN | E52: 0.3853528628 | F52: 0.05832223702 | G52: 0 | H52: 0 | I52: 5.603195739 | J52: Green | K52: 10 | L52: 0.3233442458 | M52: 0.06094182825 | N52: 0 | O52: 0 | P52: 5.061697305 | Q52: Green | R52: 10 | S52: 0.2247032222 | T52: 0.04663651781 | U52: 0 | V52: 0 | W52: 3.646127756 | X52: Green | Y52: 10 | Z52: 0.1903266332 | AA52: 0.03863065327 | AB52: 0 | AC52: 0 | AD52: 3.06218593 | AE52: Green | AF52: 13 | AG52: 0.1337817638 | AH52: 0.01307922272 | AI52: 0 | AJ52: 0 | AK52: 1.73019432 | AL52: Green | AM52: 5 | AN52: 0.1085549964 | AO52: 0.006829618979 | AP52: 0 | AQ52: 0 | AR52: 1.290438533 | AS52: Green | AT52: 3 | AU52: 0.14523914 | AV52: 0.00877577885 | AW52: 0 | AX52: 0 | AY52: 1.715664765 | AZ52: Green | BA52: 5 | BB52: 0.1463852717 | BC52: 0.01571621015 | BD52: 0 | BE52: 0 | BF52: 1.935339021 | BG52: Green | BH52: 9
D53: SPD | E53: 0.2331428571 | F53: 0.04228571429 | G53: 0 | H53: 0 | I53: 3.6 | J53: Green | K53: 6 | L53: 0.1892575928 | M53: 0.03205849269 | N53: 0 | O53: 0 | P53: 2.854330709 | Q53: Green | R53: 7 | S53: 0.1291525424 | T53: 0.02677966102 | U53: 0 | V53: 0 | W53: 2.094915254 | X53: Green | Y53: 5 | Z53: 0.1068301226 | AA53: 0.01751313485 | AB53: 0 | AC53: 0 | AD53: 1.593695271 | AE53: Green | AF53: 4 | AG53: 0.1070678796 | AH53: 0.01294611617 | AI53: 0 | AJ53: 0 | AK53: 1.459062281 | AL53: Green | AM53: 4 | AN53: 0.1171623074 | AO53: 0.008957362952 | AP53: 0 | AQ53: 0 | AR53: 1.440343963 | AS53: Green | AT53: 5 | AU53: 0.1140325807 | AV53: 0.02143469563 | AW53: 0 | AX53: 0 | AY53: 1.783366676 | AZ53: Green | BA53: 6 | BB53: 0.09625481274 | BC53: 0.02695134757 | BD53: 0 | BE53: 0 | BF53: 1.771088554 | BG53: Green | BH53: 8
D54: SPMW | E54: 0.2110125647 | F54: 0.0421286031 | G54: 0 | H54: 0 | I54: 3.37398374 | J54: Green | K54: 5 | L54: 0.1909353905 | M54: 0.03053680489 | N54: 0 | O54: 0 | P54: 2.825458052 | Q54: Green | R54: 6 | S54: 0.1856060606 | T54: 0.02840909091 | U54: 0 | V54: 0 | W54: 2.708333333 | X54: Green | Y54: 8 | Z54: 0.1269448373 | AA54: 0.01944837341 | AB54: 0 | AC54: 0 | AD54: 1.852899576 | AE54: Green | AF54: 7 | AG54: 0.1022506252 | AH54: 0.01250347319 | AI54: 0 | AJ54: 0 | AK54: 1.397610447 | AL54: Green | AM54: 3 | AN54: 0.1113158865 | AO54: 0.01032067822 | AP54: 0 | AQ54: 0 | AR54: 1.422779211 | AS54: Green | AT54: 4 | AU54: 0.1229193342 | AV54: 0.01120358515 | AW54: 0 | AX54: 0 | AY54: 1.565300896 | AZ54: Green | BA54: 3 | BB54: 0.08104442184 | BC54: 0.009155645982 | BD54: 0 | BE54: 0 | BF54: 1.085113598 | BG54: Green | BH54: 1
D55: SSEH | E55: 0.3041594454 | F55: 0.03466204506 | G55: 0 | H55: 0 | I55: 4.081455806 | J55: Green | K55: 7 | L55: 0.1479680445 | M55: 0.02327196943 | N55: 0 | O55: 0 | P55: 2.177839528 | Q55: Green | R55: 3 | S55: 0.1321299639 | T55: 0.009386281588 | U55: 0 | V55: 0 | W55: 1.602888087 | X55: Green | Y55: 3 | Z55: 0.08255243195 | AA55: 0.01338688086 | AB55: 0 | AC55: 0 | AD55: 1.227130745 | AE55: Green | AF55: 1 | AG55: 0.1011541073 | AH55: 0.02987101154 | AI55: 0 | AJ55: 0 | AK55: 1.907671419 | AL55: Green | AM55: 7 | AN55: 0.1393389501 | AO55: 0.03110823072 | AP55: 0 | AQ55: 0 | AR55: 2.326636423 | AS55: Green | AT55: 10 | AU55: 0.1450537236 | AV55: 0.0242682475 | AW55: 0 | AX55: 0 | AY55: 2.178584661 | AZ55: Green | BA55: 8 | BB55: 0.09742519137 | BC55: 0.01356993737 | BD55: 0 | BE55: 0 | BF55: 1.381350035 | BG55: Green | BH55: 4
D56: SSES | E56: 0.3249506903 | F56: 0.04684418146 | G56: 0 | H56: 0 | I56: 4.654832347 | J56: Green | K56: 8 | L56: 0.2343330349 | M56: 0.03304983587 | N56: 0 | O56: 0 | P56: 3.334825425 | Q56: Green | R56: 8 | S56: 0.1957754979 | T56: 0.02697646349 | U56: 0 | V56: 0 | W56: 2.767048884 | X56: Green | Y56: 9 | Z56: 0.1133586469 | AA56: 0.02091819123 | AB56: 0 | AC56: 0 | AD56: 1.761132206 | AE56: Green | AF56: 5 | AG56: 0.1176006314 | AH56: 0.03125493291 | AI56: 0 | AJ56: 0 | AK56: 2.113654301 | AL56: Green | AM56: 9 | AN56: 0.1812317512 | AO56: 0.04739593943 | AP56: 0 | AQ56: 0 | AR56: 3.234195695 | AS56: Green | AT56: 14 | AU56: 0.1609022556 | AV56: 0.04126984127 | AW56: 0 | AX56: 0 | AY56: 2.847117794 | AZ56: Green | BA56: 10 | BB56: 0.09499644778 | BC56: 0.01679691465 | BD56: 0 | BE56: 1 | BF56: 1.454379377 | BG56: Green | BH56: 5
D57: Target | I57: 8.33 | P57: 8.33 | W57: 8.33 | AD57: 8.33 | AK57: 8.33 | AR57: 8.33 | AY57: 8.33 | BF57: 8.33
B59: Stakeholder Engagement and Consumer Vulnerability Incentive
E60: Score (out of 10)
E61: 2015/16 | F61: 2016/17 | G61: 2017/18 | H61: 2018/19 | I61: 2019/20 | J61: 2020/21 | K61: 2021/22 | L61: 2022/23
D62: ENWL | E62: 6.9 | F62: 6.375 | G62: 5.75 | H62: 4.5375 | I62: 6.025 | J62: 6.6125 | K62: 4.3125 | L62: 7
D63: NPg | E63: 6.5 | F63: 6.5 | G63: 7.5 | H63: 7.0125 | I63: 6.7125 | J63: 5.0125 | K63: 3.7 | L63: 3.2875
D64: NGED | E64: 8.75 | F64: 8.525 | G64: 8.75 | H64: 8.35 | I64: 0 | J64: 0 | K64: 5.359195402 | L64: 6.40248227
D65: UKPN | E65: 7.525 | F65: 7.525 | G65: 7.25 | H65: 7.95 | I65: 8.3 | J65: 8.05 | K65: 8.5375 | L65: 7.7125
D66: SPEN | E66: 6.775 | F66: 6.275 | G66: 6.35 | H66: 6.7125 | I66: 6.85 | J66: 7.075 | K66: 5.2875 | L66: 4.5
D67: SSEN | E67: 5.725 | F67: 5.225 | G67: 5.5 | H67: 3.95 | I67: 5.5375 | J67: 6.2 | K67: 5.875 | L67: 6.1125
E69: Reward (£m)
E70: 2015/16 | F70: 2016/17 | G70: 2017/18 | H70: 2018/19 | I70: 2019/20 | J70: 2020/21 | K70: 2021/22 | L70: 2022/23
D71: ENWL | E71: 1.332091043 | F71: 1.09093663 | G71: 0.8038480433 | H71: 0.2468961847 | I71: 0.9301670216 | J71: 1.005103145 | K71: 0.1435442935 | L71: 1.378025217
D72: NPg | E72: 1.937847962 | F72: 1.937847962 | G72: 2.712987146 | H72: 2.335106794 | I72: 2.102565038 | J72: 0.6573446705 | K72: 0 | L72: 0
D73: NGED | E73: 8.591125963 | F73: 8.184177891 | G73: 8.591125963 | H73: 7.867662724 | I73: 0 | J73: 0 | K73: 2.441688432 | L73: 4.499037017
D74: UKPN | E74: 5.464731252 | F74: 5.464731252 | G74: 5.0384047 | H74: 6.123599559 | I74: 6.666196988 | J74: 5.258757364 | K74: 7.034388101 | L74: 5.755408446
D75: SPEN | E75: 2.629013735 | F75: 2.155317566 | G75: 2.226371991 | H75: 2.569801713 | I75: 2.70006816 | J75: 2.440020135 | K75: 1.219767634 | L75: 0.4736961684
D76: SSEN | E76: 1.535206218 | F76: 1.090218909 | G76: 1.334961929 | H76: 0 | I76: 1.368335977 | J76: 1.639905131 | K76: 1.668702411 | L76: 1.880071383
E78: RAG
E79: 2015/16 | F79: 2016/17 | G79: 2017/18 | H79: 2018/19 | I79: 2019/20 | J79: 2020/21 | K79: 2021/22 | L79: 2022/23
D80: ENWL | E80: =IF(E62<4,"Red","Green") -> Green | F80: Green | G80: Green | H80: Green | I80: =IF(I62<4,"Red","Green") -> Green | J80: =IF(J62<4,"Red","Green") -> Green | K80: =IF(K62<4,"Red","Green") -> Green | L80: Green
D81: NPg | E81: Green | F81: Green | G81: Green | H81: Green | I81: =IF(I63<4,"Red","Green") -> Green | J81: =IF(J63<4,"Red","Green") -> Green | K81: =IF(K63<4,"Red","Green") -> Red | L81: Red
D82: NGED | E82: Green | F82: Green | G82: Green | H82: Green | I82: N/A | J82: N/A | K82: =IF(K64<4,"Red","Green") -> Green | L82: Green
D83: UKPN | E83: Green | F83: Green | G83: Green | H83: Green | I83: =IF(I65<4,"Red","Green") -> Green | J83: Green | K83: Green | L83: Green
D84: SPEN | E84: Green | F84: Green | G84: Green | H84: Green | I84: Green | J84: Green | K84: Green | L84: Green
D85: SSEN | E85: Green | F85: Green | G85: Green | H85: Red | I85: Green | J85: Green | K85: Green | L85: Green
E87: Ranking
E88: 2015/16 | F88: 2016/17 | G88: 2017/18 | H88: 2018/19 | I88: 2019/20 | J88: 2020/21 | K88: 2021/22 | L88: 2022/23
D89: ENWL | E89: =RANK(E62,$E$62:$E$67,0) -> 3 | F89: =RANK(F62,$F$62:$F$67,0) -> 4 | G89: =RANK(G62,$G$62:$G$67,0) -> 5 | H89: =RANK(H62,$H$62:$H$67,0) -> 5 | I89: =RANK(I62,$I$62:$I$67,0) -> 4 | J89: =RANK(J62,$J$62:$J$67,0) -> 3 | K89: =RANK(K62,$K$62:$K$67,0) -> 5 | L89: =RANK(L62,$L$62:$L$67,0) -> 2
D90: NPg | E90: 5 | F90: 3 | G90: 2 | H90: 3 | I90: 3 | J90: =RANK(J63,$J$62:$J$67,0) -> 5 | K90: =RANK(K63,$K$62:$K$67,0) -> 6 | L90: =RANK(L63,$L$62:$L$67,0) -> 6
D91: NGED | E91: 1 | F91: 1 | G91: 1 | H91: 1 | I91: 0 | J91: 0 | K91: 3 | L91: 3
D92: UKPN | E92: 2 | F92: 2 | G92: 3 | H92: 2 | I92: 1 | J92: =RANK(J65,$J$62:$J$67,0) -> 1 | K92: 1 | L92: 1
D93: SPEN | E93: 4 | F93: 5 | G93: 4 | H93: 4 | I93: 2 | J93: =RANK(J66,$J$62:$J$67,0) -> 2 | K93: 4 | L93: 5
D94: SSEN | E94: 6 | F94: 6 | G94: 6 | H94: 6 | I94: 5 | J94: =RANK(J67,$J$62:$J$67,0) -> 4 | K94: 2 | L94: 4
B96: Broad Measure of Customer Service
E97: 2015/16 | J97: 2016/17 | O97: 2017/18 | T97: 2018/19 | Y97: 2019/20 | AD97: 2020/21 | AI97: 2021/22 | AN97: 2022/23
E98: Customer Satisfaction Survey Reward/Penalty (£m) | F98: Complaints Metric Penalty (£m) | G98: Stakeholder Engagement and Consumer Vulnerability Financial Reward (£m) | H98: Broad Measure of Customer Service reward (£m) | J98: Customer Satisfaction Survey Reward/Penalty (£m) | K98: Complaints Metric Penalty (£m) | L98: Stakeholder Engagement and Consumer Vulnerability Financial Reward (£m) | M98: Broad Measure of Customer Service reward (£m) | O98: Customer Satisfaction Survey Reward/Penalty (£m) | P98: Complaints Metric Penalty (£m) | Q98: Stakeholder Engagement and Consumer Vulnerability Financial Reward (£m) | R98: Broad Measure of Customer Service reward (£m) | T98: Customer Satisfaction Survey Reward/Penalty (£m) | U98: Complaints Metric Penalty (£m) | V98: Stakeholder Engagement and Consumer Vulnerability Financial Reward (£m) | W98: Broad Measure of Customer Service reward (£m) | Y98: Customer Satisfaction Survey Reward/Penalty (£m) | Z98: Complaints Metric Penalty (£m) | AA98: Stakeholder Engagement and Consumer Vulnerability Financial Reward (£m) | AB98: Broad Measure of Customer Service reward (£m) | AD98: Customer Satisfaction Survey Reward/Penalty (£m) | AE98: Complaints Metric Penalty (£m) | AF98: Stakeholder Engagement and Consumer Vulnerability Financial Reward (£m) | AG98: Broad Measure of Customer Service reward (£m) | AI98: Customer Satisfaction Survey Reward/Penalty (£m) | AJ98: Complaints Metric Penalty (£m) | AK98: Stakeholder Engagement and Consumer Vulnerability Financial Reward (£m) | AL98: Broad Measure of Customer Service reward (£m) | AN98: Customer Satisfaction Survey Reward/Penalty (£m) | AO98: Complaints Metric Penalty (£m) | AP98: Stakeholder Engagement and Consumer Vulnerability Financial Reward (£m) | AQ98: Broad Measure of Customer Service reward (£m)
D99: ENWL | E99: -0.7976617095 | F99: 0 | G99: 1.332091043 | H99: 0.5311140126 | J99: 0.5219588182 | K99: 0 | L99: 1.09093663 | M99: =SUM(J99:L99) -> 1.612895448 | O99: 1.305758162 | P99: 0 | Q99: 0.8038480433 | R99: =SUM(O99:Q99) -> 2.109606205 | T99: 2.382546128 | U99: 0 | V99: 0.2468961847 | W99: =SUM(T99:V99) -> 2.629442313 | Y99: 3.552036122 | Z99: 0 | AA99: 0.9301670216 | AB99: =SUM(Y99:AA99) -> 4.482203144 | AD99: 4.331338831 | AE99: 0 | AF99: 1.005103145 | AG99: =SUM(AD99:AF99) -> 5.336441976 | AI99: 3.448321128 | AJ99: 0 | AK99: 0.1435442935 | AL99: =SUM(AI99:AK99) -> 3.591865421 | AN99: 3.985044038 | AO99: 0 | AP99: 1.378025217 | AQ99: =SUM(AN99:AP99) -> 5.363069255
D100: NPgN | E100: 0.9414484393 | F100: 0 | G100: 0.789493614 | H100: 1.736886366 | J100: 2.092703876 | K100: 0 | L100: 0.789493614 | M100: =SUM(J100:L100) -> 2.88219749 | O100: 2.188415978 | P100: 0 | Q100: 1.10529106 | R100: =SUM(O100:Q100) -> 3.293707037 | T100: 2.254642109 | U100: 0 | V100: 0.9513398048 | W100: =SUM(T100:V100) -> 3.205981914 | Y100: 2.880212427 | Z100: 0 | AA100: 0.8566005712 | AB100: =SUM(Y100:AA100) -> 3.736812998 | AD100: 3.301518749 | AE100: 0 | AF100: 0.267807088 | AG100: =SUM(AD100:AF100) -> 3.569325837 | AI100: 0.986729215 | AJ100: 0 | AK100: 0 | AL100: =SUM(AI100:AK100) -> 0.986729215 | AN100: 2.121334092 | AO100: 0 | AP100: 0 | AQ100: =SUM(AN100:AP100) -> 2.121334092
D101: NPgY | E101: 0.9977276059 | F101: 0 | G101: 1.148354348 | H101: 2.153164916 | J101: 2.354707425 | K101: 0 | L101: 1.148354348 | M101: 3.503061772 | O101: 2.069156928 | P101: 0 | Q101: 1.607696087 | R101: 3.676853015 | T101: 2.50637399 | U101: 0 | V101: 1.383766989 | W101: 3.890140979 | Y101: 3.538177261 | Z101: 0 | AA101: 1.245964467 | AB101: 4.784141728 | AD101: 4.128908057 | AE101: 0 | AF101: 0.3895375825 | AG101: 4.518445639 | AI101: 1.350165022 | AJ101: 0 | AK101: 0 | AL101: 1.350165022 | AN101: 2.796191521 | AO101: 0 | AP101: 0 | AQ101: 2.796191521
D102: WMID | E102: 4.877637814 | F102: 0 | G102: 2.727341576 | H102: 7.60784937 | J102: 4.785766744 | K102: 0 | L102: 2.598151711 | M102: 7.383918455 | O102: 5.005145487 | P102: 0 | Q102: 2.727341576 | R102: 7.732487063 | T102: 5.649544529 | U102: 0 | V102: 2.497670706 | W102: 8.147215236 | Y102: 5.741771738 | Z102: 0 | AA102: 0 | AB102: 5.741771738 | AD102: 5.741771738 | AE102: 0 | AF102: 0 | AG102: 5.741771738 | AI102: 5.029084557 | AJ102: 0 | AK102: 0.7751391846 | AL102: 5.804223742 | AN102: 4.921889797 | AO102: 0 | AP102: 1.42826572 | AQ102: 6.350155517
D103: EMID | E103: 5.25070671 | F103: 0 | G103: 1.227303709 | H103: 7.981064622 | J103: 5.210370764 | K103: 0 | L103: 2.598151711 | M103: 7.808522475 | O103: 5.172951814 | P103: 0 | Q103: 1.227303709 | R103: 6.400255523 | T103: 5.581461471 | U103: 0 | V103: 2.497670706 | W103: 8.079132177 | Y103: 5.741771738 | Z103: 0 | AA103: 0 | AB103: 5.741771738 | AD103: 5.741771738 | AE103: 0 | AF103: 0 | AG103: 5.741771738 | AI103: 5.282784306 | AJ103: 0 | AK103: 0.7751391846 | AL103: 6.05792349 | AN103: 5.741771738 | AO103: 0 | AP103: 1.42826572 | AQ103: 7.170037458
D104: SWALES | E104: 2.493364377 | F104: 0 | G104: 1.227303709 | H104: 3.717798088 | J104: 2.35871983 | K104: 0 | L104: 1.16916827 | M104: 3.5278881 | O104: 2.727341576 | P104: 0 | Q104: 1.227303709 | R104: 3.954645285 | T104: 2.727341576 | U104: 0 | V104: 1.123951818 | W104: 3.851293393 | Y104: 2.727341576 | Z104: 0 | AA104: 0 | AB104: 2.727341576 | AD104: 2.727341576 | AE104: 0 | AF104: 0 | AG104: 2.727341576 | AI104: 2.589100978 | AJ104: 0 | AK104: 0.3488126331 | AL104: 2.937913611 | AN104: 2.727341576 | AO104: 0 | AP104: 0.6427195739 | AQ104: 3.370061149
D105: SWEST | E105: 3.486347144 | F105: 0 | G105: 1.909139103 | H105: 5.397266723 | J105: 3.646025054 | K105: 0 | L105: 1.818706198 | M105: 5.464731252 | O105: 3.605453117 | P105: 0 | Q105: 1.909139103 | R105: 5.51459222 | T105: 3.852441748 | U105: 0 | V105: 1.748369494 | W105: 5.600811242 | Y105: 4.019240217 | Z105: 0 | AA105: 0 | AB105: 4.019240217 | AD105: 4.019240217 | AE105: 0 | AF105: 0 | AG105: 4.019240217 | AI105: 3.125327793 | AJ105: 0 | AK105: 0.5425974292 | AL105: 3.667925222 | AN105: 3.840958204 | AO105: 0 | AP105: 0.9997860039 | AQ105: 4.840744208
D106: LPN | E106: 1.21821393 | F106: 0 | G106: 1.517980903 | H106: 2.74169666 | J106: 2.154356665 | K106: 0 | L106: 1.517980903 | M106: 3.672337568 | O106: 3.356605227 | P106: 0 | Q106: 1.399556861 | R106: 4.756162088 | T106: 3.319440184 | U106: 0 | V106: 1.700999877 | W106: 5.020440062 | Y106: 4.306328804 | Z106: 0 | AA106: 1.851721386 | AB106: 6.158050189 | AD106: 4.306328804 | AE106: 0 | AF106: 1.460765934 | AG106: 5.767094738 | AI106: 4.306328804 | AJ106: 0 | AK106: 1.953996695 | AL106: 6.260325498 | AN106: 4.306328804 | AO106: 0 | AP106: 1.598724568 | AQ106: 5.905053372
D107: SPN | E107: 2.061067511 | F107: 0 | G107: 1.61917963 | H107: 3.67473479 | J107: 2.595902809 | K107: 0 | L107: 1.61917963 | M107: 4.215082439 | O107: 2.919401596 | P107: 0 | Q107: 1.492860652 | R107: 4.412262248 | T107: 3.013887565 | U107: 0 | V107: 1.814399869 | W107: 4.828287434 | Y107: 4.216199719 | Z107: 0 | AA107: 1.975169478 | AB107: 6.191369197 | AD107: 4.449873097 | AE107: 0 | AF107: 1.55815033 | AG107: 6.008023427 | AI107: 4.449873097 | AJ107: 0 | AK107: 2.084263141 | AL107: 6.534136238 | AN107: 4.449873097 | AO107: 0 | AP107: 1.705306206 | AQ107: 6.155179303
D108: EPN | E108: 2.810430848 | F108: 0 | G108: 2.327570718 | H108: 5.138886933 | J108: 2.927425782 | K108: 0 | L108: 2.327570718 | M108: 5.2549965 | O108: 4.289421844 | P108: 0 | Q108: 2.145987187 | R108: 6.435409031 | T108: 4.765056173 | U108: 0 | V108: 2.608199812 | W108: 7.373255985 | Y108: 6.603037499 | Z108: 0 | AA108: 2.839306124 | AB108: 9.442343623 | AD108: 6.603037499 | AE108: 0 | AF108: 2.239841099 | AG108: 8.842878598 | AI108: 6.603037499 | AJ108: 0 | AK108: 2.996128265 | AL108: 9.599165764 | AN108: 6.603037499 | AO108: 0 | AP108: 2.451377671 | AQ108: 9.05441517
D109: SPD | E109: 2.411373559 | F109: 0 | G109: 1.274673326 | H109: 3.689089223 | J109: 2.581520489 | K109: 0 | L109: 1.045002456 | M109: 3.626522945 | O109: 2.989544336 | P109: 0 | Q109: 1.079453087 | R109: 4.068997423 | T109: 4.044339177 | U109: 0 | V109: 1.245964467 | W109: 5.290303645 | Y109: 4.449873097 | Z109: 0 | AA109: 1.309123956 | AB109: 5.758997053 | AD109: 4.449873097 | AE109: 0 | AF109: 1.183040065 | AG109: 5.632913162 | AI109: 4.274471382 | AJ109: 0 | AK109: 0.591402489 | AL109: 4.865873871 | AN109: 4.449873097 | AO109: 0 | AP109: 0.2296708695 | AQ109: 4.679543966
D110: SPMW | E110: 3.095651272 | F110: 0 | G110: 1.354340409 | H110: 4.44987416 | J110: 3.587033763 | K110: 0 | L110: 1.11031511 | M110: 4.697348873 | O110: 3.015654608 | P110: 0 | Q110: 1.146918905 | R110: 4.162573512 | T110: 4.762117821 | U110: 0 | V110: 1.323837246 | W110: 6.085955068 | Y110: 4.880505977 | Z110: 0 | AA110: 1.390944204 | AB110: 6.271450181 | AD110: 4.880505977 | AE110: 0 | AF110: 1.256980069 | AG110: 6.137486047 | AI110: 4.274268214 | AJ110: 0 | AK110: 0.6283651446 | AL110: 4.902633358 | AN110: 4.880505977 | AO110: 0 | AP110: 0.2440252989 | AQ110: 5.124531276
D111: SSEH | E111: 1.982633781 | F111: 0 | G111: 0.4952278124 | H111: 2.48331687 | J111: 2.09861757 | K111: 0 | L111: 0.351683519 | M111: 2.450301089 | O111: 2.219194777 | P111: 0 | Q111: 0.4306328804 | R111: 2.649827657 | T111: 2.870885869 | U111: 0 | V111: 0 | W111: 2.870885869 | Y111: 2.870885869 | Z111: 0 | AA111: 0.4413987024 | AB111: 3.312284571 | AD111: 2.870885869 | AE111: 0 | AF111: 0.5290016553 | AG111: 3.399887524 | AI111: 2.446775705 | AJ111: 0 | AK111: 0.5382911004 | AL111: 2.985066805 | AN111: 2.870885869 | AO111: 0 | AP111: 0.6064746398 | AQ111: 3.477360509
D112: SSES | E112: 0.2950393693 | F112: 0 | G112: 1.039978406 | H112: 1.334962248 | J112: 1.593071284 | K112: 0 | L112: 0.7385353898 | M112: 2.331606674 | O112: 1.314547316 | P112: 0 | Q112: 0.9043290487 | R112: 2.218876365 | T112: 2.898781596 | U112: 0 | V112: 0 | W112: 2.898781596 | Y112: 3.926219642 | Z112: 0 | AA112: 0.926937275 | AB112: 4.853156917 | AD112: 2.92341889 | AE112: 0 | AF112: 1.110903476 | AG112: 4.034322366 | AI112: 0.1613214028 | AJ112: 0 | AK112: 1.130411311 | AL112: 1.291732714 | AN112: 1.830971732 | AO112: 0 | AP112: 1.273596744 | AQ112: 3.104568476
D113: Total | E113: =SUM(E99:E112) -> 31.12398065 | F113: =SUM(F99:F112) -> 0 | G113: =SUM(G99:G112) -> 19.98997831 | H113: =SUM(H99:H112) -> 52.63770498 | J113: =SUM(J99:J112) -> 38.50818087 | K113: =SUM(K99:K112) -> 0 | L113: =SUM(L99:L112) -> 19.92323021 | M113: =SUM(M99:M112) -> 58.43141108 | O113: =SUM(O99:O112) -> 42.17859277 | P113: =SUM(P99:P112) -> 0 | Q113: =SUM(Q99:Q112) -> 19.20766191 | R113: =SUM(R99:R112) -> 61.38625467 | T113: =SUM(T99:T112) -> 50.62885994 | U113: =SUM(U99:U112) -> 0 | V113: =SUM(V99:V112) -> 19.14306697 | W113: =SUM(W99:W112) -> 69.77192691 | Y113: =SUM(Y99:Y112) -> 59.45360169 | Z113: =SUM(Z99:Z112) -> 0 | AA113: =SUM(AA99:AA112) -> 13.76733318 | AB113: =SUM(AB99:AB112) -> 73.22093487 | AD113: =SUM(AD99:AD112) -> 60.47581414 | AE113: =SUM(AE99:AE112) -> 0 | AF113: 11.00113045 | AG113: =SUM(AG99:AG112) -> 71.47694458 | AI113: =SUM(AI99:AI112) -> 48.3275891 | AJ113: =SUM(AJ99:AJ112) -> 0 | AK113: =SUM(AK99:AK112) -> 12.50809087 | AL113: =SUM(AL99:AL112) -> 60.83567997 | AN113: =SUM(AN99:AN112) -> 55.52600704 | AO113: =SUM(AO99:AO112) -> 0 | AP113: =SUM(AP99:AP112) -> 13.98623823 | AQ113: =SUM(AQ99:AQ112) -> 69.51224527

Sheet Ch2 outputs - reliability
A1: Chapter 2 - Reliability and Availability
B2: Performance against the outputs that DNOs are incentivised to deliver under RIIO-ED1.
B4: Reliability and availability: providing long-term reliability, minimising the number and duration of interruptions and ensuring adaptation to climate change.
B5: Incentive measure | F5: Incentive type
B6: Interruption incentive scheme (IIS): DNOs can receive a financial reward or incur a financial penalty depending on their performance against a target for both the number and length of their network supply interruptions. | F6: Financial: 250 RORE basis points per annum. Supported by monitoring of Secondary Deliverables. Reputational.
B7: Guaranteed Standards of Performance (GSoP): direct payment to customers of fixed amounts if DNO fails to deliver specified minimum levels of performance. | F7: Financial: payment to customers for failure to meet standards. Reputational.
B8: Worst-served customers (WSC): DNOs have access to funding to improve the reliability for a subset of customers whose supply has been repeatedly interrupted. | F8: Financial: £76.5 million over ED1 (use-it-or-lose-it). Reputational.
B9: Network resilience: proactive network investment for reducing the impact of disruptive events, such as floods or severe storms. | F9: Reputational.
B12: Interruption Incentive Scheme (IIS) | E12: CI performance | N12: 2022/23 RAG status | Q12: CI target (Planned and unplanned)
E13: 2014/15 | F13: 2015/16 | G13: 2016/17 | H13: 2017/18 | I13: 2018/19 | J13: 2019/20 | K13: 2020/21 | L13: 2021/22 | M13: 2022/23 | Q13: 2015/16 | R13: 2016/17 | S13: 2017/18 | T13: 2018/19 | U13: 2019/20 | V13: 2020/21 | W13: 2021/22 | X13: 2022/23
D14: ENWL | E14: 36.64007359 | F14: 36.65750416 | G14: 32.89872416 | H14: 33.23113479 | I14: 33.59983554 | J14: 27.95317361 | K14: 30.73026515 | L14: 25.7683248 | M14: 26.58427117 | N14: =IF(M14<=X14,"Green",IF(M14<=X14*1.05,"Amber","Red")) -> Green | P14: ENWL | Q14: 48.37195356 | R14: 48.02825334 | S14: 47.4508901 | T14: 47.17044608 | U14: 46.86558384 | V14: 46.43653784 | W14: 45.97066705 | X14: 45.5784613
D15: NPgN | E15: 65.26359301 | F15: 59.45849782 | G15: 53.28905362 | H15: 51.81519134 | I15: 54.28416236 | J15: 46.97048435 | K15: 45.26378626 | L15: 49.83466779 | M15: 46.91843392 | N15: =IF(M15<=X15,"Green",IF(M15<=X15*1.05,"Amber","Red")) -> Green | P15: NPgN | Q15: 63.75172954 | R15: 62.70868495 | S15: 62.16495153 | T15: 61.38208007 | U15: 60.68086191 | V15: 60.02267158 | W15: 59.20789448 | X15: 58.58478442
D16: NPgY | E16: 60.91975461 | F16: 52.53464728 | G16: 48.5363288 | H16: 48.1345217 | I16: 49.3031241 | J16: 50.78773106 | K16: 52.42256713 | L16: 51.0709779 | M16: 59.32207834 | N16: Green | P16: NPgY | Q16: 68.59357099 | R16: 67.55372114 | S16: 66.47527679 | T16: 65.1854765 | U16: 64.04058283 | V16: 62.97852848 | W16: 62.01384405 | X16: 60.92939197
D17: WMID | E17: 70.24026493 | F17: 65.22689603 | G17: 58.9599988 | H17: 55.6442047 | I17: 55.37075929 | J17: 48.48407976 | K17: 44.44815459 | L17: 46.75990526 | M17: 46.37842776 | N17: Green | P17: WMID | Q17: 89.07684423 | R17: 87.05456485 | S17: 85.3947733 | T17: 84.07887678 | U17: 82.44388584 | V17: 80.90469161 | W17: 79.09502253 | X17: 77.33718329
D18: EMID | E18: 45.95520502 | F18: 42.65072457 | G18: 44.12571874 | H18: 46.94172138 | I18: 39.77135469 | J18: 37.90279559 | K18: 39.57393349 | L18: 37.15473726 | M18: 32.61786461 | N18: Green | P18: EMID | Q18: 53.22076207 | R18: 52.13962623 | S18: 51.42330642 | T18: 51.05155481 | U18: 50.82084743 | V18: 50.48931942 | W18: 50.21355853 | X18: 49.82741804
D19: SWALES | E19: 56.48447461 | F19: 52.06684359 | G19: 41.64040259 | H19: 48.46686218 | I19: 41.29104808 | J19: 45.38793469 | K19: 38.89305309 | L19: 38.78909236 | M19: 43.95312304 | N19: Green | P19: SWALES | Q19: 55.06037337 | R19: 53.75180744 | S19: 53.31319243 | T19: 53.09492923 | U19: 52.71872689 | V19: 52.45564499 | W19: 51.90037331 | X19: 51.49607664
D20: SWEST | E20: 51.61839023 | F20: 51.99880507 | G20: 52.45442106 | H20: 62.03699686 | I20: 51.46478332 | J20: 46.09622422 | K20: 60.23090677 | L20: 50.47987711 | M20: 49.48630924 | N20: Green | P20: SWEST | Q20: 59.17962458 | R20: 58.86083942 | S20: 58.53708391 | T20: 58.48036798 | U20: 58.42549897 | V20: 58.1078836 | W20: 57.56528374 | X20: 57.07393818
D21: LPN | E21: 20.88055269 | F21: 18.956803 | G21: 17.22140308 | H21: 14.21623774 | I21: 14.09492818 | J21: 13.19999055 | K21: 13.02055688 | L21: 15.04439865 | M21: 11.64854714 | N21: Green | P21: LPN | Q21: 27.80442323 | R21: 27.68332947 | S21: 27.33851583 | T21: 27.03425534 | U21: 26.69761648 | V21: 26.44215534 | W21: 26.29754013 | X21: 26.15947523
D22: SPN | E22: 50.09437788 | F22: 48.73709832 | G22: 47.72406612 | H22: 46.68681691 | I22: 44.35653462 | J22: 45.03820228 | K22: 44.29522129 | L22: 39.1003119 | M22: 54.5540204 | N22: Green | P22: SPN | Q22: 65.32600982 | R22: 64.66907452 | S22: 64.09331146 | T22: 63.62583163 | U22: 63.20081553 | V22: 62.91676263 | W22: 62.58099634 | X22: 62.01982357
D23: EPN | E23: 52.79515655 | F23: 45.75570628 | G23: 49.37111816 | H23: 48.5218 | I23: 41.42250444 | J23: 43.78245405 | K23: 43.91491542 | L23: 38.88616787 | M23: 42.77100534 | N23: Green | P23: EPN | Q23: 69.78626007 | R23: 68.69974372 | S23: 67.94105245 | T23: 67.18845091 | U23: 66.65224917 | V23: 66.51686366 | W23: 66.15039523 | X23: 65.58921964
D24: SPD | E24: 46.58826613 | F24: 48.46533187 | G24: 42.8901371 | H24: 41.30501494 | I24: 49.33473597 | J24: 44.5284707 | K24: 40.45925299 | L24: 37.1750453 | M24: 36.28703501 | N24: Green | P24: SPD | Q24: 52.07347876 | R24: 51.90160342 | S24: 51.64197259 | T24: 51.09507495 | U24: 50.62929298 | V24: 50.16713872 | W24: 49.98436623 | X24: 49.72422339
D25: SPMW | E25: 32.77742581 | F25: 30.14843269 | G25: 38.16376257 | H25: 30.49896858 | I25: 36.14398836 | J25: 32.22179227 | K25: 31.92561324 | L25: 30.33201741 | M25: 30.28829385 | N25: Green | P25: SPMW | Q25: 38.27366337 | R25: 38.0644497 | S25: 37.59791787 | T25: 37.02580749 | U25: 36.40715904 | V25: 36.12211322 | W25: 35.87377291 | X25: 35.68998716
D26: SSEH | E26: 73.52165044 | F26: 66.72040063 | G26: 68.10679953 | H26: 57.34640044 | I26: 69.36756075 | J26: 63.17313197 | K26: 63.99170639 | L26: 55.52171172 | M26: 59.68937422 | N26: Green | P26: SSEH | Q26: 71.90053998 | R26: 71.18886245 | S26: 70.15106303 | T26: 70.28042452 | U26: 69.98556845 | V26: 69.18618603 | W26: 68.24529013 | X26: 67.24502464
D27: SSES | E27: 59.84592631 | F27: 47.50998757 | G27: 47.81686091 | H27: 55.13280003 | I27: 52.10169007 | J27: 47.64322384 | K27: 48.41785247 | L27: 42.45908134 | M27: 45.5648889 | N27: =IF(M27<=X27,"Green",IF(M27<=X27*1.05,"Amber","Red")) -> Green | P27: SSES | Q27: 62.53435987 | R27: 61.57780772 | S27: 60.39368654 | T27: 59.39079167 | U27: 58.95827811 | V27: 58.71053902 | W27: 58.35197941 | X27: 57.91487668
D28: Total | E28: 50.83062035 | F28: 46.45465421 | G28: 45.06427933 | H28: 45.28780576 | I28: 43.8099316 | J28: 41.3325777 | K28: 41.58843764 | L28: 38.88276148 | M28: 41.2015295
E30: CML performance | N30: 2022/23 RAG status | Q30: CML target (Planned and unplanned)
E31: 2014/15 | F31: 2015/16 | G31: 2016/17 | H31: 2017/18 | I31: 2018/19 | J31: 2019/20 | K31: 2020/21 | L31: 2021/22 | M31: 2022/23 | Q31: 2015/16 | R31: 2016/17 | S31: 2017/18 | T31: 2018/19 | U31: 2019/20 | V31: 2020/21 | W31: 2021/22 | X31: 2022/23
D32: ENWL | E32: 34.76243236 | F32: 32.49629202 | G32: 33.71355615 | H32: 34.63112634 | I32: 32.96300426 | J32: 27.14609222 | K32: 28.1502787 | L32: 27.41467236 | M32: 26.88003472 | N32: =IF(M32<=X32,"Green",IF(M32<=X32*1.05,"Amber","Red")) -> Green | P32: ENWL | Q32: 47.37353943 | R32: 45.82728822 | S32: 44.22557415 | T32: 43.00277457 | U32: 42.06733042 | V32: 40.78439967 | W32: 39.72693241 | X32: 38.24829263
D33: NPgN | E33: 56.06517018 | F33: 50.10896408 | G33: 45.00430019 | H33: 44.62516576 | I33: 47.63165205 | J33: 44.10397891 | K33: 36.81887544 | L33: 46.32837238 | M33: 44.01435819 | N33: =IF(M33<=X33,"Green",IF(M33<=X33*1.05,"Amber","Red")) -> Green | P33: NPgN | Q33: 65.86223246 | R33: 64.09760406 | S33: 61.87164277 | T33: 59.10684654 | U33: 57.01103882 | V33: 55.16313283 | W33: 52.76869355 | X33: 50.90820098
D34: NPgY | E34: 50.43404375 | F34: 41.83767088 | G34: 38.0051775 | H34: 36.39574708 | I34: 38.77214491 | J34: 42.10247027 | K34: 40.00438529 | L34: 43.64359588 | M34: 52.11735194 | N34: Amber | P34: NPgY | Q34: 63.11966704 | R34: 61.61618976 | S34: 60.17853616 | T34: 57.95158627 | U34: 56.41385376 | V34: 54.87892798 | W34: 53.41566243 | X34: 51.74156388
D35: WMID | E35: 34.24748607 | F35: 32.15125114 | G35: 31.97361396 | H35: 31.02404506 | I35: 32.29735482 | J35: 29.00255602 | K35: 28.24247963 | L35: 29.52058759 | M35: 30.7339631 | N35: Green | P35: WMID | Q35: 55.65600016 | R35: 53.60162252 | S35: 52.99336073 | T35: 52.78337452 | U35: 52.264842 | V35: 51.96519454 | W35: 51.2450246 | X35: 50.28559647
D36: EMID | E36: 22.85262752 | F36: 21.55496789 | G36: 21.96212168 | H36: 24.07177192 | I36: 22.9171638 | J36: 22.55823231 | K36: 23.09835936 | L36: 22.15057661 | M36: 21.89981319 | N36: Green | P36: EMID | Q36: 40.23357433 | R36: 39.10588266 | S36: 38.82708102 | T36: 38.01194585 | U36: 37.23704108 | V36: 36.43231966 | W36: 35.65290246 | X36: 34.85780057
D37: SWALES | E37: 30.39829093 | F37: 26.3408534 | G37: 25.72609148 | H37: 28.41460867 | I37: 24.87022259 | J37: 23.4199746 | K37: 24.51110017 | L37: 24.63638594 | M37: 25.77184031 | N37: Green | P37: SWALES | Q37: 35.44214891 | R37: 33.56820749 | S37: 33.35629545 | T37: 33.44477928 | U37: 33.15731653 | V37: 33.1031794 | W37: 32.39781115 | X37: 32.04751088
D38: SWEST | E38: 38.95592924 | F38: 37.51045627 | G38: 39.69870511 | H38: 42.78232644 | I38: 40.22496535 | J38: 38.21713875 | K38: 41.54024624 | L38: 36.72083554 | M38: 39.3401741 | N38: Green | P38: SWEST | Q38: 43.91734302 | R38: 43.63298563 | S38: 43.50199529 | T38: 43.8273154 | U38: 43.92305606 | V38: 43.4963966 | W38: 42.82105977 | X38: 42.08231791
D39: LPN | E39: 24.03006735 | F39: 19.28684622 | G39: 19.78127401 | H39: 16.74064131 | I39: 15.91679339 | J39: 14.38653669 | K39: 11.37808418 | L39: 13.90796023 | M39: 12.18762263 | N39: Green | P39: LPN | Q39: 40.44154825 | R39: 39.71882371 | S39: 38.8503032 | T39: 37.72425531 | U39: 36.64798493 | V39: 35.96021784 | W39: 35.2489756 | X39: 34.5423406
D40: SPN | E40: 35.03520804 | F40: 36.34049005 | G40: 35.06263583 | H40: 37.56921184 | I40: 36.68784517 | J40: 32.85109672 | K40: 31.91647497 | L40: 31.69207979 | M40: 38.82233679 | N40: Green | P40: SPN | Q40: 50.17473647 | R40: 48.36490519 | S40: 46.54170473 | T40: 45.27954349 | U40: 44.03523923 | V40: 43.17999154 | W40: 42.1857072 | X40: 40.84792498
D41: EPN | E41: 40.20514835 | F41: 34.76516025 | G41: 39.20381675 | H41: 41.79128818 | I41: 34.81117617 | J41: 33.7663204 | K41: 32.27296168 | L41: 29.6440603 | M41: 33.10422563 | N41: Green | P41: EPN | Q41: 55.7003846 | R41: 54.22268524 | S41: 52.00439817 | T41: 49.61100899 | U41: 48.07036211 | V41: 47.6706727 | W41: 46.78414219 | X41: 45.01783699
D42: SPD | E42: 34.03126444 | F42: 34.81463329 | G42: 29.32836726 | H42: 31.19284596 | I42: 35.01017159 | J42: 33.71785108 | K42: 29.89521589 | L42: 27.12287354 | M42: 25.4285749 | N42: Green | P42: SPD | Q42: 46.23040403 | R42: 45.68157588 | S42: 44.75054439 | T42: 43.41874701 | U42: 42.08127773 | V42: 41.04961413 | W42: 40.54954544 | X42: 39.87502999
D43: SPMW | E43: 36.13681094 | F43: 33.56467524 | G43: 37.33744028 | H43: 32.98727132 | I43: 35.60105498 | J43: 33.84297637 | K43: 34.80648613 | L43: 30.87048988 | M43: 31.90578704 | N43: Green | P43: SPMW | Q43: 45.61961944 | R43: 44.23979445 | S43: 42.41891188 | T43: 40.30271841 | U43: 38.24794085 | V43: 36.82915479 | W43: 35.89387135 | X43: 34.99910813
D44: SSEH | E44: 71.56350154 | F44: 55.20969992 | G44: 59.88609562 | H44: 55.24026901 | I44: 59.068469 | J44: 55.59302741 | K44: 57.3898034 | L44: 57.06708286 | M44: 59.24199751 | N44: Red | P44: SSEH | Q44: 64.55381854 | R44: 62.23321321 | S44: 59.45033586 | T44: 59.34947784 | U44: 59.08513472 | V44: 58.81080101 | W44: 56.39709413 | X44: 53.67399879
D45: SSES | E45: 56.92164691 | F45: 41.19510635 | G45: 43.29800356 | H45: 47.56372229 | I45: 49.94647671 | J45: 45.91278195 | K45: 44.30269841 | L45: 42.32978275 | M45: 49.30251478 | N45: Red | P45: SSES | Q45: 54.12297476 | R45: 52.92818986 | S45: 50.82738041 | T45: 49.51790917 | U45: 47.88930423 | V45: 47.19239331 | W45: 46.11233797 | X45: 45.07314391
D46: Total | E46: 39.1618001 | F46: 34.43367633 | G46: 34.71078638 | H46: 35.50477918 | I46: 35.19895983 | J46: 33.11021141 | K46: 32.03103474 | L46: 31.79199572 | M46: 34.51865902
J49: Breakdown of performance for CI and CML/planned and unplanned
J50: PLANNED | P50: UNPLANNED
B51: Rewards and penalties under the IIS | D51: 2015/16 | E51: IIS performance total reward | I51: 2015/16 | J51: CI | M51: CML | P51: CI | S51: CML
E52: Total reward (£m)** | F52: Regulation 7 Severe Weather Conditions Adjustment | G52: Normal weather conditions adjustment | J52: Performance | K52: Target | L52: Reward/Penalty (£m) | M52: Performance | N52: Target | O52: Reward/Penalty (£m) | P52: Performance | Q52: Target | R52: Reward/Penalty (£m) | S52: Performance | T52: Target | U52: Reward/Penalty (£m)
D53: ENWL | E53: 18.32502341 | F53: 0 | G53: 0 | I53: ENWL | J53: 1.624115947 | K53: 2.37195356 | L53: 0.2885066639 | M53: 4.058171082 | N53: 6.773539429 | O53: 2.519797137 | P53: 35.03338821 | Q53: 46 | R53: 4.230785571 | S53: 28.43812094 | T53: 40.6 | U53: 11.28593404
D54: NPgN | E54: 10.7220571 | F54: 0 | G54: -0.04781747503 | I54: NPgN | J54: 2.965282572 | K54: 3.951729539 | L54: 0.2372063649 | M54: 6.802123103 | N54: 11.06223246 | O54: 2.561022253 | P54: 55.38199126 | Q54: 59.8 | R54: 1.06237824 | S54: 43.30684097 | T54: 54.8 | U54: 6.909267718
D55: NPgY | E55: 18.78565317 | F55: -0.5928264484 | G55: 0 | I55: NPgY | J55: 1.54251192 | K55: 1.893570992 | L55: 0.1231089421 | M55: 3.989441512 | N55: 5.61966704 | O55: 1.404712656 | P55: 50.99213536 | Q55: 66.7 | R55: 5.508413692 | S55: 37.84822937 | T55: 57.5 | U55: 16.9332957
D56: WMID | E56: 25.40733994 | F56: 0 | G56: 0 | I56: WMID | J56: 2.084164733 | K56: 2.376844226 | L56: 0.1396914663 | M56: 3.759735338 | N56: 4.556000165 | O56: 0.9301103258 | P56: 63.1427313 | Q56: 86.7 | R56: 11.24352571 | S56: 28.3915158 | T56: 51.1 | U56: 26.52559164
D57: EMID | E57: 24.54607418 | F57: 0 | G57: 0 | I57: EMID | J57: 0.974794934 | K57: 1.320762067 | L57: 0.1738156268 | M57: 1.658110796 | N57: 2.433574328 | O57: 0.9642520226 | P57: 41.67592964 | Q57: 51.9 | R57: 5.136624348 | S57: 19.8968571 | T57: 37.8 | U57: 22.26170676
D58: SWALES | E58: 6.195239931 | F58: 0 | G58: 0 | I58: SWALES | J58: 3.570779753 | K58: 4.96037337 | L58: 0.2967089981 | M58: 5.625713764 | N58: 7.942148915 | O58: 1.221978098 | P58: 44.96063834 | Q58: 50.1 | R58: 1.097367483 | S58: 20.71513964 | T58: 27.5 | U58: 3.579185353
D59: SWEST | E59: 6.91241475 | F59: 0 | G59: 0 | I59: SWEST | J59: 3.496934059 | K59: 3.479624576 | L59: -0.005217822523 | M59: 8.523135122 | N59: 8.117343018 | O59: -0.3007111894 | P59: 48.50187101 | Q59: 55.7 | R59: 2.169825714 | S59: 28.98732115 | T59: 35.8 | U59: 5.048518048
D60: LPN | E60: 18.68281459 | F60: 0 | G60: -0.2650321449 | I60: LPN | J60: 0.2850245641 | K60: 0.8044232306 | L60: 0.1737917017 | M60: 0.5502822311 | N60: 1.64154825 | O60: 0.8971999572 | P60: 18.67177844 | Q60: 27 | R60: 2.786637493 | S60: 18.73656399 | T60: 38.8 | U60: 16.49544073
D61: SPN | E61: 16.34688237 | F61: -0.1147895006 | G61: -0.330774283 | I61: SPN | J61: 1.121586982 | K61: 1.926009816 | L61: 0.2691612863 | M61: 2.433797828 | N61: 4.674736473 | O61: 1.820996256 | P61: 47.61551134 | Q61: 63.4 | R61: 5.281517498 | S61: 33.90669222 | T61: 45.5 | U61: 9.420771117
D62: EPN | E62: 28.86125085 | F62: -0.002635473228 | G62: -0.2756052501 | I62: EPN | J62: 1.434231194 | K62: 2.686260072 | L62: 0.6583202236 | M62: 3.766439201 | N62: 7.700384598 | O62: 5.039567739 | P62: 44.32147509 | Q62: 67.1 | R62: 11.97701097 | S62: 30.99872105 | T62: 48 | U62: 21.77943217
D63: SPD | E63: 9.292679265 | F63: 0 | G63: 0 | I63: SPD | J63: 1.552173372 | K63: 1.673478755 | L63: 0.03609869434 | M63: 3.786221998 | N63: 4.030404027 | O63: 0.1758023544 | P63: 46.9131585 | Q63: 50.4 | R63: 1.037632646 | S63: 31.02841129 | T63: 42.2 | U63: 8.04314557
D64: SPMW | E64: 8.274379184 | F64: 0 | G64: 0 | I64: SPMW | J64: 2.191182475 | K64: 3.073663372 | L64: 0.1948421335 | M64: 7.172235912 | N64: 10.51961944 | O64: 1.799464275 | P64: 27.95725022 | Q64: 35.2 | R64: 1.599119963 | S64: 26.39243933 | T64: 35.1 | U64: 4.680952813
D65: SSEH | E65: 3.192519865 | F65: -0.003376161782 | G65: -0.08495525464 | I65: SSEH | J65: 3.095889549 | K65: 5.000539981 | L65: 0.2315849105 | M65: 5.633821836 | N65: 10.65381854 | O65: 1.42421382 | P65: 63.62451108 | Q65: 66.9 | R65: 0.3982640567 | S65: 49.57587808 | T65: 53.9 | U65: 1.226788494
D66: SSES | E66: 21.63924404 | F66: -0.0001205772065 | G66: -0.03433866588 | I66: SSES | J66: 1.303539163 | K66: 2.234359868 | L66: 0.4338479999 | M66: 3.076354745 | N66: 6.022974762 | O66: 3.343920087 | P66: 46.2064484 | Q66: 60.3 | R66: 6.568890374 | S66: 38.11875161 | T66: 48.1 | U66: 11.32704482
D67: Total | E67: =SUM(E53:E66) -> 217.1835726 | F67: =SUM(F53:F66) -> -0.7137481612 | G67: =SUM(G53:G66) -> -1.038523074
D68: NB: The total reward includes an adjustment for Regulation 7 Severe weather and Normal weather (Regulation 5,6 and 8)
J71: PLANNED | P71: UNPLANNED
D72: 2016/17 | I72: 2016/17 | J72: CI | M72: CML | P72: CI | S72: CML
E73: Total reward (£m)** | F73: Regulation 7 Severe Weather Conditions Adjustment | G73: Normal weather conditions adjustment | J73: Performance | K73: Target | L73: Reward/Penalty (£m) | M73: Performance | N73: Target | O73: Reward/Penalty (£m) | P73: Performance | Q73: Target | R73: Reward/Penalty (£m) | S73: Performance | T73: Target | U73: Reward/Penalty (£m)
D74: ENWL | E74: 16.94913764 | F74: 0 | G74: -0.1289056464 | I74: ENWL | J74: 1.780368863 | K74: 2.228253342 | L74: 0.1727883895 | M74: 4.370618837 | N74: 6.02728822 | O74: 1.53734972 | P74: 31.1183553 | Q74: 45.8 | R74: 5.664000127 | S74: 29.34293731 | T74: 39.8 | U74: 9.703905055
D75: NPgN | E75: 13.74329282 | F75: 0 | G75: 0 | I75: NPgN | J75: 2.968264429 | K75: 3.808684951 | L75: 0.2020920575 | M75: 7.378907974 | N75: 10.39760406 | O75: 1.814729908 | P75: 50.32078919 | Q75: 58.9 | R75: 2.063003363 | S75: 37.62539222 | T75: 53.7 | U75: 9.663467492
D76: NPgY | E76: 19.37847962 | F76: 0 | G76: 0 | I76: NPgY | J76: 1.178463043 | K76: 1.853721136 | L76: 0.2367986363 | M76: 2.974318269 | N76: 5.316189761 | O76: 2.017914986 | P76: 47.35786576 | Q76: 65.7 | R76: 6.432195954 | S76: 35.03085923 | T76: 56.3 | U76: 18.32693128
D77: WMID | E77: 25.40733994 | F77: 0 | G77: 0 | I77: WMID | J77: 2.881645697 | K77: 2.054564851 | L77: -0.3947530958 | M77: 4.894022268 | N77: 3.301622518 | O77: -1.860068912 | P77: 56.0783531 | Q77: 85 | R77: 13.80386175 | S77: 27.07959169 | T77: 50.3 | U77: 27.12356593
D78: EMID | E78: 24.54607418 | F78: 0 | G78: 0 | I78: EMID | J78: 0.911529648 | K78: 1.039626225 | L78: 0.0643563643 | M78: 1.519959202 | N78: 1.505882664 | O78: -0.01750350537 | P78: 43.21418909 | Q78: 51.1 | R78: 3.961871041 | S78: 20.44216248 | T78: 37.6 | U78: 21.33495496
D79: SWALES | E79: 6.72296747 | F79: 0 | G79: 0 | I79: SWALES | J79: 3.663084826 | K79: 3.851807436 | L79: 0.04029645481 | M79: 6.270450968 | N79: 6.06820749 | O79: -0.1066885469 | P79: 37.97731777 | Q79: 49.9 | R79: 2.545756583 | S79: 19.45564051 | T79: 27.5 | U79: 4.243602978
D80: SWEST | E80: 4.846658482 | F80: 0 | G80: 0 | I80: SWEST | J80: 4.144309349 | K80: 3.460839424 | L80: -0.2060272358 | M80: 9.551975296 | N80: 8.032985627 | O80: -1.125643368 | P80: 48.31011171 | Q80: 55.4 | R80: 2.13719731 | S80: 30.14672981 | T80: 35.6 | U80: 4.041131775
D81: LPN | E81: 18.75560016 | F81: 0 | G81: -0.1922465755 | I81: LPN | J81: 0.1843066038 | K81: 0.7833294726 | L81: 0.200434099 | M81: 0.4557331298 | N81: 1.618823708 | O81: 0.9562515459 | P81: 17.03709648 | Q81: 26.9 | R81: 3.300144759 | S81: 19.32554088 | T81: 38.1 | U81: 15.43568995
D82: SPN | E82: 16.16686515 | F82: -0.006864288113 | G82: -0.305580537 | I82: SPN | J82: 1.190313375 | K82: 1.669074517 | L82: 0.1601943149 | M82: 2.709920611 | N82: 3.864905187 | O82: 0.9385453695 | P82: 46.53375275 | Q82: 63 | R82: 5.509635115 | S82: 32.35271522 | T82: 44.5 | U82: 9.87093518
D83: EPN | E83: 28.62477848 | F83: -0.01724254053 | G83: -0.4974705484 | I83: EPN | J83: 1.558917572 | K83: 2.599743722 | L83: 0.5472692485 | M83: 4.245139318 | N83: 7.222685244 | O83: 3.81437536 | P83: 47.81220059 | Q83: 66.1 | R83: 9.615775163 | S83: 34.95867743 | T83: 47 | U83: 15.42549645
D84: SPD | E84: 14.45540674 | F84: 0 | G84: 0 | I84: SPD | J84: 1.10780349 | K84: 1.801603415 | L84: 0.2064646333 | M84: 2.847161982 | N84: 4.381575883 | O84: 1.104723302 | P84: 41.78233361 | Q84: 50.1 | R84: 2.475214942 | S84: 26.48120528 | T84: 41.3 | U84: 10.66900386
D85: SPMW | E85: 3.688594661 | F85: 0 | G85: 0 | I85: SPMW | J85: 1.829821194 | K85: 2.964449697 | L85: 0.250513568 | M85: 5.755886634 | N85: 9.939794454 | O85: 2.249157464 | P85: 36.33394137 | Q85: 35.1 | R85: -0.2724407638 | S85: 31.58155364 | T85: 34.3 | U85: 1.461364393
D86: SSEH | E86: 1.040641862 | F86: 0 | G86: 0 | I86: SSEH | J86: 5.521052508 | K86: 4.588862451 | L86: -0.1133442375 | M86: 11.76512746 | N86: 9.433213213 | O86: -0.6615830032 | P86: 62.58574703 | Q86: 66.6 | R86: 0.4880897827 | S86: 48.12096816 | T86: 52.8 | U86: 1.32747932
D87: SSES | E87: 17.33517615 | F87: -0.0004306328804 | G87: -0.006907351401 | I87: SSES | J87: 1.713139095 | K87: 2.177807717 | L87: 0.2165782854 | M87: 4.102107449 | N87: 5.828189858 | O87: 1.958814372 | P87: 46.10372182 | Q87: 59.4 | R87: 6.197287687 | S87: 39.19589611 | T87: 47.1 | U87: 8.969833786
D88: Total | E88: =SUM(E74:E87) -> 211.6610134 | F88: =SUM(F74:F87) -> -0.02453746152 | G88: =SUM(G74:G87) -> -1.131110659
J90: PLANNED | P90: UNPLANNED
D91: 2017/18 | I91: 2017/18 | J91: CI | M91: CML | P91: CI | S91: CML
E92: Total reward (£m)** | F92: Regulation 7 Severe Weather Conditions Adjustment | G92: Normal weather conditions adjustment | J92: Performance | K92: Target | L92: Reward/Penalty (£m) | M92: Performance | N92: Target | O92: Reward/Penalty (£m) | P92: Performance | Q92: Target | R92: Reward/Penalty (£m) | S92: Performance | T92: Target | U92: Reward/Penalty (£m)
D93: ENWL | E93: 13.88436059 | F93: -0.003858470608 | G93: -0.3233639524 | I93: ENWL | J93: 1.892266706 | K93: 1.950890097 | L93: 0.02233698 | M93: 5.03023843 | N93: 5.125574149 | O93: 0.0873770624 | P93: 31.33886808 | Q93: 45.5 | R93: 5.395745796 | S93: 29.60088791 | T93: 39.1 | U93: 8.706123179
D94: NPgN | E94: 12.69798689 | F94: 0 | G94: 0 | I94: NPgN | J94: 2.109038728 | K94: 3.564951535 | L94: 0.345774475 | M94: 4.752085388 | N94: 9.171642771 | O94: 2.624075644 | P94: 49.70615261 | Q94: 58.6 | R94: 2.112259332 | S94: 39.87308037 | T94: 52.7 | U94: 7.615877441
D95: NPgY | E95: 19.29841635 | F95: 0 | G95: -0.08006326511 | I95: NPgY | J95: 1.300773539 | K95: 1.775276789 | L95: 0.1643438886 | M95: 3.277801493 | N95: 4.978536158 | O95: 1.447375902 | P95: 46.83374816 | Q95: 64.7 | R95: 6.187964571 | S95: 33.11794559 | T95: 55.2 | U95: 18.79248662
D96: WMID | E96: 25.40733994 | F96: 0 | G96: 0 | I96: WMID | J96: 2.365847094 | K96: 2.0947733 | L96: -0.1277821185 | M96: 4.440768406 | N96: 3.493360725 | O96: -1.09299658 | P96: 53.27835761 | Q96: 83.3 | R96: 14.15197319 | S96: 26.58327666 | T96: 49.5 | U96: 26.43835462
D97: EMID | E97: 20.34478616 | F97: 0 | G97: 0 | I97: EMID | J97: 0.8762177194 | K97: 1.023306419 | L97: 0.07298577964 | M97: 1.433053249 | N97: 1.527081019 | O97: 0.115475615 | P97: 46.06550366 | Q97: 50.4 | R97: 2.150787903 | S97: 22.63871867 | T97: 37.3 | U97: 18.00553686
D98: SWALES | E98: 3.596704674 | F98: 0 | G98: 0 | I98: SWALES | J98: 3.622316104 | K98: 3.713192429 | L98: 0.01916455025 | M98: 5.675784859 | N98: 5.956295449 | O98: 0.1461495573 | P98: 44.84454607 | Q98: 49.6 | R98: 1.002858946 | S98: 22.73882381 | T98: 27.4 | U98: 2.428531621
D99: SWEST | E99: -0.5152746492 | F99: 0 | G99: 0 | I99: SWEST | J99: 3.835253512 | K99: 3.437083906 | L99: -0.1185436513 | M99: 8.694057778 | N99: 8.101995285 | O99: -0.4333297576 | P99: 58.20174335 | Q99: 55.1 | R99: -0.9234556744 | S99: 34.08826867 | T99: 35.4 | U99: 0.9600544341
D100: LPN | E100: 18.87316466 | F100: 0 | G100: -0.07468207664 | I100: LPN | J100: 0.1235182605 | K100: 0.6385158282 | L100: 0.1701916903 | M100: 0.3379394419 | N100: 1.350303202 | O100: 0.8220536665 | P100: 14.09271948 | Q100: 26.7 | R100: 4.166338865 | S100: 16.40270186 | T100: 37.5 | U100: 17.13130395
D101: SPN | E101: 12.49440525 | F101: -0.003014430162 | G101: -0.4559919894 | I101: SPN | J101: 0.9905462404 | K101: 1.393311458 | L101: 0.1331021688 | M101: 2.161999241 | N101: 3.041704732 | O101: 0.706027078 | P101: 45.69627067 | Q101: 62.7 | R101: 5.619237093 | S101: 35.4072126 | T101: 43.5 | U101: 6.495045334
D102: EPN | E102: 22.42730428 | F102: 0 | G102: -0.5792804605 | I102: EPN | J102: 1.663598741 | K102: 2.241052451 | L102: 0.2998782688 | M102: 4.4995078 | N102: 6.104398168 | O102: 2.03055753 | P102: 46.85820126 | Q102: 65.7 | R102: 9.784760035 | S102: 37.29178038 | T102: 45.9 | U102: 10.89138891
D103: SPD | E103: 12.67870198 | F103: 0 | G103: 0 | I103: SPD | J103: 1.027902085 | K103: 1.741972587 | L103: 0.2098734403 | M103: 2.910449196 | N103: 4.250544389 | O103: 0.9529093928 | P103: 40.27711286 | Q103: 49.9 | R103: 2.828275955 | S103: 28.28239676 | T103: 40.5 | U103: 8.687643195
D104: SPMW | E104: 6.555623975 | F104: 0 | G104: 0 | I104: SPMW | J104: 1.700473442 | K104: 2.697917873 | L104: 0.2175059995 | M104: 5.515700008 | N104: 8.918911884 | O104: 1.806889983 | P104: 28.79849514 | Q104: 34.9 | R104: 1.330514136 | S104: 27.47157131 | T104: 33.5 | U104: 3.200713858
D105: SSEH | E105: 2.717371601 | F105: 0 | G105: 0 | I105: SSEH | J105: 5.439763307 | K105: 3.95106303 | L105: -0.1787751767 | M105: 12.25645486 | N105: 7.850335858 | O105: -1.234618994 | P105: 51.90663714 | Q105: 66.2 | R105: 1.716462683 | S105: 42.98381415 | T105: 51.6 | U105: 2.414303089
D106: SSES | E106: 6.079764805 | F106: 0 | G106: 0 | I106: SSES | J106: 1.658156072 | K106: 1.79368654 | L106: 0.06238978211 | M106: 3.289450491 | N106: 4.627380411 | O106: 1.499581553 | P106: 53.47464396 | Q106: 58.6 | R106: 2.359394552 | S106: 44.2742718 | T106: 46.2 | U106: 2.158398917
D107: Total | E107: =SUM(E93:E106) -> 176.5406565 | F107: =SUM(F93:F106) -> -0.00687290077 | G107: =SUM(G93:G106) -> -1.513381744
J109: PLANNED | P109: UNPLANNED
D110: 2018/19 | I110: 2018/19 | J110: CI | M110: CML | P110: CI | S110: CML
E111: Total reward (£m)** | F111: Regulation 7 Severe Weather Conditions Adjustment | G111: Normal weather conditions adjustment | J111: Performance | K111: Target | L111: Reward/Penalty (£m) | M111: Performance | N111: Target | O111: Reward/Penalty (£m) | P111: Performance | Q111: Target | R111: Reward/Penalty (£m) | S111: Performance | T111: Target | U111: Reward/Penalty (£m)
D112: ENWL | E112: 14.37238924 | F112: 0 | G112: -2.017032736e-07 | I112: ENWL | J112: 0.9369779536 | K112: 1.870446082 | L112: 0.3556747271 | M112: 2.345466329 | N112: 4.702774568 | O112: 2.160519395 | P112: 32.66285758 | Q112: 45.3 | R112: 4.815067642 | S112: 30.61753793 | T112: 38.3 | U112: 7.04112768
D113: NPgN | E113: 8.308806026 | F113: -0.01227303709 | G113: -0.1779547315 | I113: NPgN | J113: 1.890711573 | K113: 3.082080068 | L113: 0.2829460762 | M113: 4.258405124 | N113: 7.406846537 | O113: 1.86936105 | P113: 52.39345079 | Q113: 58.3 | R113: 1.402785898 | S113: 43.37324692 | T113: 51.7 | U113: 4.943940771
D114: NPgY | E114: 19.35125501 | F114: 0 | G114: -0.0272246107 | I114: NPgY | J114: 1.056348868 | K114: 1.485476497 | L114: 0.1486280719 | M114: 2.384664181 | N114: 3.85158627 | O114: 1.248394429 | P114: 48.24677524 | Q114: 63.7 | R114: 5.352214231 | S114: 36.38748072 | T114: 54.1 | U114: 15.07388195
D115: WMID | E115: 25.40733994 | F115: 0 | G115: 0 | I115: WMID | J115: 2.566582049 | K115: 2.378876779 | L115: -0.08848283254 | M115: 5.260792939 | N115: 4.083374521 | O115: -1.358353252 | P115: 52.80417724 | Q115: 81.7 | R115: 13.6212704 | S115: 27.03656188 | T115: 48.7 | U115: 24.99247605
D116: EMID | E116: 24.13518306 | F116: 0 | G116: 0 | I116: EMID | J116: 0.880210894 | K116: 0.9515548137 | L116: 0.03540103102 | M116: 1.643946521 | N116: 1.51194585 | O116: -0.1621101797 | P116: 38.8911438 | Q116: 50.1 | R116: 5.561862423 | S116: 21.27321728 | T116: 36.5 | U116: 18.70002978
D117: SWALES | E117: 6.95672625 | F117: 0 | G117: 0 | I117: SWALES | J117: 3.381534032 | K117: 3.694929231 | L117: 0.06609067893 | M117: 5.463302373 | N117: 6.044779277 | O117: 0.3029568054 | P117: 37.90951405 | Q117: 49.4 | R117: 2.423183318 | S117: 19.40692021 | T117: 27.4 | U117: 4.164495448
D118: SWEST | E118: 4.725245623 | F118: 0 | G118: 0 | I118: SWEST | J118: 3.444087946 | K118: 3.680367983 | L118: 0.07034564653 | M118: 7.84315674 | N118: 8.627315401 | O118: 0.5739246894 | P118: 48.02069537 | Q118: 54.8 | R118: 2.018344725 | S118: 32.38180861 | T118: 35.2 | U118: 2.062630562
D119: LPN | E119: 18.94784673 | F119: 0 | G119: -1.50549255e-09 | I119: LPN | J119: 0.1186411422 | K119: 0.434255338 | L119: 0.1043012954 | M119: 0.2869809424 | N119: 0.9242553081 | O119: 0.5174757824 | P119: 13.97628704 | Q119: 26.6 | R119: 4.171769307 | S119: 15.62981244 | T119: 36.8 | U119: 17.19049119
D120: SPN | E120: 13.26339834 | F120: -5.167594564e-11 | G120: -1.705133953e-07 | I120: SPN | J120: 1.169428263 | K120: 1.225831627 | L120: 0.01863966831 | M120: 2.568054754 | N120: 2.679543487 | O120: 0.08947774642 | P120: 43.18710635 | Q120: 62.4 | R120: 6.34930153 | S120: 34.11979041 | T120: 42.6 | U120: 6.805979566
D121: EPN | E121: 29.13949145 | F121: -1.446926478e-09 | G121: -1.152442489e-07 | I121: EPN | J121: 1.928074655 | K121: 1.788450915 | L121: -0.07250819364 | M121: 5.267370991 | N121: 4.711008991 | O121: -0.7039266181 | P121: 39.49442978 | Q121: 65.4 | R121: 13.45305677 | S121: 29.54380518 | T121: 44.9 | U121: 19.42913835
D122: SPD | E122: 6.496518957 | F122: 0 | G122: 0 | I122: SPD | J122: 1.065710581 | K122: 1.495074946 | L122: 0.1261950693 | M122: 3.091231217 | N122: 3.718747006 | O122: 0.4462113537 | P122: 48.26902539 | Q122: 49.6 | R122: 0.3911885719 | S122: 31.91894037 | T122: 39.7 | U122: 5.532923962
D123: SPMW | E123: 2.688577896 | F123: 0 | G123: 0 | I123: SPMW | J123: 1.636045031 | K123: 2.325807492 | L123: 0.1504118613 | M123: 5.315877734 | N123: 7.502718408 | O123: 1.161073907 | P123: 34.50794333 | Q123: 34.7 | R123: 0.04188050644 | S123: 30.28517724 | T123: 32.8 | U123: 1.335211622
D124: SSEH | E124: 0.1883643057 | F124: 0 | G124: 0 | I124: SSEH | J124: 4.29774227 | K124: 4.380424523 | L124: 0.00992915405 | M124: 9.310820708 | N124: 8.849477843 | O124: -0.1292708308 | P124: 65.06981848 | Q124: 65.9 | R124: 0.0996949156 | S124: 49.7576483 | T124: 50.5 | U124: 0.2080110668
D125: SSES | E125: 2.875100163 | F125: 0 | G125: -5.339847716e-09 | I125: SSES | J125: 1.460321879 | K125: 1.690791671 | L125: 0.1060939316 | M125: 3.685621978 | N125: 4.217909169 | O125: 0.5965992991 | P125: 50.64136819 | Q125: 57.7 | R125: 3.249354249 | S125: 46.26085473 | T125: 45.3 | U125: -1.076947311
D126: Total | E126: =SUM(E112:E125) -> 176.856243 | F126: =SUM(F112:F125) -> -0.01227303859 | G126: =SUM(G112:G125) -> -0.2051798365
J128: PLANNED | P128: UNPLANNED
D129: 2019/20 | I129: 2019/20 | J129: CI | M129: CML | P129: CI | S129: CML
E130: Total reward (£m)** | F130: Regulation 7 Severe Weather Conditions Adjustment | G130: Normal weather conditions adjustment | J130: Performance | K130: Target | L130: Reward/Penalty (£m) | M130: Performance | N130: Target | O130: Reward/Penalty (£m) | P130: Performance | Q130: Target | R130: Reward/Penalty (£m) | S130: Performance | T130: Target | U130: Reward/Penalty (£m)
D131: ENWL | E131: 19.44980281 | F131: -0.001063407766 | G131: -0.071157689 | I131: ENWL | J131: 1.282756494 | K131: 1.765583839 | L131: 0.1839693063 | M131: 3.20509248 | N131: 4.467330416 | O131: 1.156865911 | P131: 26.67041711 | Q131: 45.1 | R131: 7.02213248 | S131: 23.94099974 | T131: 37.6 | U131: 12.51874255
D132: NPgN | E132: 10.88442213 | F132: 0 | G132: -0.03520725599 | I132: NPgN | J132: 1.423933152 | K132: 2.68086191 | L132: 0.2985164217 | M132: 2.89559015 | N132: 6.311038822 | O132: 2.027894401 | P132: 45.5465512 | Q132: 58 | R132: 2.957652891 | S132: 41.20838876 | T132: 50.7 | U132: 5.63556567
D133: NPgY | E133: 16.66500234 | F133: -0.0006767140331 | G133: -0.1038514357 | I133: NPgY | J133: 0.9844097283 | K133: 1.340582834 | L133: 0.1233603208 | M133: 1.884521616 | N133: 3.413853758 | O133: 1.301507245 | P133: 49.80332133 | Q133: 62.7 | R133: 4.466756173 | S133: 40.21794866 | T133: 53 | U133: 10.87790675
D134: WMID | E134: 25.40733994 | F134: 0 | G134: 0 | I134: WMID | J134: 2.252638455 | K134: 2.443885841 | L134: 0.09015255879 | M134: 4.833512452 | N134: 4.364842004 | O134: -0.5406914126 | P134: 46.2314413 | Q134: 80 | R134: 15.91824095 | S134: 24.16904357 | T134: 47.9 | U134: 27.37771156
D135: EMID | E135: 24.4370319 | F135: 0 | G135: 0 | I135: EMID | J135: 0.6842469757 | K135: 0.9208474338 | L135: 0.1174017379 | M135: 1.28170762 | N135: 1.537041082 | O135: 0.3135753259 | P135: 37.21854861 | Q135: 49.9 | R135: 6.29256783 | S135: 21.27652469 | T135: 35.7 | U135: 17.71348701
D136: SWALES | E136: 7.012886156 | F136: 0 | G136: 0 | I136: SWALES | J136: 2.897269786 | K136: 3.618726894 | L136: 0.1521452476 | M136: 4.454346211 | N136: 5.857316531 | O136: 0.7309652429 | P136: 40.62403498 | Q136: 49.1 | R136: 1.787462874 | S136: 18.96562839 | T136: 27.3 | U136: 4.342312792
D137: SWEST | E137: 7.846843503 | F137: 0 | G137: 0 | I137: SWEST | J137: 3.41650977 | K137: 3.825498973 | L137: 0.1217648782 | M137: 8.125964787 | N137: 8.923056065 | O137: 0.5833900555 | P137: 42.67971445 | Q137: 54.6 | R137: 3.548925265 | S137: 30.09117396 | T137: 35 | U137: 3.592763304
D138: LPN | E138: 18.84908878 | F138: 0 | G138: -0.0987579542 | I138: LPN | J138: 0.05046098676 | K138: 0.1976164761 | L138: 0.04863060146 | M138: 0.1220064044 | N138: 0.4479849342 | O138: 0.2646991686 | P138: 13.14952956 | Q138: 26.5 | R138: 4.411941478 | S138: 14.26453029 | T138: 36.2 | U138: 17.81191111
D139: SPN | E139: 14.7892202 | F139: 0 | G139: -0.189074928 | I139: SPN | J139: 1.08301453 | K139: 1.100815532 | L139: 0.005882712535 | M139: 2.42706761 | N139: 2.435239227 | O139: 0.006558311769 | P139: 43.95518775 | Q139: 62.1 | R139: 5.996331748 | S139: 30.42402911 | T139: 41.6 | U139: 8.969522358
D140: EPN | E140: 28.72441505 | F140: 0 | G140: -0.4150765215 | I140: EPN | J140: 1.659512291 | K140: 1.552249169 | L140: -0.05570295711 | M140: 4.285547788 | N140: 4.170362106 | O140: -0.14573653 | P140: 42.12294176 | Q140: 65.1 | R140: 11.93224725 | S140: 29.48077262 | T140: 43.9 | U140: 18.24365783
D141: SPD | E141: 7.740132157 | F141: 0 | G141: 0 | I141: SPD | J141: 1.159486027 | K141: 1.229292983 | L141: 0.02051705803 | M141: 3.44695591 | N141: 3.181277725 | O141: -0.188917354 | P141: 43.36898468 | Q141: 49.4 | R141: 1.772583984 | S141: 30.27089517 | T141: 38.9 | U141: 6.13594847
D142: SPMW | E142: 3.251431961 | F142: 0 | G142: 0 | I142: SPMW | J142: 1.684800241 | K142: 1.907159037 | L142: 0.04848828733 | M142: 5.050036293 | N142: 6.147940852 | O142: 0.5829177907 | P142: 30.53699203 | Q142: 34.5 | R142: 0.8641864982 | S142: 28.79294008 | T142: 32.1 | U142: 1.755839384
D143: SSEH | E143: 1.796600349 | F143: 0 | G143: 0 | I143: SSEH | J143: 3.598364804 | K143: 4.685568454 | L143: 0.1305602127 | M143: 7.824006819 | N143: 9.885134716 | O143: 0.5775394749 | P143: 59.57476717 | Q143: 65.3 | R143: 0.6875322906 | S143: 47.76902059 | T143: 49.2 | U143: 0.4009683705
D144: SSES | E144: 7.610655688 | F144: 0 | G144: -0.03825246914 | I144: SSES | J144: 1.537460284 | K144: 1.55827811 | L144: 0.009583229816 | M144: 3.561941451 | N144: 3.489304228 | O144: -0.08141341123 | P144: 45.61735648 | Q144: 57.4 | R144: 5.423994882 | S144: 42.3508405 | T144: 44.4 | U144: 2.296743457
D145: Total | E145: =SUM(E131:E144) -> 194.464873 | F145: =SUM(F131:F144) -> -0.001740121799 | G145: =SUM(G131:G144) -> -0.9513782535
J147: PLANNED | P147: UNPLANNED
D148: 2020/21 | I148: 2020/21 | J148: CI | M148: CML | P148: CI | S148: CML
E149: Total reward (£m)** | F149: Regulation 7 Severe Weather Conditions Adjustment | G149: Normal weather conditions adjustment | J149: Performance | K149: Target | L149: Reward/Penalty (£m) | M149: Performance | N149: Target | O149: Reward/Penalty (£m) | P149: Performance | Q149: Target | R149: Reward/Penalty (£m) | S149: Performance | T149: Target | U149: Reward/Penalty (£m)
D150: ENWL | E150: 17.52050264 | F150: 0 | G150: -0.07185115618 | I150: ENWL | J150: 1.315649459 | K150: 1.536537841 | L150: 0.08416400343 | M150: 2.694319075 | N150: 3.884399671 | O150: 1.090732289 | P150: 29.41461569 | Q150: 44.9 | R150: 5.90031911 | S150: 25.45595963 | T150: 36.9 | U150: 10.48868823
D151: NPgN | E151: 14.35442935 | F151: 0 | G151: 0 | I151: NPgN | J151: 1.139708547 | K151: 2.322671577 | L151: 0.2809498059 | M151: 1.870607656 | N151: 5.463132828 | O151: 2.133032109 | P151: 44.12407771 | Q151: 57.7 | R151: 3.224236631 | S151: 34.94826778 | T151: 49.7 | U151: 8.758718999
D152: NPgY | E152: 16.28384238 | F152: 0 | G152: -0.03088716202 | I152: NPgY | J152: 0.7474173228 | K152: 1.178528483 | L152: 0.1493150668 | M152: 1.25550583 | N152: 2.878927981 | O152: 1.381580649 | P152: 51.6751498 | Q152: 61.8 | R152: 3.506735205 | S152: 38.74887946 | T152: 52 | U152: 11.27709862
D153: WMID | E153: 25.40733994 | F153: 0 | G153: 0 | I153: WMID | J153: 1.892329371 | K153: 2.604691613 | L153: 0.3358021266 | M153: 3.962484007 | N153: 4.865194538 | O153: 1.041430783 | P153: 42.55582522 | Q153: 78.3 | R153: 16.8495313 | S153: 24.27999562 | T153: 47.1 | U153: 26.32677277
D154: EMID | E154: 21.79169408 | F154: 0 | G154: 0 | I154: EMID | J154: 0.6177962557 | K154: 0.8893194205 | L154: 0.1347304721 | M154: 1.147747571 | N154: 1.532319657 | O154: 0.4722934325 | P154: 38.95613723 | Q154: 49.6 | R154: 5.281511271 | S154: 21.95061179 | T154: 34.9 | U154: 15.9031589
D155: SWALES | E155: 7.336743295 | F155: 0 | G155: 0 | I155: SWALES | J155: 3.00942611 | K155: 3.555644987 | L155: 0.1151899474 | M155: 4.924884069 | N155: 5.8031794 | O155: 0.4576029521 | P155: 35.88362698 | Q155: 48.9 | R155: 2.744971631 | S155: 19.5862161 | T155: 27.3 | U155: 4.018978765
D156: SWEST | E156: 1.328451662 | F156: 0 | G156: 0 | I156: SWEST | J156: 3.261216838 | K156: 3.807883602 | L156: 0.1627544479 | M156: 7.077832195 | N156: 8.696396605 | O156: 1.184625157 | P156: 55.19347482 | Q156: 54.3 | R156: -0.2660066606 | S156: 34.46241404 | T156: 34.8 | U156: 0.2470787175
D157: LPN | E157: 18.85841485 | F157: 0 | G157: -0.08943188524 | I157: LPN | J157: 0.009323563866 | K157: 0.1421553355 | L157: 0.04389703011 | M157: 0.01803446646 | N157: 0.360217838 | O157: 0.2778577289 | P157: 13.01123332 | Q157: 26.3 | R157: 4.391550184 | S157: 11.36004971 | T157: 35.6 | U157: 19.68318187
D158: SPN | E158: 14.97538764 | F158: -0.001283482767 | G158: -0.2169897753 | I158: SPN | J158: 0.2070279121 | K158: 1.116762626 | L158: 0.3006408153 | M158: 0.5486525897 | N158: 2.479991535 | O158: 1.550038742 | P158: 44.08819337 | Q158: 61.8 | R158: 5.853236008 | S158: 31.36782238 | T158: 40.7 | U158: 7.489745337
D159: EPN | E159: 28.93040143 | F159: 0 | G159: -0.2090901359 | I159: EPN | J159: 0.8800719614 | K159: 1.716863656 | L159: 0.4345554287 | M159: 1.900592201 | N159: 4.670672703 | O159: 3.504792558 | P159: 43.03484345 | Q159: 64.8 | R159: 11.30289294 | S159: 30.37236948 | T159: 43 | U159: 15.97687339
D160: SPD | E160: 10.78488175 | F160: 0 | G160: 0 | I160: SPD | J160: 1.147473564 | K160: 1.067138719 | L160: -0.02361132447 | M160: 2.986902853 | N160: 2.949614131 | O160: -0.02651511135 | P160: 39.31177943 | Q160: 49.1 | R160: 2.876869331 | S160: 26.90831304 | T160: 38.1 | U160: 7.958138857
D161: SPMW | E161: 1.989011494 | F161: 0 | G161: 0 | I161: SPMW | J161: 1.749116202 | K161: 1.722113223 | L161: -0.005888358101 | M161: 4.631410368 | N161: 5.529154792 | O161: 0.4766454356 | P161: 30.17649704 | Q161: 34.4 | R161: 0.920990889 | S161: 30.17507577 | T161: 31.3 | U161: 0.5972635278
D162: SSEH | E162: 1.021966568 | F162: 0 | G162: 0 | I162: SSEH | J162: 3.33896684 | K162: 5.086186028 | L162: 0.2098202198 | M162: 7.087168851 | N162: 11.11080101 | O162: 1.127444059 | P162: 60.65273955 | Q162: 64.1 | R162: 0.4139749319 | S162: 50.30263455 | T162: 47.7 | U162: -0.7292726426
D163: SSES | E163: 7.951604394 | F163: 0 | G163: -0.02534132253 | I163: SSES | J163: 1.246847875 | K163: 1.610539015 | L163: 0.167420739 | M163: 2.571868299 | N163: 3.692393306 | O163: 1.255909301 | P163: 47.17100459 | Q163: 57.1 | R163: 4.570690793 | S163: 41.73083011 | T163: 43.5 | U163: 1.982924884
D164: Total | E164: =SUM(E150:E163) -> 188.5346715 | F164: =SUM(F150:F163) -> -0.001283482767 | G164: =SUM(G150:G163) -> -0.6435914371
J166: PLANNED | P166: UNPLANNED
D167: 2021/22 | I167: 2021/22 | J167: CI | M167: CML | P167: CI | S167: CML
E168: Total reward (£m)** | F168: Regulation 7 Severe Weather Conditions Adjustment | G168: Normal weather conditions adjustment | J168: Performance | K168: Target | L168: Reward/Penalty (£m) | M168: Performance | N168: Target | O168: Reward/Penalty (£m) | P168: Performance | Q168: Target | R168: Reward/Penalty (£m) | S168: Performance | T168: Target | U168: Reward/Penalty (£m)
D169: ENWL | E169: 18.85946321 | F169: 0 | G169: -0.1225636263 | I169: ENWL | J169: 0.9682670894 | K169: 1.370667051 | L169: 0.1533244598 | M169: 2.029591708 | N169: 3.526932413 | O169: 1.372342225 | P169: 24.80005771 | Q169: 44.6 | R169: 7.544273722 | S169: 25.38508065 | T169: 36.2 | U169: 9.912086432
D170: NPgN | E170: 6.607925724 | F170: 0.5579279598 | G170: 0 | I170: NPgN | J170: 1.499251302 | K170: 1.807894485 | L170: 0.07330173468 | M170: 2.987978394 | N170: 3.968693554 | O170: 0.5822915153 | P170: 48.33541649 | Q170: 57.4 | R170: 2.152808597 | S170: 43.34039398 | T170: 48.8 | U170: 3.241595918
D171: NPgY | E171: 12.10447818 | F171: -0.001896273814 | G171: 0 | I171: NPgY | J171: 1.062044476 | K171: 1.113844045 | L171: 0.01794074666 | M171: 2.084566497 | N171: 2.51566243 | O171: 0.3668754912 | P171: 50.00893343 | Q171: 60.9 | R171: 3.772113743 | S171: 41.55902938 | T171: 50.9 | U171: 7.94944447
D172: WMID | E172: 25.40733994 | F172: 0 | G172: 0 | I172: WMID | J172: 2.247044503 | K172: 2.395022533 | L172: 0.06975571442 | M172: 4.524852231 | N172: 4.845024599 | O172: 0.3693735127 | P172: 44.51286076 | Q172: 76.7 | R172: 15.17277189 | S172: 24.99573536 | T172: 46.4 | U172: 24.69347518
D173: EMID | E173: 23.06204198 | F173: 0 | G173: 0 | I173: EMID | J173: 0.6575857123 | K173: 0.8135585297 | L173: 0.0773941013 | M173: 1.36108072 | N173: 1.452902463 | O173: 0.1127663905 | P173: 36.49715155 | Q173: 49.4 | R173: 6.402425606 | S173: 20.78949589 | T173: 34.2 | U173: 16.46945588
D174: SWALES | E174: 6.80878688 | F174: 0 | G174: 0 | I174: SWALES | J174: 3.711428869 | K174: 3.300373307 | L174: -0.08668588818 | M174: 5.242502229 | N174: 5.197811148 | O174: -0.02328461735 | P174: 35.07766349 | Q174: 48.6 | R174: 2.851672278 | S174: 19.39388371 | T174: 27.2 | U174: 4.067085108
D175: SWEST | E175: 6.57422394 | F175: 0 | G175: 0 | I175: SWEST | J175: 3.174398779 | K175: 3.565283743 | L175: 0.1163748566 | M175: 7.359666347 | N175: 8.221059768 | O175: 0.6304527089 | P175: 47.30547833 | Q175: 54 | R175: 1.993103016 | S175: 29.3611692 | T175: 34.6 | U175: 3.834293358
D176: LPN | E176: 18.8592772 | F176: 0 | G176: -0.08856953193 | I176: LPN | J176: 0.01138588201 | K176: 0.09754012982 | L176: 0.02847146856 | M176: 0.02017586679 | N176: 0.2489755962 | O176: 0.1857886106 | P176: 15.03301277 | Q176: 26.2 | R176: 3.6903639 | S176: 13.88778437 | T176: 35 | U176: 17.14341717
D177: SPN | E177: 15.76520249 | F177: 0 | G177: -0.4163720653 | I177: SPN | J177: 0.8804019833 | K177: 1.080996344 | L177: 0.06629059151 | M177: 1.659759731 | N177: 2.385707201 | O177: 0.5826251814 | P177: 38.21990991 | Q177: 61.5 | R177: 7.693391445 | S177: 30.03232006 | T177: 39.8 | U177: 7.839267341
D178: EPN | E178: 28.94477461 | F178: 0 | G178: -0.1947169578 | I178: EPN | J178: 1.113224817 | K178: 1.750395229 | L178: 0.33088983 | M178: 2.463010907 | N178: 4.684142193 | O178: 2.810244827 | P178: 37.77294305 | Q178: 64.4 | R178: 13.82773302 | S178: 27.18104939 | T178: 42.1 | U178: 18.87592329
D179: SPD | E179: 13.31218786 | F179: 0 | G179: 0 | I179: SPD | J179: 0.6708134171 | K179: 1.084366231 | L179: 0.1215478747 | M179: 1.550606589 | N179: 3.149545441 | O179: 1.13696688 | P179: 36.50423189 | Q179: 48.9 | R179: 3.643257203 | S179: 25.57226695 | T179: 37.4 | U179: 8.410415902
D180: SPMW | E180: 3.875550784 | F180: 0 | G180: 0 | I180: SPMW | J180: 1.62947086 | K180: 1.673772905 | L180: 0.009660649124 | M180: 4.337780032 | N180: 5.293871345 | O180: 0.5076239386 | P180: 28.70254655 | Q180: 34.2 | R180: 1.198792706 | S180: 26.53270985 | T180: 30.6 | U180: 2.15947349
D181: SSEH | E181: 4.788264466 | F181: 3.448048764 | G181: 0 | I181: SSEH | J181: 3.898074369 | K181: 4.445290127 | L181: 0.06571409665 | M181: 8.808708029 | N181: 9.797094127 | O181: 0.2769512696 | P181: 51.62363735 | Q181: 63.8 | R181: 1.462236166 | S181: 48.25837483 | T181: 46.6 | U181: -0.4646858297
D182: SSES | E182: 11.45760737 | F182: -0.01833064687 | G182: -0.07973379895 | I182: SSES | J182: 1.379745759 | K182: 1.551979412 | L182: 0.07928564159 | M182: 3.16762086 | N182: 3.512337973 | O182: 0.3863665926 | P182: 41.07933558 | Q182: 56.8 | R182: 7.236814318 | S182: 39.16216189 | T182: 42.6 | U182: 3.853205261
D183: Total | E183: =SUM(E169:E182) -> 196.4271246 | F183: =SUM(F169:F182) -> 3.985749803 | G183: =SUM(G169:G182) -> -0.9019559802
J185: PLANNED | P185: UNPLANNED
D186: 2022/23 | I186: 2022/23 | J186: CI | M186: CML | P186: CI | S186: CML
E187: Total reward (£m)** | F187: Regulation 7 Severe Weather Conditions Adjustment | G187: Normal weather conditions adjustment | J187: Performance | K187: Target | L187: Reward/Penalty (£m) | M187: Performance | N187: Target | O187: Reward/Penalty (£m) | P187: Performance | Q187: Target | R187: Reward/Penalty (£m) | S187: Performance | T187: Target | U187: Reward/Penalty (£m)
D188: ENWL | E188: 18.96891144 | F188: 0 | G188: -0.1001021632 | I188: ENWL | J188: 1.256102631 | K188: 1.178461302 | L188: -0.03194995342 | M188: 2.686481279 | N188: 2.748292628 | O188: 0.06118342278 | P188: 25.32816854 | Q188: 44.4 | R188: 7.848192886 | S188: 24.19355344 | T188: 35.5 | U188: 11.19158725
D189: NPgN | E189: 7.370170223 | F189: 0 | G189: -0.04282210966 | I189: NPgN | J189: 1.274133734 | K189: 1.484784424 | L189: 0.05403114945 | M189: 2.564010368 | N189: 3.008200977 | O189: 0.2848332598 | P189: 45.64430018 | Q189: 57.1 | R189: 2.938346073 | S189: 41.45034782 | T189: 47.9 | U189: 4.135781851
D190: NPgY | E190: 0.2028140975 | F190: 0 | G190: -0.05302189197 | I190: NPgY | J190: 1.234327526 | K190: 0.9293919731 | L190: -0.1140633665 | M190: 2.347287954 | N190: 1.841563876 | O190: -0.4648171692 | P190: 58.08775081 | Q190: 60 | R190: 0.7152907488 | S190: 49.77006398 | T190: 49.9 | U190: 0.1194257763
D191: WMID | E191: 25.40733994 | F191: 0 | G191: 0 | I191: WMID | J191: 2.093231575 | K191: 2.237183292 | L191: 0.07328636047 | M191: 4.404412785 | N191: 4.685596466 | O191: 0.3503448758 | P191: 44.28519619 | Q191: 75.1 | R191: 15.68793251 | S191: 26.32955031 | T191: 45.6 | U191: 24.01029557
D192: EMID | E192: 24.54607418 | F192: 0 | G192: 0 | I192: EMID | J192: 0.7443680594 | K192: 0.7274180418 | L192: -0.009083492324 | M192: 1.446861091 | N192: 1.357800571 | O192: -0.118125356 | P192: 31.87349655 | Q192: 49.1 | R192: 9.231660727 | S192: 20.4529521 | T192: 33.5 | U192: 17.30494248
D193: SWALES | E193: 5.249239932 | F193: 0 | G193: 0 | I193: SWALES | J193: 2.999571564 | K193: 3.096076643 | L193: 0.02197970196 | M193: 4.958373955 | N193: 4.947510885 | O193: -0.006112580792 | P193: 40.95355148 | Q193: 48.4 | R193: 1.695980372 | S193: 20.81346635 | T193: 27.1 | U193: 3.537392439
D194: SWEST | E194: 4.607249424 | F194: 0 | G194: 0 | I194: SWEST | J194: 3.574369821 | K194: 3.373938184 | L194: -0.06444663158 | M194: 7.973830911 | N194: 7.682317907 | O194: -0.230426622 | P194: 45.91193942 | Q194: 53.7 | R194: 2.504166904 | S194: 31.36634319 | T194: 34.4 | U194: 2.397955773
D195: LPN | E195: 18.876668 | F195: 0 | G195: -0.07117873054 | I195: LPN | J195: 0.01066709169 | K195: 0.05947523096 | L195: 0.0174200413 | M195: 0.01836520781 | N195: 0.1423406044 | O195: 0.1087233542 | P195: 11.63788005 | Q195: 26.1 | R195: 5.161653991 | S195: 12.16925743 | T195: 34.4 | U195: 19.49581099
D196: SPN | E196: 4.237863299 | F196: 0 | G196: -0.1824805471 | I196: SPN | J196: 0.9159308743 | K196: 0.8198235684 | L196: -0.03430151739 | M196: 1.880322793 | N196: 1.847924984 | O196: -0.02808170305 | P196: 53.63808953 | Q196: 61.2 | R196: 2.69891036 | S196: 36.942014 | T196: 39 | U196: 1.783816707
D197: EPN | E197: 28.89662557 | F197: 0 | G197: -0.1804647721 | I197: EPN | J197: 1.135805079 | K197: 1.489219636 | L197: 0.1982147674 | M197: 2.654290905 | N197: 3.817836993 | O197: 1.589927326 | P197: 41.63520026 | Q197: 64.1 | R197: 12.59952364 | S197: 30.44993472 | T197: 41.2 | U197: 14.68942461
D198: SPD | E198: 14.22 | F198: 0 | G198: 0 | I198: SPD | J198: 0.5591011975 | K198: 1.124223391 | L198: 0.1793835058 | M198: 1.386911553 | N198: 3.175029993 | O198: 1.37320696 | P198: 35.72793381 | Q198: 48.6 | R198: 4.085906355 | S198: 24.04166334 | T198: 36.7 | U198: 9.721121155
D199: SPMW | E199: 2.83 | F199: 0 | G199: 0 | I199: SPMW | J199: 1.878818478 | K199: 1.689987158 | L199: -0.04447135017 | M199: 5.045032076 | N199: 4.999108132 | O199: -0.02633332265 | P199: 28.40947538 | Q199: 34 | R199: 1.316615159 | S199: 26.86075496 | T199: 30 | U199: 1.800079533
D200: SSEH | E200: -0.7050677317 | F200: 0 | G200: 0 | I200: SSEH | J200: 5.198568575 | K200: 3.745024638 | L200: -0.1885175845 | M200: 11.86138749 | N200: 8.073998793 | O200: -1.146147117 | P200: 54.49080564 | Q200: 63.5 | R200: 1.168448724 | S200: 47.38061002 | T200: 45.6 | U200: -0.5388517541
D201: SSES | E201: 0.9761292199 | F201: 0 | G201: -0.04424621241 | I201: SSES | J201: 1.626422749 | K201: 1.414876679 | L201: -0.1051732393 | M201: 3.566410749 | N201: 3.273143909 | O201: -0.3549959821 | P201: 43.93846615 | Q201: 56.5 | R201: 6.245151251 | S201: 45.73610404 | T201: 41.8 | U201: -4.764606598
D202: Total | E202: =SUM(E188:E201) -> 155.6840176 | F202: =SUM(F188:F201) -> 0 | G202: =SUM(G188:G201) -> -0.6743164269
B206: Guaranteed Standards of Performance (GSoP)
E207: Guaranteed Standards of Performance - payments owed and percentage of mandatory payments made, 2015/16
E208: Regulation 5 (Supply Restoration: Normal Conditions)* | G208: Regulation 6 (Supply Restoration: Normal Conditions - 5,000 or more customers' premises interrupted) | I208: Regulation 7(1) - Supply Restoration: Category 1 Severe Weather Conditions* | K208: Regulation 7(2) - Supply Restoration: Category 2 Severe Weather Conditions* | M208: Regulation 7(3) - Supply Restoration: Category 3 Severe Weather Conditions* | O208: Regulation 8 (Supply Restoration: Rota Disconnection) | Q208: Regulation 10 (Supply Restoration: Multiple interruptions) | S208: Regulation 11 (Responding to Operation of Distributor's Fuse) | U208: Regulation 12 (Notice of Supply Interruption ) | W208: Regulation 13 (Investigation of Voltage complaints) | X208: Regulation 17 (Making and Keeping Appointments) | Z208: Regulation 19 (Payments owed under the Guaranteed Standards)
E209: Number of valid payments owed | F209: Mandatory payments vs valid payments owed | G209: Number of valid payments owed | H209: Mandatory payments vs valid payments owed | I209: Number of valid payments owed | J209: Mandatory payments vs valid payments owed | K209: Number of valid payments owed | L209: Mandatory payments vs valid payments owed | M209: Number of valid payments owed | N209: Mandatory payments vs valid payments owed | O209: Number of valid payments owed | P209: Mandatory payments vs valid payments owed | Q209: Number of valid payments owed | R209: Mandatory payments vs valid payments owed | S209: Number of failures to attend on time | T209: Mandatory payments vs valid payments owed | U209: Number of valid payments owed | V209: Mandatory payments vs valid payments owed | W209: Total number of mandatory payments made | X209: Failures to offer timed appt. | Y209: Mandatory payments vs valid payments owed | Z209: Total payments due | AA209: Mandatory payments vs valid payments owed
D210: ENWL | E210: 256 | F210: 1.1015625 | G210: 0 | H210: N/A | I210: 0 | J210: N/A | K210: 3 | L210: 1 | M210: 0 | N210: N/A | O210: 0 | P210: N/A | Q210: 21 | R210: 1 | S210: 0 | T210: N/A | U210: 383 | V210: 1 | W210: 0 | X210: 1079 | Y210: 1 | Z210: 1042 | AA210: 1
D211: NPGN | E211: 2426 | F211: 1 | G211: 0 | H211: N/A | I211: 321 | J211: 1 | K211: 0 | L211: N/A | M211: 0 | N211: N/A | O211: 0 | P211: N/A | Q211: 2 | R211: 1 | S211: 0 | T211: N/A | U211: 28 | V211: 1 | W211: 0 | X211: 18 | Y211: 0.7727272727 | Z211: 14 | AA211: 1
D212: NPGY | E212: 1455 | F212: 1 | G212: 0 | H212: N/A | I212: 1067 | J212: 1 | K212: 0 | L212: N/A | M212: 0 | N212: N/A | O212: 0 | P212: N/A | Q212: 0 | R212: N/A | S212: 0 | T212: N/A | U212: 24 | V212: 1 | W212: 0 | X212: 27 | Y212: 0.6923076923 | Z212: 17 | AA212: 1
D213: WMID | E213: 0 | F213: N/A | G213: 0 | H213: N/A | I213: 0 | J213: N/A | K213: 0 | L213: N/A | M213: 0 | N213: N/A | O213: 0 | P213: N/A | Q213: 0 | R213: N/A | S213: 0 | T213: N/A | U213: 0 | V213: N/A | W213: 0 | X213: 12664 | Y213: 0 | Z213: 0 | AA213: N/A
D214: EMID | E214: 0 | F214: N/A | G214: 0 | H214: N/A | I214: 0 | J214: N/A | K214: 0 | L214: N/A | M214: 0 | N214: N/A | O214: 0 | P214: N/A | Q214: 0 | R214: N/A | S214: 0 | T214: N/A | U214: 3 | V214: 1 | W214: 0 | X214: 17409 | Y214: 0 | Z214: 0 | AA214: N/A
D215: SWALES | E215: 0 | F215: N/A | G215: 0 | H215: N/A | I215: 0 | J215: N/A | K215: 0 | L215: N/A | M215: 0 | N215: N/A | O215: 0 | P215: N/A | Q215: 0 | R215: N/A | S215: 0 | T215: N/A | U215: 1 | V215: 1 | W215: 0 | X215: 7505 | Y215: 0.0001332445037 | Z215: 0 | AA215: N/A
D216: SWEST | E216: 33 | F216: 1 | G216: 0 | H216: N/A | I216: 0 | J216: N/A | K216: 0 | L216: N/A | M216: 0 | N216: N/A | O216: 0 | P216: N/A | Q216: 0 | R216: N/A | S216: 2 | T216: 1 | U216: 5 | V216: 1 | W216: 0 | X216: 19295 | Y216: 0 | Z216: 0 | AA216: N/A
D217: LPN | E217: 2555 | F217: 0.03209393346 | G217: 0 | H217: N/A | I217: 0 | J217: N/A | K217: 0 | L217: N/A | M217: 0 | N217: N/A | O217: 0 | P217: N/A | Q217: 17 | R217: 1 | S217: 9 | T217: 1 | U217: 28 | V217: 1 | W217: 0 | X217: 46 | Y217: 1 | Z217: 0 | AA217: N/A
... 294 more rows

Sheet Ch2 - Network Asset SDs
A1: Chapter 2 - Network Assets SDs
B2: Performance against the outputs that DNOs are incentivised to deliver under RIIO-ED1.
B4: Reliability and availability: providing long-term reliability, minimising the number and duration of interruptions and ensuring adaptation to climate change.
B5: Incentive measure | F5: Incentive type
B6: Health, criticality and monetised risk: DNOs can receive a financial reward or incur a financial penalty depending on their performance against a target for the reduction in network risk that is delivered through specified asset replacement and refurbishment activities. | F6: Financial: penalty of 2.5% of under delivery or reward of 2.5% of over delivery.
D8: Year 1 to Year 8 cumulative delivery against rebased NAW target (Monetised risk points)
B9: Network Asset Indices Secondary Deliverables
D10: Position at Beginning of RIIO-ED1 | E10: End of RIIO-ED1 (Without Investment) | F10: End of RIIO-ED1 (With Investment) | G10: Impact of investment | H10: Deterioration | I10: Year 1 to Year 8 cumulative delivery against rebased NAW target | J10: % Delivered
C11: ENWL | D11: 34717173.95 | E11: 52801732.97 | F11: 41290441.3 | G11: 11511291.66 | H11: =+E11-D11 -> 18084559.02 | I11: 11853566.22 | J11: =I11/G11 -> 1.029733809
C12: NPgN | D12: 35398060.56 | E12: 50635472.35 | F12: 40069116.53 | G12: 10566355.82 | H12: =+E12-D12 -> 15237411.79 | I12: 10620186.83 | J12: =I12/G12 -> 1.005094567
C13: NPgY | D13: 29674137.94 | E13: 39226669.01 | F13: 29830607.61 | G13: 9396061.403 | H13: 9552531.069 | I13: 9678248.398 | J13: 1.030032477
C14: WMID | D14: 40210986.97 | E14: 52621580.09 | F14: 35393380.37 | G14: 17228199.72 | H14: 12410593.12 | I14: 21083012.62 | J14: 1.223750187
C15: EMID | D15: 34930944.44 | E15: 42724719.56 | F15: 30194501.95 | G15: 12530217.61 | H15: 7793775.128 | I15: 15771871.85 | J15: 1.258706938
C16: SWALES | D16: 20709600.89 | E16: 27797837.72 | F16: 17981336.21 | G16: 9816501.507 | H16: 7088236.823 | I16: 12276614.22 | J16: 1.250609926
C17: SWEST | D17: 31601986.91 | E17: 46546170.72 | F17: 30235486.38 | G17: 16310684.34 | H17: 14944183.81 | I17: 17662103.18 | J17: 1.082854822
C18: LPN | D18: 27708452.58 | E18: 35728247.99 | F18: 26585580.8 | G18: 9142667.194 | H18: 8019795.416 | I18: 9499814.693 | J18: 1.039063819
C19: SPN | D19: 35848065.34 | E19: 46097951.08 | F19: 37659235.17 | G19: 8438715.907 | H19: 10249885.73 | I19: 8768401.227 | J19: 1.039068186
C20: EPN | D20: 50577623.92 | E20: 65823784.59 | F20: 54362805.49 | G20: 11460979.09 | H20: 15246160.66 | I20: 11942841.65 | J20: 1.042043752
C21: SPD | D21: 30942854.04 | E21: 46997140.34 | F21: 40114396.53 | G21: 6882743.814 | H21: 16054286.3 | I21: 7438982.726 | J21: 1.080816449
C22: SPMW | D22: 36840842.87 | E22: 52578037.67 | F22: 42446657.55 | G22: 10131380.12 | H22: 15737194.81 | I22: 9717115.125 | J22: 0.9591107041
C23: SSEH | D23: 29746923.89 | E23: 40727721.33 | F23: 34325214.59 | G23: 6402506.739 | H23: 10980797.44 | I23: 6872333.333 | J23: 1.073381663
C24: SSES | D24: 47453646.57 | E24: 65647485.21 | F24: 49343867.27 | G24: 16303617.94 | H24: 18193838.64 | I24: 16656889.45 | J24: 1.021668289
C25: Total | D25: =SUM(D11:D24) -> 486361300.9 | E25: =SUM(E11:E24) -> 665954550.6 | F25: =SUM(F11:F24) -> 509832627.8 | G25: =SUM(F25-E25) * -1 -> 156121922.9 | H25: =+E25-D25 -> 179593249.8 | I25: =SUM(I11:I24) -> 169841981.5 | J25: 1.08788041

Sheet Ch2 outputs - environment
A1: Chapter 2 - Environment
B4: Environment: encouraging DNOs to play their role in achieving broader environmental objectives, namely the reduction in carbon emissions, as well as minimising the narrow environmental impact of the company's activities by managing their own carbon footprint, visual amenity and pollution.
B5: Incentive measure | F5: Incentive type
B6: Obligation to manage losses | F6: Financial: Losses Discretionary Reward of up to £32m across all DNOs, awarded in three tranches. Reputational: publish annual progress and a losses strategy. Licence obligation: to keep losses as low as reasonably practicable.
B7: Business Carbon Footprint (BCF) | F7: Reputational: publish annual progress.
B8: Limiting emissions of Sulphur Hexafluoride (SF6) | F8: Reputational: publish annual progress.
B9: Fluid filled cable leakage | F9: Reputational: publish annual progress.
B10: Noise pollution | F10: Reputational: publish annual progress.
B11: Visual impact allowance for undergrounding overhead lines in Areas of Outstanding Natural Beauty (AONB) and National Parks. | F11: Reputational incentive in the context of its performance in the utilisation of a funding pot of £103.6m (split between DNOs).
B12: Environmental report: obligation to inform stakeholders about the activities they have undertaken in relation to environmental matters, including their role in the transition to a low carbon economy. | F12: Licence obligation. Reputational.
D15: Reward allocated for the LDR
B16: Losses Discretionary Reward (LDR) | E16: Score
E17: 2015/16 | F17: 2016/17 | G17: 2017/18 | H17: 2018/19 | I17: 2019/20 | J17: 2020/21 | K17: 2021/22 | L17: 2022/23
D18: ENWL | F18: 0.52 | H18: 0 | J18: 0
D19: NPg | F19: 0.26 | H19: 0 | J19: 0
D20: NGED | F20: 0.12 | H20: 0 | J20: 0
D21: UKPN | F21: 0.71 | H21: 0 | J21: 0
D22: SPEN | F22: 0.58 | H22: 0 | J22: 0
D23: SSEN | F23: 0.68 | H23: 0 | J23: 0
D24: Total | F24: 0.48 | H24: 0 | J24: 0
E26: Reward (£)
E27: 2015/16 | F27: 2016/17 | G27: 2017/18 | H27: 2018/19 | I27: 2019/20 | J27: 2020/21 | K27: 2021/22 | L27: 2022/23
D28: ENWL | F28: =SUM(695000*'Guide & drivers'!D27) -> 780876.9184 | H28: 0 | J28: I
D29: NPg | F29: =SUM(350000*'Guide & drivers'!D27) -> 393247.369 | H29: 0 | J29: 0
D30: NGED | F30: =SUM(160000*'Guide & drivers'!D27) -> 179770.2258 | H30: 0 | J30: 0
D31: UKPN | F31: =SUM(945000*'Guide & drivers'!D27) -> 1061767.896 | H31: 0 | J31: 0
D32: SPEN | F32: =SUM(770000*'Guide & drivers'!D27) -> 865144.2117 | H32: 0 | J32: 0
D33: SSEN | F33: =SUM(910000*'Guide & drivers'!D27) -> 1022443.159 | H33: 0 | J33: 0
D34: Total | F34: =SUM(3830000*'Guide & drivers'!$D$27) -> 4303249.78 | H34: 0 | J34: 0
D36: Distribution losses (as % of units distributed)
E37: 2015/16 | F37: 2016/17 | G37: 2017/18 | H37: 2018/19 | I37: 2019/20 | J37: 2020/21 | K37: 2021/22 | L37: 2022/23
D38: ENWL | E38: 0.06503127969 | F38: 0.06384746757 | G38: 0.0666740889 | H38: 0.05645994619 | I38: 0.05378180315 | J38: 0.06039078535 | K38: 0.06028821678 | L38: 0.05094159762
D39: NPGN | E39: 0.0532639851 | F39: 0.0528818281 | G39: 0.05320209731 | H39: 0.04772904924 | I39: 0.05602674834 | J39: 0.05504855709 | K39: 0.04745876089 | L39: 0.05481575757
D40: NPGY | E40: 0.05812554782 | F40: 0.05827591783 | G40: 0.06339824738 | H40: 0.05765754177 | I40: 0.06533281138 | J40: 0.07098184319 | K40: 0.0688724921 | L40: 0.06770675706
D41: WMID | E41: 0.05240778806 | F41: 0.05728452603 | G41: 0.06072177821 | H41: 0.05628507425 | I41: 0.06072987881 | J41: 0.06659548727 | K41: 0.06075119116 | L41: 0.0605141186
D42: EMID | E42: 0.0479021429 | F42: 0.04793999889 | G42: 0.05150017112 | H42: 0.04708146121 | I42: 0.05188418895 | J42: 0.06017440314 | K42: 0.05614075468 | L42: 0.05433198616
D43: SWALES | E43: 0.04387134635 | F43: 0.04016168163 | G43: 0.04084826598 | H43: 0.04153950024 | I43: 0.04594790269 | J43: 0.05547422579 | K43: 0.04817753472 | L43: 0.04541743054
D44: SWEST | E44: 0.04668244866 | F44: 0.04672922118 | G44: 0.04988696892 | H44: 0.0442447603 | I44: 0.04697800609 | J44: 0.04559356551 | K44: 0.03848163424 | L44: 0.04155960424
D45: LPN | E45: 0.06938168673 | F45: 0.06939044964 | G45: 0.06782170887 | H45: 0.06625967838 | I45: 0.07525505256 | J45: 0.07839818224 | K45: 0.06755780375 | L45: 0.06309065091
D46: SPN | E46: 0.06232808266 | F46: 0.06744401068 | G46: 0.07190419656 | H46: 0.06914701481 | I46: 0.07941160795 | J46: 0.07856478211 | K46: 0.08042363409 | L46: 0.05811970019
D47: EPN | E47: 0.06839644265 | F47: 0.07412524403 | G47: 0.07207152782 | H47: 0.06464811784 | I47: 0.05489006349 | J47: 0.08497135184 | K47: 0.07922919217 | L47: 0.06176885318
D48: SPD | E48: 0.06660126444 | F48: 0.06775791994 | G48: 0.0699826165 | H48: 0.0697903394 | I48: 0.07428758511 | J48: 0.07666930087 | K48: 0.07885104381 | L48: 0.08099458856
D49: SPMW | E49: 0.06595896175 | F49: 0.06725396095 | G49: 0.06733694933 | H49: 0.06734902764 | I49: 0.06927279413 | J49: 0.07093678081 | K49: 0.07958591686 | L49: 0.07380392131
D50: SSEH | E50: 0.06712136691 | F50: 0.0725810125 | G50: 0.07067913635 | H50: 0.06986519071 | I50: 0.07382466694 | J50: 0.06961333416 | K50: 0.07296478882 | L50: 0.07223278849
D51: SSES | E51: 0.05675750811 | F51: 0.05791707972 | G51: 0.05187142815 | H51: 0.05210803301 | I51: 0.05194002624 | J51: 0.05186091216 | K51: 0.05222594024 | L51: 0.05220304555
D52: Total | E52: 0.05947828228 | F52: 0.06108899279 | G52: 0.06184223826 | H52: 0.05813689754 | I52: 0.06085585194 | J52: 0.06711061125 | K52: 0.06425871471 | L52: 0.05948438694
B55: Business Carbon Footprint (BCF)
D56: Business Carbon Footprint (excluding losses and contractors) (tCO2e)
E57: DPCR5 - 2013/14 | F57: DPCR5 - 2014/15 | G57: 2015/16 | H57: 2016/17 | I57: 2017/18 | J57: 2018/19 | K57: 2019/20 | L57: 2020/21 | M57: 2021/22 | N57: 2022/23
D58: ENWL | E58: 22374.23 | F58: 23134.07 | G58: 15790.45012 | H58: 15301.95892 | I58: 14147.27178 | J58: 12567.10379 | K58: 12553.20179 | L58: 10799.07428 | M58: 9664.100048 | N58: 9367.64
D59: NPgN | E59: 23368.30067 | F59: 22745.42599 | G59: 10554.83099 | H59: 9412.945166 | I59: 9162.694699 | J59: 7564.022133 | K59: 7332.945606 | L59: 6421.972579 | M59: 6038.159485 | N59: 5983.596967
D60: NPgY | E60: 26495.1002 | F60: 28807.02231 | G60: 14559.85992 | H60: 13872.99774 | I60: 12110.70638 | J60: 10159.42816 | K60: 9439.20046 | L60: 8300.364884 | M60: 8311.461337 | N60: 8661.914156
D61: WMID | E61: 29290.64506 | F61: 29722.9 | G61: 26708.58787 | H61: 22933.91543 | I61: 20832.01647 | J61: 17325.74038 | K61: 14547.59089 | L61: 14876.63857 | M61: 14043.35688 | N61: 12524.49762
D62: EMID | E62: 30151.78594 | F62: 30172.15 | G62: 22830.06446 | H62: 21098.21969 | I62: 19571.0382 | J62: 19027.40271 | K62: 18342.34716 | L62: 15602.96502 | M62: 14189.03191 | N62: 12471.50024
D63: SWALES | E63: 13395.22439 | F63: 18330.133 | G63: 13628.27571 | H63: 12486.93762 | I63: 12144.53251 | J63: 12131.97911 | K63: 9432.036388 | L63: 8297.287383 | M63: 9449.437334 | N63: 9269.04169
D64: SWEST | E64: 23059.60036 | F64: 23752.9 | G64: 17504.45863 | H64: 15669.23247 | I64: 15183.02573 | J64: 15336.21441 | K64: 14185.33931 | L64: 11790.79655 | M64: 11725.32472 | N64: 11207.0148
D65: LPN | E65: 16573.19727 | F65: 19776.4951 | G65: 14176.25335 | H65: 14796.48874 | I65: 12807.22149 | J65: 11810.71481 | K65: 12495.69723 | L65: 11563.24992 | M65: 11438.50201 | N65: 8674.302926
D66: SPN | E66: 26961.82503 | F66: 25025.1182 | G66: 17694.08893 | H66: 16687.61324 | I66: 15607.20966 | J66: 15901.03822 | K66: 14455.04583 | L66: 13492.22073 | M66: 13042.10035 | N66: 13357.0907
D67: EPN | E67: 35454.95621 | F67: 32539.493 | G67: 23609.29692 | H67: 26083.40172 | I67: 24848.05331 | J67: 22442.72238 | K67: 19958.60366 | L67: 20011.19755 | M67: 19415.88778 | N67: 18763.67752
D68: SPD* | E68: 31088.83718 | F68: 24450.95 | G68: 15639.59506 | H68: 13534.27891 | I68: 12196.56833 | J68: 11898.00493 | K68: 9652.403765 | L68: 6158.725433 | M68: 6656.948146 | N68: 12627.33786
D69: SPMW* | E69: 15143.10141 | F69: 26026.38 | G69: 12710.08881 | H69: 12572.99524 | I69: 11557.53608 | J69: 11798.7689 | K69: 8237.536587 | L69: 6700.283818 | M69: 6934.383708 | N69: 11428.37566
D70: SSEH | E70: 23653.44041 | F70: 43857.57083 | G70: 16911.07147 | H70: 17429.13633 | I70: 21468.44536 | J70: 24140.90693 | K70: 26674.97366 | L70: 59298.28629 | M70: 46474.60559 | N70: 13163.54758
D71: SSES | E71: 35373.50362 | F71: 34060.00891 | G71: 26641.07361 | H71: 26558.88481 | I71: 25601.27111 | J71: 24511.39474 | K71: 24594.3808 | L71: 30777.14942 | M71: 32464.13112 | N71: 31816.07171
D72: Total | E72: =SUM(E58:E71) -> 352383.7477 | F72: 382400.6173 | G72: 248957.9958 | H72: 238439.006 | I72: 227237.5911 | J72: 216615.4416 | K72: =SUM(K58:K71) -> 201901.3031 | L72: =SUM(L58:L71) -> 224090.2124 | M72: =SUM(M58:M71) -> 209847.4304 | N72: 179315.6094
D73: *SPEN have moved from estimation to direct observation for a large proposition of it's activities
D74: Business Carbon Footprint (excluding losses and contractors) as % network length and customer numbers
E75: DPCR5 - 2013/14 | F75: DPCR5 - 2014/15 | G75: 2015/16 | H75: 2016/17 | I75: 2017/18 | J75: 2018/19 | K75: 2019/20 | L75: 2020/21 | M75: 2021/22 | N75: 2022/23 | P75: Ranking | Q75: 2015/16 | R75: 2016/17 | S75: 2017/18 | T75: 2018/19 | U75: 2019/20 | V75: 2020/21 | W75: 2021/22 | X75: 2022/23
D76: ENWL | E76: =((E58/'Guide & drivers'!F39)*50%)+(E58/'Guide & drivers'!F58)*50% -> 0.1991138439 | F76: =((F58/'Guide & drivers'!G39)*50%)+(F58/'Guide & drivers'!G58)*50% -> 0.2052613267 | G76: =((G58/'Guide & drivers'!H39)*50%)+(G58/'Guide & drivers'!H58)*50% -> 0.1395663768 | H76: =((H58/'Guide & drivers'!I39)*50%)+(H58/'Guide & drivers'!I58)*50% -> 0.1372253973 | I76: =((I58/'Guide & drivers'!J39)*50%)+(I58/'Guide & drivers'!J58)*50% -> 0.1263644044 | J76: =((J58/'Guide & drivers'!K39)*50%)+(J58/'Guide & drivers'!K58)*50% -> 0.1121926873 | K76: =((K58/'Guide & drivers'!L39)*50%)+(K58/'Guide & drivers'!L58)*50% -> 0.1119029165 | L76: =((L58/'Guide & drivers'!M39)*50%)+(L58/'Guide & drivers'!M58)*50% -> 0.09628794655 | M76: =((M58/'Guide & drivers'!N39)*50%)+(M58/'Guide & drivers'!N58)*50% -> 0.08575550514 | N76: =((N58/'Guide & drivers'!O39)*50%)+(N58/'Guide & drivers'!O58)*50% -> 0.0799660897 | P76: ENWL | Q76: =RANK(G76,$G$76:$G$89,1) -> 5 | R76: =RANK(H76,$H$76:$H$89,1) -> 5 | S76: =RANK(I76,$I$76:$I$89,1) -> 4 | T76: =RANK(J76,$J$76:$J$89,1) -> 4 | U76: =RANK(K76,$K$76:$K$89,1) -> 6 | V76: =RANK(L76,$L$76:$L$89,1) -> 5 | W76: =RANK(M76,$M$76:$M$89,1) -> 5 | X76: =RANK(N76,$N$76:$N$89,1) -> 2
D77: NPgN | E77: =((E59/'Guide & drivers'!F40)*50%)+(E59/'Guide & drivers'!F59)*50% -> 0.2938314128 | F77: =((F59/'Guide & drivers'!G40)*50%)+(F59/'Guide & drivers'!G59)*50% -> 0.284445765 | G77: =((G59/'Guide & drivers'!H40)*50%)+(G59/'Guide & drivers'!H59)*50% -> 0.1312633584 | H77: =((H59/'Guide & drivers'!I40)*50%)+(H59/'Guide & drivers'!I59)*50% -> 0.1163397835 | I77: =((I59/'Guide & drivers'!J40)*50%)+(I59/'Guide & drivers'!J59)*50% -> 0.1127109702 | J77: =((J59/'Guide & drivers'!K40)*50%)+(J59/'Guide & drivers'!K59)*50% -> 0.09274856507 | K77: =((K59/'Guide & drivers'!L40)*50%)+(K59/'Guide & drivers'!L59)*50% -> 0.08973360571 | L77: =((L59/'Guide & drivers'!M40)*50%)+(L59/'Guide & drivers'!M59)*50% -> 0.07843834713 | M77: =((M59/'Guide & drivers'!N40)*50%)+(M59/'Guide & drivers'!N59)*50% -> 0.07357880965 | N77: =((N59/'Guide & drivers'!O40)*50%)+(N59/'Guide & drivers'!O59)*50% -> 0.07235202867 | P77: NPgN | Q77: =RANK(G77,$G$76:$G$89,1) -> 2 | R77: =RANK(H77,$H$76:$H$89,1) -> 1 | S77: =RANK(I77,$I$76:$I$89,1) -> 2 | T77: =RANK(J77,$J$76:$J$89,1) -> 1 | U77: 3 | V77: =RANK(L77,$L$76:$L$89,1) -> 4 | W77: =RANK(M77,$M$76:$M$89,1) -> 2 | X77: =RANK(N77,$N$76:$N$89,1) -> 1
D78: NPgY | E78: =((E60/'Guide & drivers'!F41)*50%)+(E60/'Guide & drivers'!F60)*50% -> 0.2543662023 | F78: =((F60/'Guide & drivers'!G41)*50%)+(F60/'Guide & drivers'!G60)*50% -> 0.2751934989 | G78: =((G60/'Guide & drivers'!H41)*50%)+(G60/'Guide & drivers'!H60)*50% -> 0.1383076961 | H78: =((H60/'Guide & drivers'!I41)*50%)+(H60/'Guide & drivers'!I60)*50% -> 0.1312474498 | I78: =((I60/'Guide & drivers'!J41)*50%)+(I60/'Guide & drivers'!J60)*50% -> 0.1141126085 | J78: =((J60/'Guide & drivers'!K41)*50%)+(J60/'Guide & drivers'!K60)*50% -> 0.09514599346 | K78: =((K60/'Guide & drivers'!L41)*50%)+(K60/'Guide & drivers'!L60)*50% -> 0.08802263355 | L78: =((L60/'Guide & drivers'!M41)*50%)+(L60/'Guide & drivers'!M60)*50% -> 0.07708350598 | M78: =((M60/'Guide & drivers'!N41)*50%)+(M60/'Guide & drivers'!N60)*50% -> 0.07722113688 | N78: =((N60/'Guide & drivers'!O41)*50%)+(N60/'Guide & drivers'!O60)*50% -> 0.08023209159 | P78: NPgY | Q78: 3 | R78: 3 | S78: =RANK(I78,$I$76:$I$89,1) -> 3 | T78: 2 | U78: 2 | V78: 3 | W78: 4 | X78: 3
D79: WMID | E79: =((E61/'Guide & drivers'!F42)*50%)+(E61/'Guide & drivers'!F61)*50% -> 0.2338154564 | F79: =((F61/'Guide & drivers'!G42)*50%)+(F61/'Guide & drivers'!G61)*50% -> 0.2361382125 | G79: =((G61/'Guide & drivers'!H42)*50%)+(G61/'Guide & drivers'!H61)*50% -> 0.2132090877 | H79: =((H61/'Guide & drivers'!I42)*50%)+(H61/'Guide & drivers'!I61)*50% -> 0.182217459 | I79: =((I61/'Guide & drivers'!J42)*50%)+(I61/'Guide & drivers'!J61)*50% -> 0.1647423787 | J79: =((J61/'Guide & drivers'!K42)*50%)+(J61/'Guide & drivers'!K61)*50% -> 0.1364383623 | K79: =((K61/'Guide & drivers'!L42)*50%)+(K61/'Guide & drivers'!L61)*50% -> 0.1141935103 | L79: =((L61/'Guide & drivers'!M42)*50%)+(L61/'Guide & drivers'!M61)*50% -> 0.1164100271 | M79: =((M61/'Guide & drivers'!N42)*50%)+(M61/'Guide & drivers'!N61)*50% -> 0.1095603029 | N79: =((N61/'Guide & drivers'!O42)*50%)+(N61/'Guide & drivers'!O61)*50% -> 0.09728047496 | P79: WMID | Q79: 14 | R79: 12 | S79: 10 | T79: 8 | U79: 7 | V79: 8 | W79: 8 | X79: 6
D80: EMID | E80: =((E62/'Guide & drivers'!F43)*50%)+(E62/'Guide & drivers'!F62)*50% -> 0.2140720463 | F80: =((F62/'Guide & drivers'!G43)*50%)+(F62/'Guide & drivers'!G62)*50% -> 0.2131084177 | G80: =((G62/'Guide & drivers'!H43)*50%)+(G62/'Guide & drivers'!H62)*50% -> 0.1607737538 | H80: =((H62/'Guide & drivers'!I43)*50%)+(H62/'Guide & drivers'!I62)*50% -> 0.1477705381 | I80: =((I62/'Guide & drivers'!J43)*50%)+(I62/'Guide & drivers'!J62)*50% -> 0.1363899316 | J80: =((J62/'Guide & drivers'!K43)*50%)+(J62/'Guide & drivers'!K62)*50% -> 0.1319492162 | K80: =((K62/'Guide & drivers'!L43)*50%)+(K62/'Guide & drivers'!L62)*50% -> 0.1267093994 | L80: =((L62/'Guide & drivers'!M43)*50%)+(L62/'Guide & drivers'!M62)*50% -> 0.1072833328 | M80: =((M62/'Guide & drivers'!N43)*50%)+(M62/'Guide & drivers'!N62)*50% -> 0.09714502874 | N80: =((N62/'Guide & drivers'!O43)*50%)+(N62/'Guide & drivers'!O62)*50% -> 0.08495468762 | P80: EMID | Q80: 7 | R80: 7 | S80: 7 | T80: 7 | U80: 8 | V80: 7 | W80: 6 | X80: 4
D81: SWALES | E81: =((E63/'Guide & drivers'!F44)*50%)+(E63/'Guide & drivers'!F63)*50% -> 0.1949024142 | F81: =((F63/'Guide & drivers'!G44)*50%)+(F63/'Guide & drivers'!G63)*50% -> 0.2654114995 | G81: =((G63/'Guide & drivers'!H44)*50%)+(G63/'Guide & drivers'!H63)*50% -> 0.1974104869 | H81: =((H63/'Guide & drivers'!I44)*50%)+(H63/'Guide & drivers'!I63)*50% -> 0.1799824165 | I81: =((I63/'Guide & drivers'!J44)*50%)+(I63/'Guide & drivers'!J63)*50% -> 0.1755520327 | J81: =((J63/'Guide & drivers'!K44)*50%)+(J63/'Guide & drivers'!K63)*50% -> 0.1749679179 | K81: =((K63/'Guide & drivers'!L44)*50%)+(K63/'Guide & drivers'!L63)*50% -> 0.1357410659 | L81: =((L63/'Guide & drivers'!M44)*50%)+(L63/'Guide & drivers'!M63)*50% -> 0.11908898 | M81: =((M63/'Guide & drivers'!N44)*50%)+(M63/'Guide & drivers'!N63)*50% -> 0.1351564385 | N81: =((N63/'Guide & drivers'!O44)*50%)+(N63/'Guide & drivers'!O63)*50% -> 0.132061046 | P81: SWALES | Q81: 13 | R81: 11 | S81: 13 | T81: 13 | U81: 9 | V81: 10 | W81: 11 | X81: 12
D82: SWEST | E82: =((E64/'Guide & drivers'!F45)*50%)+(E64/'Guide & drivers'!F64)*50% -> 0.2344787539 | F82: =((F64/'Guide & drivers'!G45)*50%)+(F64/'Guide & drivers'!G64)*50% -> 0.2401606471 | G82: =((G64/'Guide & drivers'!H45)*50%)+(G64/'Guide & drivers'!H64)*50% -> 0.1796857452 | H82: =((H64/'Guide & drivers'!I45)*50%)+(H64/'Guide & drivers'!I64)*50% -> 0.1601893458 | I82: =((I64/'Guide & drivers'!J45)*50%)+(I64/'Guide & drivers'!J64)*50% -> 0.1547060764 | J82: =((J64/'Guide & drivers'!K45)*50%)+(J64/'Guide & drivers'!K64)*50% -> 0.1556714416 | K82: =((K64/'Guide & drivers'!L45)*50%)+(K64/'Guide & drivers'!L64)*50% -> 0.1436012668 | L82: =((L64/'Guide & drivers'!M45)*50%)+(L64/'Guide & drivers'!M64)*50% -> 0.1189923861 | M82: =((M64/'Guide & drivers'!N45)*50%)+(M64/'Guide & drivers'!N64)*50% -> 0.1179895384 | N82: =((N64/'Guide & drivers'!O45)*50%)+(N64/'Guide & drivers'!O64)*50% -> 0.1123136166 | P82: SWEST | Q82: 10 | R82: 8 | S82: 9 | T82: 10 | U82: 11 | V82: 9 | W82: 9 | X82: 8
D83: LPN | E83: =((E65/'Guide & drivers'!F46)*50%)+(E65/'Guide & drivers'!F65)*50% -> 0.2286651572 | F83: =((F65/'Guide & drivers'!G46)*50%)+(F65/'Guide & drivers'!G65)*50% -> 0.2726711059 | G83: =((G65/'Guide & drivers'!H46)*50%)+(G65/'Guide & drivers'!H65)*50% -> 0.1949851558 | H83: =((H65/'Guide & drivers'!I46)*50%)+(H65/'Guide & drivers'!I65)*50% -> 0.2029013953 | I83: =((I65/'Guide & drivers'!J46)*50%)+(I65/'Guide & drivers'!J65)*50% -> 0.1750568431 | J83: =((J65/'Guide & drivers'!K46)*50%)+(J65/'Guide & drivers'!K65)*50% -> 0.1609484038 | K83: =((K65/'Guide & drivers'!L46)*50%)+(K65/'Guide & drivers'!L65)*50% -> 0.1694397892 | L83: =((L65/'Guide & drivers'!M46)*50%)+(L65/'Guide & drivers'!M65)*50% -> 0.1565644979 | M83: =((M65/'Guide & drivers'!N46)*50%)+(M65/'Guide & drivers'!N65)*50% -> 0.1545858167 | N83: =((N65/'Guide & drivers'!O46)*50%)+(N65/'Guide & drivers'!O65)*50% -> 0.1168889937 | P83: LPN | Q83: 12 | R83: 14 | S83: 12 | T83: 11 | U83: 13 | V83: 12 | W83: 12 | X83: 9
D84: SPN | E84: =((E66/'Guide & drivers'!F47)*50%)+(E66/'Guide & drivers'!F66)*50% -> 0.2618267853 | F84: =((F66/'Guide & drivers'!G47)*50%)+(F66/'Guide & drivers'!G66)*50% -> 0.2424633021 | G84: =((G66/'Guide & drivers'!H47)*50%)+(G66/'Guide & drivers'!H66)*50% -> 0.1713060431 | H84: =((H66/'Guide & drivers'!I47)*50%)+(H66/'Guide & drivers'!I66)*50% -> 0.1613021033 | I84: =((I66/'Guide & drivers'!J47)*50%)+(I66/'Guide & drivers'!J66)*50% -> 0.15059491 | J84: =((J66/'Guide & drivers'!K47)*50%)+(J66/'Guide & drivers'!K66)*50% -> 0.1530802426 | K84: =((K66/'Guide & drivers'!L47)*50%)+(K66/'Guide & drivers'!L66)*50% -> 0.1388482628 | L84: =((L66/'Guide & drivers'!M47)*50%)+(L66/'Guide & drivers'!M66)*50% -> 0.1292472669 | M84: =((M66/'Guide & drivers'!N47)*50%)+(M66/'Guide & drivers'!N66)*50% -> 0.1248072794 | N84: =((N66/'Guide & drivers'!O47)*50%)+(N66/'Guide & drivers'!O66)*50% -> 0.1275117718 | P84: SPN | Q84: 8 | R84: 9 | S84: 8 | T84: 9 | U84: 10 | V84: 11 | W84: 10 | X84: 11
D85: EPN | E85: =((E67/'Guide & drivers'!F48)*50%)+(E67/'Guide & drivers'!F67)*50% -> 0.1881686575 | F85: =((F67/'Guide & drivers'!G48)*50%)+(F67/'Guide & drivers'!G67)*50% -> 0.1724223582 | G85: =((G67/'Guide & drivers'!H48)*50%)+(G67/'Guide & drivers'!H67)*50% -> 0.1246497895 | H85: =((H67/'Guide & drivers'!I48)*50%)+(H67/'Guide & drivers'!I67)*50% -> 0.1371884653 | I85: =((I67/'Guide & drivers'!J48)*50%)+(I67/'Guide & drivers'!J67)*50% -> 0.1304369811 | J85: =((J67/'Guide & drivers'!K48)*50%)+(J67/'Guide & drivers'!K67)*50% -> 0.1175051566 | K85: =((K67/'Guide & drivers'!L48)*50%)+(K67/'Guide & drivers'!L67)*50% -> 0.1041535456 | L85: =((L67/'Guide & drivers'!M48)*50%)+(L67/'Guide & drivers'!M67)*50% -> 0.1042128001 | M85: =((M67/'Guide & drivers'!N48)*50%)+(M67/'Guide & drivers'!N67)*50% -> 0.1009049182 | N85: =((N67/'Guide & drivers'!O48)*50%)+(N67/'Guide & drivers'!O67)*50% -> 0.09722635606 | P85: EPN | Q85: 1 | R85: 4 | S85: 6 | T85: 5 | U85: 5 | V85: 6 | W85: 7 | X85: 5
D86: SPD* | E86: =((E68/'Guide & drivers'!F49)*50%)+(E68/'Guide & drivers'!F68)*50% -> 0.2789525521 | F86: =((F68/'Guide & drivers'!G49)*50%)+(F68/'Guide & drivers'!G68)*50% -> 0.2182575504 | G86: =((G68/'Guide & drivers'!H49)*50%)+(G68/'Guide & drivers'!H68)*50% -> 0.1387658595 | H86: =((H68/'Guide & drivers'!I49)*50%)+(H68/'Guide & drivers'!I68)*50% -> 0.1194427067 | I86: =((I68/'Guide & drivers'!J49)*50%)+(I68/'Guide & drivers'!J68)*50% -> 0.1072549081 | J86: =((J68/'Guide & drivers'!K49)*50%)+(J68/'Guide & drivers'!K68)*50% -> 0.1045261111 | K86: =((K68/'Guide & drivers'!L49)*50%)+(K68/'Guide & drivers'!L68)*50% -> 0.08462554114 | L86: =((L68/'Guide & drivers'!M49)*50%)+(L68/'Guide & drivers'!M68)*50% -> 0.05388649423 | M86: =((M68/'Guide & drivers'!N49)*50%)+(M68/'Guide & drivers'!N68)*50% -> 0.05806813228 | N86: =((N68/'Guide & drivers'!O49)*50%)+(N68/'Guide & drivers'!O68)*50% -> 0.1098386064 | P86: SPD | Q86: 4 | R86: 2 | S86: 1 | T86: 3 | U86: 1 | V86: 1 | W86: 1 | X86: 7
D87: SPMW* | E87: =((E69/'Guide & drivers'!F50)*50%)+(E69/'Guide & drivers'!F69)*50% -> 0.1681138295 | F87: =((F69/'Guide & drivers'!G50)*50%)+(F69/'Guide & drivers'!G69)*50% -> 0.2879918727 | G87: =((G69/'Guide & drivers'!H50)*50%)+(G69/'Guide & drivers'!H69)*50% -> 0.1398896417 | H87: =((H69/'Guide & drivers'!I50)*50%)+(H69/'Guide & drivers'!I69)*50% -> 0.1380731773 | I87: =((I69/'Guide & drivers'!J50)*50%)+(I69/'Guide & drivers'!J69)*50% -> 0.1266377275 | J87: =((J69/'Guide & drivers'!K50)*50%)+(J69/'Guide & drivers'!K69)*50% -> 0.1290178468 | K87: =((K69/'Guide & drivers'!L50)*50%)+(K69/'Guide & drivers'!L69)*50% -> 0.08987430213 | L87: =((L69/'Guide & drivers'!M50)*50%)+(L69/'Guide & drivers'!M69)*50% -> 0.07291577236 | M87: =((M69/'Guide & drivers'!N50)*50%)+(M69/'Guide & drivers'!N69)*50% -> 0.07526130858 | N87: =((N69/'Guide & drivers'!O50)*50%)+(N69/'Guide & drivers'!O69)*50% -> 0.123558419 | P87: SPMW | Q87: 6 | R87: 6 | S87: 5 | T87: 6 | U87: 4 | V87: 2 | W87: 3 | X87: 10
D88: SSEH | E88: =((E70/'Guide & drivers'!F51)*50%)+(E70/'Guide & drivers'!F70)*50% -> 0.2617973042 | F88: =((F70/'Guide & drivers'!G51)*50%)+(F70/'Guide & drivers'!G70)*50% -> 0.4819343863 | G88: =((G70/'Guide & drivers'!H51)*50%)+(G70/'Guide & drivers'!H70)*50% -> 0.1860482041 | H88: =((H70/'Guide & drivers'!I51)*50%)+(H70/'Guide & drivers'!I70)*50% -> 0.1891129829 | I88: =((I70/'Guide & drivers'!J51)*50%)+(I70/'Guide & drivers'!J70)*50% -> 0.2322664373 | J88: =((J70/'Guide & drivers'!K51)*50%)+(J70/'Guide & drivers'!K70)*50% -> 0.2600642957 | K88: =((K70/'Guide & drivers'!L51)*50%)+(K70/'Guide & drivers'!L70)*50% -> 0.2870876021 | L88: =((L70/'Guide & drivers'!M51)*50%)+(L70/'Guide & drivers'!M70)*50% -> 0.6385686246 | M88: =((M70/'Guide & drivers'!N51)*50%)+(M70/'Guide & drivers'!N70)*50% -> 0.4991907434 | N88: =((N70/'Guide & drivers'!O51)*50%)+(N70/'Guide & drivers'!O70)*50% -> 0.1405682442 | P88: SSEH | Q88: 11 | R88: 13 | S88: 14 | T88: 14 | U88: 14 | V88: 14 | W88: 14 | X88: 13
D89: SSES | E89: =((E71/'Guide & drivers'!F52)*50%)+(E71/'Guide & drivers'!F71)*50% -> 0.2364617812 | F89: =((F71/'Guide & drivers'!G52)*50%)+(F71/'Guide & drivers'!G71)*50% -> 0.226471735 | G89: =((G71/'Guide & drivers'!H52)*50%)+(G71/'Guide & drivers'!H71)*50% -> 0.1751649679 | H89: =((H71/'Guide & drivers'!I52)*50%)+(H71/'Guide & drivers'!I71)*50% -> 0.1759952301 | I89: =((I71/'Guide & drivers'!J52)*50%)+(I71/'Guide & drivers'!J71)*50% -> 0.169394326 | J89: =((J71/'Guide & drivers'!K52)*50%)+(J71/'Guide & drivers'!K71)*50% -> 0.1617053149 | K89: =((K71/'Guide & drivers'!L52)*50%)+(K71/'Guide & drivers'!L71)*50% -> 0.1616369768 | L89: =((L71/'Guide & drivers'!M52)*50%)+(L71/'Guide & drivers'!M71)*50% -> 0.201860692 | M89: =((M71/'Guide & drivers'!N52)*50%)+(M71/'Guide & drivers'!N71)*50% -> 0.2114359064 | N89: =((N71/'Guide & drivers'!O52)*50%)+(N71/'Guide & drivers'!O71)*50% -> 0.2062745861 | P89: SSES | Q89: 9 | R89: 10 | S89: 11 | T89: 12 | U89: 12 | V89: 13 | W89: 13 | X89: 14
D90: Total | E90: =((E72/'Guide & drivers'!F53)*50%)+(E72/'Guide & drivers'!F72)*50% -> 0.2292254288 | F90: =((F72/'Guide & drivers'!G53)*50%)+(F72/'Guide & drivers'!G72)*50% -> 0.247709971 | G90: =((G72/'Guide & drivers'!H53)*50%)+(G72/'Guide & drivers'!H72)*50% -> 0.1609099648 | H90: =((H72/'Guide & drivers'!I53)*50%)+(H72/'Guide & drivers'!I72)*50% -> 0.1537672581 | I90: =((I72/'Guide & drivers'!J53)*50%)+(I72/'Guide & drivers'!J72)*50% -> 0.1461134987 | J90: =((J72/'Guide & drivers'!K53)*50%)+(J72/'Guide & drivers'!K72)*50% -> 0.1388510848 | K90: =((K72/'Guide & drivers'!L53)*50%)+(K72/'Guide & drivers'!L72)*50% -> 0.1290482497 | L90: =((L72/'Guide & drivers'!M53)*50%)+(L72/'Guide & drivers'!M72)*50% -> 0.1428982504 | M90: =((M72/'Guide & drivers'!N53)*50%)+(M72/'Guide & drivers'!N72)*50% -> 0.1334099759 | N90: =((N72/'Guide & drivers'!O53)*50%)+(N72/'Guide & drivers'!O72)*50% -> 0.1132514682
B93: Sulphur hexafluoride emissions (SF6)
D94: SF6 emissions (kg) | P94: SF6 bank (kg)
E95: DPCR5 - 2013/14 | F95: DPCR5 - 2014/15 | G95: 2015/16 | H95: 2016/17 | I95: 2017/18 | J95: 2018/19 | K95: 2019/20 | L95: 2020/21 | M95: 2021/22 | N95: 2022/23 | Q95: DPCR5 - 2013/14 | R95: DPCR5 - 2014/15 | S95: 2015/16 | T95: 2016/17 | U95: 2017/18 | V95: 2018/19 | W95: 2019/20 | X95: 2020/21 | Y95: 2021/22 | Z95: 2022/23
D96: ENWL | E96: 57.1 | F96: 36.1 | G96: 14.627 | H96: 55.23 | I96: 54.27 | J96: 38.03 | K96: 77.73 | L96: 65.26 | M96: 38.47 | N96: 38.24 | P96: ENWL | Q96: 13508.72 | R96: 16852.1 | S96: 14736.27 | T96: 14159.45 | U96: 14615.28 | V96: 15751.63 | W96: 16097.92 | X96: 16787.41 | Y96: 15366 | Z96: 16105.22
D97: NPgN | E97: 25.11 | F97: 16.12 | G97: 23.75 | H97: 14.87 | I97: 36 | J97: 17.7 | K97: 14.75 | L97: 24.05 | M97: 14.5 | N97: 21.88 | P97: NPgN | Q97: 14530.14981 | R97: 15125.06981 | S97: 15258.78981 | T97: 15392.50981 | U97: 16174 | V97: 16357.03 | W97: 16590.15 | X97: 16620.75 | Y97: 17058.86 | Z97: 17257.73
D98: NPgY | E98: 97.98 | F98: 79.105 | G98: 84.49 | H98: 98.75 | I98: 61.96 | J98: 47.45 | K98: 48.37 | L98: 49.01 | M98: 87.055 | N98: 107.2 | P98: NPgY | Q98: 17280.80328 | R98: 17816.80328 | S98: 18304.15328 | T98: 18637.59328 | U98: 19101.25328 | V98: 19486.64328 | W98: 19604.74328 | X98: 19679.06328 | Y98: 20193.40328 | Z98: 20526.39
D99: WMID | E99: 94.66088137 | F99: 62 | G99: 352.64 | H99: 199.63 | I99: 186.96 | J99: 166.284 | K99: 111.521 | L99: 184.796 | M99: 135.422 | N99: 116.158 | P99: WMID | Q99: 17537 | R99: 19464 | S99: 20866 | T99: 22761 | U99: 24570 | V99: 25776.7 | W99: 26230.76 | X99: 26940.35 | Y99: 28523.46 | Z99: 29161.345
D100: EMID | E100: 43.52911863 | F100: 14.14 | G100: 75.61 | H100: 56.74 | I100: 56.96 | J100: 69.1 | K100: 109.419 | L100: 70.53 | M100: 93.179 | N100: 78.693 | P100: EMID | Q100: 15684 | R100: 16952 | S100: 18231 | T100: 20124 | U100: 22588 | V100: 25327.9 | W100: 26137.02 | X100: 27320.81 | Y100: 29332.17 | Z100: 31212.16
D101: SWALES | E101: 41.83 | F101: 141.42 | G101: 93.9 | H101: 88.3 | I101: 103.64 | J101: 151.383 | K101: 72.8 | L101: 66.639 | M101: 107.903 | N101: 116.587 | P101: SWALES | Q101: 15597 | R101: 16227 | S101: 16632 | T101: 17455 | U101: 18098 | V101: 18801.1 | W101: 19248.48 | X101: 19401.39 | Y101: 20935.38 | Z101: 21540.15
D102: SWEST | E102: 157.67 | F102: 128.97 | G102: 105.3 | H102: 74 | I102: 121.28 | J102: 92.79 | K102: 101.234 | L102: 58.587 | M102: 67.376 | N102: 86.116 | P102: SWEST | Q102: 11327 | R102: 11558 | S102: 11684 | T102: 12368 | U102: 13277 | V102: 16009.59 | W102: 17172.1 | X102: 17012.69 | Y102: 18015.24 | Z102: 18898.09
D103: LPN | E103: 10.42 | F103: 20.609 | G103: 9.55 | H103: 16.1 | I103: 7.35 | J103: 26.65 | K103: 44.88 | L103: 62.38 | M103: 107.34 | N103: 11.175 | P103: LPN | Q103: 43149.7 | R103: 40825.459 | S103: 41889.606 | T103: 42305 | U103: 46089 | V103: 46880.7 | W103: 47581.09 | X103: 48518 | Y103: 48874 | Z103: 49183
D104: SPN | E104: 16.578 | F104: 15.138 | G104: 17.609 | H104: 16.5 | I104: 35.7 | J104: 22.68 | K104: 14.85 | L104: 9.93 | M104: 4.888 | N104: 6.201 | P104: SPN | Q104: 19622.9 | R104: 20451.965 | S104: 21158.534 | T104: 21124 | U104: 21603 | V104: 24198.5 | W104: 24445.46 | X104: 25218 | Y104: 25434 | Z104: 26016
D105: EPN | E105: 71.86 | F105: 64.47 | G105: 66.89 | H105: 98.96 | I105: 93.28 | J105: 42.47 | K105: 56.47 | L105: 58.14 | M105: 53.041 | N105: 48.113 | P105: EPN | Q105: 32780.7 | R105: 34185.484 | S105: 36058.736 | T105: 36921 | U105: 41022 | V105: 42026.7 | W105: 44830.54 | X105: 48944 | Y105: 49739 | Z105: 51756
D106: SPD | E106: 61.7 | F106: 62.4 | G106: 0.8 | H106: 1.04 | I106: 36.502 | J106: 18.296 | K106: 45.599 | L106: 49.919 | M106: 84.642 | N106: 150.645 | P106: SPD | Q106: 12564 | R106: 13259 | S106: 12709.962 | T106: 14314.642 | U106: 15181.751 | V106: 15274.388 | W106: 15584.724 | X106: 15866.573 | Y106: 15866.573 | Z106: 23097.615
D107: SPMW | E107: 121.8 | F107: 124.2 | G107: 29.87 | H107: 46.69 | I107: 67.49 | J107: 37.5 | K107: 32.63 | L107: 69.495 | M107: 88.89299 | N107: 137.375 | P107: SPMW | Q107: 22193 | R107: 23117 | S107: 16893.361 | T107: 16922.361 | U107: 17833.271 | V107: 18739.053 | W107: 19976.825 | X107: 20850.46 | Y107: 20850.46 | Z107: 22787.207
D108: SSEH | E108: 9 | F108: 14 | G108: 5.8 | H108: 3.9 | I108: 1.56 | J108: 8.47 | K108: 10.96 | L108: 9.88 | M108: 0.78 | N108: 3.85 | P108: SSEH | Q108: 4887.276 | R108: 5231.978 | S108: 5510.844556 | T108: 5716.13 | U108: 5653.77 | V108: 5433.386 | W108: 5116.904 | X108: 6034.328 | Y108: 5007.688 | Z108: 5069.988
D109: SSES | E109: 107 | F109: 102 | G109: 133 | H109: 132.3 | I109: 186.2 | J109: 211.052 | K109: 162.99 | L109: 161.785 | M109: 155.484 | N109: 202.705 | P109: SSES | Q109: 22983.677 | R109: 21967.991 | S109: 25702 | T109: 24272.526 | U109: 23941.639 | V109: 22703.79 | W109: 22038.96 | X109: 22570.94 | Y109: 22133.896 | Z109: 22297.16
D110: Total | E110: =SUM(E96:E109) -> 916.238 | F110: 880.672 | G110: 1013.836 | H110: 903.01 | I110: 1049.152 | J110: 949.855 | K110: =SUM(K96:K109) -> 904.203 | L110: =SUM(L96:L109) -> 940.401 | M110: =SUM(M96:M109) -> 1038.97299 | N110: 1124.938 | P110: Total | Q110: =SUM(Q96:Q109) -> 263645.9261 | R110: 273033.8501 | S110: 275635.2566 | T110: 282473.2121 | U110: 299747.9643 | V110: 312767.1103 | W110: =SUM(W96:W109) -> 320655.6763 | X110: =SUM(X96:X109) -> 331764.7643 | Y110: =SUM(Y96:Y109) -> 337330.1303 | Z110: 354908.055
D114: SF6 emissions as a percentage of the SF6 bank | P114: SF6 emitted as % of bank - SNAPSHOT
E115: DPCR5 - 2013/14 | F115: DPCR5 - 2014/15 | G115: 2015/16 | H115: 2016/17 | I115: 2017/18 | J115: 2018/19 | K115: 2019/20 | L115: 2020/21 | M115: 2021/22 | N115: 2022/23 | P115: Ranking | Q115: 2015/16 | R115: 2016/17 | S115: 2017/18 | T115: 2018/19 | U115: 2019/20 | V115: 2020/21 | W115: 2021/22 | X115: 2022/23
D116: ENWL | E116: =E96/Q96 -> 0.004226899366 | F116: 0.002142166258 | G116: 0.0009925849621 | H116: 0.003900575234 | I116: 0.003713237105 | J116: 0.002414353308 | K116: 0.004828574126 | L116: 0.003887437073 | M116: =M96/Y96 -> 0.002503579331 | N116: =N96/Z96 -> 0.002374385448 | P116: ENWL | Q116: =RANK(G116,$G$116:$G$129,1) -> 4 | R116: =RANK(H116,$H$116:$H$129,1) -> 9 | S116: =RANK(I116,$I$116:$I$129,1) -> 9 | T116: =RANK(J116,$J$116:$J$129,1) -> 8 | U116: =RANK(K116,$K$116:$K$129,1) -> 12 | V116: =RANK(L116,$L$116:$L$129,1) -> 12 | W116: =RANK(M116,$M$116:$M$129,1) -> 6 | X116: =RANK(N116,$N$116:$N$129,1) -> 6
D117: NPgN | E117: =E97/Q97 -> 0.001728130841 | F117: =F97/R97 -> 0.001065780205 | G117: =G97/S97 -> 0.001556479924 | H117: =H97/T97 -> 0.0009660542813 | I117: =I97/U97 -> 0.002225794485 | J117: =J97/V97 -> 0.001082103536 | K117: =K97/W97 -> 0.0008890817744 | L117: =L97/X97 -> 0.001446986448 | M117: 0.0008499981828 | N117: 0.001267837659 | P117: NPgN | Q117: =RANK(G117,$G$116:$G$129,1) -> 6 | R117: =RANK(H117,$H$116:$H$129,1) -> 5 | S117: =RANK(I117,$I$116:$I$129,1) -> 4 | T117: =RANK(J117,$J$116:$J$129,1) -> 4 | U117: 2 | V117: =RANK(L117,$L$116:$L$129,1) -> 4 | W117: =RANK(M117,$M$116:$M$129,1) -> 3 | X117: =RANK(N117,$N$116:$N$129,1) -> 5
D118: NPgY | E118: 0.00566987532 | F118: 0.00443990983 | G118: 0.004615892291 | H118: =H98/T98 -> 0.005298430894 | I118: =I98/U98 -> 0.003243766213 | J118: 0.002435001212 | K118: 0.002467260056 | L118: =L98/X98 -> 0.002490464069 | M118: 0.004311061331 | N118: 0.005222545221 | P118: NPgY | Q118: 10 | R118: 11 | S118: 8 | T118: 9 | U118: 7 | V118: 6 | W118: 10 | X118: 10
D119: WMID | E119: 0.00539778077 | F119: 0.003185367859 | G119: 0.01690022045 | H119: 0.008770704275 | I119: 0.007609279609 | J119: 0.00645094213 | K119: 0.00425153522 | L119: 0.006859450601 | M119: 0.004747740982 | N119: 0.003983286779 | P119: WMID | Q119: 14 | R119: 14 | S119: 12 | T119: 12 | U119: 11 | V119: 13 | W119: 11 | X119: 8
D120: EMID | E120: 0.002775383743 | F120: 0.0008341198679 | G120: 0.004147331468 | H120: 0.002819518982 | I120: 0.002521692934 | J120: 0.00272821671 | K120: 0.004186360955 | L120: 0.002581548644 | M120: 0.003176682803 | N120: 0.002521228906 | P120: EMID | Q120: 9 | R120: 8 | S120: 7 | T120: 10 | U120: 10 | V120: 7 | W120: 7 | X120: 7
D121: SWALES | E121: 0.002681926011 | F121: 0.008715104456 | G121: 0.005645743146 | H121: 0.005058722429 | I121: 0.005726599624 | J121: 0.008051816117 | K121: 0.003782116822 | L121: 0.003434753902 | M121: 0.005154097991 | N121: 0.005412543552 | P121: SWALES | Q121: 12 | R121: 10 | S121: 11 | T121: 13 | U121: 9 | V121: 10 | W121: 12 | X121: 11
D122: SWEST | E122: 0.01391983756 | F122: 0.01115850493 | G122: 0.009012324546 | H122: 0.005983182406 | I122: 0.009134593658 | J122: 0.005795901082 | K122: 0.005895260335 | L122: 0.003443723479 | M122: 0.003739944625 | N122: 0.004556862625 | P122: SWEST | Q122: 13 | R122: 13 | S122: 14 | T122: 11 | U122: 13 | V122: 11 | W122: 8 | X122: 9
D123: LPN | E123: 0.0002414848771 | F123: 0.0005048075516 | G123: 0.000227980182 | H123: 0.0003805696726 | I123: 0.0001594740611 | J123: 0.0005684642081 | K123: 0.0009432318595 | L123: 0.001285708397 | M123: 0.00219625977 | N123: 0.0002272126548 | P123: LPN | Q123: 2 | R123: 2 | S123: 1 | T123: 1 | U123: 3 | V123: 3 | W123: 5 | X123: 1
D124: SPN | E124: 0.0008448292556 | F124: 0.000740173377 | G124: 0.0008322410239 | H124: 0.000781102064 | I124: 0.001652548257 | J124: 0.0009372481765 | K124: 0.0006074747622 | L124: 0.0003937663574 | M124: 0.0001921836911 | N124: 0.000238353321 | P124: SPN | Q124: 3 | R124: 4 | S124: 3 | T124: 2 | U124: 1 | V124: 1 | W124: 2 | X124: 2
D125: EPN | E125: 0.002192143548 | F125: 0.001885888174 | G125: 0.001855028973 | H125: 0.002680317435 | I125: 0.002273901809 | J125: 0.001010548056 | K125: 0.001259632385 | L125: 0.001187888199 | M125: 0.001066386538 | N125: 0.0009296120257 | P125: EPN | Q125: 8 | R125: 6 | S125: 5 | T125: 3 | U125: 4 | V125: 2 | W125: 4 | X125: 4
D126: SPD | E126: 0.004910856415 | F126: 0.004706237273 | G126: 6.294275309e-05 | H126: 7.265288227e-05 | I126: 0.002404333993 | J126: 0.001197822132 | K126: 0.00292587793 | L126: 0.003146174035 | M126: 0.005334611324 | N126: 0.006522101957 | P126: SPD | Q126: 1 | R126: 1 | S126: 6 | T126: 5 | U126: 8 | V126: 8 | W126: 13 | X126: 13
D127: SPMW | E127: 0.005488217005 | F127: 0.005372669464 | G127: 0.001768150222 | H127: 0.002759071267 | I127: 0.003784499209 | J127: 0.002001168362 | K127: 0.001633392694 | L127: 0.003333019991 | M127: 0.004263358698 | N127: 0.006028601926 | P127: SPMW | Q127: 7 | R127: 7 | S127: 10 | T127: 7 | U127: 5 | V127: 9 | W127: 9 | X127: 12
D128: SSEH | E128: 0.001841516624 | F128: 0.00267585223 | G128: 0.00105247026 | H128: 0.0006822797942 | I128: 0.0002759220838 | J128: 0.001558880595 | K128: 0.002141920192 | L128: 0.001637299133 | M128: 0.0001557605027 | N128: 0.0007593706336 | P128: SSEH | Q128: 5 | R128: 3 | S128: 2 | T128: 6 | U128: 6 | V128: 5 | W128: 1 | X128: 3
D129: SSES | E129: 0.004655477885 | F129: 0.004643119164 | G129: 0.005174694576 | H129: 0.005450606995 | I129: 0.007777245326 | J129: 0.009295892888 | K129: 0.007395539535 | L129: 0.007167845026 | M129: 0.007024700938 | N129: 0.0090910681 | P129: SSES | Q129: 11 | R129: 12 | S129: 13 | T129: 14 | U129: 14 | V129: 14 | W129: 14 | X129: 14
D130: Total | E130: 0.003475259465 | F130: 0.003225504822 | G130: 0.00367817968 | H130: 0.00319679871 | I130: =I110/U110 -> 0.003500113846 | J130: =J110/V110 -> 0.003036940167 | K130: =K110/W110 -> 0.002819856522 | L130: 0.002834541522 | M130: 0.003079988702 | N130: 0.003169660379
B133: Leakages from fluid filled cables
D134: Top up of fluid filled cables (litres) | P134: Oil in Service in Cables (litres)
E135: DPCR5 - 2013/14 | F135: DPCR5 - 2014/15 | G135: 2015/16 | H135: 2016/17 | I135: 2017/18 | J135: 2018/19 | K135: 2019/20 | L135: 2020/21 | M135: 2021/22 | N135: 2022/23 | Q135: DPCR5 - 2013/14 | R135: DPCR5 - 2014/15 | S135: 2015/16 | T135: 2016/17 | U135: 2017/18 | V135: 2018/19 | W135: 2019/20 | X135: 2020/21 | Y135: 2021/22 | Z135: 2022/23
D136: ENWL | E136: 33115 | F136: 28318 | G136: 31220 | H136: 21096 | I136: 67398 | J136: 55829 | K136: 21616 | L136: 16998 | M136: 13266 | N136: 13217 | P136: ENWL | Q136: 1311206 | R136: 1266283.417 | S136: 1202260.53 | T136: 1319898.91 | U136: 1106980.41 | V136: 1093156.61 | W136: 1066356.99 | X136: 1069908 | Y136: 1061444.286 | Z136: 1002587
D137: NPgN | E137: 16837 | F137: 15890 | G137: 13021 | H137: 18641 | I137: 12124 | J137: 14747 | K137: 9543 | L137: 7831 | M137: 8979 | N137: 9864 | P137: NPgN | Q137: 1469598.816 | R137: 1419147.339 | S137: 1433538.018 | T137: 1429192.027 | U137: 1347254 | V137: 1305156.334 | W137: 1240009.32 | X137: 1211779.327 | Y137: 1202394.312 | Z137: 1177056.608
D138: NPgY | E138: 42951 | F138: 28113 | G138: 18732 | H138: 18150 | I138: 17438 | J138: 19567 | K138: 24267 | L138: 20224 | M138: 19383 | N138: 10754 | P138: NPgY | Q138: 1398926.373 | R138: 1362750.509 | S138: 1145692.085 | T138: 1089977.698 | U138: 1078595.852 | V138: 1042745.063 | W138: 974315.4115 | X138: 914406.4292 | Y138: 870045.2586 | Z138: 803691.4906
D139: WMID | E139: 11382 | F139: 19717 | G139: 8392 | H139: 9421 | I139: 12771 | J139: 31474 | K139: 12511 | L139: 8348 | M139: 12728 | N139: 13032 | P139: WMID | Q139: 918008.229 | R139: 877755.234 | S139: 865392 | T139: 935150 | U139: 663808 | V139: 671353 | W139: 671353 | X139: 671353 | Y139: 671353 | Z139: 670785
D140: EMID | E140: 10110 | F140: 9303 | G140: 7255 | H140: 7220 | I140: 9630 | J140: 9848 | K140: 4611 | L140: 4645 | M140: 6684 | N140: 5806 | P140: EMID | Q140: 794256.8495 | R140: 770711.498 | S140: 711036 | T140: 694510 | U140: 521215 | V140: 521138 | W140: 521138 | X140: 521113 | Y140: 521113 | Z140: 520698
D141: SWALES | E141: 0 | F141: 0 | G141: 938 | H141: 400 | I141: 270 | J141: 860 | K141: 2840 | L141: 5055 | M141: 1090 | N141: 5460 | P141: SWALES | Q141: 144156.0682 | R141: 143999.3922 | S141: 144974 | T141: 182210 | U141: 161291 | V141: 193712 | W141: 193712 | X141: 193712 | Y141: 193712 | Z141: 197103
D142: SWEST | E142: 724 | F142: 1930 | G142: 706 | H142: 210 | I142: 687 | J142: 3310 | K142: 251 | L142: 363 | M142: 14731 | N142: 35 | P142: SWEST | Q142: 311241.5292 | R142: 314455.3845 | S142: 303186 | T142: 285380 | U142: 241053 | V142: 273595 | W142: 273595 | X142: 273595 | Y142: 273595 | Z142: 273595
D143: LPN | E143: 143605 | F143: 165221 | G143: 151557 | H143: 137086 | I143: 114723 | J143: 96865 | K143: 68146 | L143: 105153 | M143: 108024.1 | N143: 118162 | P143: LPN | Q143: 3111189.2 | R143: 3158906.69 | S143: 3156496.207 | T143: 3238312.287 | U143: 3248501.919 | V143: 3182030.941 | W143: 3162410.94 | X143: 3091620.94 | Y143: 2958270.941 | Z143: 2957970.364
D144: SPN | E144: 66208 | F144: 71297 | G144: 52446 | H144: 52068 | I144: 72233 | J144: 80385 | K144: 53783 | L144: 59404 | M144: 47913 | N144: 50947 | P144: SPN | Q144: 1981939.81 | R144: 2002002.87 | S144: 2002711.878 | T144: 2073473.872 | U144: 2062589.84 | V144: 2054119.779 | W144: 2054119.779 | X144: 2040743.33 | Y144: 2038280.94 | Z144: 2037178.44
D145: EPN | E145: 30829 | F145: 46916 | G145: 37768 | H145: 42306 | I145: 55978 | J145: 63787 | K145: 56557 | L145: 48996 | M145: 55451.5 | N145: 59479 | P145: EPN | Q145: 1943552.7 | R145: 1989261.7 | S145: 1931841.77 | T145: 2196313.671 | U145: 2191115.463 | V145: 2191115.463 | W145: 2174076.83 | X145: 2164067.66 | Y145: 2131533.068 | Z145: 2127925.746
D146: SPD | E146: 46 | F146: 37 | G146: 0 | H146: 0 | I146: 20 | J146: 26 | K146: 49 | L146: 39 | M146: 74 | N146: 25 | P146: SPD | Q146: 0 | R146: 0 | S146: 86700 | T146: 86700 | U146: 86700 | V146: 86700 | W146: 86700 | X146: 86700 | Y146: 86700 | Z146: 93300
D147: SPMW | E147: 5535 | F147: 3555 | G147: 13600 | H147: 9315 | I147: 4420 | J147: 5024 | K147: 3230 | L147: 2067 | M147: 2195 | N147: 13421 | P147: SPMW | Q147: 0 | R147: 0 | S147: 699600 | T147: 699600 | U147: 699319.28 | V147: 699319.28 | W147: 699319.28 | X147: 699187.28 | Y147: 699187.28 | Z147: 668360
D148: SSEH | E148: 1077 | F148: 1623 | G148: 410 | H148: 612 | I148: 3440 | J148: 1191 | K148: 221 | L148: 139 | M148: 242 | N148: 84 | P148: SSEH | Q148: 38188.995 | R148: 38116.845 | S148: 35090.393 | T148: 32744.075 | U148: 32744.075 | V148: 30317.911 | W148: 30317.911 | X148: 30320.316 | Y148: 28469.909 | Z148: 28466.542
D149: SSES | E149: 17184 | F149: 18804 | G149: 14851 | H149: 21199 | I149: 31857 | J149: 31377 | K149: 25936 | L149: 18317 | M149: 17847 | N149: 12369 | P149: SSES | Q149: 513316.1781 | R149: 513316.1781 | S149: 689617.708 | T149: 684272.836 | U149: 646332.3588 | V149: 643478.3518 | W149: 640179.6538 | X149: 640113.2758 | Y149: 629419.6318 | Z149: 620033.7488
D150: Total | E150: =SUM(E136:E149) -> 379603 | F150: 410724 | G150: 350896 | H150: 337724 | I150: 402989 | J150: 414290 | K150: =SUM(K136:K149) -> 283561 | L150: =SUM(L136:L149) -> 297579 | M150: =SUM(M136:M149) -> 308607.6 | N150: 312655 | P150: Total | Q150: =SUM(Q136:Q149) -> 13935580.75 | R150: 13856707.06 | S150: 14408136.59 | T150: 14947735.38 | U150: 14087500.2 | V150: 13987937.73 | W150: =SUM(W136:W149) -> 13787604.12 | X150: =SUM(X136:X149) -> 13608619.56 | Y150: =SUM(Y136:Y149) -> 13365518.62 | Z150: =SUM(Z136:Z149) -> 13178750.94
D153: Top up as a % of oil in service | P153: Top up as a % of oil in service - SNAPSHOT
E154: DPCR5 - 2013/14 | F154: DPCR5 - 2014/15 | G154: 2015/16 | H154: 2016/17 | I154: 2017/18 | J154: 2018/19 | K154: 2019/20 | L154: 2020/21 | M154: 2021/22 | N154: 2022/23 | P154: Ranking | Q154: 2015/16 | R154: 2016/17 | S154: 2017/18 | T154: 2018/19 | U154: 2019/20 | V154: 2020/21 | W154: 2021/22 | X154: 2022/23
D155: ENWL | E155: =IFERROR(E136/Q136,"") -> 0.02525537559 | F155: =IFERROR(F136/R136,"") -> 0.02236308208 | G155: =IFERROR(G136/S136,"") -> 0.02596774927 | H155: =IFERROR(H136/T136,"") -> 0.01598304222 | I155: 0.06088454628 | J155: =IFERROR(J136/V136,"") -> 0.05107136479 | K155: 0.02027088508 | L155: 0.01588734732 | M155: =IFERROR(M136/Y136,"") -> 0.01249806531 | N155: =IFERROR(N136/Z136,"") -> 0.01318289585 | P155: ENWL | Q155: =RANK(G155,$G$155:$G$168,1) -> 12 | R155: =RANK(H155,$H$155:$H$168,1) -> 8 | S155: =RANK(I155,$I$155:$I$168,1) -> 13 | T155: =RANK(J155,$J$155:$J$168,1) -> 14 | U155: =RANK(K155,$K$155:$K$168,1) -> 9 | V155: =RANK(L155,$L$155:$L$168,1) -> 8 | W155: =RANK(M155,$M$155:$M$168,1) -> 6 | X155: =RANK(N155,$N$155:$N$168,1) -> 6
D156: NPgN | E156: 0.01145686824 | F156: 0.01119686418 | G156: 0.009083121506 | H156: 0.01304303386 | I156: 0.008999045466 | J156: 0.01129902956 | K156: 0.007695909896 | L156: 0.006462397755 | M156: 0.007467600199 | N156: 0.008380225672 | P156: NPgN | Q156: 4 | R156: 6 | S156: =RANK(I156,$I$155:$I$168,1) -> 5 | T156: =RANK(J156,$J$155:$J$168,1) -> 4 | U156: =RANK(K156,$K$155:$K$168,1) -> 5 | V156: =RANK(L156,$L$155:$L$168,1) -> 5 | W156: =RANK(M156,$M$155:$M$168,1) -> 4 | X156: =RANK(N156,$N$155:$N$168,1) -> 4
D157: NPgY | E157: 0.03070283099 | F157: 0.02062960154 | G157: 0.01634994275 | H157: 0.01665171684 | I157: 0.01616731602 | J157: 0.01876489344 | K157: 0.02490671882 | L157: 0.02211707984 | M157: 0.0222781514 | N157: 0.01338075633 | P157: NPgY | Q157: 8 | R157: 9 | S157: 6 | T157: 6 | U157: 11 | V157: 9 | W157: 9 | X157: 7
D158: WMID | E158: 0.01239858167 | F158: 0.02246298198 | G158: 0.009697339472 | H158: 0.01007431963 | I158: 0.01923899682 | J158: 0.04688144687 | K158: 0.01863550174 | L158: 0.01243459104 | M158: 0.01895872961 | N158: 0.01942798363 | P158: WMID | Q158: 5 | R158: 4 | S158: 8 | T158: 12 | U158: 8 | V158: 7 | W158: 8 | X158: 8
D159: EMID | E159: 0.01272887984 | F159: 0.01207066461 | G159: 0.01020342149 | H159: 0.01039581863 | I159: 0.01847606074 | J159: 0.01889710595 | K159: 0.008847944306 | L159: 0.008913613746 | M159: 0.01282639274 | N159: 0.01115041732 | P159: EMID | Q159: 6 | R159: 5 | S159: 7 | T159: 7 | U159: 6 | V159: 6 | W159: 7 | X159: 5
D160: SWALES | E160: 0 | F160: 0 | G160: 0.006470125678 | H160: 0.002195269195 | I160: 0.001673992969 | J160: 0.004439580408 | K160: 0.01466093995 | L160: 0.02609544065 | M160: 0.005626910052 | N160: 0.02770125264 | P160: SWALES | Q160: 3 | R160: 3 | S160: 2 | T160: 2 | U160: 7 | V160: 11 | W160: 3 | X160: 12
D161: SWEST | E161: 0.002326167725 | F161: 0.006137595649 | G161: 0.002328603563 | H161: 0.0007358609573 | I161: 0.002849995644 | J161: 0.01209817431 | K161: 0.0009174144264 | L161: 0.001326778633 | M161: 0.05384235823 | N161: 0.0001279263144 | P161: SWEST | Q161: 2 | R161: 2 | S161: 3 | T161: 5 | U161: 2 | V161: 2 | W161: 14 | X161: 1
D162: LPN | E162: 0.04615759144 | F162: 0.05230322267 | G162: 0.04801431399 | H162: 0.04233254481 | I162: 0.0353156633 | J162: 0.0304412502 | K162: 0.02154874913 | L162: 0.03401225507 | M162: 0.03651595887 | N162: 0.03994698575 | P162: LPN | Q162: 14 | R162: 14 | S162: 11 | T162: 9 | U162: 10 | V162: 14 | W162: 13 | X162: 14
D163: SPN | E163: 0.03340565625 | F163: 0.03561283606 | G163: 0.02618749136 | H163: 0.02511148112 | I163: 0.03502053516 | J163: 0.03913355045 | K163: 0.02618299115 | L163: 0.02910900118 | M163: 0.02350657314 | N163: 0.02500860946 | P163: SPN | Q163: 13 | R163: 12 | S163: 10 | T163: 10 | U163: 13 | V163: 13 | W163: 10 | X163: 11
D164: EPN | E164: 0.01586218887 | F164: 0.02358462941 | G164: =IFERROR(G145/S145,"") -> 0.0195502554 | H164: 0.01926227595 | I164: 0.02554771802 | J164: 0.02911165617 | K164: 0.02601426004 | L164: 0.02264069692 | M164: 0.02601484389 | N164: 0.02795163323 | P164: SPD | Q164: 10 | R164: 11 | S164: 9 | T164: 8 | U164: 12 | V164: 10 | W164: 11 | X164: 13
D165: SPD | E165: =IFERROR(E146/Q146,"") ->  | F165: =IFERROR(F146/R146,"") ->  | G165: =IFERROR(G146/S146,"") -> 0 | H165: =IFERROR(H146/T146,"") -> 0 | I165: =IFERROR(I146/U146,"") -> 0.0002306805075 | J165: =IFERROR(J146/V146,"") -> 0.0002998846597 | K165: =IFERROR(K146/W146,"") -> 0.0005651672434 | L165: 0.0004498269896 | M165: 0.0008535178777 | N165: 0.0002679528403 | P165: EPN | Q165: 1 | R165: =RANK(H165,$H$155:$H$168,1) -> 1 | S165: 1 | T165: 1 | U165: 1 | V165: 1 | W165: 1 | X165: 2
D166: SPMW | E166: =IFERROR(E147/Q147,"") ->  | F166: =IFERROR(F147/R147,"") ->  | G166: =IFERROR(G147/S147,"") -> 0.01943967982 | H166: 0.01331475129 | I166: 0.006320432064 | J166: 0.007184129115 | K166: 0.004618777277 | L166: 0.002956289479 | M166: 0.003139359171 | N166: 0.02008049554 | P166: SPMW | Q166: 9 | R166: 7 | S166: 4 | T166: 3 | U166: 3 | V166: 3 | W166: 2 | X166: 10
D167: SSEH | E167: =IFERROR(E148/Q148,"") -> 0.02820184192 | F167: 0.04257959965 | G167: 0.01168410967 | H167: 0.01869040429 | I167: 0.1050571745 | J167: 0.03928370922 | K167: 0.007289420435 | L167: 0.004584384938 | M167: 0.008500202793 | N167: 0.002950832595 | P167: SSEH | Q167: 7 | R167: 10 | S167: 14 | T167: 11 | U167: 4 | V167: 4 | W167: 5 | X167: 3
D168: SSES | E168: 0.03347644344 | F168: 0.03663239306 | G168: 0.02153511986 | H168: 0.03098033253 | I168: 0.04928888298 | J168: 0.04876154716 | K168: 0.04051362746 | L168: 0.02861524779 | M168: 0.02835469232 | N168: 0.01994891411 | P168: SSES | Q168: =RANK(G168,$G$155:$G$168,1) -> 11 | R168: 13 | S168: 12 | T168: 13 | U168: 14 | V168: 12 | W168: 12 | X168: 9
D169: Total | E169: 0.02723984073 | F169: 0.02964080848 | G169: 0.02435401676 | H169: 0.0225936566 | I169: 0.02860613979 | J169: 0.02961766115 | K169: 0.02056637235 | L169: 0.02186694975 | M169: 0.02308983352 | N169: 0.02372417549
B172: Undergrounding
D173: Undergrounding performance
E174: 2015/16 | H174: 2016/17 | K174: 2017/18 | N174: 2018/19 | Q174: 2019/20 | T174: 2020/21 | W174: 2021/22 | Z174: 2022/23
E175: Length of overhead lines removed (km) | F175: Length of underground lines installed (km) | G175: Undergrounding expenditure (£m) | H175: Length of overhead lines removed (km) | I175: Length of underground lines installed (km) | J175: Undergrounding expenditure (£m) | K175: Length of overhead lines removed (km) | L175: Length of underground lines installed (km) | M175: Undergrounding expenditure (£m) | N175: Length of overhead lines removed (km) | O175: Length of underground lines installed (km) | P175: Undergrounding expenditure (£m) | Q175: Length of overhead lines removed (km) | R175: Length of underground lines installed (km) | S175: Undergrounding expenditure (£m) | T175: Length of overhead lines removed (km) | U175: Length of underground lines installed (km) | V175: Undergrounding expenditure (£m) | W175: Length of overhead lines removed (km) | X175: Length of underground lines installed (km) | Y175: Undergrounding expenditure (£m) | Z175: Length of overhead lines removed (km) | AA175: Length of underground lines installed (km) | AB175: Undergrounding expenditure (£m)
D176: ENWL | E176: 3.79 | F176: 3.41 | G176: 1.166739731 | H176: 11.23 | I176: 12.206 | J176: 1.254404509 | K176: 4.88 | L176: 4.46 | M176: 1.374521639 | N176: 7.311 | O176: 9.2 | P176: 1.339348588 | Q176: 7.176 | R176: 8.614 | S176: 1.512169807 | T176: 11.23 | U176: 14.83 | V176: 2.047602739 | W176: 5.677 | X176: 8.106 | Y176: 1.929182412 | Z176: 11.31 | AA176: 14.43 | AB176: 1.47
D177: NPgN | E177: 9.112 | F177: 9.067 | G177: 1.11064927 | H177: 9.161 | I177: 8.876 | J177: 2.967231773 | K177: 9.995 | L177: 12.03 | M177: 2.241776188 | N177: 6.93 | O177: 7.592 | P177: 1.1669349 | Q177: 3.205 | R177: 3.878 | S177: 2.137569239 | T177: 5.38 | U177: 6.47 | V177: 2.120102127 | W177: 13.99 | X177: 11.395 | Y177: 1.697121532 | Z177: 2.665 | AA177: 8.521 | AB177: 0.1021411982
D178: NPgY | E178: 7.751 | F178: 7.845 | G178: 0.5366006193 | H178: 3.85 | I178: 3.645 | J178: 0.7930201179 | K178: 3.87 | L178: 3.585 | M178: 0.8433105046 | N178: 4.38 | O178: 5.5 | P178: 1.407986329 | Q178: 10.418 | R178: 12.119 | S178: 0.6734622394 | T178: 0.836 | U178: 1.39 | V178: 0.7736615304 | W178: 0 | X178: 0 | Y178: 1.568006084 | Z178: 11.051 | AA178: 12.306 | AB178: 2.153523025
D179: WMID | E179: 4.655857 | F179: 5.029391 | G179: 0.9370913006 | H179: 3.293036 | I179: 6.442838042 | J179: 0.6018519021 | K179: 0 | L179: 0 | M179: 0 | N179: 0.350793 | O179: 0 | P179: 0.001359731096 | Q179: 5.70078 | R179: 5.96822 | S179: 0.6006853743 | T179: 0 | U179: 0.09394 | V179: 0.08512774071 | W179: 0.06243 | X179: 0 | Y179: 0.01657024057 | Z179: 0 | AA179: 0.16049 | AB179: 0.06184424071
D180: EMID | E180: 4.160633 | F180: 0 | G180: 0.02260824143 | H180: 0 | I180: 0.289111 | J180: 0.03023342026 | K180: 1.092980523 | L180: 0.014685116 | M180: 0 | N180: 0 | O180: 0 | P180: 0.01152921238 | Q180: 3.281904 | R180: 3.304386 | S180: 0.4737857121 | T180: 0.37509 | U180: 0.32566 | V180: 0.3122146451 | W180: 0.81237 | X180: 0.01249 | Y180: 0.05128266878 | Z180: 0.24483 | AA180: 1.846 | AB180: 0.1456590675
D181: SWALES | E181: 0 | F181: 0 | G181: 0 | H181: 1.171771696 | I181: 1.174857 | J181: 0.09655780128 | K181: 0.113239 | L181: 0 | M181: 0.2268982321 | N181: 0.116752 | O181: 0.124092983 | P181: 0.01685992348 | Q181: 0 | R181: 0 | S181: 0.0002196018243 | T181: 0 | U181: 0 | V181: 0 | W181: 1.46004 | X181: 2.24303 | Y181: 0.502738893 | Z181: 1.33072 | AA181: 1.22504 | AB181: 0.3845047532
D182: SWEST | E182: 0 | F182: 0 | G182: 0.07175070635 | H182: 0.305728 | I182: 0.685364377 | J182: 0.04948449446 | K182: 1.898316 | L182: 9.438434236 | M182: 1.390390462 | N182: 0.336942 | O182: 1.348525441 | P182: 0.1957819693 | Q182: 2.644278 | R182: 0.102598 | S182: 0.3327655478 | T182: 3.18665 | U182: 3.155564 | V182: 0.1894778745 | W182: 0.45227 | X182: 0.09823 | Y182: 0.1743451823 | Z182: 2.44616 | AA182: 3.09284 | AB182: 0.4056347853
D183: LPN* | E183: 0 | F183: 0 | G183: 0 | H183: 0 | I183: 0 | J183: 0 | K183: 0 | L183: 0 | M183: 0 | N183: 0 | O183: 0 | P183: 0 | Q183: 0 | R183: 0 | S183: 0 | T183: 0 | U183: 0 | V183: 0 | W183: 0 | X183: 0 | Y183: 0 | Z183: 0 | AA183: 0 | AB183: 0
D184: SPN | E184: 5.349638 | F184: 7.883125 | G184: 0.4582126916 | H184: 3.1821 | I184: 1.86 | J184: 0.4560735389 | K184: 0 | L184: 0 | M184: 0.06194221457 | N184: 0 | O184: 0 | P184: 0.05407722106 | Q184: 0 | R184: 0 | S184: 0.05258627593 | T184: 0 | U184: 0 | V184: 0.1679857342 | W184: 0 | X184: 0 | Y184: 0.02572660494 | Z184: 4.36609 | AA184: 2.06927 | AB184: 1.151625991
D185: EPN | E185: 0 | F185: 0.135 | G185: 0.6471147711 | H185: 1.46682782 | I185: 1.785446065 | J185: 0.250498672 | K185: 2.053488 | L185: 3.449360167 | M185: 0.2349597131 | N185: 0.53192 | O185: 2.6719 | P185: 0.9653294528 | Q185: 8.44702 | R185: 9.91455 | S185: 1.394133249 | T185: 5.42242 | U185: 5.59226 | V185: 0.7245493464 | W185: 14.27183 | X185: 10.65568 | Y185: 2.570765446 | Z185: 0 | AA185: 0 | AB185: 1.450224813
D186: SPD | E186: 0 | F186: 0 | G186: 0 | H186: 0 | I186: 0 | J186: 0.1916498731 | K186: 0 | L186: 0 | M186: 0 | N186: 0 | O186: 0 | P186: 0.2190157367 | Q186: 0 | R186: 0 | S186: 0.07141580706 | T186: 0.16355 | U186: 0 | V186: 1.305151882 | W186: 7.741792422 | X186: 8.495136491 | Y186: 0.4355440392 | Z186: 0 | AA186: 0 | AB186: 0.5625926798
D187: SPMW | E187: 1.6 | F187: 0 | G187: 0.1261485315 | H187: 1.968943195 | I187: 1.623761834 | J187: 0.2775829927 | K187: 7.437 | L187: 0 | M187: 0.6307048 | N187: 0.7059 | O187: 0.6927 | P187: 0 | Q187: 1.3136 | R187: 1.17311 | S187: 0.6916622266 | T187: 1.33264 | U187: 1.76255 | V187: 0.5863938817 | W187: 2.36862 | X187: 0.2896831756 | Y187: 0.276194793 | Z187: 1.963985549 | AA187: 2.510638987 | AB187: 0.1981358649
D188: SSEH | E188: 0 | F188: 0 | G188: 0 | H188: 0 | I188: 0 | J188: 0.3128116665 | K188: 1.922 | L188: 2.509 | M188: 1.050448937 | N188: 2.599 | O188: 3.133 | P188: 0.2625628115 | Q188: 0 | R188: 0 | S188: 0.2113943102 | T188: 11.214 | U188: 10.724 | V188: 0.1970047666 | W188: 0 | X188: 0 | Y188: 0.1428451251 | Z188: 4.101 | AA188: 5.923 | AB188: 0.54585205
D189: SSES | E189: 2.5 | F189: 2.4 | G189: 0.3381403661 | H189: 6.027 | I189: 6.967 | J189: 0.6039609266 | K189: 0 | L189: 0 | M189: 0.2600686201 | N189: 0 | O189: 0 | P189: 0.1736361617 | Q189: 2.394 | R189: 2.76221 | S189: 0.7141057099 | T189: 0.572 | U189: 0.989 | V189: 0.08151474269 | W189: 3.937 | X189: 4.015 | Y189: 0.9498368362 | Z189: 16.932 | AA189: 19.335 | AB189: 1.5280813
D190: Total | E190: =SUM(E176:E189) -> 38.919128 | F190: 35.769516 | G190: =SUM(G176:G189) -> 5.415056228 | H190: 41.65640671 | I190: 45.55537832 | J190: 7.885361687 | K190: 33.26202352 | L190: 35.48647952 | M190: 8.315021311 | N190: 23.262307 | O190: 30.26221842 | P190: 5.814422037 | Q190: =SUM(Q176:Q189) -> 44.580582 | R190: 47.836074 | S190: 8.865955101 | T190: 39.71235 | U190: 45.332974 | V190: 8.590787011 | W190: 50.77335242 | X190: 45.31024967 | Y190: 10.34015986 | Z190: 56.41078555 | AA190: 71.41927899 | AB190: 10.15981977
D191: * nb LPN does not have an undergrounding allowance
D194: Detailed Undergrounding Activity Under ED1 Visual Amenity Allowance
D196: DNO | E196: AONB / national park | F196: 2015/16 | I196: 2016/17 | L196: 2017/18 | O196: 2018/19 | R196: 2019/20 | U196: 2020/21 | X196: 2021/22 | AA196: 2022/23
F197: Length of overhead lines (km) removed | G197: Length of underground cables installed in Designated Areas (km) | H197: Expenditure (£m) | I197: Length of overhead lines (km) removed | J197: Length of underground cables installed in Designated Areas (km) | K197: Expenditure (£m) | L197: Length of overhead lines (km) removed | M197: Length of underground cables installed in Designated Areas (km) | N197: Expenditure (£m) | O197: Length of overhead lines (km) removed | P197: Length of underground cables installed in Designated Areas (km) | Q197: Expenditure (£m) | R197: Length of overhead lines (km) removed | S197: Length of underground cables installed in Designated Areas (km) | T197: Expenditure (£m) | U197: Length of overhead lines (km) removed | V197: Length of underground cables installed in Designated Areas (km) | W197: Expenditure (£m) | X197: Length of overhead lines (km) removed | Y197: Length of underground cables installed in Designated Areas (km) | Z197: Expenditure (£m) | AA197: Length of overhead lines (km) removed | AB197: Length of underground cables installed in Designated Areas (km) | AC197: Expenditure (£m)
D198: ENWL | E198: Arnside & Silverdale | F198: 0 | G198: 0 | H198: 0.01154755952 | I198: 0 | J198: 0 | K198: -0.0001784636067 | L198: 0 | M198: 0 | N198: 0 | O198: 0 | P198: 0 | Q198: 0 | R198: 0 | S198: 0 | T198: 0 | U198: 0 | V198: 0 | W198: 0 | X198: 0 | Y198: 0 | Z198: 0.3206709081 | AA198: 1.62 | AB198: 1.7 | AC198: 0.06699878
E199: Forest of Bowland | F199: 1.22 | G199: 1.355 | H199: 0.1782345877 | I199: 1.801 | J199: 2.251 | K199: 0.2143695608 | L199: 2.687 | M199: 3.4 | N199: 0.3520231531 | O199: 0 | P199: 0 | Q199: 0.2236033678 | R199: 5.271 | S199: 6.43 | T199: 0.6226480222 | U199: 5.796 | V199: 8.194 | W199: 0.8500806706 | X199: 0 | Y199: 0 | Z199: 0.004515204826 | AA199: 0 | AB199: 0 | AC199: 0.00400021099
E200: North Pennines | F200: 0 | G200: 0 | H200: 0.003880050709 | I200: 2.719 | J200: 3.108 | K200: 0.4045794974 | L200: 0 | M200: 0 | N200: 0.009575463119 | O200: 0 | P200: 0 | Q200: 0.001416952564 | R200: 0 | S200: 0 | T200: 0 | U200: 0 | V200: 0 | W200: 0 | X200: 1.933 | Y200: 2.122 | Z200: 0.3517448762 | AA200: 2.758 | AB200: 3.686 | AC200: 0.33165441
E201: Solway Coast | F201: 0.93 | G201: 1.185 | H201: 0.1167443941 | I201: 1.607 | J201: 2.241 | K201: 0.2080759796 | L201: 0 | M201: 0 | N201: 0 | O201: 0 | P201: 0 | Q201: 0 | R201: 0.73 | S201: 0.702 | T201: 0.1123027318 | U201: 0 | V201: 0 | W201: 0 | X201: 0 | Y201: 0 | Z201: 0 | AA201: 0 | AB201: 0 | AC201: 0
E202: The Lake District | F202: 0.8 | G202: 0.87 | H202: 0.7537872732 | I202: 4.052 | J202: 3.555 | K202: 0.2157661027 | L202: 0.882 | M202: 1.06 | N202: 0.8852531623 | O202: 5.827 | P202: 7.031 | Q202: 0.670334266 | R202: 0.125 | S202: 0.162 | T202: 0.03014652292 | U202: 2.664 | V202: 3.09 | W202: 0.5290805791 | X202: 1.912 | Y202: 3.327 | Z202: 0.8245427051 | AA202: 5.087 | AB202: 6.79 | AC202: 1.015965917
E203: The Peak District | F203: 0.84 | G203: 0 | H203: 0.06298352189 | I203: 1.051 | J203: 1.051 | K203: 0.2108181646 | L203: 1.315 | M203: 0 | N203: 0.1276698606 | O203: 0.98 | P203: 1.49 | Q203: 0.2794648502 | R203: 0 | S203: 0 | T203: -0.004597909635 | U203: 0 | V203: 0 | W203: 0.3557535313 | X203: 1.832 | Y203: 2.657 | Z203: 0.09546747156 | AA203: 0 | AB203: 0 | AC203: 0
E204: The Yorkshire Dales | F204: 0 | G204: 0 | H204: 0.03956234358 | I204: 0 | J204: 0 | K204: 0.0009736695987 | L204: 0 | M204: 0 | N204: 0 | O204: 0.504 | P204: 0.679 | Q204: 0.1676954956 | R204: 1.05 | S204: 1.32 | T204: 0.7516704395 | U204: 2.771 | V204: 3.545 | W204: -0.0333695107 | X204: 0 | Y204: 0 | Z204: 0.3322412461 | AA204: 1.842 | AB204: 2.25 | AC204: 0.04775159
D205: NPGN | E205: Howardian Hills | F205: 1.505 | G205: 1.505 | H205: 0.1587463531 | I205: 1.07 | J205: 0.965 | K205: 0.2571629342 | L205: 0.27 | M205: 0.425 | N205: 0.0685738455 | O205: 0.58 | P205: 0.8 | Q205: 0.09608621648 | R205: 0 | S205: 0 | T205: 0.004766639059 | U205: 1.175 | V205: 1.455 | W205: 0.4477804938 | X205: 1.63 | Y205: 1.635 | Z205: 0.04797928013 | AA205: 0 | AB205: 0 | AC205: 0
E206: Nidderdale | F206: 1.148 | G206: 1.148 | H206: 0.1113883472 | I206: 0.192 | J206: 0.192 | K206: 0.01438736693 | L206: 0 | M206: 0 | N206: 0.1224001874 | O206: 0.52 | P206: 0.54 | Q206: 0.1087170861 | R206: 0.52 | S206: 0.78 | T206: 0.4074354721 | U206: 0 | V206: 0 | W206: 0.5951136028 | X206: 6.095 | Y206: 0.99 | Z206: 0.2488505673 | AA206: 2.665 | AB206: 8.521 | AC206: 0.09410998549
E207: North Pennines | F207: 1.17 | G207: 1.17 | H207: 0.1919376006 | I207: 1.446 | J207: 1.446 | K207: 0.3535831712 | L207: 1.755 | M207: 1.875 | N207: 0.7028508233 | O207: 1.56 | P207: 1.697 | Q207: 0.5038637134 | R207: 1.39 | S207: 1.745 | T207: 0.6214654185 | U207: 0 | V207: 0 | W207: 0.06254836352 | X207: 3.755 | Y207: 4.6 | Z207: 0.8138423405 | AA207: 0 | AB207: 0 | AC207: 0.0005667299429
E208: Northumberland Coast | F208: 0 | G208: 0 | H208: 0 | I208: 0.73 | J208: 0.73 | K208: 0.1150030971 | L208: 0 | M208: 0 | N208: 0.02175800737 | O208: 0.32 | P208: 0.31 | Q208: 0.05808350871 | R208: 0 | S208: 0 | T208: 0.01045611351 | U208: 0 | V208: 0 | W208: 0 | X208: 0 | Y208: 0 | Z208: 0.0005710529016 | AA208: 0 | AB208: 0 | AC208: 0
E209: Northumberland | F209: 0.78 | G209: 0.78 | H209: 0.09673496591 | I209: 0.86 | J209: 0.5 | K209: 0.1639459543 | L209: 0 | M209: 0 | N209: 0.03354800234 | O209: 0 | P209: 0 | Q209: 0.02953615791 | R209: 0 | S209: 0 | T209: 0.473318424 | U209: 0 | V209: 0 | W209: 0.04949326406 | X209: 0 | Y209: 0 | Z209: 0.0716442873 | AA209: 0 | AB209: 0 | AC209: 0.01280377796
E210: North York Moors | F210: 4.309 | G210: 4.264 | H210: 0.5245069965 | I210: 4.863 | J210: 5.043 | K210: 2.060494207 | L210: 4.44 | M210: 5.545 | N210: 0.8096581835 | O210: 3.95 | P210: 4.245 | Q210: 0.3151271056 | R210: 0.325 | S210: 0.468 | T210: 0.3261081613 | U210: 4.205 | V210: 5.015 | W210: 0.5382235075 | X210: 1.12 | Y210: 1.755 | Z210: 0.4117165205 | AA210: 0 | AB210: 0 | AC210: -0.009223760832
E211: Yorkshire Dales | F211: 0.2 | G211: 0.2 | H211: 0.0273350064 | I211: 0 | J211: 0 | K211: 0 | L211: 3.53 | M211: 4.185 | N211: 0.4829871774 | O211: 0 | P211: 0 | Q211: 0.05552111227 | R211: 0.97 | S211: 0.885 | T211: 0.294019011 | U211: 0 | V211: 0 | W211: 0.08256370456 | X211: 1.39 | Y211: 2.415 | Z211: 0.1025174837 | AA211: 0 | AB211: 0 | AC211: 0.003884465676
D212: NPGY | E212: Peak District | F212: 0.481 | G212: 0.575 | H212: 0.02441037358 | I212: 0 | J212: 0 | K212: 0.05003648289 | L212: 0.25 | M212: 0.28 | N212: 0.3781597432 | O212: 1.8 | P212: 2.6 | Q212: 0.05554404049 | R212: 0 | S212: 0 | T212: 0.02240146097 | U212: 0 | V212: 0 | W212: 0.5744288154 | X212: 0 | Y212: 0 | Z212: 1.024049977 | AA212: 1.62 | AB212: 1.7 | AC212: 0.06699878
E213: Yorkshire Dales | F213: 0 | G213: 0 | H213: 0 | I213: 0 | J213: 0 | K213: 0.02425822056 | L213: 0 | M213: 0 | N213: 0.006583186031 | O213: 0 | P213: 0 | Q213: 0.6652916611 | R213: 4.68 | S213: 5.286 | T213: 0.2763263821 | U213: 0.836 | V213: 1.39 | W213: 0.0574812793 | X213: 0 | Y213: 0 | Z213: 0.5055417891 | AA213: 0 | AB213: 0 | AC213: 0.00400021099
E214: Nidderdale | F214: 5 | G214: 5 | H214: 0.1360896649 | I214: 0.24 | J214: 0.24 | K214: 0.06224871114 | L214: 0 | M214: 0 | N214: 0.0004048480734 | O214: 0 | P214: 0 | Q214: 0.006810424733 | R214: 1.888 | S214: 2.663 | T214: 0.2777380299 | U214: 0 | V214: 0 | W214: 0.01012058435 | X214: 0 | Y214: 0 | Z214: 0.01185063362 | AA214: 2.758 | AB214: 3.686 | AC214: 0.33165441
E215: Lincolnshire Wolds | F215: 2.27 | G215: 2.27 | H215: 0.3761005809 | I215: 3.61 | J215: 3.405 | K215: 0.6564767033 | L215: 3.62 | M215: 3.305 | N215: 0.4581627273 | O215: 2.58 | P215: 2.9 | Q215: 0.6803402032 | R215: 3.85 | S215: 4.17 | T215: 0.09699636647 | U215: 0 | V215: 0 | W215: 0.005960993955 | X215: 0 | Y215: 0 | Z215: 0.0265636843 | AA215: 0 | AB215: 0 | AC215: 0
D216: WMID | E216: Cannock Chase | F216: 0.052672 | G216: 0.015998 | H216: -0.1046477283 | I216: 0 | J216: 0 | K216: -0.1052357422 | L216: 0 | M216: 0 | N216: 0 | O216: 0 | P216: 0 | Q216: 0 | R216: 4.037038 | S216: 4.340457 | T216: 0.390824891 | U216: 0 | V216: 0.09394 | W216: 0.04707221867 | X216: 0 | Y216: 0 | Z216: 0.007649756444 | AA216: 0 | AB216: 0 | AC216: 0
E217: Cotswolds (WMID) | F217: 0.75935 | G217: 1.100196 | H217: 0.0909744805 | I217: 1.533846 | J217: 1.821023042 | K217: 0.3636862426 | L217: 0 | M217: 0 | N217: 0 | O217: 0 | P217: 0 | Q217: 0 | R217: 0 | S217: 0 | T217: 0.0005727709448 | U217: 0 | V217: 0 | W217: 0.02137351286 | X217: 0 | Y217: 0 | Z217: 0.008920484108 | AA217: 0 | AB217: 0 | AC217: 0.05093036517
E218: Malvern Hills | F218: 1.826298 | G218: 1.117835 | H218: 0.09598349208 | I218: 0 | J218: 0.18185 | K218: 0.09396995117 | L218: 0 | M218: 0 | N218: 0 | O218: 0 | P218: 0 | Q218: 0 | R218: 0 | S218: 0 | T218: 0 | U218: 0 | V218: 0 | W218: 0 | X218: 0 | Y218: 0 | Z218: 0 | AA218: 0 | AB218: 0 | AC218: 0
E219: Peak District NP (WMID) | F219: 0.641478 | G219: 0.827735 | H219: 0.3670116319 | I219: 0.416485 | J219: 0.458741 | K219: 0.3603727746 | L219: 0 | M219: 0 | N219: 0 | O219: 0 | P219: 0 | Q219: 0 | R219: 0 | S219: 0 | T219: 0 | U219: 0 | V219: 0 | W219: 0 | X219: 0 | Y219: 0 | Z219: 0 | AA219: 0 | AB219: 0.15396 | AC219: 0
E220: Wye Valley (WMID) | F220: 0 | G220: 0 | H220: 0.4276612856 | I220: 0 | J220: 1.882215 | K220: 0.4149787265 | L220: 0 | M220: 0 | N220: 0 | O220: 0 | P220: 0 | Q220: 0.001363670281 | R220: 0 | S220: 0 | T220: 0 | U220: 0 | V220: 0 | W220: 0 | X220: 0 | Y220: 0 | Z220: 0 | AA220: 0 | AB220: 0 | AC220: 0.01091615865
E221: Shropshire Hills | F221: 1.376059 | G221: 1.967627 | H221: 0.05970200283 | I221: 1.342705 | J221: 2.099009 | K221: 0.3911217573 | L221: 0 | M221: 0 | N221: 0 | O221: 0.350793 | P221: 0 | Q221: 0 | R221: 1.663742 | S221: 1.627763 | T221: 0.2083240443 | U221: 0 | V221: 0 | W221: 0.002864981815 | X221: 0.06243 | Y221: 0 | Z221: 0 | AA221: 0 | AB221: 0.00653 | AC221: 0
D222: EMID | E222: Lincolnshire Wolds | F222: 0 | G222: 0 | H222: -0.01326711174 | I222: 0 | J222: 0.289111 | K222: 0.01723003336 | L222: 1.092980523 | M222: 0.014685116 | N222: 0 | O222: 0 | P222: 0 | Q222: 0 | R222: 3.281904 | S222: 3.304386 | T222: 0.3276196751 | U222: 0 | V222: 0.02752 | W222: 0.002132797817 | X222: 0 | Y222: 0.01249 | Z222: 0.007362051741 | AA222: 0.24483 | AB222: 1.29185 | AC222: 0.1253480551
... 101 more rows

Sheet Ch3 - innovation
A1: Chapter 2 - Innovation
B2: Overview of the DNOs’ expenditure in relation to the various innovation schemes in RIIO-ED1.
B3: Network Innovation Allowance (NIA) Source: Expenditure: Revenue Returns R9 Allowance: NIA % of Base Revenue | D3: Network Innovation Allowance projects and expenditure
E4: 2015/16 (in 15/16 prices) | I4: 2016/17 (in 16/17 prices) | M4: 2017/18 (in 17/18 prices) | Q4: 2018/19 (in 18/19 prices) | U4: 2019/20 (in 19/20 prices) | Y4: 2020/21 (in 20/21 prices) | AC4: 2021/22 (in 21/22 prices) | AG4: 2022/23 (in 22/23 prices)
E5: Number of projects | F5: NIA allowance (£m) | G5: NIA expenditure (£m) | H5: % of allowance | I5: Number of projects | J5: NIA allowance (£m) | K5: NIA expenditure (£m) | L5: % of allowance | M5: Number of projects | N5: NIA allowance (£m) | O5: NIA expenditure (£m) | P5: % of allowance | Q5: Number of projects | R5: NIA allowance (£m) | S5: NIA expenditure (£m) | T5: % of allowance | U5: Number of projects | V5: NIA allowance (£m) | W5: NIA expenditure (£m) | X5: % of allowance | Y5: Number of projects | Z5: NIA allowance (£m) | AA5: NIA expenditure (£m) | AB5: % of allowance | AC5: Number of projects | AD5: NIA allowance (£m) | AE5: NIA expenditure (£m) | AF5: % of allowance | AG5: Number of projects | AH5: NIA allowance (£m) | AI5: NIA expenditure (£m) | AJ5: % of allowance
D6: ENWL | E6: 18 | F6: 2.825102 | G6: 2.525378644 | H6: =G6/F6 -> 0.8939070676 | I6: 18 | J6: 2.865936317 | K6: 2.86498227 | L6: =K6/J6 -> 0.9996671081 | M6: 13 | N6: 2.729036879 | O6: 2.729036879 | P6: =O6/N6 -> 1 | Q6: 15 | R6: 2.792660125 | S6: 2.792660125 | T6: 1 | U6: 10 | V6: 2.872269159 | W6: 2.872269159 | X6: =W6/V6 -> 1 | Y6: 8 | Z6: 2.913395459 | AA6: 2.913395459 | AB6: =AA6/Z6 -> 1 | AC6: 12 | AD6: 2.889739266 | AE6: 2.889739266 | AF6: =AE6/AD6 -> 1 | AG6: 9 | AH6: 2.972276498 | AI6: 2.208574024 | AJ6: =AI6/AH6 -> 0.7430580654
D7: NPg | E7: 16 | F7: 3.7179684 | G7: 1.307496213 | H7: =G7/F7 -> 0.3516695336 | I7: 18 | J7: 3.7090614 | K7: 1.259185095 | L7: =K7/J7 -> 0.3394888785 | M7: 26 | N7: 3.699986137 | O7: 3.697980533 | P7: =O7/N7 -> 0.9994579428 | Q7: 30 | R7: 3.840466706 | S7: 3.832167322 | T7: 0.9978389647 | U7: 33 | V7: 3.941209541 | W7: 3.707239104 | X7: =W7/V7 -> 0.9406348648 | Y7: 25 | Z7: 4.0110349 | AA7: 3.898482858 | AB7: =AA7/Z7 -> 0.971939401 | AC7: 27 | AD7: 4.098118065 | AE7: 1.530562284 | AF7: 0.3734793044 | AG7: 22 | AH7: 4.218772497 | AI7: 3.092191884 | AJ7: =AI7/AH7 -> 0.7329600935
D8: NGED | E8: 14 | F8: 6.802534 | G8: 1.534576988 | H8: 0.2255890214 | I8: 22 | J8: 7.051369 | K8: 5.060908023 | L8: 0.717719924 | M8: 23 | N8: 7.211238998 | O8: 6.20455 | P8: 0.8603999953 | Q8: 28 | R8: 7.52939105 | S8: 4.10796 | T8: 0.5455899385 | U8: 28 | V8: 7.905424457 | W8: 6.1214427 | X8: 0.7743344754 | Y8: 26 | Z8: 7.893032773 | AA8: 4.814685 | AB8: =AA8/Z8 -> 0.609991766 | AC8: 21 | AD8: 7.829581639 | AE8: 5.6327589 | AF8: 0.7194201631 | AG8: 24 | AH8: 8.040106991 | AI8: 4.973 | AJ8: 0.6185241074
D9: UKPN | E9: 31 | F9: 5.903535 | G9: 2.47017267 | H9: 0.4184226349 | I9: 24 | J9: 6.1354335 | K9: 4.523898929 | L9: 0.7373397379 | M9: 33 | N9: 5.941970593 | O9: 5.473571124 | P9: 0.921171022 | Q9: 30 | R9: 6.630393771 | S9: 5.002599375 | T9: 0.7544950644 | U9: 34 | V9: 7.230525249 | W9: 6.690845043 | X9: 0.9253608573 | Y9: 43 | Z9: 7.48392458 | AA9: 6.991594641 | AB9: 0.9342150052 | AC9: 36 | AD9: 7.365659009 | AE9: 7.078389318 | AF9: 0.9609987796 | AG9: 47 | AH9: 7.930710435 | AI9: 6.373481409 | AJ9: 0.8036457088
D10: SPEN | E10: 21 | F10: 3.478089 | G10: 3.0739 | H10: 0.8837899203 | I10: 22 | J10: 3.552675439 | K10: 3.0412 | L10: 0.8560309132 | M10: 31 | N10: 3.542363333 | O10: 2.77 | P10: 0.7819638303 | Q10: 28 | R10: 3.66142714 | S10: 2.942286464 | T10: 0.8035900624 | U10: 32 | V10: 3.818388126 | W10: 3.39428227 | X10: 0.8889306582 | Y10: 41 | Z10: 3.982880831 | AA10: 3.780575778 | AB10: 0.9492063505 | AC10: 29 | AD10: 3.971507033 | AE10: 3.971507033 | AF10: 1 | AG10: 35 | AH10: 3.971222236 | AI10: 1.455407692 | AJ10: 0.3664886036
D11: SSEN | E11: 35 | F11: 3.794717 | G11: 3.085577681 | H11: 0.8131245837 | I11: 31 | J11: 3.8070795 | K11: 2.790449717 | L11: 0.7329633429 | M11: 28 | N11: 3.759920429 | O11: 1.813750698 | P11: 0.4823907134 | Q11: 37 | R11: 4.083544453 | S11: 2.308242238 | T11: 0.5652545882 | U11: 35 | V11: 4.172035405 | W11: 1.961457291 | X11: 0.4701439706 | Y11: 25 | Z11: 4.250327768 | AA11: 2.805718599 | AB11: 0.6601181725 | AC11: 22 | AD11: 4.667248247 | AE11: 3.3196815 | AF11: 0.7112716797 | AG11: 32 | AH11: 4.653342997 | AI11: 3.547319904 | AJ11: 0.7623164478
D12: Total | E12: 128 | F12: =SUM(F6:F11) -> 26.5219454 | G12: =SUM(G6:G11) -> 13.9971022 | H12: 0.5277554865 | I12: =SUM(I6:I11) -> 135 | J12: =SUM(J6:J11) -> 27.12155516 | K12: =SUM(K6:K11) -> 19.54062403 | L12: 0.72048317 | M12: =SUM(M6:M11) -> 154 | N12: =SUM(N6:N11) -> 26.88451637 | O12: =SUM(O6:O11) -> 22.68888923 | P12: 0.8439389023 | Q12: =SUM(Q6:Q11) -> 168 | R12: =SUM(R6:R11) -> 28.53788324 | S12: =SUM(S6:S11) -> 20.98591552 | T12: =S12/R12 -> 0.7353704318 | U12: =SUM(U6:U11) -> 172 | V12: =SUM(V6:V11) -> 29.93985194 | W12: =SUM(W6:W11) -> 24.74753557 | X12: 0.8265750819 | Y12: =SUM(Y6:Y11) -> 168 | Z12: =SUM(Z6:Z11) -> 30.53459631 | AA12: =SUM(AA6:AA11) -> 25.20445234 | AB12: 0.8254391863 | AC12: =SUM(AC6:AC11) -> 147 | AD12: =SUM(AD6:AD11) -> 30.82185326 | AE12: =SUM(AE6:AE11) -> 24.4226383 | AF12: 0.792380591 | AG12: =SUM(AG6:AG11) -> 169 | AH12: =SUM(AH6:AH11) -> 31.78643165 | AI12: =SUM(AI6:AI11) -> 21.64997491 | AJ12: =AI12/AH12 -> 0.6811074344
B15: Network Innovation Competition (NIC) | D15: Network Innovation Competition projects
D16: 2015/16
D17: Project Title | E17: Lead company | F17: Description | G17: NIC funding awarded (£m) | H17: Total project costs (£m) | I17: Project end date
D18: Celsius | E18: ENWL | F18: To develop a new way of managing the temperature of substations – increasing their operational capacity and lifespan. | G18: 5.378958236 | H18: 6.22976886 | I18: 2020
D19: ANGLE- DC | E19: SPEN - SPMW | F19: To increase Network Reinforcement through converting an existing Alternating Current (AC) circuit between the mainland and Anglesey to Direct Current (DC). | G19: 14.87819023 | H19: 16.56075041 | I19: 2020
D20: Source: https://www.ofgem.gov.uk/sites/default/files/docs/innovation_competitions_brochure_webready_0.pdf
D22: 2016/17
D23: Project Title | E23: Lead company | F23: Description | G23: NIC funding awarded (£m) | H23: Total project costs (£m) | I23: Project end date
D24: Open LV | E24: WPD - WMID | F24: To develop a new software platform which uses cloud technology to enhance visibility of residential-level substations. | G24: 6.434196147 | H24: 7.830771831 | I24: 2020
D25: PowerFul-CB | E25: UKPN - LPN | F25: To develop two new types of circuit breaker on the GB network. | G25: 6.089400821 | H25: 8.202477275 | I25: 2021
D26: Source: https://www.ofgem.gov.uk/system/files/docs/2016/11/innovation_competitions_brochure_to_upload.pdf
D28: 2017/18
D29: Project Title | E29: Lead company | F29: Description | G29: NIC funding awarded (£m) | H29: Total project costs (£m) | I29: Project end date
D30: Active Response | E30: UKPN - LPN | F30: To develop two new types of network equipment to direct power flows across the distribution network | G30: 17.67410684 | H30: 23.37687933 | I30: 2021
D31: LV Engine | E31: SPEN - SPD | F31: To test a new type of solid-state transformer on the GB network | G31: 9.313637669 | H31: 10.59789058 | I31: 2022
D32: EFFS | E32: WPD - EMID | F32: To develop an IT platform to forecast network capacity and identify opportunities to trade flexible network services | G32: 3.759540658 | H32: 5.508481587 | I32: 2020
D33: Transition | E33: SSE - SSES | F33: To test technical and commercial solution to resolve constraints on the distribution network | G33: =13.1*'Guide & drivers'!J27 -> 16.73629978 | H33: 18.76874382 | I33: 2021
D34: Fusion | E34: SPEN - SPD | F34: To test a technical and commercial solution developed in Europe to resolve constraints on the distribution network. | G34: 6.763912201 | H34: 7.628232955 | I34: 2022
D35: Source: https://www.ofgem.gov.uk/system/files/docs/2017/11/ofg1031_innovation_competitions_brochure_web.pdf
D37: 2018/19
D38: Project Title | E38: Lead company | F38: Description | G38: NIC funding awarded (£m) | H38: Total project costs (£m) | I38: Project end date
D39: Charge | E39: SPEN - SPMW | F39: Overlaying transport planning and network mapping to give visibility of network capacity for electric vehicle (EV) charging points, including conducting trials of on street residential and destination charging in preparation for the deliver of flexible connection. | G39: =6.85*'Guide & drivers'!J28 -> 8.491946751 | H39: =8.4*'Guide & drivers'!J28 -> 10.41348215 | I39: 2021
D40: Optimise Prime | E40: UKPN - LPN | F40: Conducting trials and gathering data on the charging patterns of different commercial electric vehicle (EV) fleets and their network impact. | G40: =16.4*'Guide & drivers'!J28 -> 20.33108419 | H40: =34.5*'Guide & drivers'!J28 -> 42.76965882 | I40: 2021
D41: Source: https://www.ofgem.gov.uk/system/files/docs/2018/11/competitions_brochure_2018.pdf
D43: 2019/20
D44: Project Title | E44: Lead company | F44: Description | G44: NIC funding awarded (£m) | H44: Total project costs (£m) | I44: Project end date
D45: DC Share | E45: WPD - EMID | F45: DC Share intends to trial a DC ring on a part of the low voltage (LV) network experiencing constraints to deliver two key outcomes. Firstly, it intends to power fifteen electric vehicle (EV) rapid charge points in a location better suited to customer needs than the current rapid charge offering, and secondly, enable load sharing between secondary substations connected to the ring. | G45: =4.7*'Guide & drivers'!J29 -> 5.679564206 | H45: =5.59*'Guide & drivers'!J29 -> 6.755056152 | I45: 2023
D46: Resilience as a Service | E46: SSE - SSEH | F46: Resilience as a Service (RaaS) intends to trial an alternative to standby diesel generation for remote parts of the network. The project will test a system through which low carbon technologies on the distribution network could provide resilience services, and will also examine how to facilitate the market for these services. | G46: =9.7*'Guide & drivers'!J29 -> 11.72165379 | H46: =10.76*'Guide & drivers'!J29 -> 13.00257678 | I46: 2024
D48: 2020/21
D49: Project Title | E49: Lead company | F49: Description | G49: NIC funding awarded (£m) | H49: Total project costs (£m) | I49: Project end date
D50: Constellation | E50: UKPN | F50: The project aims to enable the transition to Net Zero by transforming the existing network management and control systems, through the introduction of local intelligence at a substation level. It is a simplified and focused evolution of a proposal which was brought forward to the 2019 NIC. | G50: 14.38 | H50: 17.57 | I50: 2025
D51: Quest | E51: ENWL | F51: The project aims to integrate standalone discrete voltage control schemes into a single scheme using ENWL’s Network Management System (NMS). It will develop a novel distribution network-wide, fully co-ordinated, overarching system to manage voltages and balance centralised and decentralised control hierarchies. This should reduce cumulative design margins and free up network capacity. | G51: 7.95 | H51: 9.67 | I51: 2024
D52: Source: https://www.ofgem.gov.uk/publications/network-innovation-competition-2020-funding-decision
D53: 2021/22
D54: Project Title | E54: Lead company | F54: Description | G54: NIC funding awarded (£m) | H54: Total project costs (£m) | I54: Project end date
D55: Equinox | E55: NGED | F55: The project aims to release network capacity through the flexibility that can be offered by customers with heat pumps by trialling a new market using an existing network flexibility platform, Flexible Power. | G55: 6.98 | H55: 15.38 | I55: 2025
D56: BiTraDER | E56: ENWL | F56: The project aims to increase the revenue of distributed energy resources that are currently constrained, postpone the network CAPEX and reduce constraint related costs. | G56: 6.79 | H56: 8.31 | I56: 2026
D57: Source: https://www.ofgem.gov.uk/sites/default/files/2021-11/NIC%20Decision%202021%20FINAL.pdf
D58: 2022/23
D59: Project Title | E59: Lead company | F59: Description | G59: NIC funding awarded (£m) | H59: Total project costs (£m) | I59: Project end date
D60: Community DSO | E60: NPg | F60: This project aims to create energy communities who will be responsible for managing flows at their level and location on the network. The aim is to develop a cellular approach (based around an Low Voltage feeder). | G60: 12.45 | H60: 14.21 | I60: 2022
D61: Source: https://www.ofgem.gov.uk/sites/default/files/2022-11/NIC%20Decision%202022%20FINAL.pdf
D62: 2023
D63: Project Title | E63: Lead company | F63: Description | G63: NIC funding awarded (£m) | H63: Total project costs (£m) | I63: Project end date
D64: N/A | E64: N/A | F64: N/A | G64: N/A | H64: N/A | I64: N/A
B66: Innovation project Source data 'Environment and Innovation' Reporting Pack > 'Environment' Spreadsheet > 'E6 - Innovative solutions' | D66: Innovation projects in 2022-23
D67: Solution type/ Primary benefit | E67: ENWL | F67: NPg | G67: NGED | H67: UKPN | I67: SPEN | J67: SSEN
D68: Increase network capacity/optimise utilisation | E68: Demand Side Response; Power Saver Challenge; Long and Crawford switchgear modification; Smart Street IRM. | F68: Load Capacity Release; Generation Capacity Release; Voltage reduction at primary | G68: MOD 1151 11 kV Voltage Reduction; Flexibility: CMZ_T2A_SWE_0001 Plymouth-South Hams; Flexibility: CMZ_T2A_SWE_0002 Exeter City; Flexibility: CMZ_T3A_EM_0004 Lincoln - North Hykeham; Flexibility: CMZ_T4B_EM_0004 Chesterfield GSP; Flexibility: CMZ_T3A_SWE_0005 Bridgwater/Street; Flexibility: CMZ_T4A_SWE_0012 Taunton GSP; Flexibility: CMZ_T4A_EM_0015 Hinckley; Flexibility: CMZ_T4A_EM_0019 Union Street, Rugby | H68: Dynamic Transformer Rating; Flexible DG Connections; LPN Interconnection; Energy Storage; Demand Side Response; FUN-LV; Load Blinding Relays; Kent Active System Management; RtF; Load Blinding Relays for Busbar Protection; HaysysPIU; N-3 with NGESO ICCP; LV Flexibility; Charge Collective | I68: Enhanced Secondary Substation Monitoring; Dynamic (Enhanced) Thermal Rating of Primary transformers; Voltage Optimisation; Enhanced Transformer Rating @ Llanidloes Primary Substation; Enhanced Transformer Rating @Frodsham Primary Substation; WANDA; EV Up; LEP VISNET Installations; Digital Substation | J68: Active Network Management (Western Isles); Active Network Management (Orkney); Active Network Management IoW; 3rd Party ANM; Constraint Managed Zone Islay / Western Isles/ Lite; Constraint Managed Zone - Logie Pert; Flexibility Services
D69: Improve asset life cycle management | E69: Transformer regeneration | F69: Transformer insulating oil on-line regeneration; HV Circuit breaker retrofit | H69: Joint Shell; Oil Regeneration; PFT; CNAIM Modelling; Woodpecker filler; OHL Assessment Tool; Pressurised Cable active management; Load Share; Advanced Analytics Cable Length Estimation; Engineered Poles; GIS Temperature Monitoring | I69: Transformer Refurbishment; G38 End Box Tester; | J69: Pole Pinning SSES; Pole Pinning SSEH
D70: Improve network performance | E70: Fault Support Centre and LV Closing Device | F70: LV Technology Programme; Automatic Power Restoration System | G70: Active Network Management; Soft Intertrip; Timed | H70: LV Re-energising Devices; Automated Power Restoration System; Mobile Assest Assessment Vehicle; OHL Assessment Using Panoramic Images; Primary Outage Restoration Tool PORT; Directional Earth Fault Passage Indicator; Infrared Imaging Camera; OHL FPIs; Remote Portable Switch; Fusesaver; DBHLOHLC; Network Vision; Storm Joint; VisNet Fault Location; Unified Protection; Mobile Field Control; Storm Resilience | I70: Sniffer Dog UGC Oil Leak Detection & Location; Protean Steel Mast; Zebedee; NAVI; SINE POST; NCEWS2 / Lview; LIDAR ESQCR Secondary Substation Communications | J70: Bidoyng; Thermal Cameras; Low Voltage Underground Fault Location Technologies
D71: Improve vegetation management | H71: LIDAR Vegetation Management | J71: Live Line Tree Cutting; Forestry Mulcher
D72: Improve safety | F72: Telematics in operational vehicles; Fire Retardant Workwear; Farm Safety | H72: Public Safety; 3D Laser Surveying; FirePro Fire Suppression System; Smart Traffic Lights Kent; Line Search; Cable Plough | I72: Identification of Live and Not Live HV and LV cables; Virtual World Asset Management;
D73: Improve environmental impact | F73: Fluid-filled cable leak detection; SilentPower | H73: Innovative Bunding | J73: Hybrid Generators
D74: Improve connection performance | E74: Capacity to Customers (Customer contribution); Capacity to Customers (DUoS contribution); Capacity to Customers (Customer - Sole Use); PV Connect & Manage | F74: Flexible connection agreements (constrained generators); AutoDesign Project | G74: Active Network Management; Soft Intertrip; Timed; Export Limting; ANM | H74: Distribution Network Visibility (DNV) Application; Point of Connection (POC) Mast; Timed Connection; Global Earthing System; Timed Connection Assessment Tool; Smart Connect (TransPower); Underground fault prediction and earthing assessments | I74: SPT2 004 ARC
D76: Number of Projects | E76: 10 | F76: 14 | G76: 17 | H76: 58 | I76: 22 | J76: 15

Sheet Ch4 financial performance
A1: Chapter 3 - Financial Performance
A2: Review of the expenditure and financial performance of DNOs in 2022/23 | E2: Annual (2022-23) | I2: RIIO-ED1
B3: Totex performance Source: PCFM | E3: Allowance | F3: Actual | G3: Difference | H3: Difference | I3: Allowance | J3: Actual | K3: Difference | L3: Difference
E4: £m | F4: £m | G4: £m | H4: % | I4: £m | J4: £m | K4: £m | L4: %
D5: ENWL | E5: =E128 -> 337.2251026 | F5: 311.5433703 | G5: =F5-E5 -> -25.68173229 | H5: =G5/E5 -> -0.07615605152 | I5: =I128 -> 2695.615858 | J5: =J128 -> 2473.645825 | K5: =J5-I5 -> -221.9700332 | L5: =K5/I5 -> -0.08234483134
D6: NPgN | E6: 208.3607543 | F6: 182.1757567 | G6: -26.18499755 | H6: -0.1256714473 | I6: =I129 -> 1870.065224 | J6: =J129 -> 1891.88199 | K6: 21.81676625 | L6: 0.01166631301
D7: NPgY | E7: 286.8540571 | F7: 303.5410003 | G7: 16.68694323 | H7: 0.0581722406 | I7: 2491.72308 | J7: 2471.34347 | K7: -20.37960976 | L7: -0.008178922418
D8: WMID | E8: 383.4769405 | F8: 362.1532677 | G8: -21.3236728 | H8: -0.05560614095 | I8: 3004.785877 | J8: 2990.831862 | K8: -13.954015 | L8: -0.004643929907
D9: EMID | E9: 380.3427146 | F9: 379.306459 | G9: -1.036255656 | H9: -0.002724531367 | I9: 3030.422243 | J9: 2989.165862 | K9: -41.25638029 | L9: -0.01361406992
D10: SWALES | E10: 176.2344878 | F10: 190.5231748 | G10: 14.28868691 | H10: 0.08107769984 | I10: 1562.718597 | J10: 1503.585498 | K10: -59.13309834 | L10: -0.03783988907
D11: SWEST | E11: 317.4645664 | F11: 294.6174718 | G11: -22.84709457 | H11: -0.07196738468 | I11: 2450.640978 | J11: 2360.783081 | K11: -89.85789658 | L11: -0.0366670995
D12: LPN | E12: 259.9770493 | F12: 240.5541545 | G12: -19.42289481 | H12: -0.0747100364 | I12: 2494.327184 | J12: 2203.958482 | K12: -290.3687014 | L12: -0.1164116333
D13: SPN | E13: 278.061923 | F13: 311.2420678 | G13: 33.18014473 | H13: 0.1193264592 | I13: 2460.290583 | J13: 2181.72073 | K13: -278.5698536 | L13: -0.1132264032
D14: EPN | E14: 420.0127303 | F14: 408.0592016 | G14: -11.95352878 | H14: -0.02845992018 | I14: 3681.362207 | J14: 3369.062614 | K14: -312.2995931 | L14: -0.0848326178
D15: SPD | E15: 276.0252174 | F15: 257.3651483 | G15: -18.66006905 | H15: -0.06760276916 | I15: 2242.320851 | J15: 2279.825872 | K15: 37.50502122 | L15: 0.01672598335
D16: SPMW | E16: 281.5286588 | F16: 295.7441113 | G16: 14.2154525 | H16: 0.05049380251 | I16: 2483.104657 | J16: 2594.509294 | K16: 111.4046371 | L16: 0.04486505906
D17: SSEH | E17: 238.7257842 | F17: 301.7399644 | G17: 63.0141802 | H17: 0.2639605119 | I17: 1913.288997 | J17: 2016.197175 | K17: 102.9081785 | L17: 0.05378600865
D18: SSES | E18: 406.6184176 | F18: 405.003234 | G18: -1.615183589 | H18: -0.003972234212 | I18: 3378.231849 | J18: 3418.332528 | K18: 40.10067917 | L18: 0.01187031588
D19: Total | E19: =SUM(E5:E18) -> 4250.908404 | F19: =SUM(F5:F18) -> 4243.568382 | G19: =SUM(G5:G18) -> -7.340021543 | H19: -0.001726694825 | I19: =SUM(I5:I18) -> 35758.89818 | J19: =SUM(J5:J18) -> 34744.84429 | K19: =SUM(K5:K18) -> -1014.053899 | L19: -0.02835808569
E21: Annual (2022-23) | I21: RIIO-ED1
E22: Allowance | F22: Actual | G22: Difference | H22: Difference | I22: Allowance | J22: Actual | K22: Difference | L22: Difference
E23: £m | F23: £m | G23: £m | H23: % | I23: £m | J23: £m | K23: £m | L23: %
D24: ENWL | E24: =E5 -> 337.2251026 | F24: =F5 -> 311.5433703 | G24: =F24-E24 -> -25.68173229 | H24: =G24/E24 -> -0.07615605152 | I24: =I5 -> 2695.615858 | J24: =J5 -> 2473.645825 | K24: =J24-I24 -> -221.9700332 | L24: =K24/I24 -> -0.08234483134
D25: NPg | E25: =SUM(E6:E7) -> 495.2148114 | F25: =SUM(F6:F7) -> 485.7167571 | G25: -9.498054321 | H25: -0.01917966527 | I25: =SUM(I6:I7) -> 4361.788304 | J25: =SUM(J6:J7) -> 4363.225461 | K25: 1.437156495 | L25: 0.0003294879062
D26: NGED | E26: =SUM(E8:E11) -> 1257.518709 | F26: =SUM(F8:F11) -> 1226.600373 | G26: -30.91833613 | H26: -0.02458678022 | I26: =SUM(I8:I11) -> 10048.56769 | J26: =SUM(J8:J11) -> 9844.366304 | K26: -204.2013902 | L26: -0.02032144246
D27: UKPN | E27: =SUM(E12:E14) -> 958.0517026 | F27: =SUM(F12:F14) -> 959.8554238 | G27: 1.803721133 | H27: 0.001882697069 | I27: =SUM(I12:I14) -> 8635.979974 | J27: =SUM(J12:J14) -> 7754.741826 | K27: -881.2381481 | L27: -0.1020426345
D28: SPEN | E28: =SUM(E15:E16) -> 557.5538762 | F28: =SUM(F15:F16) -> 553.1092596 | G28: -4.444616551 | H28: -0.007971635999 | I28: =SUM(I15:I16) -> 4725.425508 | J28: =SUM(J15:J16) -> 4874.335166 | K28: 148.9096583 | L28: 0.03151243376
